Workbook

Sheet Disclaimer
A10: Single Sector Option Model
A12: Introduction and Disclaimer

Sheet Model Description (hidden)
A1: Single Sector Option Model
A3: Model Description

Sheet Inputs (hidden)
A1: Characteristics - Inputs required
B3: Key
C4: Inputs required
C5: Do not change | V5: Do not touch
V6: Valuation List | W6: Redemption List
B7: Asset Return Characteristics | V7: 1 | W7: Daily
V8: 2 | W8: Weekly
B9: - Expected return: | V9: 4 | W9: Fortnightly
C10: - Income: | E10: 0.04 | G10: Income assumed to be accrued into unit price daily. | V10: 6 | W10: Monthly
C11: - Capital growth: | E11: 0.03 | V11: 12 | W11: Quarterly
C12: - Total expected return: | E12: =SUM(E10:E11) -> 0.07 | W12: Semi-Annually
W13: Annually
B14: - Volatility: | C14: 0.07 | D14: ann.
B16: Portfolio Allocation to Illiquid Assets
B18: Allocation to illiquid assets: | D18: 1
B20: Transaction Frequency
B22: - Transaction frequency (pa): | D22: Monthly
B24: Valuation Framework
B26: - Valuation frequency (pa): | D26: 2
B28: Note:
B29: (1) For simplicity we assume a 240 business day year.
B30: (2) For simplicity we assume that there are no distributions.
B31: (3) For simplicity we assume that undertaking a re-valuation is instantaneous.
B33: Trustee concerns
B35: - Trustee is concerned about level of unit price inequity exceeding: | H35: 0.05
B36: - Trustee is highly concerned about level of unit price inequity exceeding: | H36: 0.1
B37: - Trustee is concerned about the unit price gapping by: | H37: 0.06

Sheet Working (hidden)
A1: Workings
A3: Through-time unit price calculations | R3: Gapping / probability calculations
T5: Probability <- X% | U5: Probability > X% | V5: Total Probability | W5: Over course of a year | X5: X
S6: ="Trustee level: "&Inputs!$H$37*100&"%" -> Trustee level: 6% | T6: =_xlfn.NORM.DIST(-Inputs!$H$37,Inputs!$E$11*Inputs!$D$18/Inputs!$D$26,Inputs!$C$14*Inputs!$D$18/SQRT(Inputs!$D$26),TRUE) -> 0.06485723389 | U6: =1-_xlfn.NORM.DIST(Inputs!$H$37,Inputs!$E$11*Inputs!$D$18/Inputs!$D$26,Inputs!$C$14*Inputs!$D$18/SQRT(Inputs!$D$26),TRUE) -> 0.1816388305 | V6: =SUM(T6:U6) -> 0.2464960644 | W6: =1-((1-V6)^Inputs!$D$26) -> 0.432231819
S7: Gapping > 2% | T7: =_xlfn.NORM.DIST(-X7,Inputs!$E$11*Inputs!$D$18/Inputs!$D$26,Inputs!$C$14*Inputs!$D$18/SQRT(Inputs!$D$26),TRUE) -> 0.2397500611 | U7: =1-_xlfn.NORM.DIST(X7,Inputs!$E$11*Inputs!$D$18/Inputs!$D$26,Inputs!$C$14*Inputs!$D$18/SQRT(Inputs!$D$26),TRUE) -> 0.4597691754 | V7: =SUM(T7:U7) -> 0.6995192365 | W7: =1-((1-V7)^Inputs!$D$26) -> 0.9097113108 | X7: 0.02
A8: Redemption Frequency | C8: =IF(Inputs!D22="Daily",1, IF(Inputs!D22="Weekly",5, IF(Inputs!D22="Fortnightly",10,IF(Inputs!D22="Monthly",20,IF(Inputs!D22="Quarterly",60,IF(Inputs!D22="Semi-Annually",120,IF(Inputs!D22="Annually",240))))))) -> 20 | S8: Gapping > 4% | T8: =_xlfn.NORM.DIST(-X8,Inputs!$E$11*Inputs!$D$18/Inputs!$D$26,Inputs!$C$14*Inputs!$D$18/SQRT(Inputs!$D$26),TRUE) -> 0.1332480645 | U8: =1-_xlfn.NORM.DIST(X8,Inputs!$E$11*Inputs!$D$18/Inputs!$D$26,Inputs!$C$14*Inputs!$D$18/SQRT(Inputs!$D$26),TRUE) -> 0.3067526331 | V8: 0.4400006975 | W8: =1-((1-V8)^Inputs!$D$26) -> 0.6864007812 | X8: 0.04
B9: Day | C9: Redemption Day | D9: Illiquid - Accrued Income | E9: Illiquid Index (Accrued Income) | F9: Illiquid - Expected Capital Growth | G9: Illiquid - Capital Growth: Dispersion Component | H9: Illiquid - Performance (Hypothetical) | I9: Illiquid - Hypothetical Unit Price | J9: Illiquid - Actual Unit Price | K9: Premium / Discount (-) | L9: Transactional Premium / Discount (-) | M9: Gapping | S9: Gapping > 6% | T9: =_xlfn.NORM.DIST(-X9,Inputs!$E$11*Inputs!$D$18/Inputs!$D$26,Inputs!$C$14*Inputs!$D$18/SQRT(Inputs!$D$26),TRUE) -> 0.06485723389 | U9: =1-_xlfn.NORM.DIST(X9,Inputs!$E$11*Inputs!$D$18/Inputs!$D$26,Inputs!$C$14*Inputs!$D$18/SQRT(Inputs!$D$26),TRUE) -> 0.1816388305 | V9: 0.2464960644 | W9: =1-((1-V9)^Inputs!$D$26) -> 0.432231819 | X9: 0.06
B10: 0 | C10: =IF(MOD(B10,$C$8)=0,1,0) -> 1 | E10: 100 | I10: 100 | J10: =I10 -> 100 | K10: =(J10/I10-1)*Inputs!$D$18 -> 0 | L10: =C10*K10 -> 0 | M10: 0 | S10: Gapping > 8% | T10: =_xlfn.NORM.DIST(-X10,Inputs!$E$11*Inputs!$D$18/Inputs!$D$26,Inputs!$C$14*Inputs!$D$18/SQRT(Inputs!$D$26),TRUE) -> 0.02747383189 | U10: =1-_xlfn.NORM.DIST(X10,Inputs!$E$11*Inputs!$D$18/Inputs!$D$26,Inputs!$C$14*Inputs!$D$18/SQRT(Inputs!$D$26),TRUE) -> 0.09455806701 | V10: 0.1220318989 | W10: =1-((1-V10)^Inputs!$D$26) -> 0.2291720135 | X10: 0.08
B11: 1 | C11: =IF(MOD(B11,$C$8)=0,1,0) -> 0 | D11: =(1+Inputs!$E$10)^(1/240)-1 -> 0.0001634329919 | E11: =E10*(1+D11) -> 100.0163433 | F11: =(1+Inputs!$E$11)^(1/240)-1 -> 0.0001231692607 | G11: =_xlfn.NORM.S.INV(RAND())*Inputs!$C$14/SQRT(240) -> 0.002513268862 | H11: =(1+D11)*(1+F11)*(1+G11)-1 -> 0.002800611604 | I11: =I10*(1+H11) -> 100.2800612 | J11: =IF(MOD(B11,(240/Inputs!$D$26))=0,I11,J10*(1+D11)) -> 100.0163433 | K11: =(J11/I11-1)*Inputs!$D$18 -> -0.002629813526 | L11: =C11*K11 -> 0 | M11: =IF(MOD(B11,(240/Inputs!$D$26))=0,K11-K10,0) -> 0 | S11: Gapping > 10% | T11: =_xlfn.NORM.DIST(-X11,Inputs!$E$11*Inputs!$D$18/Inputs!$D$26,Inputs!$C$14*Inputs!$D$18/SQRT(Inputs!$D$26),TRUE) -> 0.01008015603 | U11: =1-_xlfn.NORM.DIST(X11,Inputs!$E$11*Inputs!$D$18/Inputs!$D$26,Inputs!$C$14*Inputs!$D$18/SQRT(Inputs!$D$26),TRUE) -> 0.04296590011 | V11: 0.05304605614 | W11: =1-((1-V11)^Inputs!$D$26) -> 0.1032782282 | X11: 0.1
B12: 2 | C12: 0 | D12: =(1+Inputs!$E$10)^(1/240)-1 -> 0.0001634329919 | E12: =E11*(1+D12) -> 100.0326893 | F12: =(1+Inputs!$E$11)^(1/240)-1 -> 0.0001231692607 | G12: =_xlfn.NORM.S.INV(RAND())*Inputs!$C$14/SQRT(240) -> -0.00239349224 | H12: =(1+D12)*(1+F12)*(1+G12)-1 -> -0.002107555886 | I12: =I11*(1+H12) -> 100.0687153 | J12: =IF(MOD(B12,(240/Inputs!$D$26))=0,I12,J11*(1+D12)) -> 100.0326893 | K12: =(J12/I12-1)*Inputs!$D$18 -> -0.0003600131946 | L12: =C12*K12 -> 0 | M12: =IF(MOD(B12,(240/Inputs!$D$26))=0,K12-K11,0) -> 0
B13: 3 | C13: 0 | D13: =(1+Inputs!$E$10)^(1/240)-1 -> 0.0001634329919 | E13: 100.0490379 | F13: =(1+Inputs!$E$11)^(1/240)-1 -> 0.0001231692607 | G13: =_xlfn.NORM.S.INV(RAND())*Inputs!$C$14/SQRT(240) -> -0.002519870945 | H13: -0.002233970813 | I13: 99.84516474 | J13: =IF(MOD(B13,(240/Inputs!$D$26))=0,I13,J12*(1+D13)) -> 100.0490379 | K13: =(J13/I13-1)*Inputs!$D$18 -> 0.002041893303 | L13: 0 | M13: =IF(MOD(B13,(240/Inputs!$D$26))=0,K13-K12,0) -> 0
B14: 4 | C14: 0 | D14: =(1+Inputs!$E$10)^(1/240)-1 -> 0.0001634329919 | E14: 100.0653892 | F14: =(1+Inputs!$E$11)^(1/240)-1 -> 0.0001231692607 | G14: =_xlfn.NORM.S.INV(RAND())*Inputs!$C$14/SQRT(240) -> -0.002458167121 | H14: -0.002172249304 | I14: 99.62827615 | J14: =IF(MOD(B14,(240/Inputs!$D$26))=0,I14,J13*(1+D14)) -> 100.0653892 | K14: =(J14/I14-1)*Inputs!$D$18 -> 0.004387439925 | L14: 0 | M14: =IF(MOD(B14,(240/Inputs!$D$26))=0,K14-K13,0) -> 0
B15: 5 | C15: 0 | D15: =(1+Inputs!$E$10)^(1/240)-1 -> 0.0001634329919 | E15: 100.0817432 | F15: =(1+Inputs!$E$11)^(1/240)-1 -> 0.0001231692607 | G15: =_xlfn.NORM.S.INV(RAND())*Inputs!$C$14/SQRT(240) -> 0.0008219852915 | H15: 0.001108843273 | I15: 99.73874829 | J15: =IF(MOD(B15,(240/Inputs!$D$26))=0,I15,J14*(1+D15)) -> 100.0817432 | K15: =(J15/I15-1)*Inputs!$D$18 -> 0.003438933457 | L15: 0 | M15: =IF(MOD(B15,(240/Inputs!$D$26))=0,K15-K14,0) -> 0
B16: 6 | C16: 0 | D16: =(1+Inputs!$E$10)^(1/240)-1 -> 0.0001634329919 | E16: 100.0980999 | F16: =(1+Inputs!$E$11)^(1/240)-1 -> 0.0001231692607 | G16: =_xlfn.NORM.S.INV(RAND())*Inputs!$C$14/SQRT(240) -> -0.008574414761 | H16: -0.008290249998 | I16: 98.91188913 | J16: =IF(MOD(B16,(240/Inputs!$D$26))=0,I16,J15*(1+D16)) -> 100.0980999 | K16: =(J16/I16-1)*Inputs!$D$18 -> 0.01199260014 | L16: 0 | M16: =IF(MOD(B16,(240/Inputs!$D$26))=0,K16-K15,0) -> 0
B17: 7 | C17: 0 | D17: =(1+Inputs!$E$10)^(1/240)-1 -> 0.0001634329919 | E17: 100.1144592 | F17: =(1+Inputs!$E$11)^(1/240)-1 -> 0.0001231692607 | G17: =_xlfn.NORM.S.INV(RAND())*Inputs!$C$14/SQRT(240) -> 0.00502902258 | H17: 0.005317086393 | I17: 99.43781219 | J17: =IF(MOD(B17,(240/Inputs!$D$26))=0,I17,J16*(1+D17)) -> 100.1144592 | K17: =(J17/I17-1)*Inputs!$D$18 -> 0.006804725408 | L17: 0 | M17: =IF(MOD(B17,(240/Inputs!$D$26))=0,K17-K16,0) -> 0
B18: 8 | C18: 0 | D18: =(1+Inputs!$E$10)^(1/240)-1 -> 0.0001634329919 | E18: 100.1308212 | F18: =(1+Inputs!$E$11)^(1/240)-1 -> 0.0001231692607 | G18: =_xlfn.NORM.S.INV(RAND())*Inputs!$C$14/SQRT(240) -> 0.001301039329 | H18: 0.001588034618 | I18: 99.59572288 | J18: =IF(MOD(B18,(240/Inputs!$D$26))=0,I18,J17*(1+D18)) -> 100.1308212 | K18: =(J18/I18-1)*Inputs!$D$18 -> 0.005372703859 | L18: 0 | M18: =IF(MOD(B18,(240/Inputs!$D$26))=0,K18-K17,0) -> 0
B19: 9 | C19: 0 | D19: =(1+Inputs!$E$10)^(1/240)-1 -> 0.0001634329919 | E19: 100.1471859 | F19: =(1+Inputs!$E$11)^(1/240)-1 -> 0.0001231692607 | G19: =_xlfn.NORM.S.INV(RAND())*Inputs!$C$14/SQRT(240) -> 0.001739194839 | H19: 0.002026315714 | I19: 99.79753526 | J19: =IF(MOD(B19,(240/Inputs!$D$26))=0,I19,J18*(1+D19)) -> 100.1471859 | K19: =(J19/I19-1)*Inputs!$D$18 -> 0.003503599814 | L19: 0 | M19: =IF(MOD(B19,(240/Inputs!$D$26))=0,K19-K18,0) -> 0
B20: 10 | C20: 0 | D20: =(1+Inputs!$E$10)^(1/240)-1 -> 0.0001634329919 | E20: 100.1635532 | F20: =(1+Inputs!$E$11)^(1/240)-1 -> 0.0001231692607 | G20: =_xlfn.NORM.S.INV(RAND())*Inputs!$C$14/SQRT(240) -> 0.003282081697 | H20: 0.003569644797 | I20: 100.153777 | J20: =IF(MOD(B20,(240/Inputs!$D$26))=0,I20,J19*(1+D20)) -> 100.1635532 | K20: =(J20/I20-1)*Inputs!$D$18 -> 9.761217197e-05 | L20: 0 | M20: =IF(MOD(B20,(240/Inputs!$D$26))=0,K20-K19,0) -> 0
B21: 11 | C21: 0 | D21: =(1+Inputs!$E$10)^(1/240)-1 -> 0.0001634329919 | E21: 100.1799233 | F21: =(1+Inputs!$E$11)^(1/240)-1 -> 0.0001231692607 | G21: =_xlfn.NORM.S.INV(RAND())*Inputs!$C$14/SQRT(240) -> 0.006365638582 | H21: 0.006654085499 | I21: 100.8202088 | J21: =IF(MOD(B21,(240/Inputs!$D$26))=0,I21,J20*(1+D21)) -> 100.1799233 | K21: =(J21/I21-1)*Inputs!$D$18 -> -0.006350765843 | L21: 0 | M21: =IF(MOD(B21,(240/Inputs!$D$26))=0,K21-K20,0) -> 0
B22: 12 | C22: 0 | D22: =(1+Inputs!$E$10)^(1/240)-1 -> 0.0001634329919 | E22: 100.196296 | F22: =(1+Inputs!$E$11)^(1/240)-1 -> 0.0001231692607 | G22: =_xlfn.NORM.S.INV(RAND())*Inputs!$C$14/SQRT(240) -> -0.004419586702 | H22: -0.004134231072 | I22: 100.4033948 | J22: =IF(MOD(B22,(240/Inputs!$D$26))=0,I22,J21*(1+D22)) -> 100.196296 | K22: =(J22/I22-1)*Inputs!$D$18 -> -0.002062667247 | L22: 0 | M22: =IF(MOD(B22,(240/Inputs!$D$26))=0,K22-K21,0) -> 0
B23: 13 | C23: 0 | D23: =(1+Inputs!$E$10)^(1/240)-1 -> 0.0001634329919 | E23: 100.2126714 | F23: =(1+Inputs!$E$11)^(1/240)-1 -> 0.0001231692607 | G23: =_xlfn.NORM.S.INV(RAND())*Inputs!$C$14/SQRT(240) -> 0.01068906248 | H23: 0.01097874859 | I23: 101.5056984 | J23: =IF(MOD(B23,(240/Inputs!$D$26))=0,I23,J22*(1+D23)) -> 100.2126714 | K23: =(J23/I23-1)*Inputs!$D$18 -> -0.01273846752 | L23: 0 | M23: =IF(MOD(B23,(240/Inputs!$D$26))=0,K23-K22,0) -> 0
B24: 14 | C24: 0 | D24: =(1+Inputs!$E$10)^(1/240)-1 -> 0.0001634329919 | E24: 100.2290494 | F24: =(1+Inputs!$E$11)^(1/240)-1 -> 0.0001231692607 | G24: =_xlfn.NORM.S.INV(RAND())*Inputs!$C$14/SQRT(240) -> -0.002881694913 | H24: -0.002595898489 | I24: 101.2421999 | J24: =IF(MOD(B24,(240/Inputs!$D$26))=0,I24,J23*(1+D24)) -> 100.2290494 | K24: =(J24/I24-1)*Inputs!$D$18 -> -0.01000719559 | L24: 0 | M24: =IF(MOD(B24,(240/Inputs!$D$26))=0,K24-K23,0) -> 0
B25: 15 | C25: 0 | D25: =(1+Inputs!$E$10)^(1/240)-1 -> 0.0001634329919 | E25: 100.2454301 | F25: =(1+Inputs!$E$11)^(1/240)-1 -> 0.0001231692607 | G25: =_xlfn.NORM.S.INV(RAND())*Inputs!$C$14/SQRT(240) -> 0.002404156703 | H25: 0.00269146817 | I25: 101.5146901 | J25: =IF(MOD(B25,(240/Inputs!$D$26))=0,I25,J24*(1+D25)) -> 100.2454301 | K25: =(J25/I25-1)*Inputs!$D$18 -> -0.01250321427 | L25: 0 | M25: =IF(MOD(B25,(240/Inputs!$D$26))=0,K25-K24,0) -> 0
B26: 16 | C26: 0 | D26: =(1+Inputs!$E$10)^(1/240)-1 -> 0.0001634329919 | E26: 100.2618136 | F26: =(1+Inputs!$E$11)^(1/240)-1 -> 0.0001231692607 | G26: =_xlfn.NORM.S.INV(RAND())*Inputs!$C$14/SQRT(240) -> -0.00275220667 | H26: -0.002466373131 | I26: 101.264317 | J26: =IF(MOD(B26,(240/Inputs!$D$26))=0,I26,J25*(1+D26)) -> 100.2618136 | K26: =(J26/I26-1)*Inputs!$D$18 -> -0.00989986835 | L26: 0 | M26: =IF(MOD(B26,(240/Inputs!$D$26))=0,K26-K25,0) -> 0
B27: 17 | C27: 0 | D27: =(1+Inputs!$E$10)^(1/240)-1 -> 0.0001634329919 | E27: 100.2781996 | F27: =(1+Inputs!$E$11)^(1/240)-1 -> 0.0001231692607 | G27: =_xlfn.NORM.S.INV(RAND())*Inputs!$C$14/SQRT(240) -> 0.001899634809 | H27: 0.002186801669 | I27: 101.4857619 | J27: =IF(MOD(B27,(240/Inputs!$D$26))=0,I27,J26*(1+D27)) -> 100.2781996 | K27: =(J27/I27-1)*Inputs!$D$18 -> -0.0118988346 | L27: 0 | M27: =IF(MOD(B27,(240/Inputs!$D$26))=0,K27-K26,0) -> 0
B28: 18 | C28: 0 | D28: =(1+Inputs!$E$10)^(1/240)-1 -> 0.0001634329919 | E28: 100.2945884 | F28: =(1+Inputs!$E$11)^(1/240)-1 -> 0.0001231692607 | G28: =_xlfn.NORM.S.INV(RAND())*Inputs!$C$14/SQRT(240) -> -0.005574248056 | H28: -0.005289223378 | I28: 100.9489811 | J28: =IF(MOD(B28,(240/Inputs!$D$26))=0,I28,J27*(1+D28)) -> 100.2945884 | K28: =(J28/I28-1)*Inputs!$D$18 -> -0.006482409807 | L28: 0 | M28: =IF(MOD(B28,(240/Inputs!$D$26))=0,K28-K27,0) -> 0
B29: 19 | C29: 0 | D29: =(1+Inputs!$E$10)^(1/240)-1 -> 0.0001634329919 | E29: 100.3109799 | F29: =(1+Inputs!$E$11)^(1/240)-1 -> 0.0001231692607 | G29: =_xlfn.NORM.S.INV(RAND())*Inputs!$C$14/SQRT(240) -> 0.008164277967 | H29: 0.008453240415 | I29: 101.8023271 | J29: =IF(MOD(B29,(240/Inputs!$D$26))=0,I29,J28*(1+D29)) -> 100.3109799 | K29: =(J29/I29-1)*Inputs!$D$18 -> -0.01464944142 | L29: 0 | M29: =IF(MOD(B29,(240/Inputs!$D$26))=0,K29-K28,0) -> 0
B30: 20 | C30: 1 | D30: =(1+Inputs!$E$10)^(1/240)-1 -> 0.0001634329919 | E30: 100.327374 | F30: =(1+Inputs!$E$11)^(1/240)-1 -> 0.0001231692607 | G30: =_xlfn.NORM.S.INV(RAND())*Inputs!$C$14/SQRT(240) -> 0.0005249292675 | H30: 0.0008117021064 | I30: 101.8849602 | J30: =IF(MOD(B30,(240/Inputs!$D$26))=0,I30,J29*(1+D30)) -> 100.327374 | K30: =(J30/I30-1)*Inputs!$D$18 -> -0.01528769568 | L30: -0.01528769568 | M30: =IF(MOD(B30,(240/Inputs!$D$26))=0,K30-K29,0) -> 0
B31: 21 | C31: 0 | D31: =(1+Inputs!$E$10)^(1/240)-1 -> 0.0001634329919 | E31: 100.3437708 | F31: =(1+Inputs!$E$11)^(1/240)-1 -> 0.0001231692607 | G31: =_xlfn.NORM.S.INV(RAND())*Inputs!$C$14/SQRT(240) -> 0.005228166328 | H31: 0.00551628722 | I31: 102.4469869 | J31: =IF(MOD(B31,(240/Inputs!$D$26))=0,I31,J30*(1+D31)) -> 100.3437708 | K31: =(J31/I31-1)*Inputs!$D$18 -> -0.02052980015 | L31: 0 | M31: =IF(MOD(B31,(240/Inputs!$D$26))=0,K31-K30,0) -> 0
B32: 22 | C32: 0 | D32: =(1+Inputs!$E$10)^(1/240)-1 -> 0.0001634329919 | E32: 100.3601703 | F32: =(1+Inputs!$E$11)^(1/240)-1 -> 0.0001231692607 | G32: =_xlfn.NORM.S.INV(RAND())*Inputs!$C$14/SQRT(240) -> -0.002409728389 | H32: -0.002123796688 | I32: 102.2294104 | J32: =IF(MOD(B32,(240/Inputs!$D$26))=0,I32,J31*(1+D32)) -> 100.3601703 | K32: =(J32/I32-1)*Inputs!$D$18 -> -0.01828475883 | L32: 0 | M32: =IF(MOD(B32,(240/Inputs!$D$26))=0,K32-K31,0) -> 0
B33: 23 | C33: 0 | D33: =(1+Inputs!$E$10)^(1/240)-1 -> 0.0001634329919 | E33: 100.3765724 | F33: =(1+Inputs!$E$11)^(1/240)-1 -> 0.0001231692607 | G33: =_xlfn.NORM.S.INV(RAND())*Inputs!$C$14/SQRT(240) -> -0.004914115696 | H33: -0.004628901809 | I33: 101.7562005 | J33: =IF(MOD(B33,(240/Inputs!$D$26))=0,I33,J32*(1+D33)) -> 100.3765724 | K33: =(J33/I33-1)*Inputs!$D$18 -> -0.0135581718 | L33: 0 | M33: =IF(MOD(B33,(240/Inputs!$D$26))=0,K33-K32,0) -> 0
B34: 24 | C34: 0 | D34: =(1+Inputs!$E$10)^(1/240)-1 -> 0.0001634329919 | E34: 100.3929773 | F34: =(1+Inputs!$E$11)^(1/240)-1 -> 0.0001231692607 | G34: =_xlfn.NORM.S.INV(RAND())*Inputs!$C$14/SQRT(240) -> 0.001029008342 | H34: 0.001315925662 | I34: 101.8901041 | J34: =IF(MOD(B34,(240/Inputs!$D$26))=0,I34,J33*(1+D34)) -> 100.3929773 | K34: =(J34/I34-1)*Inputs!$D$18 -> -0.01469354471 | L34: 0 | M34: =IF(MOD(B34,(240/Inputs!$D$26))=0,K34-K33,0) -> 0
B35: 25 | C35: 0 | D35: =(1+Inputs!$E$10)^(1/240)-1 -> 0.0001634329919 | E35: 100.4093848 | F35: =(1+Inputs!$E$11)^(1/240)-1 -> 0.0001231692607 | G35: =_xlfn.NORM.S.INV(RAND())*Inputs!$C$14/SQRT(240) -> -0.0005952500642 | H35: -0.0003087982937 | I35: 101.8586406 | J35: =IF(MOD(B35,(240/Inputs!$D$26))=0,I35,J34*(1+D35)) -> 100.4093848 | K35: =(J35/I35-1)*Inputs!$D$18 -> -0.01422810845 | L35: 0 | M35: =IF(MOD(B35,(240/Inputs!$D$26))=0,K35-K34,0) -> 0
B36: 26 | C36: 0 | D36: =(1+Inputs!$E$10)^(1/240)-1 -> 0.0001634329919 | E36: 100.425795 | F36: =(1+Inputs!$E$11)^(1/240)-1 -> 0.0001231692607 | G36: =_xlfn.NORM.S.INV(RAND())*Inputs!$C$14/SQRT(240) -> 0.006167929323 | H36: 0.006456319572 | I36: 102.5162725 | J36: =IF(MOD(B36,(240/Inputs!$D$26))=0,I36,J35*(1+D36)) -> 100.425795 | K36: =(J36/I36-1)*Inputs!$D$18 -> -0.02039166527 | L36: 0 | M36: =IF(MOD(B36,(240/Inputs!$D$26))=0,K36-K35,0) -> 0
B37: 27 | C37: 0 | D37: =(1+Inputs!$E$10)^(1/240)-1 -> 0.0001634329919 | E37: 100.4422079 | F37: =(1+Inputs!$E$11)^(1/240)-1 -> 0.0001231692607 | G37: =_xlfn.NORM.S.INV(RAND())*Inputs!$C$14/SQRT(240) -> -8.320002154e-06 | H37: 0.0002782999956 | I37: 102.5448028 | J37: =IF(MOD(B37,(240/Inputs!$D$26))=0,I37,J36*(1+D37)) -> 100.4422079 | K37: =(J37/I37-1)*Inputs!$D$18 -> -0.02050415864 | L37: 0 | M37: =IF(MOD(B37,(240/Inputs!$D$26))=0,K37-K36,0) -> 0
B38: 28 | C38: 0 | D38: =(1+Inputs!$E$10)^(1/240)-1 -> 0.0001634329919 | E38: 100.4586235 | F38: =(1+Inputs!$E$11)^(1/240)-1 -> 0.0001231692607 | G38: =_xlfn.NORM.S.INV(RAND())*Inputs!$C$14/SQRT(240) -> 0.003832749749 | H38: 0.004120470684 | I38: 102.9673356 | J38: =IF(MOD(B38,(240/Inputs!$D$26))=0,I38,J37*(1+D38)) -> 100.4586235 | K38: =(J38/I38-1)*Inputs!$D$18 -> -0.02436415559 | L38: 0 | M38: =IF(MOD(B38,(240/Inputs!$D$26))=0,K38-K37,0) -> 0
B39: 29 | C39: 0 | D39: =(1+Inputs!$E$10)^(1/240)-1 -> 0.0001634329919 | E39: 100.4750417 | F39: =(1+Inputs!$E$11)^(1/240)-1 -> 0.0001231692607 | G39: =_xlfn.NORM.S.INV(RAND())*Inputs!$C$14/SQRT(240) -> 0.004197756984 | H39: 0.004485582537 | I39: 103.4292041 | J39: =IF(MOD(B39,(240/Inputs!$D$26))=0,I39,J38*(1+D39)) -> 100.4750417 | K39: =(J39/I39-1)*Inputs!$D$18 -> -0.02856216908 | L39: 0 | M39: =IF(MOD(B39,(240/Inputs!$D$26))=0,K39-K38,0) -> 0
B40: 30 | C40: 0 | D40: =(1+Inputs!$E$10)^(1/240)-1 -> 0.0001634329919 | E40: 100.4914626 | F40: =(1+Inputs!$E$11)^(1/240)-1 -> 0.0001231692607 | G40: =_xlfn.NORM.S.INV(RAND())*Inputs!$C$14/SQRT(240) -> 0.001518099786 | H40: 0.001805157289 | I40: 103.6159101 | J40: =IF(MOD(B40,(240/Inputs!$D$26))=0,I40,J39*(1+D40)) -> 100.4914626 | K40: =(J40/I40-1)*Inputs!$D$18 -> -0.03015412843 | L40: 0 | M40: =IF(MOD(B40,(240/Inputs!$D$26))=0,K40-K39,0) -> 0
B41: 31 | C41: 0 | D41: =(1+Inputs!$E$10)^(1/240)-1 -> 0.0001634329919 | E41: 100.5078863 | F41: =(1+Inputs!$E$11)^(1/240)-1 -> 0.0001231692607 | G41: =_xlfn.NORM.S.INV(RAND())*Inputs!$C$14/SQRT(240) -> 0.006943455437 | H41: 0.007232067969 | I41: 104.3652674 | J41: =IF(MOD(B41,(240/Inputs!$D$26))=0,I41,J40*(1+D41)) -> 100.5078863 | K41: =(J41/I41-1)*Inputs!$D$18 -> -0.03696039153 | L41: 0 | M41: =IF(MOD(B41,(240/Inputs!$D$26))=0,K41-K40,0) -> 0
B42: 32 | C42: 0 | D42: =(1+Inputs!$E$10)^(1/240)-1 -> 0.0001634329919 | E42: 100.5243126 | F42: =(1+Inputs!$E$11)^(1/240)-1 -> 0.0001231692607 | G42: =_xlfn.NORM.S.INV(RAND())*Inputs!$C$14/SQRT(240) -> 0.00522377437 | H42: 0.005511894003 | I42: 104.9405177 | J42: =IF(MOD(B42,(240/Inputs!$D$26))=0,I42,J41*(1+D42)) -> 100.5243126 | K42: =(J42/I42-1)*Inputs!$D$18 -> -0.0420829364 | L42: 0 | M42: =IF(MOD(B42,(240/Inputs!$D$26))=0,K42-K41,0) -> 0
B43: 33 | C43: 0 | D43: =(1+Inputs!$E$10)^(1/240)-1 -> 0.0001634329919 | E43: 100.5407416 | F43: =(1+Inputs!$E$11)^(1/240)-1 -> 0.0001231692607 | G43: =_xlfn.NORM.S.INV(RAND())*Inputs!$C$14/SQRT(240) -> -0.004064957848 | H43: -0.003779500574 | I43: 104.543895 | J43: =IF(MOD(B43,(240/Inputs!$D$26))=0,I43,J42*(1+D43)) -> 100.5407416 | K43: =(J43/I43-1)*Inputs!$D$18 -> -0.03829160371 | L43: 0 | M43: =IF(MOD(B43,(240/Inputs!$D$26))=0,K43-K42,0) -> 0
B44: 34 | C44: 0 | D44: =(1+Inputs!$E$10)^(1/240)-1 -> 0.0001634329919 | E44: 100.5571732 | F44: =(1+Inputs!$E$11)^(1/240)-1 -> 0.0001231692607 | G44: =_xlfn.NORM.S.INV(RAND())*Inputs!$C$14/SQRT(240) -> -0.005033100136 | H44: -0.004747920352 | I44: 104.0475289 | J44: =IF(MOD(B44,(240/Inputs!$D$26))=0,I44,J43*(1+D44)) -> 100.5571732 | K44: =(J44/I44-1)*Inputs!$D$18 -> -0.03354578118 | L44: 0 | M44: =IF(MOD(B44,(240/Inputs!$D$26))=0,K44-K43,0) -> 0
B45: 35 | C45: 0 | D45: =(1+Inputs!$E$10)^(1/240)-1 -> 0.0001634329919 | E45: 100.5736076 | F45: =(1+Inputs!$E$11)^(1/240)-1 -> 0.0001231692607 | G45: =_xlfn.NORM.S.INV(RAND())*Inputs!$C$14/SQRT(240) -> -0.0009719729763 | H45: -0.000685629183 | I45: 103.9761909 | J45: =IF(MOD(B45,(240/Inputs!$D$26))=0,I45,J44*(1+D45)) -> 100.5736076 | K45: =(J45/I45-1)*Inputs!$D$18 -> -0.03272463846 | L45: 0 | M45: =IF(MOD(B45,(240/Inputs!$D$26))=0,K45-K44,0) -> 0
B46: 36 | C46: 0 | D46: =(1+Inputs!$E$10)^(1/240)-1 -> 0.0001634329919 | E46: 100.5900446 | F46: =(1+Inputs!$E$11)^(1/240)-1 -> 0.0001231692607 | G46: =_xlfn.NORM.S.INV(RAND())*Inputs!$C$14/SQRT(240) -> 0.005597207061 | H46: 0.005885433729 | I46: 104.5881358 | J46: =IF(MOD(B46,(240/Inputs!$D$26))=0,I46,J45*(1+D46)) -> 100.5900446 | K46: =(J46/I46-1)*Inputs!$D$18 -> -0.03822700497 | L46: 0 | M46: =IF(MOD(B46,(240/Inputs!$D$26))=0,K46-K45,0) -> 0
B47: 37 | C47: 0 | D47: =(1+Inputs!$E$10)^(1/240)-1 -> 0.0001634329919 | E47: 100.6064844 | F47: =(1+Inputs!$E$11)^(1/240)-1 -> 0.0001231692607 | G47: =_xlfn.NORM.S.INV(RAND())*Inputs!$C$14/SQRT(240) -> -0.003133915887 | H47: -0.002848191755 | I47: 104.2902488 | J47: =IF(MOD(B47,(240/Inputs!$D$26))=0,I47,J46*(1+D47)) -> 100.6064844 | K47: =(J47/I47-1)*Inputs!$D$18 -> -0.03532223227 | L47: 0 | M47: =IF(MOD(B47,(240/Inputs!$D$26))=0,K47-K46,0) -> 0
B48: 38 | C48: 0 | D48: =(1+Inputs!$E$10)^(1/240)-1 -> 0.0001634329919 | E48: 100.6229268 | F48: =(1+Inputs!$E$11)^(1/240)-1 -> 0.0001231692607 | G48: =_xlfn.NORM.S.INV(RAND())*Inputs!$C$14/SQRT(240) -> 0.004654638957 | H48: 0.004942595464 | I48: 104.8057133 | J48: =IF(MOD(B48,(240/Inputs!$D$26))=0,I48,J47*(1+D48)) -> 100.6229268 | K48: =(J48/I48-1)*Inputs!$D$18 -> -0.03990990903 | L48: 0 | M48: =IF(MOD(B48,(240/Inputs!$D$26))=0,K48-K47,0) -> 0
B49: 39 | C49: 0 | D49: =(1+Inputs!$E$10)^(1/240)-1 -> 0.0001634329919 | E49: 100.6393719 | F49: =(1+Inputs!$E$11)^(1/240)-1 -> 0.0001231692607 | G49: =_xlfn.NORM.S.INV(RAND())*Inputs!$C$14/SQRT(240) -> -0.00204404849 | H49: -0.001758011977 | I49: 104.6214636 | J49: =IF(MOD(B49,(240/Inputs!$D$26))=0,I49,J48*(1+D49)) -> 100.6393719 | K49: =(J49/I49-1)*Inputs!$D$18 -> -0.03806189993 | L49: 0 | M49: =IF(MOD(B49,(240/Inputs!$D$26))=0,K49-K48,0) -> 0
B50: 40 | C50: 1 | D50: =(1+Inputs!$E$10)^(1/240)-1 -> 0.0001634329919 | E50: 100.6558197 | F50: =(1+Inputs!$E$11)^(1/240)-1 -> 0.0001231692607 | G50: =_xlfn.NORM.S.INV(RAND())*Inputs!$C$14/SQRT(240) -> -0.000632926459 | H50: -0.0003464854874 | I50: 104.5852138 | J50: =IF(MOD(B50,(240/Inputs!$D$26))=0,I50,J49*(1+D50)) -> 100.6558197 | K50: =(J50/I50-1)*Inputs!$D$18 -> -0.0375712199 | L50: -0.0375712199 | M50: =IF(MOD(B50,(240/Inputs!$D$26))=0,K50-K49,0) -> 0
B51: 41 | C51: 0 | D51: =(1+Inputs!$E$10)^(1/240)-1 -> 0.0001634329919 | E51: 100.6722702 | F51: =(1+Inputs!$E$11)^(1/240)-1 -> 0.0001231692607 | G51: =_xlfn.NORM.S.INV(RAND())*Inputs!$C$14/SQRT(240) -> 0.002690627502 | H51: 0.002978021078 | I51: 104.8966707 | J51: =IF(MOD(B51,(240/Inputs!$D$26))=0,I51,J50*(1+D51)) -> 100.6722702 | K51: =(J51/I51-1)*Inputs!$D$18 -> -0.04027201745 | L51: 0 | M51: =IF(MOD(B51,(240/Inputs!$D$26))=0,K51-K50,0) -> 0
B52: 42 | C52: 0 | D52: =(1+Inputs!$E$10)^(1/240)-1 -> 0.0001634329919 | E52: 100.6887233 | F52: =(1+Inputs!$E$11)^(1/240)-1 -> 0.0001231692607 | G52: =_xlfn.NORM.S.INV(RAND())*Inputs!$C$14/SQRT(240) -> -0.004960646875 | H52: -0.004675446325 | I52: 104.406232 | J52: =IF(MOD(B52,(240/Inputs!$D$26))=0,I52,J51*(1+D52)) -> 100.6887233 | K52: =(J52/I52-1)*Inputs!$D$18 -> -0.03560619476 | L52: 0 | M52: =IF(MOD(B52,(240/Inputs!$D$26))=0,K52-K51,0) -> 0
B53: 43 | C53: 0 | D53: =(1+Inputs!$E$10)^(1/240)-1 -> 0.0001634329919 | E53: 100.7051792 | F53: =(1+Inputs!$E$11)^(1/240)-1 -> 0.0001231692607 | G53: =_xlfn.NORM.S.INV(RAND())*Inputs!$C$14/SQRT(240) -> -0.007029296185 | H53: -0.006744688557 | I53: 103.7020445 | J53: =IF(MOD(B53,(240/Inputs!$D$26))=0,I53,J52*(1+D53)) -> 100.7051792 | K53: =(J53/I53-1)*Inputs!$D$18 -> -0.02889880588 | L53: 0 | M53: =IF(MOD(B53,(240/Inputs!$D$26))=0,K53-K52,0) -> 0
B54: 44 | C54: 0 | D54: =(1+Inputs!$E$10)^(1/240)-1 -> 0.0001634329919 | E54: 100.7216378 | F54: =(1+Inputs!$E$11)^(1/240)-1 -> 0.0001231692607 | G54: =_xlfn.NORM.S.INV(RAND())*Inputs!$C$14/SQRT(240) -> 0.004838664182 | H54: 0.005126673434 | I54: 104.233691 | J54: =IF(MOD(B54,(240/Inputs!$D$26))=0,I54,J53*(1+D54)) -> 100.7216378 | K54: =(J54/I54-1)*Inputs!$D$18 -> -0.03369403105 | L54: 0 | M54: =IF(MOD(B54,(240/Inputs!$D$26))=0,K54-K53,0) -> 0
B55: 45 | C55: 0 | D55: =(1+Inputs!$E$10)^(1/240)-1 -> 0.0001634329919 | E55: 100.738099 | F55: =(1+Inputs!$E$11)^(1/240)-1 -> 0.0001231692607 | G55: =_xlfn.NORM.S.INV(RAND())*Inputs!$C$14/SQRT(240) -> -5.719713464e-05 | H55: 0.0002294088539 | I55: 104.2576031 | J55: =IF(MOD(B55,(240/Inputs!$D$26))=0,I55,J54*(1+D55)) -> 100.738099 | K55: =(J55/I55-1)*Inputs!$D$18 -> -0.0337577693 | L55: 0 | M55: =IF(MOD(B55,(240/Inputs!$D$26))=0,K55-K54,0) -> 0
B56: 46 | C56: 0 | D56: =(1+Inputs!$E$10)^(1/240)-1 -> 0.0001634329919 | E56: 100.7545629 | F56: =(1+Inputs!$E$11)^(1/240)-1 -> 0.0001231692607 | G56: =_xlfn.NORM.S.INV(RAND())*Inputs!$C$14/SQRT(240) -> -0.003018993993 | H56: -0.002733236921 | I56: 103.9726424 | J56: =IF(MOD(B56,(240/Inputs!$D$26))=0,I56,J55*(1+D56)) -> 100.7545629 | K56: =(J56/I56-1)*Inputs!$D$18 -> -0.03095121352 | L56: 0 | M56: =IF(MOD(B56,(240/Inputs!$D$26))=0,K56-K55,0) -> 0
B57: 47 | C57: 0 | D57: =(1+Inputs!$E$10)^(1/240)-1 -> 0.0001634329919 | E57: 100.7710295 | F57: =(1+Inputs!$E$11)^(1/240)-1 -> 0.0001231692607 | G57: =_xlfn.NORM.S.INV(RAND())*Inputs!$C$14/SQRT(240) -> 0.002837261957 | H57: 0.003124697562 | I57: 104.2975254 | J57: =IF(MOD(B57,(240/Inputs!$D$26))=0,I57,J56*(1+D57)) -> 100.7710295 | K57: =(J57/I57-1)*Inputs!$D$18 -> -0.03381188462 | L57: 0 | M57: =IF(MOD(B57,(240/Inputs!$D$26))=0,K57-K56,0) -> 0
B58: 48 | C58: 0 | D58: =(1+Inputs!$E$10)^(1/240)-1 -> 0.0001634329919 | E58: 100.7874989 | F58: =(1+Inputs!$E$11)^(1/240)-1 -> 0.0001231692607 | G58: =_xlfn.NORM.S.INV(RAND())*Inputs!$C$14/SQRT(240) -> -2.40513288e-05 | H58: 0.00026256416 | I58: 104.3249102 | J58: =IF(MOD(B58,(240/Inputs!$D$26))=0,I58,J57*(1+D58)) -> 100.7874989 | K58: =(J58/I58-1)*Inputs!$D$18 -> -0.03390763884 | L58: 0 | M58: =IF(MOD(B58,(240/Inputs!$D$26))=0,K58-K57,0) -> 0
B59: 49 | C59: 0 | D59: =(1+Inputs!$E$10)^(1/240)-1 -> 0.0001634329919 | E59: 100.8039709 | F59: =(1+Inputs!$E$11)^(1/240)-1 -> 0.0001231692607 | G59: =_xlfn.NORM.S.INV(RAND())*Inputs!$C$14/SQRT(240) -> 0.005102155628 | H59: 0.005390240403 | I59: 104.8872466 | J59: =IF(MOD(B59,(240/Inputs!$D$26))=0,I59,J58*(1+D59)) -> 100.8039709 | K59: =(J59/I59-1)*Inputs!$D$18 -> -0.03893014504 | L59: 0 | M59: =IF(MOD(B59,(240/Inputs!$D$26))=0,K59-K58,0) -> 0
B60: 50 | C60: 0 | D60: =(1+Inputs!$E$10)^(1/240)-1 -> 0.0001634329919 | E60: 100.8204455 | F60: =(1+Inputs!$E$11)^(1/240)-1 -> 0.0001231692607 | G60: =_xlfn.NORM.S.INV(RAND())*Inputs!$C$14/SQRT(240) -> -0.001002809951 | H60: -0.0007164749965 | I60: 104.8120975 | J60: =IF(MOD(B60,(240/Inputs!$D$26))=0,I60,J59*(1+D60)) -> 100.8204455 | K60: =(J60/I60-1)*Inputs!$D$18 -> -0.03808388567 | L60: 0 | M60: =IF(MOD(B60,(240/Inputs!$D$26))=0,K60-K59,0) -> 0
B61: 51 | C61: 0 | D61: =(1+Inputs!$E$10)^(1/240)-1 -> 0.0001634329919 | E61: 100.8369229 | F61: =(1+Inputs!$E$11)^(1/240)-1 -> 0.0001231692607 | G61: =_xlfn.NORM.S.INV(RAND())*Inputs!$C$14/SQRT(240) -> -0.001394122827 | H61: -0.001107900031 | I61: 104.6959762 | J61: =IF(MOD(B61,(240/Inputs!$D$26))=0,I61,J60*(1+D61)) -> 100.8369229 | K61: =(J61/I61-1)*Inputs!$D$18 -> -0.03685961358 | L61: 0 | M61: =IF(MOD(B61,(240/Inputs!$D$26))=0,K61-K60,0) -> 0
B62: 52 | C62: 0 | D62: =(1+Inputs!$E$10)^(1/240)-1 -> 0.0001634329919 | E62: 100.853403 | F62: =(1+Inputs!$E$11)^(1/240)-1 -> 0.0001231692607 | G62: =_xlfn.NORM.S.INV(RAND())*Inputs!$C$14/SQRT(240) -> -0.005872498729 | H62: -0.005587559536 | I62: 104.1109812 | J62: =IF(MOD(B62,(240/Inputs!$D$26))=0,I62,J61*(1+D62)) -> 100.853403 | K62: =(J62/I62-1)*Inputs!$D$18 -> -0.03128947694 | L62: 0 | M62: =IF(MOD(B62,(240/Inputs!$D$26))=0,K62-K61,0) -> 0
B63: 53 | C63: 0 | D63: =(1+Inputs!$E$10)^(1/240)-1 -> 0.0001634329919 | E63: 100.8698858 | F63: =(1+Inputs!$E$11)^(1/240)-1 -> 0.0001231692607 | G63: =_xlfn.NORM.S.INV(RAND())*Inputs!$C$14/SQRT(240) -> -0.01128700348 | H63: -0.0110036162 | I63: 102.9653839 | J63: =IF(MOD(B63,(240/Inputs!$D$26))=0,I63,J62*(1+D63)) -> 100.8698858 | K63: =(J63/I63-1)*Inputs!$D$18 -> -0.02035148137 | L63: 0 | M63: =IF(MOD(B63,(240/Inputs!$D$26))=0,K63-K62,0) -> 0
B64: 54 | C64: 0 | D64: =(1+Inputs!$E$10)^(1/240)-1 -> 0.0001634329919 | E64: 100.8863713 | F64: =(1+Inputs!$E$11)^(1/240)-1 -> 0.0001231692607 | G64: =_xlfn.NORM.S.INV(RAND())*Inputs!$C$14/SQRT(240) -> -0.0119876215 | H64: -0.01170443504 | I64: 101.7602322 | J64: =IF(MOD(B64,(240/Inputs!$D$26))=0,I64,J63*(1+D64)) -> 100.8863713 | K64: =(J64/I64-1)*Inputs!$D$18 -> -0.008587450699 | L64: 0 | M64: =IF(MOD(B64,(240/Inputs!$D$26))=0,K64-K63,0) -> 0
B65: 55 | C65: 0 | D65: =(1+Inputs!$E$10)^(1/240)-1 -> 0.0001634329919 | E65: 100.9028594 | F65: =(1+Inputs!$E$11)^(1/240)-1 -> 0.0001231692607 | G65: =_xlfn.NORM.S.INV(RAND())*Inputs!$C$14/SQRT(240) -> -0.004475973287 | H65: -0.004190633819 | I65: 101.3337924 | J65: =IF(MOD(B65,(240/Inputs!$D$26))=0,I65,J64*(1+D65)) -> 100.9028594 | K65: =(J65/I65-1)*Inputs!$D$18 -> -0.004252608486 | L65: 0 | M65: =IF(MOD(B65,(240/Inputs!$D$26))=0,K65-K64,0) -> 0
B66: 56 | C66: 0 | D66: =(1+Inputs!$E$10)^(1/240)-1 -> 0.0001634329919 | E66: 100.9193503 | F66: =(1+Inputs!$E$11)^(1/240)-1 -> 0.0001231692607 | G66: =_xlfn.NORM.S.INV(RAND())*Inputs!$C$14/SQRT(240) -> -0.006875699662 | H66: -0.006591048009 | I66: 100.6658965 | J66: =IF(MOD(B66,(240/Inputs!$D$26))=0,I66,J65*(1+D66)) -> 100.9193503 | K66: =(J66/I66-1)*Inputs!$D$18 -> 0.002517772256 | L66: 0 | M66: =IF(MOD(B66,(240/Inputs!$D$26))=0,K66-K65,0) -> 0
B67: 57 | C67: 0 | D67: =(1+Inputs!$E$10)^(1/240)-1 -> 0.0001634329919 | E67: 100.9358438 | F67: =(1+Inputs!$E$11)^(1/240)-1 -> 0.0001231692607 | G67: =_xlfn.NORM.S.INV(RAND())*Inputs!$C$14/SQRT(240) -> 0.0006614066213 | H67: 0.0009482185777 | I67: 100.7613497 | J67: =IF(MOD(B67,(240/Inputs!$D$26))=0,I67,J66*(1+D67)) -> 100.9358438 | K67: =(J67/I67-1)*Inputs!$D$18 -> 0.001731756074 | L67: 0 | M67: =IF(MOD(B67,(240/Inputs!$D$26))=0,K67-K66,0) -> 0
B68: 58 | C68: 0 | D68: =(1+Inputs!$E$10)^(1/240)-1 -> 0.0001634329919 | E68: 100.9523401 | F68: =(1+Inputs!$E$11)^(1/240)-1 -> 0.0001231692607 | G68: =_xlfn.NORM.S.INV(RAND())*Inputs!$C$14/SQRT(240) -> 0.004937812819 | H68: 0.005225850489 | I68: 101.2879135 | J68: =IF(MOD(B68,(240/Inputs!$D$26))=0,I68,J67*(1+D68)) -> 100.9523401 | K68: =(J68/I68-1)*Inputs!$D$18 -> -0.003313064815 | L68: 0 | M68: =IF(MOD(B68,(240/Inputs!$D$26))=0,K68-K67,0) -> 0
B69: 59 | C69: 0 | D69: =(1+Inputs!$E$10)^(1/240)-1 -> 0.0001634329919 | E69: 100.968839 | F69: =(1+Inputs!$E$11)^(1/240)-1 -> 0.0001231692607 | G69: =_xlfn.NORM.S.INV(RAND())*Inputs!$C$14/SQRT(240) -> 0.001968727146 | H69: 0.002255913809 | I69: 101.5164103 | J69: =IF(MOD(B69,(240/Inputs!$D$26))=0,I69,J68*(1+D69)) -> 100.968839 | K69: =(J69/I69-1)*Inputs!$D$18 -> -0.005393918881 | L69: 0 | M69: =IF(MOD(B69,(240/Inputs!$D$26))=0,K69-K68,0) -> 0
B70: 60 | C70: 1 | D70: =(1+Inputs!$E$10)^(1/240)-1 -> 0.0001634329919 | E70: 100.9853407 | F70: =(1+Inputs!$E$11)^(1/240)-1 -> 0.0001231692607 | G70: =_xlfn.NORM.S.INV(RAND())*Inputs!$C$14/SQRT(240) -> -0.004823483878 | H70: -0.004538244014 | I70: 101.0557041 | J70: =IF(MOD(B70,(240/Inputs!$D$26))=0,I70,J69*(1+D70)) -> 100.9853407 | K70: =(J70/I70-1)*Inputs!$D$18 -> -0.0006962833227 | L70: -0.0006962833227 | M70: =IF(MOD(B70,(240/Inputs!$D$26))=0,K70-K69,0) -> 0
B71: 61 | C71: 0 | D71: =(1+Inputs!$E$10)^(1/240)-1 -> 0.0001634329919 | E71: 101.001845 | F71: =(1+Inputs!$E$11)^(1/240)-1 -> 0.0001231692607 | G71: =_xlfn.NORM.S.INV(RAND())*Inputs!$C$14/SQRT(240) -> -0.004762293736 | H71: -0.004477036333 | I71: 100.603274 | J71: =IF(MOD(B71,(240/Inputs!$D$26))=0,I71,J70*(1+D71)) -> 101.001845 | K71: =(J71/I71-1)*Inputs!$D$18 -> 0.003961809371 | L71: 0 | M71: =IF(MOD(B71,(240/Inputs!$D$26))=0,K71-K70,0) -> 0
B72: 62 | C72: 0 | D72: =(1+Inputs!$E$10)^(1/240)-1 -> 0.0001634329919 | E72: 101.018352 | F72: =(1+Inputs!$E$11)^(1/240)-1 -> 0.0001231692607 | G72: =_xlfn.NORM.S.INV(RAND())*Inputs!$C$14/SQRT(240) -> 0.001168338899 | H72: 0.001455296154 | I72: 100.7496816 | J72: =IF(MOD(B72,(240/Inputs!$D$26))=0,I72,J71*(1+D72)) -> 101.018352 | K72: =(J72/I72-1)*Inputs!$D$18 -> 0.002666712843 | L72: 0 | M72: =IF(MOD(B72,(240/Inputs!$D$26))=0,K72-K71,0) -> 0
B73: 63 | C73: 0 | D73: =(1+Inputs!$E$10)^(1/240)-1 -> 0.0001634329919 | E73: 101.0348618 | F73: =(1+Inputs!$E$11)^(1/240)-1 -> 0.0001231692607 | G73: =_xlfn.NORM.S.INV(RAND())*Inputs!$C$14/SQRT(240) -> -0.002721691305 | H73: -0.00243584902 | I73: 100.5042705 | J73: =IF(MOD(B73,(240/Inputs!$D$26))=0,I73,J72*(1+D73)) -> 101.0348618 | K73: =(J73/I73-1)*Inputs!$D$18 -> 0.005279290238 | L73: 0 | M73: =IF(MOD(B73,(240/Inputs!$D$26))=0,K73-K72,0) -> 0
B74: 64 | C74: 0 | D74: =(1+Inputs!$E$10)^(1/240)-1 -> 0.0001634329919 | E74: 101.0513742 | F74: =(1+Inputs!$E$11)^(1/240)-1 -> 0.0001231692607 | G74: =_xlfn.NORM.S.INV(RAND())*Inputs!$C$14/SQRT(240) -> 0.002969767083 | H74: 0.003257240667 | I74: 100.8316371 | J74: =IF(MOD(B74,(240/Inputs!$D$26))=0,I74,J73*(1+D74)) -> 101.0513742 | K74: =(J74/I74-1)*Inputs!$D$18 -> 0.002179247041 | L74: 0 | M74: =IF(MOD(B74,(240/Inputs!$D$26))=0,K74-K73,0) -> 0
B75: 65 | C75: =IF(MOD(B75,$C$8)=0,1,0) -> 0 | D75: =(1+Inputs!$E$10)^(1/240)-1 -> 0.0001634329919 | E75: 101.0678893 | F75: =(1+Inputs!$E$11)^(1/240)-1 -> 0.0001231692607 | G75: =_xlfn.NORM.S.INV(RAND())*Inputs!$C$14/SQRT(240) -> -0.006038551874 | H75: -0.005753660276 | I75: 100.2514862 | J75: =IF(MOD(B75,(240/Inputs!$D$26))=0,I75,J74*(1+D75)) -> 101.0678893 | K75: =(J75/I75-1)*Inputs!$D$18 -> 0.0081435517 | L75: 0 | M75: =IF(MOD(B75,(240/Inputs!$D$26))=0,K75-K74,0) -> 0
B76: 66 | C76: 0 | D76: =(1+Inputs!$E$10)^(1/240)-1 -> 0.0001634329919 | E76: =E75*(1+D76) -> 101.0844071 | F76: =(1+Inputs!$E$11)^(1/240)-1 -> 0.0001231692607 | G76: =_xlfn.NORM.S.INV(RAND())*Inputs!$C$14/SQRT(240) -> -0.00502361916 | H76: =(1+D76)*(1+F76)*(1+G76)-1 -> -0.004738436659 | I76: =I75*(1+H76) -> 99.77645084 | J76: =IF(MOD(B76,(240/Inputs!$D$26))=0,I76,J75*(1+D76)) -> 101.0844071 | K76: =(J76/I76-1)*Inputs!$D$18 -> 0.01310886782 | L76: =C76*K76 -> 0 | M76: =IF(MOD(B76,(240/Inputs!$D$26))=0,K76-K75,0) -> 0
B77: 67 | C77: 0 | D77: =(1+Inputs!$E$10)^(1/240)-1 -> 0.0001634329919 | E77: 101.1009277 | F77: =(1+Inputs!$E$11)^(1/240)-1 -> 0.0001231692607 | G77: =_xlfn.NORM.S.INV(RAND())*Inputs!$C$14/SQRT(240) -> -0.00226201927 | H77: -0.001976045233 | I77: 99.57928806 | J77: =IF(MOD(B77,(240/Inputs!$D$26))=0,I77,J76*(1+D77)) -> 101.1009277 | K77: =(J77/I77-1)*Inputs!$D$18 -> 0.01528068378 | L77: 0 | M77: =IF(MOD(B77,(240/Inputs!$D$26))=0,K77-K76,0) -> 0
B78: 68 | C78: 0 | D78: =(1+Inputs!$E$10)^(1/240)-1 -> 0.0001634329919 | E78: 101.1174509 | F78: =(1+Inputs!$E$11)^(1/240)-1 -> 0.0001231692607 | G78: =_xlfn.NORM.S.INV(RAND())*Inputs!$C$14/SQRT(240) -> -0.00241820747 | H78: -0.0021322782 | I78: 99.36695731 | J78: =IF(MOD(B78,(240/Inputs!$D$26))=0,I78,J77*(1+D78)) -> 101.1174509 | K78: =(J78/I78-1)*Inputs!$D$18 -> 0.01761645553 | L78: 0 | M78: =IF(MOD(B78,(240/Inputs!$D$26))=0,K78-K77,0) -> 0
B79: 69 | C79: 0 | D79: =(1+Inputs!$E$10)^(1/240)-1 -> 0.0001634329919 | E79: 101.1339768 | F79: =(1+Inputs!$E$11)^(1/240)-1 -> 0.0001231692607 | G79: =_xlfn.NORM.S.INV(RAND())*Inputs!$C$14/SQRT(240) -> -0.00363539548 | H79: -0.003349815083 | I79: 99.03409638 | J79: =IF(MOD(B79,(240/Inputs!$D$26))=0,I79,J78*(1+D79)) -> 101.1339768 | K79: =(J79/I79-1)*Inputs!$D$18 -> 0.02120361089 | L79: 0 | M79: =IF(MOD(B79,(240/Inputs!$D$26))=0,K79-K78,0) -> 0
B80: 70 | C80: 0 | D80: =(1+Inputs!$E$10)^(1/240)-1 -> 0.0001634329919 | E80: 101.1505055 | F80: =(1+Inputs!$E$11)^(1/240)-1 -> 0.0001231692607 | G80: =_xlfn.NORM.S.INV(RAND())*Inputs!$C$14/SQRT(240) -> 0.001929020298 | H80: 0.002216195581 | I80: 99.25357531 | J80: =IF(MOD(B80,(240/Inputs!$D$26))=0,I80,J79*(1+D80)) -> 101.1505055 | K80: =(J80/I80-1)*Inputs!$D$18 -> 0.01911195783 | L80: 0 | M80: =IF(MOD(B80,(240/Inputs!$D$26))=0,K80-K79,0) -> 0
B81: 71 | C81: 0 | D81: =(1+Inputs!$E$10)^(1/240)-1 -> 0.0001634329919 | E81: 101.1670368 | F81: =(1+Inputs!$E$11)^(1/240)-1 -> 0.0001231692607 | G81: =_xlfn.NORM.S.INV(RAND())*Inputs!$C$14/SQRT(240) -> 0.002727416038 | H81: 0.003014820159 | I81: 99.55280699 | J81: =IF(MOD(B81,(240/Inputs!$D$26))=0,I81,J80*(1+D81)) -> 101.1670368 | K81: =(J81/I81-1)*Inputs!$D$18 -> 0.01621480946 | L81: 0 | M81: =IF(MOD(B81,(240/Inputs!$D$26))=0,K81-K80,0) -> 0
B82: 72 | C82: 0 | D82: =(1+Inputs!$E$10)^(1/240)-1 -> 0.0001634329919 | E82: 101.1835708 | F82: =(1+Inputs!$E$11)^(1/240)-1 -> 0.0001231692607 | G82: =_xlfn.NORM.S.INV(RAND())*Inputs!$C$14/SQRT(240) -> -0.0007588958889 | H82: -0.0004724910229 | I82: 99.50576918 | J82: =IF(MOD(B82,(240/Inputs!$D$26))=0,I82,J81*(1+D82)) -> 101.1835708 | K82: =(J82/I82-1)*Inputs!$D$18 -> 0.01686135034 | L82: 0 | M82: =IF(MOD(B82,(240/Inputs!$D$26))=0,K82-K81,0) -> 0
B83: 73 | C83: 0 | D83: =(1+Inputs!$E$10)^(1/240)-1 -> 0.0001634329919 | E83: 101.2001075 | F83: =(1+Inputs!$E$11)^(1/240)-1 -> 0.0001231692607 | G83: =_xlfn.NORM.S.INV(RAND())*Inputs!$C$14/SQRT(240) -> -0.002800331757 | H83: -0.002514512012 | I83: 99.25556073 | J83: =IF(MOD(B83,(240/Inputs!$D$26))=0,I83,J82*(1+D83)) -> 101.2001075 | K83: =(J83/I83-1)*Inputs!$D$18 -> 0.01959131364 | L83: 0 | M83: =IF(MOD(B83,(240/Inputs!$D$26))=0,K83-K82,0) -> 0
B84: 74 | C84: 0 | D84: =(1+Inputs!$E$10)^(1/240)-1 -> 0.0001634329919 | E84: 101.216647 | F84: =(1+Inputs!$E$11)^(1/240)-1 -> 0.0001231692607 | G84: =_xlfn.NORM.S.INV(RAND())*Inputs!$C$14/SQRT(240) -> -0.007963450975 | H84: -0.007679111096 | I84: 98.49336625 | J84: =IF(MOD(B84,(240/Inputs!$D$26))=0,I84,J83*(1+D84)) -> 101.216647 | K84: =(J84/I84-1)*Inputs!$D$18 -> 0.02764938227 | L84: 0 | M84: =IF(MOD(B84,(240/Inputs!$D$26))=0,K84-K83,0) -> 0
B85: 75 | C85: 0 | D85: =(1+Inputs!$E$10)^(1/240)-1 -> 0.0001634329919 | E85: 101.2331891 | F85: =(1+Inputs!$E$11)^(1/240)-1 -> 0.0001231692607 | G85: =_xlfn.NORM.S.INV(RAND())*Inputs!$C$14/SQRT(240) -> 0.00654382123 | H85: 0.006832319218 | I85: 99.16630437 | J85: =IF(MOD(B85,(240/Inputs!$D$26))=0,I85,J84*(1+D85)) -> 101.2331891 | K85: =(J85/I85-1)*Inputs!$D$18 -> 0.02084261149 | L85: 0 | M85: =IF(MOD(B85,(240/Inputs!$D$26))=0,K85-K84,0) -> 0
B86: 76 | C86: 0 | D86: =(1+Inputs!$E$10)^(1/240)-1 -> 0.0001634329919 | E86: 101.249734 | F86: =(1+Inputs!$E$11)^(1/240)-1 -> 0.0001231692607 | G86: =_xlfn.NORM.S.INV(RAND())*Inputs!$C$14/SQRT(240) -> 0.001464375707 | H86: 0.001751417812 | I86: 99.339986 | J86: =IF(MOD(B86,(240/Inputs!$D$26))=0,I86,J85*(1+D86)) -> 101.249734 | K86: =(J86/I86-1)*Inputs!$D$18 -> 0.01922436315 | L86: 0 | M86: =IF(MOD(B86,(240/Inputs!$D$26))=0,K86-K85,0) -> 0
B87: 77 | C87: 0 | D87: =(1+Inputs!$E$10)^(1/240)-1 -> 0.0001634329919 | E87: 101.2662815 | F87: =(1+Inputs!$E$11)^(1/240)-1 -> 0.0001231692607 | G87: =_xlfn.NORM.S.INV(RAND())*Inputs!$C$14/SQRT(240) -> 1.94609696e-06 | H87: 0.0002885690372 | I87: 99.36865244 | J87: =IF(MOD(B87,(240/Inputs!$D$26))=0,I87,J86*(1+D87)) -> 101.2662815 | K87: =(J87/I87-1)*Inputs!$D$18 -> 0.01909685824 | L87: 0 | M87: =IF(MOD(B87,(240/Inputs!$D$26))=0,K87-K86,0) -> 0
B88: 78 | C88: 0 | D88: =(1+Inputs!$E$10)^(1/240)-1 -> 0.0001634329919 | E88: 101.2828318 | F88: =(1+Inputs!$E$11)^(1/240)-1 -> 0.0001231692607 | G88: =_xlfn.NORM.S.INV(RAND())*Inputs!$C$14/SQRT(240) -> 0.003589027239 | H88: 0.003876678317 | I88: 99.75387274 | J88: =IF(MOD(B88,(240/Inputs!$D$26))=0,I88,J87*(1+D88)) -> 101.2828318 | K88: =(J88/I88-1)*Inputs!$D$18 -> 0.0153273149 | L88: 0 | M88: =IF(MOD(B88,(240/Inputs!$D$26))=0,K88-K87,0) -> 0
B89: 79 | C89: 0 | D89: =(1+Inputs!$E$10)^(1/240)-1 -> 0.0001634329919 | E89: 101.2993847 | F89: =(1+Inputs!$E$11)^(1/240)-1 -> 0.0001231692607 | G89: =_xlfn.NORM.S.INV(RAND())*Inputs!$C$14/SQRT(240) -> 0.004776920038 | H89: 0.005064911592 | I89: 100.2591173 | J89: =IF(MOD(B89,(240/Inputs!$D$26))=0,I89,J88*(1+D89)) -> 101.2993847 | K89: =(J89/I89-1)*Inputs!$D$18 -> 0.01037578884 | L89: 0 | M89: =IF(MOD(B89,(240/Inputs!$D$26))=0,K89-K88,0) -> 0
B90: 80 | C90: 1 | D90: =(1+Inputs!$E$10)^(1/240)-1 -> 0.0001634329919 | E90: 101.3159404 | F90: =(1+Inputs!$E$11)^(1/240)-1 -> 0.0001231692607 | G90: =_xlfn.NORM.S.INV(RAND())*Inputs!$C$14/SQRT(240) -> -0.0002558924926 | H90: 3.065654537e-05 | I90: 100.2621909 | J90: =IF(MOD(B90,(240/Inputs!$D$26))=0,I90,J89*(1+D90)) -> 101.3159404 | K90: =(J90/I90-1)*Inputs!$D$18 -> 0.01050993883 | L90: 0.01050993883 | M90: =IF(MOD(B90,(240/Inputs!$D$26))=0,K90-K89,0) -> 0
B91: 81 | C91: 0 | D91: =(1+Inputs!$E$10)^(1/240)-1 -> 0.0001634329919 | E91: 101.3324987 | F91: =(1+Inputs!$E$11)^(1/240)-1 -> 0.0001231692607 | G91: =_xlfn.NORM.S.INV(RAND())*Inputs!$C$14/SQRT(240) -> -0.002825241723 | H91: -0.002539429118 | I91: 100.0075822 | J91: =IF(MOD(B91,(240/Inputs!$D$26))=0,I91,J90*(1+D91)) -> 101.3324987 | K91: =(J91/I91-1)*Inputs!$D$18 -> 0.01324816138 | L91: 0 | M91: =IF(MOD(B91,(240/Inputs!$D$26))=0,K91-K90,0) -> 0
B92: 82 | C92: 0 | D92: =(1+Inputs!$E$10)^(1/240)-1 -> 0.0001634329919 | E92: 101.3490598 | F92: =(1+Inputs!$E$11)^(1/240)-1 -> 0.0001231692607 | G92: =_xlfn.NORM.S.INV(RAND())*Inputs!$C$14/SQRT(240) -> 0.009995795534 | H92: 0.01028528294 | I92: 101.0361884 | J92: =IF(MOD(B92,(240/Inputs!$D$26))=0,I92,J91*(1+D92)) -> 101.3490598 | K92: =(J92/I92-1)*Inputs!$D$18 -> 0.003096626938 | L92: 0 | M92: =IF(MOD(B92,(240/Inputs!$D$26))=0,K92-K91,0) -> 0
B93: 83 | C93: 0 | D93: =(1+Inputs!$E$10)^(1/240)-1 -> 0.0001634329919 | E93: 101.3656236 | F93: =(1+Inputs!$E$11)^(1/240)-1 -> 0.0001231692607 | G93: =_xlfn.NORM.S.INV(RAND())*Inputs!$C$14/SQRT(240) -> -0.0008108078579 | H93: -0.000524417871 | I93: 100.9832033 | J93: =IF(MOD(B93,(240/Inputs!$D$26))=0,I93,J92*(1+D93)) -> 101.3656236 | K93: =(J93/I93-1)*Inputs!$D$18 -> 0.003786969846 | L93: 0 | M93: =IF(MOD(B93,(240/Inputs!$D$26))=0,K93-K92,0) -> 0
B94: 84 | C94: 0 | D94: =(1+Inputs!$E$10)^(1/240)-1 -> 0.0001634329919 | E94: 101.3821901 | F94: =(1+Inputs!$E$11)^(1/240)-1 -> 0.0001231692607 | G94: =_xlfn.NORM.S.INV(RAND())*Inputs!$C$14/SQRT(240) -> -0.003906888501 | H94: -0.00362138592 | I94: 100.6175041 | J94: =IF(MOD(B94,(240/Inputs!$D$26))=0,I94,J93*(1+D94)) -> 101.3821901 | K94: =(J94/I94-1)*Inputs!$D$18 -> 0.007599929953 | L94: 0 | M94: =IF(MOD(B94,(240/Inputs!$D$26))=0,K94-K93,0) -> 0
B95: 85 | C95: 0 | D95: =(1+Inputs!$E$10)^(1/240)-1 -> 0.0001634329919 | E95: 101.3987593 | F95: =(1+Inputs!$E$11)^(1/240)-1 -> 0.0001231692607 | G95: =_xlfn.NORM.S.INV(RAND())*Inputs!$C$14/SQRT(240) -> -0.002913674657 | H95: -0.002627887399 | I95: 100.3530926 | J95: =IF(MOD(B95,(240/Inputs!$D$26))=0,I95,J94*(1+D95)) -> 101.3987593 | K95: =(J95/I95-1)*Inputs!$D$18 -> 0.01041987468 | L95: 0 | M95: =IF(MOD(B95,(240/Inputs!$D$26))=0,K95-K94,0) -> 0
B96: 86 | C96: 0 | D96: =(1+Inputs!$E$10)^(1/240)-1 -> 0.0001634329919 | E96: 101.4153312 | F96: =(1+Inputs!$E$11)^(1/240)-1 -> 0.0001231692607 | G96: =_xlfn.NORM.S.INV(RAND())*Inputs!$C$14/SQRT(240) -> 0.00229090289 | H96: 0.002578181896 | I96: 100.6118212 | J96: =IF(MOD(B96,(240/Inputs!$D$26))=0,I96,J95*(1+D96)) -> 101.4153312 | K96: =(J96/I96-1)*Inputs!$D$18 -> 0.007986238752 | L96: 0 | M96: =IF(MOD(B96,(240/Inputs!$D$26))=0,K96-K95,0) -> 0
B97: 87 | C97: 0 | D97: =(1+Inputs!$E$10)^(1/240)-1 -> 0.0001634329919 | E97: 101.4319058 | F97: =(1+Inputs!$E$11)^(1/240)-1 -> 0.0001231692607 | G97: =_xlfn.NORM.S.INV(RAND())*Inputs!$C$14/SQRT(240) -> -0.001388748461 | H97: -0.001102524124 | I97: 100.5008942 | J97: =IF(MOD(B97,(240/Inputs!$D$26))=0,I97,J96*(1+D97)) -> 101.4319058 | K97: =(J97/I97-1)*Inputs!$D$18 -> 0.009263714552 | L97: 0 | M97: =IF(MOD(B97,(240/Inputs!$D$26))=0,K97-K96,0) -> 0
B98: 88 | C98: 0 | D98: =(1+Inputs!$E$10)^(1/240)-1 -> 0.0001634329919 | E98: 101.4484831 | F98: =(1+Inputs!$E$11)^(1/240)-1 -> 0.0001231692607 | G98: =_xlfn.NORM.S.INV(RAND())*Inputs!$C$14/SQRT(240) -> 0.001625781673 | H98: 0.001912870041 | I98: 100.6931394 | J98: =IF(MOD(B98,(240/Inputs!$D$26))=0,I98,J97*(1+D98)) -> 101.4484831 | K98: =(J98/I98-1)*Inputs!$D$18 -> 0.007501442215 | L98: 0 | M98: =IF(MOD(B98,(240/Inputs!$D$26))=0,K98-K97,0) -> 0
B99: 89 | C99: 0 | D99: =(1+Inputs!$E$10)^(1/240)-1 -> 0.0001634329919 | E99: 101.4650631 | F99: =(1+Inputs!$E$11)^(1/240)-1 -> 0.0001231692607 | G99: =_xlfn.NORM.S.INV(RAND())*Inputs!$C$14/SQRT(240) -> 0.004036558025 | H99: 0.004324337376 | I99: 101.1285705 | J99: =IF(MOD(B99,(240/Inputs!$D$26))=0,I99,J98*(1+D99)) -> 101.4650631 | K99: =(J99/I99-1)*Inputs!$D$18 -> 0.003327375122 | L99: 0 | M99: =IF(MOD(B99,(240/Inputs!$D$26))=0,K99-K98,0) -> 0
B100: 90 | C100: 0 | D100: =(1+Inputs!$E$10)^(1/240)-1 -> 0.0001634329919 | E100: 101.4816459 | F100: =(1+Inputs!$E$11)^(1/240)-1 -> 0.0001231692607 | G100: =_xlfn.NORM.S.INV(RAND())*Inputs!$C$14/SQRT(240) -> -0.004282607842 | H100: -0.003997212951 | I100: 100.724338 | J100: =IF(MOD(B100,(240/Inputs!$D$26))=0,I100,J99*(1+D100)) -> 101.4816459 | K100: =(J100/I100-1)*Inputs!$D$18 -> 0.007518618386 | L100: 0 | M100: =IF(MOD(B100,(240/Inputs!$D$26))=0,K100-K99,0) -> 0
B101: 91 | C101: 0 | D101: =(1+Inputs!$E$10)^(1/240)-1 -> 0.0001634329919 | E101: 101.4982313 | F101: =(1+Inputs!$E$11)^(1/240)-1 -> 0.0001231692607 | G101: =_xlfn.NORM.S.INV(RAND())*Inputs!$C$14/SQRT(240) -> -0.007215513973 | H101: -0.006930959719 | I101: 100.0262217 | J101: =IF(MOD(B101,(240/Inputs!$D$26))=0,I101,J100*(1+D101)) -> 101.4982313 | K101: =(J101/I101-1)*Inputs!$D$18 -> 0.01471623754 | L101: 0 | M101: =IF(MOD(B101,(240/Inputs!$D$26))=0,K101-K100,0) -> 0
B102: 92 | C102: 0 | D102: =(1+Inputs!$E$10)^(1/240)-1 -> 0.0001634329919 | E102: 101.5148195 | F102: =(1+Inputs!$E$11)^(1/240)-1 -> 0.0001231692607 | G102: =_xlfn.NORM.S.INV(RAND())*Inputs!$C$14/SQRT(240) -> -0.003849403769 | H102: -0.003563884712 | I102: 99.66973977 | J102: =IF(MOD(B102,(240/Inputs!$D$26))=0,I102,J101*(1+D102)) -> 101.5148195 | K102: =(J102/I102-1)*Inputs!$D$18 -> 0.01851193476 | L102: 0 | M102: =IF(MOD(B102,(240/Inputs!$D$26))=0,K102-K101,0) -> 0
B103: 93 | C103: 0 | D103: =(1+Inputs!$E$10)^(1/240)-1 -> 0.0001634329919 | E103: 101.5314104 | F103: =(1+Inputs!$E$11)^(1/240)-1 -> 0.0001231692607 | G103: =_xlfn.NORM.S.INV(RAND())*Inputs!$C$14/SQRT(240) -> 0.004881750335 | H103: 0.005169771936 | I103: 100.1850096 | J103: =IF(MOD(B103,(240/Inputs!$D$26))=0,I103,J102*(1+D103)) -> 101.5314104 | K103: =(J103/I103-1)*Inputs!$D$18 -> 0.01343914397 | L103: 0 | M103: =IF(MOD(B103,(240/Inputs!$D$26))=0,K103-K102,0) -> 0
B104: 94 | C104: 0 | D104: =(1+Inputs!$E$10)^(1/240)-1 -> 0.0001634329919 | E104: 101.5480039 | F104: =(1+Inputs!$E$11)^(1/240)-1 -> 0.0001231692607 | G104: =_xlfn.NORM.S.INV(RAND())*Inputs!$C$14/SQRT(240) -> -0.001503948547 | H104: -0.00121775723 | I104: 100.0630086 | J104: =IF(MOD(B104,(240/Inputs!$D$26))=0,I104,J103*(1+D104)) -> 101.5480039 | K104: =(J104/I104-1)*Inputs!$D$18 -> 0.01484060284 | L104: 0 | M104: =IF(MOD(B104,(240/Inputs!$D$26))=0,K104-K103,0) -> 0
B105: 95 | C105: 0 | D105: =(1+Inputs!$E$10)^(1/240)-1 -> 0.0001634329919 | E105: 101.5646002 | F105: =(1+Inputs!$E$11)^(1/240)-1 -> 0.0001231692607 | G105: =_xlfn.NORM.S.INV(RAND())*Inputs!$C$14/SQRT(240) -> -0.005927191816 | H105: -0.005642268299 | I105: 99.49842624 | J105: =IF(MOD(B105,(240/Inputs!$D$26))=0,I105,J104*(1+D105)) -> 101.5646002 | K105: =(J105/I105-1)*Inputs!$D$18 -> 0.02076589633 | L105: 0 | M105: =IF(MOD(B105,(240/Inputs!$D$26))=0,K105-K104,0) -> 0
B106: 96 | C106: 0 | D106: =(1+Inputs!$E$10)^(1/240)-1 -> 0.0001634329919 | E106: 101.5811992 | F106: =(1+Inputs!$E$11)^(1/240)-1 -> 0.0001231692607 | G106: =_xlfn.NORM.S.INV(RAND())*Inputs!$C$14/SQRT(240) -> -0.0003417565341 | H106: -5.523210665e-05 | I106: 99.49293073 | J106: =IF(MOD(B106,(240/Inputs!$D$26))=0,I106,J105*(1+D106)) -> 101.5811992 | K106: =(J106/I106-1)*Inputs!$D$18 -> 0.02098911454 | L106: 0 | M106: =IF(MOD(B106,(240/Inputs!$D$26))=0,K106-K105,0) -> 0
B107: 97 | C107: 0 | D107: =(1+Inputs!$E$10)^(1/240)-1 -> 0.0001634329919 | E107: 101.597801 | F107: =(1+Inputs!$E$11)^(1/240)-1 -> 0.0001231692607 | G107: =_xlfn.NORM.S.INV(RAND())*Inputs!$C$14/SQRT(240) -> -0.004409399293 | H107: -0.004124040743 | I107: 99.08261783 | J107: =IF(MOD(B107,(240/Inputs!$D$26))=0,I107,J106*(1+D107)) -> 101.597801 | K107: =(J107/I107-1)*Inputs!$D$18 -> 0.02538470615 | L107: 0 | M107: =IF(MOD(B107,(240/Inputs!$D$26))=0,K107-K106,0) -> 0
B108: 98 | C108: 0 | D108: =(1+Inputs!$E$10)^(1/240)-1 -> 0.0001634329919 | E108: 101.6144054 | F108: =(1+Inputs!$E$11)^(1/240)-1 -> 0.0001231692607 | G108: =_xlfn.NORM.S.INV(RAND())*Inputs!$C$14/SQRT(240) -> 0.002430390686 | H108: 0.002717709673 | I108: 99.35189562 | J108: =IF(MOD(B108,(240/Inputs!$D$26))=0,I108,J107*(1+D108)) -> 101.6144054 | K108: =(J108/I108-1)*Inputs!$D$18 -> 0.02277268861 | L108: 0 | M108: =IF(MOD(B108,(240/Inputs!$D$26))=0,K108-K107,0) -> 0
B109: 99 | C109: 0 | D109: =(1+Inputs!$E$10)^(1/240)-1 -> 0.0001634329919 | E109: 101.6310125 | F109: =(1+Inputs!$E$11)^(1/240)-1 -> 0.0001231692607 | G109: =_xlfn.NORM.S.INV(RAND())*Inputs!$C$14/SQRT(240) -> 0.00257566204 | H109: 0.002863022664 | I109: 99.63634235 | J109: =IF(MOD(B109,(240/Inputs!$D$26))=0,I109,J108*(1+D109)) -> 101.6310125 | K109: =(J109/I109-1)*Inputs!$D$18 -> 0.02001950445 | L109: 0 | M109: =IF(MOD(B109,(240/Inputs!$D$26))=0,K109-K108,0) -> 0
B110: 100 | C110: 1 | D110: =(1+Inputs!$E$10)^(1/240)-1 -> 0.0001634329919 | E110: 101.6476224 | F110: =(1+Inputs!$E$11)^(1/240)-1 -> 0.0001231692607 | G110: =_xlfn.NORM.S.INV(RAND())*Inputs!$C$14/SQRT(240) -> -0.001686050603 | H110: -0.00139991148 | I110: 99.49686029 | J110: =IF(MOD(B110,(240/Inputs!$D$26))=0,I110,J109*(1+D110)) -> 101.6476224 | K110: =(J110/I110-1)*Inputs!$D$18 -> 0.02161638179 | L110: 0.02161638179 | M110: =IF(MOD(B110,(240/Inputs!$D$26))=0,K110-K109,0) -> 0
B111: 101 | C111: 0 | D111: =(1+Inputs!$E$10)^(1/240)-1 -> 0.0001634329919 | E111: 101.664235 | F111: =(1+Inputs!$E$11)^(1/240)-1 -> 0.0001231692607 | G111: =_xlfn.NORM.S.INV(RAND())*Inputs!$C$14/SQRT(240) -> -0.003332975855 | H111: -0.003047308778 | I111: 99.19366263 | J111: =IF(MOD(B111,(240/Inputs!$D$26))=0,I111,J110*(1+D111)) -> 101.664235 | K111: =(J111/I111-1)*Inputs!$D$18 -> 0.02490655435 | L111: 0 | M111: =IF(MOD(B111,(240/Inputs!$D$26))=0,K111-K110,0) -> 0
B112: 102 | C112: 0 | D112: =(1+Inputs!$E$10)^(1/240)-1 -> 0.0001634329919 | E112: 101.6808503 | F112: =(1+Inputs!$E$11)^(1/240)-1 -> 0.0001231692607 | G112: =_xlfn.NORM.S.INV(RAND())*Inputs!$C$14/SQRT(240) -> 0.004282174989 | H112: 0.004570024738 | I112: 99.64698012 | J112: =IF(MOD(B112,(240/Inputs!$D$26))=0,I112,J111*(1+D112)) -> 101.6808503 | K112: =(J112/I112-1)*Inputs!$D$18 -> 0.0204107555 | L112: 0 | M112: =IF(MOD(B112,(240/Inputs!$D$26))=0,K112-K111,0) -> 0
B113: 103 | C113: 0 | D113: =(1+Inputs!$E$10)^(1/240)-1 -> 0.0001634329919 | E113: 101.6974683 | F113: =(1+Inputs!$E$11)^(1/240)-1 -> 0.0001231692607 | G113: =_xlfn.NORM.S.INV(RAND())*Inputs!$C$14/SQRT(240) -> -0.003090700732 | H113: -0.002804964213 | I113: 99.36747391 | J113: =IF(MOD(B113,(240/Inputs!$D$26))=0,I113,J112*(1+D113)) -> 101.6974683 | K113: =(J113/I113-1)*Inputs!$D$18 -> 0.02344826003 | L113: 0 | M113: =IF(MOD(B113,(240/Inputs!$D$26))=0,K113-K112,0) -> 0
B114: 104 | C114: 0 | D114: =(1+Inputs!$E$10)^(1/240)-1 -> 0.0001634329919 | E114: 101.714089 | F114: =(1+Inputs!$E$11)^(1/240)-1 -> 0.0001231692607 | G114: =_xlfn.NORM.S.INV(RAND())*Inputs!$C$14/SQRT(240) -> -0.001409452946 | H114: -0.001123234544 | I114: 99.25586093 | J114: =IF(MOD(B114,(240/Inputs!$D$26))=0,I114,J113*(1+D114)) -> 101.714089 | K114: =(J114/I114-1)*Inputs!$D$18 -> 0.02476657846 | L114: 0 | M114: =IF(MOD(B114,(240/Inputs!$D$26))=0,K114-K113,0) -> 0
B115: 105 | C115: 0 | D115: =(1+Inputs!$E$10)^(1/240)-1 -> 0.0001634329919 | E115: 101.7307124 | F115: =(1+Inputs!$E$11)^(1/240)-1 -> 0.0001231692607 | G115: =_xlfn.NORM.S.INV(RAND())*Inputs!$C$14/SQRT(240) -> -0.001608619547 | H115: -0.001322458231 | I115: 99.1245992 | J115: =IF(MOD(B115,(240/Inputs!$D$26))=0,I115,J114*(1+D115)) -> 101.7307124 | K115: =(J115/I115-1)*Inputs!$D$18 -> 0.02629128649 | L115: 0 | M115: =IF(MOD(B115,(240/Inputs!$D$26))=0,K115-K114,0) -> 0
B116: 106 | C116: 0 | D116: =(1+Inputs!$E$10)^(1/240)-1 -> 0.0001634329919 | E116: 101.7473386 | F116: =(1+Inputs!$E$11)^(1/240)-1 -> 0.0001231692607 | G116: =_xlfn.NORM.S.INV(RAND())*Inputs!$C$14/SQRT(240) -> -0.002839340078 | H116: -0.002553531514 | I116: 98.87148141 | J116: =IF(MOD(B116,(240/Inputs!$D$26))=0,I116,J115*(1+D116)) -> 101.7473386 | K116: =(J116/I116-1)*Inputs!$D$18 -> 0.02908682197 | L116: 0 | M116: =IF(MOD(B116,(240/Inputs!$D$26))=0,K116-K115,0) -> 0
B117: 107 | C117: 0 | D117: =(1+Inputs!$E$10)^(1/240)-1 -> 0.0001634329919 | E117: 101.7639675 | F117: =(1+Inputs!$E$11)^(1/240)-1 -> 0.0001231692607 | G117: =_xlfn.NORM.S.INV(RAND())*Inputs!$C$14/SQRT(240) -> 0.002399034697 | H117: 0.002686344697 | I117: 99.13708429 | J117: =IF(MOD(B117,(240/Inputs!$D$26))=0,I117,J116*(1+D117)) -> 101.7639675 | K117: =(J117/I117-1)*Inputs!$D$18 -> 0.02649748264 | L117: 0 | M117: =IF(MOD(B117,(240/Inputs!$D$26))=0,K117-K116,0) -> 0
B118: 108 | C118: 0 | D118: =(1+Inputs!$E$10)^(1/240)-1 -> 0.0001634329919 | E118: 101.7805991 | F118: =(1+Inputs!$E$11)^(1/240)-1 -> 0.0001231692607 | G118: =_xlfn.NORM.S.INV(RAND())*Inputs!$C$14/SQRT(240) -> 0.003858878002 | H118: 0.004146606425 | I118: 99.54816676 | J118: =IF(MOD(B118,(240/Inputs!$D$26))=0,I118,J117*(1+D118)) -> 101.7805991 | K118: =(J118/I118-1)*Inputs!$D$18 -> 0.02242564943 | L118: 0 | M118: =IF(MOD(B118,(240/Inputs!$D$26))=0,K118-K117,0) -> 0
B119: 109 | C119: 0 | D119: =(1+Inputs!$E$10)^(1/240)-1 -> 0.0001634329919 | E119: 101.7972334 | F119: =(1+Inputs!$E$11)^(1/240)-1 -> 0.0001231692607 | G119: =_xlfn.NORM.S.INV(RAND())*Inputs!$C$14/SQRT(240) -> -0.003215948862 | H119: -0.002930248243 | I119: 99.25646592 | J119: =IF(MOD(B119,(240/Inputs!$D$26))=0,I119,J118*(1+D119)) -> 101.7972334 | K119: =(J119/I119-1)*Inputs!$D$18 -> 0.02559800426 | L119: 0 | M119: =IF(MOD(B119,(240/Inputs!$D$26))=0,K119-K118,0) -> 0
B120: 110 | C120: 0 | D120: =(1+Inputs!$E$10)^(1/240)-1 -> 0.0001634329919 | E120: 101.8138704 | F120: =(1+Inputs!$E$11)^(1/240)-1 -> 0.0001231692607 | G120: =_xlfn.NORM.S.INV(RAND())*Inputs!$C$14/SQRT(240) -> -0.006530900608 | H120: -0.006246150128 | I120: 98.63649514 | J120: =IF(MOD(B120,(240/Inputs!$D$26))=0,I120,J119*(1+D120)) -> 101.8138704 | K120: =(J120/I120-1)*Inputs!$D$18 -> 0.03221297804 | L120: 0 | M120: =IF(MOD(B120,(240/Inputs!$D$26))=0,K120-K119,0) -> 0
B121: 111 | C121: 0 | D121: =(1+Inputs!$E$10)^(1/240)-1 -> 0.0001634329919 | E121: 101.8305101 | F121: =(1+Inputs!$E$11)^(1/240)-1 -> 0.0001231692607 | G121: =_xlfn.NORM.S.INV(RAND())*Inputs!$C$14/SQRT(240) -> 0.004427072936 | H121: 0.004714964217 | I121: 99.10156268 | J121: =IF(MOD(B121,(240/Inputs!$D$26))=0,I121,J120*(1+D121)) -> 101.8305101 | K121: =(J121/I121-1)*Inputs!$D$18 -> 0.02753687609 | L121: 0 | M121: =IF(MOD(B121,(240/Inputs!$D$26))=0,K121-K120,0) -> 0
B122: 112 | C122: 0 | D122: =(1+Inputs!$E$10)^(1/240)-1 -> 0.0001634329919 | E122: 101.8471526 | F122: =(1+Inputs!$E$11)^(1/240)-1 -> 0.0001231692607 | G122: =_xlfn.NORM.S.INV(RAND())*Inputs!$C$14/SQRT(240) -> -0.001283581935 | H122: -0.000997327456 | I122: 99.00272597 | J122: =IF(MOD(B122,(240/Inputs!$D$26))=0,I122,J121*(1+D122)) -> 101.8471526 | K122: =(J122/I122-1)*Inputs!$D$18 -> 0.02873079098 | L122: 0 | M122: =IF(MOD(B122,(240/Inputs!$D$26))=0,K122-K121,0) -> 0
B123: 113 | C123: 0 | D123: =(1+Inputs!$E$10)^(1/240)-1 -> 0.0001634329919 | E123: 101.8637978 | F123: =(1+Inputs!$E$11)^(1/240)-1 -> 0.0001231692607 | G123: =_xlfn.NORM.S.INV(RAND())*Inputs!$C$14/SQRT(240) -> -0.003374638235 | H123: -0.0030889831 | I123: 98.69690822 | J123: =IF(MOD(B123,(240/Inputs!$D$26))=0,I123,J122*(1+D123)) -> 101.8637978 | K123: =(J123/I123-1)*Inputs!$D$18 -> 0.03208701889 | L123: 0 | M123: =IF(MOD(B123,(240/Inputs!$D$26))=0,K123-K122,0) -> 0
B124: 114 | C124: 0 | D124: =(1+Inputs!$E$10)^(1/240)-1 -> 0.0001634329919 | E124: 101.8804457 | F124: =(1+Inputs!$E$11)^(1/240)-1 -> 0.0001231692607 | G124: =_xlfn.NORM.S.INV(RAND())*Inputs!$C$14/SQRT(240) -> -7.12531989e-05 | H124: 0.0002153487608 | I124: 98.71816248 | J124: =IF(MOD(B124,(240/Inputs!$D$26))=0,I124,J123*(1+D124)) -> 101.8804457 | K124: =(J124/I124-1)*Inputs!$D$18 -> 0.03203344883 | L124: 0 | M124: =IF(MOD(B124,(240/Inputs!$D$26))=0,K124-K123,0) -> 0
B125: 115 | C125: 0 | D125: =(1+Inputs!$E$10)^(1/240)-1 -> 0.0001634329919 | E125: 101.8970963 | F125: =(1+Inputs!$E$11)^(1/240)-1 -> 0.0001231692607 | G125: =_xlfn.NORM.S.INV(RAND())*Inputs!$C$14/SQRT(240) -> -0.0001861731175 | H125: 0.0001003959036 | I125: 98.72807338 | J125: =IF(MOD(B125,(240/Inputs!$D$26))=0,I125,J124*(1+D125)) -> 101.8970963 | K125: =(J125/I125-1)*Inputs!$D$18 -> 0.03209849869 | L125: 0 | M125: =IF(MOD(B125,(240/Inputs!$D$26))=0,K125-K124,0) -> 0
B126: 116 | C126: 0 | D126: =(1+Inputs!$E$10)^(1/240)-1 -> 0.0001634329919 | E126: 101.9137497 | F126: =(1+Inputs!$E$11)^(1/240)-1 -> 0.0001231692607 | G126: =_xlfn.NORM.S.INV(RAND())*Inputs!$C$14/SQRT(240) -> 0.001432362467 | H126: 0.001719395396 | I126: 98.89782597 | J126: =IF(MOD(B126,(240/Inputs!$D$26))=0,I126,J125*(1+D126)) -> 101.9137497 | K126: =(J126/I126-1)*Inputs!$D$18 -> 0.03049534867 | L126: 0 | M126: =IF(MOD(B126,(240/Inputs!$D$26))=0,K126-K125,0) -> 0
B127: 117 | C127: 0 | D127: =(1+Inputs!$E$10)^(1/240)-1 -> 0.0001634329919 | E127: 101.9304057 | F127: =(1+Inputs!$E$11)^(1/240)-1 -> 0.0001231692607 | G127: =_xlfn.NORM.S.INV(RAND())*Inputs!$C$14/SQRT(240) -> 0.002386370528 | H127: 0.002673676897 | I127: 99.16224681 | J127: =IF(MOD(B127,(240/Inputs!$D$26))=0,I127,J126*(1+D127)) -> 101.9304057 | K127: =(J127/I127-1)*Inputs!$D$18 -> 0.02791545182 | L127: 0 | M127: =IF(MOD(B127,(240/Inputs!$D$26))=0,K127-K126,0) -> 0
B128: 118 | C128: 0 | D128: =(1+Inputs!$E$10)^(1/240)-1 -> 0.0001634329919 | E128: 101.9470645 | F128: =(1+Inputs!$E$11)^(1/240)-1 -> 0.0001231692607 | G128: =_xlfn.NORM.S.INV(RAND())*Inputs!$C$14/SQRT(240) -> -0.003366734616 | H128: -0.003081077215 | I128: 98.85672027 | J128: =IF(MOD(B128,(240/Inputs!$D$26))=0,I128,J127*(1+D128)) -> 101.9470645 | K128: =(J128/I128-1)*Inputs!$D$18 -> 0.03126084139 | L128: 0 | M128: =IF(MOD(B128,(240/Inputs!$D$26))=0,K128-K127,0) -> 0
B129: 119 | C129: 0 | D129: =(1+Inputs!$E$10)^(1/240)-1 -> 0.0001634329919 | E129: 101.963726 | F129: =(1+Inputs!$E$11)^(1/240)-1 -> 0.0001231692607 | G129: =_xlfn.NORM.S.INV(RAND())*Inputs!$C$14/SQRT(240) -> 0.0002062022844 | H129: 0.000492883769 | I129: 98.90544514 | J129: =IF(MOD(B129,(240/Inputs!$D$26))=0,I129,J128*(1+D129)) -> 101.963726 | K129: =(J129/I129-1)*Inputs!$D$18 -> 0.03092125908 | L129: 0 | M129: =IF(MOD(B129,(240/Inputs!$D$26))=0,K129-K128,0) -> 0
B130: 120 | C130: 1 | D130: =(1+Inputs!$E$10)^(1/240)-1 -> 0.0001634329919 | E130: 101.9803903 | F130: =(1+Inputs!$E$11)^(1/240)-1 -> 0.0001231692607 | G130: =_xlfn.NORM.S.INV(RAND())*Inputs!$C$14/SQRT(240) -> 0.004122589359 | H130: 0.004410393368 | I130: 99.34165706 | J130: =IF(MOD(B130,(240/Inputs!$D$26))=0,I130,J129*(1+D130)) -> 99.34165706 | K130: =(J130/I130-1)*Inputs!$D$18 -> 0 | L130: 0 | M130: =IF(MOD(B130,(240/Inputs!$D$26))=0,K130-K129,0) -> -0.03092125908
B131: 121 | C131: 0 | D131: =(1+Inputs!$E$10)^(1/240)-1 -> 0.0001634329919 | E131: 101.9970572 | F131: =(1+Inputs!$E$11)^(1/240)-1 -> 0.0001231692607 | G131: =_xlfn.NORM.S.INV(RAND())*Inputs!$C$14/SQRT(240) -> -0.004915091044 | H131: -0.004629877437 | I131: 98.88171736 | J131: =IF(MOD(B131,(240/Inputs!$D$26))=0,I131,J130*(1+D131)) -> 99.35789276 | K131: =(J131/I131-1)*Inputs!$D$18 -> 0.004815606094 | L131: 0 | M131: =IF(MOD(B131,(240/Inputs!$D$26))=0,K131-K130,0) -> 0
B132: 122 | C132: 0 | D132: =(1+Inputs!$E$10)^(1/240)-1 -> 0.0001634329919 | E132: 102.0137269 | F132: =(1+Inputs!$E$11)^(1/240)-1 -> 0.0001231692607 | G132: =_xlfn.NORM.S.INV(RAND())*Inputs!$C$14/SQRT(240) -> 0.001615984521 | H132: 0.00190307008 | I132: 99.0698962 | J132: =IF(MOD(B132,(240/Inputs!$D$26))=0,I132,J131*(1+D132)) -> 99.37413112 | K132: =(J132/I132-1)*Inputs!$D$18 -> 0.003070911874 | L132: 0 | M132: =IF(MOD(B132,(240/Inputs!$D$26))=0,K132-K131,0) -> 0
B133: 123 | C133: 0 | D133: =(1+Inputs!$E$10)^(1/240)-1 -> 0.0001634329919 | E133: 102.0303993 | F133: =(1+Inputs!$E$11)^(1/240)-1 -> 0.0001231692607 | G133: =_xlfn.NORM.S.INV(RAND())*Inputs!$C$14/SQRT(240) -> 0.0004287353835 | H133: 0.0007154806511 | I133: 99.1407788 | J133: =IF(MOD(B133,(240/Inputs!$D$26))=0,I133,J132*(1+D133)) -> 99.39037213 | K133: =(J133/I133-1)*Inputs!$D$18 -> 0.002517564834 | L133: 0 | M133: =IF(MOD(B133,(240/Inputs!$D$26))=0,K133-K132,0) -> 0
B134: 124 | C134: 0 | D134: =(1+Inputs!$E$10)^(1/240)-1 -> 0.0001634329919 | E134: 102.0470745 | F134: =(1+Inputs!$E$11)^(1/240)-1 -> 0.0001231692607 | G134: =_xlfn.NORM.S.INV(RAND())*Inputs!$C$14/SQRT(240) -> 0.006270259813 | H134: 0.006558679393 | I134: 99.79101138 | J134: =IF(MOD(B134,(240/Inputs!$D$26))=0,I134,J133*(1+D134)) -> 99.4066158 | K134: =(J134/I134-1)*Inputs!$D$18 -> -0.003852006041 | L134: 0 | M134: =IF(MOD(B134,(240/Inputs!$D$26))=0,K134-K133,0) -> 0
B135: 125 | C135: 0 | D135: =(1+Inputs!$E$10)^(1/240)-1 -> 0.0001634329919 | E135: 102.0637523 | F135: =(1+Inputs!$E$11)^(1/240)-1 -> 0.0001231692607 | G135: =_xlfn.NORM.S.INV(RAND())*Inputs!$C$14/SQRT(240) -> -0.007463292584 | H135: -0.007178809349 | I135: 99.07463073 | J135: =IF(MOD(B135,(240/Inputs!$D$26))=0,I135,J134*(1+D135)) -> 99.42286212 | K135: =(J135/I135-1)*Inputs!$D$18 -> 0.003514839115 | L135: 0 | M135: =IF(MOD(B135,(240/Inputs!$D$26))=0,K135-K134,0) -> 0
B136: 126 | C136: 0 | D136: =(1+Inputs!$E$10)^(1/240)-1 -> 0.0001634329919 | E136: 102.0804329 | F136: =(1+Inputs!$E$11)^(1/240)-1 -> 0.0001231692607 | G136: =_xlfn.NORM.S.INV(RAND())*Inputs!$C$14/SQRT(240) -> 0.006658176873 | H136: 0.006946707638 | I136: 99.76287323 | J136: =IF(MOD(B136,(240/Inputs!$D$26))=0,I136,J135*(1+D136)) -> 99.4391111 | K136: =(J136/I136-1)*Inputs!$D$18 -> -0.003245316823 | L136: 0 | M136: =IF(MOD(B136,(240/Inputs!$D$26))=0,K136-K135,0) -> 0
B137: 127 | C137: 0 | D137: =(1+Inputs!$E$10)^(1/240)-1 -> 0.0001634329919 | E137: 102.0971162 | F137: =(1+Inputs!$E$11)^(1/240)-1 -> 0.0001231692607 | G137: =_xlfn.NORM.S.INV(RAND())*Inputs!$C$14/SQRT(240) -> -0.002156096509 | H137: -0.001870092112 | I137: 99.57630746 | J137: =IF(MOD(B137,(240/Inputs!$D$26))=0,I137,J136*(1+D137)) -> 99.45536273 | K137: =(J137/I137-1)*Inputs!$D$18 -> -0.001214593513 | L137: 0 | M137: =IF(MOD(B137,(240/Inputs!$D$26))=0,K137-K136,0) -> 0
B138: 128 | C138: 0 | D138: =(1+Inputs!$E$10)^(1/240)-1 -> 0.0001634329919 | E138: 102.1138022 | F138: =(1+Inputs!$E$11)^(1/240)-1 -> 0.0001231692607 | G138: =_xlfn.NORM.S.INV(RAND())*Inputs!$C$14/SQRT(240) -> 0.002090364758 | H138: 0.002377586286 | I138: 99.81305873 | J138: =IF(MOD(B138,(240/Inputs!$D$26))=0,I138,J137*(1+D138)) -> 99.47161702 | K138: =(J138/I138-1)*Inputs!$D$18 -> -0.003420812036 | L138: 0 | M138: =IF(MOD(B138,(240/Inputs!$D$26))=0,K138-K137,0) -> 0
B139: 129 | C139: =IF(MOD(B139,$C$8)=0,1,0) -> 0 | D139: =(1+Inputs!$E$10)^(1/240)-1 -> 0.0001634329919 | E139: 102.130491 | F139: =(1+Inputs!$E$11)^(1/240)-1 -> 0.0001231692607 | G139: =_xlfn.NORM.S.INV(RAND())*Inputs!$C$14/SQRT(240) -> 0.007399885881 | H139: 0.007688629236 | I139: 100.5804843 | J139: =IF(MOD(B139,(240/Inputs!$D$26))=0,I139,J138*(1+D139)) -> 99.48787396 | K139: =(J139/I139-1)*Inputs!$D$18 -> -0.01086304542 | L139: 0 | M139: =IF(MOD(B139,(240/Inputs!$D$26))=0,K139-K138,0) -> 0
B140: 130 | C140: 0 | D140: =(1+Inputs!$E$10)^(1/240)-1 -> 0.0001634329919 | E140: =E139*(1+D140) -> 102.1471825 | F140: =(1+Inputs!$E$11)^(1/240)-1 -> 0.0001231692607 | G140: =_xlfn.NORM.S.INV(RAND())*Inputs!$C$14/SQRT(240) -> 0.0009129496296 | H140: =(1+D140)*(1+F140)*(1+G140)-1 -> 0.001199833684 | I140: =I139*(1+H140) -> 100.7011642 | J140: =IF(MOD(B140,(240/Inputs!$D$26))=0,I140,J139*(1+D140)) -> 99.50413356 | K140: =(J140/I140-1)*Inputs!$D$18 -> -0.01188695912 | L140: =C140*K140 -> 0 | M140: =IF(MOD(B140,(240/Inputs!$D$26))=0,K140-K139,0) -> 0
B141: 131 | C141: 0 | D141: =(1+Inputs!$E$10)^(1/240)-1 -> 0.0001634329919 | E141: 102.1638767 | F141: =(1+Inputs!$E$11)^(1/240)-1 -> 0.0001231692607 | G141: =_xlfn.NORM.S.INV(RAND())*Inputs!$C$14/SQRT(240) -> -0.0009555868109 | H141: -0.0006692383209 | I141: 100.6337711 | J141: =IF(MOD(B141,(240/Inputs!$D$26))=0,I141,J140*(1+D141)) -> 99.52039582 | K141: =(J141/I141-1)*Inputs!$D$18 -> -0.01106363474 | L141: 0 | M141: =IF(MOD(B141,(240/Inputs!$D$26))=0,K141-K140,0) -> 0
B142: 132 | C142: 0 | D142: =(1+Inputs!$E$10)^(1/240)-1 -> 0.0001634329919 | E142: 102.1805737 | F142: =(1+Inputs!$E$11)^(1/240)-1 -> 0.0001231692607 | G142: =_xlfn.NORM.S.INV(RAND())*Inputs!$C$14/SQRT(240) -> 0.0003557266684 | H142: 0.0006424510101 | I142: 100.6984234 | J142: =IF(MOD(B142,(240/Inputs!$D$26))=0,I142,J141*(1+D142)) -> 99.53666073 | K142: =(J142/I142-1)*Inputs!$D$18 -> -0.01153704893 | L142: 0 | M142: =IF(MOD(B142,(240/Inputs!$D$26))=0,K142-K141,0) -> 0
B143: 133 | C143: 0 | D143: =(1+Inputs!$E$10)^(1/240)-1 -> 0.0001634329919 | E143: 102.1972733 | F143: =(1+Inputs!$E$11)^(1/240)-1 -> 0.0001231692607 | G143: =_xlfn.NORM.S.INV(RAND())*Inputs!$C$14/SQRT(240) -> 0.000428202428 | H143: 0.0007149475429 | I143: 100.7704175 | J143: =IF(MOD(B143,(240/Inputs!$D$26))=0,I143,J142*(1+D143)) -> 99.55292831 | K143: =(J143/I143-1)*Inputs!$D$18 -> -0.01208181116 | L143: 0 | M143: =IF(MOD(B143,(240/Inputs!$D$26))=0,K143-K142,0) -> 0
B144: 134 | C144: 0 | D144: =(1+Inputs!$E$10)^(1/240)-1 -> 0.0001634329919 | E144: 102.2139758 | F144: =(1+Inputs!$E$11)^(1/240)-1 -> 0.0001231692607 | G144: =_xlfn.NORM.S.INV(RAND())*Inputs!$C$14/SQRT(240) -> 0.0002008688007 | H144: 0.0004875487567 | I144: 100.819548 | J144: =IF(MOD(B144,(240/Inputs!$D$26))=0,I144,J143*(1+D144)) -> 99.56919854 | K144: =(J144/I144-1)*Inputs!$D$18 -> -0.01240185498 | L144: 0 | M144: =IF(MOD(B144,(240/Inputs!$D$26))=0,K144-K143,0) -> 0
B145: 135 | C145: 0 | D145: =(1+Inputs!$E$10)^(1/240)-1 -> 0.0001634329919 | E145: 102.2306809 | F145: =(1+Inputs!$E$11)^(1/240)-1 -> 0.0001231692607 | G145: =_xlfn.NORM.S.INV(RAND())*Inputs!$C$14/SQRT(240) -> 0.007709500504 | H145: 0.007998332602 | I145: 101.6259362 | J145: =IF(MOD(B145,(240/Inputs!$D$26))=0,I145,J144*(1+D145)) -> 99.58547143 | K145: =(J145/I145-1)*Inputs!$D$18 -> -0.02007818942 | L145: 0 | M145: =IF(MOD(B145,(240/Inputs!$D$26))=0,K145-K144,0) -> 0
B146: 136 | C146: 0 | D146: =(1+Inputs!$E$10)^(1/240)-1 -> 0.0001634329919 | E146: 102.2473888 | F146: =(1+Inputs!$E$11)^(1/240)-1 -> 0.0001231692607 | G146: =_xlfn.NORM.S.INV(RAND())*Inputs!$C$14/SQRT(240) -> -0.003824607775 | H146: -0.00353908161 | I146: 101.2662737 | J146: =IF(MOD(B146,(240/Inputs!$D$26))=0,I146,J145*(1+D146)) -> 99.60174698 | K146: =(J146/I146-1)*Inputs!$D$18 -> -0.0164371286 | L146: 0 | M146: =IF(MOD(B146,(240/Inputs!$D$26))=0,K146-K145,0) -> 0
B147: 137 | C147: 0 | D147: =(1+Inputs!$E$10)^(1/240)-1 -> 0.0001634329919 | E147: 102.2640994 | F147: =(1+Inputs!$E$11)^(1/240)-1 -> 0.0001231692607 | G147: =_xlfn.NORM.S.INV(RAND())*Inputs!$C$14/SQRT(240) -> -0.006428313956 | H147: -0.006143534072 | I147: 100.6441409 | J147: =IF(MOD(B147,(240/Inputs!$D$26))=0,I147,J146*(1+D147)) -> 99.6180252 | K147: =(J147/I147-1)*Inputs!$D$18 -> -0.01019548421 | L147: 0 | M147: =IF(MOD(B147,(240/Inputs!$D$26))=0,K147-K146,0) -> 0
B148: 138 | C148: 0 | D148: =(1+Inputs!$E$10)^(1/240)-1 -> 0.0001634329919 | E148: 102.2808127 | F148: =(1+Inputs!$E$11)^(1/240)-1 -> 0.0001231692607 | G148: =_xlfn.NORM.S.INV(RAND())*Inputs!$C$14/SQRT(240) -> -0.01231918159 | H148: -0.01203609016 | I148: 99.43277899 | J148: =IF(MOD(B148,(240/Inputs!$D$26))=0,I148,J147*(1+D148)) -> 99.63430607 | K148: =(J148/I148-1)*Inputs!$D$18 -> 0.002026767017 | L148: 0 | M148: =IF(MOD(B148,(240/Inputs!$D$26))=0,K148-K147,0) -> 0
B149: 139 | C149: 0 | D149: =(1+Inputs!$E$10)^(1/240)-1 -> 0.0001634329919 | E149: 102.2975287 | F149: =(1+Inputs!$E$11)^(1/240)-1 -> 0.0001231692607 | G149: =_xlfn.NORM.S.INV(RAND())*Inputs!$C$14/SQRT(240) -> 0.0002425403033 | H149: 0.0005292322033 | I149: 99.48540202 | J149: =IF(MOD(B149,(240/Inputs!$D$26))=0,I149,J148*(1+D149)) -> 99.6505896 | K149: =(J149/I149-1)*Inputs!$D$18 -> 0.001660420299 | L149: 0 | M149: =IF(MOD(B149,(240/Inputs!$D$26))=0,K149-K148,0) -> 0
B150: 140 | C150: 1 | D150: =(1+Inputs!$E$10)^(1/240)-1 -> 0.0001634329919 | E150: 102.3142475 | F150: =(1+Inputs!$E$11)^(1/240)-1 -> 0.0001231692607 | G150: =_xlfn.NORM.S.INV(RAND())*Inputs!$C$14/SQRT(240) -> 0.002079134527 | H150: 0.002366352836 | I150: 99.72081958 | J150: =IF(MOD(B150,(240/Inputs!$D$26))=0,I150,J149*(1+D150)) -> 99.6668758 | K150: =(J150/I150-1)*Inputs!$D$18 -> -0.0005409481041 | L150: -0.0005409481041 | M150: =IF(MOD(B150,(240/Inputs!$D$26))=0,K150-K149,0) -> 0
B151: 141 | C151: 0 | D151: =(1+Inputs!$E$10)^(1/240)-1 -> 0.0001634329919 | E151: 102.3309691 | F151: =(1+Inputs!$E$11)^(1/240)-1 -> 0.0001231692607 | G151: =_xlfn.NORM.S.INV(RAND())*Inputs!$C$14/SQRT(240) -> 0.001293474808 | H151: 0.001580467929 | I151: 99.87842514 | J151: =IF(MOD(B151,(240/Inputs!$D$26))=0,I151,J150*(1+D151)) -> 99.68316465 | K151: =(J151/I151-1)*Inputs!$D$18 -> -0.001954981664 | L151: 0 | M151: =IF(MOD(B151,(240/Inputs!$D$26))=0,K151-K150,0) -> 0
B152: 142 | C152: 0 | D152: =(1+Inputs!$E$10)^(1/240)-1 -> 0.0001634329919 | E152: 102.3476933 | F152: =(1+Inputs!$E$11)^(1/240)-1 -> 0.0001231692607 | G152: =_xlfn.NORM.S.INV(RAND())*Inputs!$C$14/SQRT(240) -> 0.001134770408 | H152: 0.001421718041 | I152: 100.0204241 | J152: =IF(MOD(B152,(240/Inputs!$D$26))=0,I152,J151*(1+D152)) -> 99.69945617 | K152: =(J152/I152-1)*Inputs!$D$18 -> -0.003209023895 | L152: 0 | M152: =IF(MOD(B152,(240/Inputs!$D$26))=0,K152-K151,0) -> 0
B153: 143 | C153: 0 | D153: =(1+Inputs!$E$10)^(1/240)-1 -> 0.0001634329919 | E153: 102.3644203 | F153: =(1+Inputs!$E$11)^(1/240)-1 -> 0.0001231692607 | G153: =_xlfn.NORM.S.INV(RAND())*Inputs!$C$14/SQRT(240) -> 0.001454061252 | H153: 0.001741100401 | I153: 100.1945697 | J153: =IF(MOD(B153,(240/Inputs!$D$26))=0,I153,J152*(1+D153)) -> 99.71575035 | K153: =(J153/I153-1)*Inputs!$D$18 -> -0.004778895228 | L153: 0 | M153: =IF(MOD(B153,(240/Inputs!$D$26))=0,K153-K152,0) -> 0
B154: 144 | C154: 0 | D154: =(1+Inputs!$E$10)^(1/240)-1 -> 0.0001634329919 | E154: 102.38115 | F154: =(1+Inputs!$E$11)^(1/240)-1 -> 0.0001231692607 | G154: =_xlfn.NORM.S.INV(RAND())*Inputs!$C$14/SQRT(240) -> 0.001775094175 | H154: 0.002062225339 | I154: 100.4011935 | J154: =IF(MOD(B154,(240/Inputs!$D$26))=0,I154,J153*(1+D154)) -> 99.73204719 | K154: =(J154/I154-1)*Inputs!$D$18 -> -0.006664724441 | L154: 0 | M154: =IF(MOD(B154,(240/Inputs!$D$26))=0,K154-K153,0) -> 0
B155: 145 | C155: 0 | D155: =(1+Inputs!$E$10)^(1/240)-1 -> 0.0001634329919 | E155: 102.3978825 | F155: =(1+Inputs!$E$11)^(1/240)-1 -> 0.0001231692607 | G155: =_xlfn.NORM.S.INV(RAND())*Inputs!$C$14/SQRT(240) -> 0.0005930177809 | H155: 0.0008798101355 | I155: 100.4895275 | J155: =IF(MOD(B155,(240/Inputs!$D$26))=0,I155,J154*(1+D155)) -> 99.7483467 | K155: =(J155/I155-1)*Inputs!$D$18 -> -0.007375701604 | L155: 0 | M155: =IF(MOD(B155,(240/Inputs!$D$26))=0,K155-K154,0) -> 0
B156: 146 | C156: 0 | D156: =(1+Inputs!$E$10)^(1/240)-1 -> 0.0001634329919 | E156: 102.4146177 | F156: =(1+Inputs!$E$11)^(1/240)-1 -> 0.0001231692607 | G156: =_xlfn.NORM.S.INV(RAND())*Inputs!$C$14/SQRT(240) -> -0.004196697055 | H156: -0.00391127754 | I156: 100.096485 | J156: =IF(MOD(B156,(240/Inputs!$D$26))=0,I156,J155*(1+D156)) -> 99.76464887 | K156: =(J156/I156-1)*Inputs!$D$18 -> -0.003315163028 | L156: 0 | M156: =IF(MOD(B156,(240/Inputs!$D$26))=0,K156-K155,0) -> 0
B157: 147 | C157: 0 | D157: =(1+Inputs!$E$10)^(1/240)-1 -> 0.0001634329919 | E157: 102.4313556 | F157: =(1+Inputs!$E$11)^(1/240)-1 -> 0.0001231692607 | G157: =_xlfn.NORM.S.INV(RAND())*Inputs!$C$14/SQRT(240) -> 0.005729485844 | H157: 0.006017750425 | I157: 100.6988407 | J157: =IF(MOD(B157,(240/Inputs!$D$26))=0,I157,J156*(1+D157)) -> 99.78095371 | K157: =(J157/I157-1)*Inputs!$D$18 -> -0.009115169453 | L157: 0 | M157: =IF(MOD(B157,(240/Inputs!$D$26))=0,K157-K156,0) -> 0
B158: 148 | C158: 0 | D158: =(1+Inputs!$E$10)^(1/240)-1 -> 0.0001634329919 | E158: 102.4480963 | F158: =(1+Inputs!$E$11)^(1/240)-1 -> 0.0001231692607 | G158: =_xlfn.NORM.S.INV(RAND())*Inputs!$C$14/SQRT(240) -> 0.00494684654 | H158: 0.0052348868 | I158: 101.2259877 | J158: =IF(MOD(B158,(240/Inputs!$D$26))=0,I158,J157*(1+D158)) -> 99.7972612 | K158: =(J158/I158-1)*Inputs!$D$18 -> -0.0141142266 | L158: 0 | M158: =IF(MOD(B158,(240/Inputs!$D$26))=0,K158-K157,0) -> 0
B159: 149 | C159: 0 | D159: =(1+Inputs!$E$10)^(1/240)-1 -> 0.0001634329919 | E159: 102.4648397 | F159: =(1+Inputs!$E$11)^(1/240)-1 -> 0.0001231692607 | G159: =_xlfn.NORM.S.INV(RAND())*Inputs!$C$14/SQRT(240) -> 0.007083818917 | H159: 0.00737247168 | I159: 101.9722735 | J159: =IF(MOD(B159,(240/Inputs!$D$26))=0,I159,J158*(1+D159)) -> 99.81357137 | K159: =(J159/I159-1)*Inputs!$D$18 -> -0.02116950048 | L159: 0 | M159: =IF(MOD(B159,(240/Inputs!$D$26))=0,K159-K158,0) -> 0
B160: 150 | C160: 0 | D160: =(1+Inputs!$E$10)^(1/240)-1 -> 0.0001634329919 | E160: 102.4815858 | F160: =(1+Inputs!$E$11)^(1/240)-1 -> 0.0001231692607 | G160: =_xlfn.NORM.S.INV(RAND())*Inputs!$C$14/SQRT(240) -> -0.000260651637 | H160: 2.58960369e-05 | I160: 101.9749141 | J160: =IF(MOD(B160,(240/Inputs!$D$26))=0,I160,J159*(1+D160)) -> 99.8298842 | K160: =(J160/I160-1)*Inputs!$D$18 -> -0.0210348786 | L160: 0 | M160: =IF(MOD(B160,(240/Inputs!$D$26))=0,K160-K159,0) -> 0
B161: 151 | C161: 0 | D161: =(1+Inputs!$E$10)^(1/240)-1 -> 0.0001634329919 | E161: 102.4983347 | F161: =(1+Inputs!$E$11)^(1/240)-1 -> 0.0001231692607 | G161: =_xlfn.NORM.S.INV(RAND())*Inputs!$C$14/SQRT(240) -> -0.001909917221 | H161: -0.001623842264 | I161: 101.809323 | J161: =IF(MOD(B161,(240/Inputs!$D$26))=0,I161,J160*(1+D161)) -> 99.8461997 | K161: =(J161/I161-1)*Inputs!$D$18 -> -0.01928235263 | L161: 0 | M161: =IF(MOD(B161,(240/Inputs!$D$26))=0,K161-K160,0) -> 0
B162: 152 | C162: 0 | D162: =(1+Inputs!$E$10)^(1/240)-1 -> 0.0001634329919 | E162: 102.5150863 | F162: =(1+Inputs!$E$11)^(1/240)-1 -> 0.0001231692607 | G162: =_xlfn.NORM.S.INV(RAND())*Inputs!$C$14/SQRT(240) -> -0.001369718874 | H162: -0.001083489084 | I162: 101.6990137 | J162: =IF(MOD(B162,(240/Inputs!$D$26))=0,I162,J161*(1+D162)) -> 99.86251786 | K162: =(J162/I162-1)*Inputs!$D$18 -> -0.01805814774 | L162: 0 | M162: =IF(MOD(B162,(240/Inputs!$D$26))=0,K162-K161,0) -> 0
B163: 153 | C163: 0 | D163: =(1+Inputs!$E$10)^(1/240)-1 -> 0.0001634329919 | E163: 102.5318406 | F163: =(1+Inputs!$E$11)^(1/240)-1 -> 0.0001231692607 | G163: =_xlfn.NORM.S.INV(RAND())*Inputs!$C$14/SQRT(240) -> -0.001506686179 | H163: -0.001220495646 | I163: 101.5748905 | J163: =IF(MOD(B163,(240/Inputs!$D$26))=0,I163,J162*(1+D163)) -> 99.87883869 | K163: =(J163/I163-1)*Inputs!$D$18 -> -0.01669754968 | L163: 0 | M163: =IF(MOD(B163,(240/Inputs!$D$26))=0,K163-K162,0) -> 0
B164: 154 | C164: 0 | D164: =(1+Inputs!$E$10)^(1/240)-1 -> 0.0001634329919 | E164: 102.5485977 | F164: =(1+Inputs!$E$11)^(1/240)-1 -> 0.0001231692607 | G164: =_xlfn.NORM.S.INV(RAND())*Inputs!$C$14/SQRT(240) -> -0.003496289497 | H164: -0.003210669229 | I164: 101.2487671 | J164: =IF(MOD(B164,(240/Inputs!$D$26))=0,I164,J163*(1+D164)) -> 99.89516219 | K164: =(J164/I164-1)*Inputs!$D$18 -> -0.01336910015 | L164: 0 | M164: =IF(MOD(B164,(240/Inputs!$D$26))=0,K164-K163,0) -> 0
B165: 155 | C165: 0 | D165: =(1+Inputs!$E$10)^(1/240)-1 -> 0.0001634329919 | E165: 102.5653575 | F165: =(1+Inputs!$E$11)^(1/240)-1 -> 0.0001231692607 | G165: =_xlfn.NORM.S.INV(RAND())*Inputs!$C$14/SQRT(240) -> -0.005893231107 | H165: -0.005608297856 | I165: 100.6809339 | J165: =IF(MOD(B165,(240/Inputs!$D$26))=0,I165,J164*(1+D165)) -> 99.91148835 | K165: =(J165/I165-1)*Inputs!$D$18 -> -0.007642415196 | L165: 0 | M165: =IF(MOD(B165,(240/Inputs!$D$26))=0,K165-K164,0) -> 0
B166: 156 | C166: 0 | D166: =(1+Inputs!$E$10)^(1/240)-1 -> 0.0001634329919 | E166: 102.5821201 | F166: =(1+Inputs!$E$11)^(1/240)-1 -> 0.0001231692607 | G166: =_xlfn.NORM.S.INV(RAND())*Inputs!$C$14/SQRT(240) -> 0.002046514937 | H166: 0.002333723897 | I166: 100.9158954 | J166: =IF(MOD(B166,(240/Inputs!$D$26))=0,I166,J165*(1+D166)) -> 99.92781719 | K166: =(J166/I166-1)*Inputs!$D$18 -> -0.009791105387 | L166: 0 | M166: =IF(MOD(B166,(240/Inputs!$D$26))=0,K166-K165,0) -> 0
B167: 157 | C167: 0 | D167: =(1+Inputs!$E$10)^(1/240)-1 -> 0.0001634329919 | E167: 102.5988854 | F167: =(1+Inputs!$E$11)^(1/240)-1 -> 0.0001231692607 | G167: =_xlfn.NORM.S.INV(RAND())*Inputs!$C$14/SQRT(240) -> -0.006571027935 | H167: -0.006286288957 | I167: 100.2815089 | J167: =IF(MOD(B167,(240/Inputs!$D$26))=0,I167,J166*(1+D167)) -> 99.94414869 | K167: =(J167/I167-1)*Inputs!$D$18 -> -0.003364131531 | L167: 0 | M167: =IF(MOD(B167,(240/Inputs!$D$26))=0,K167-K166,0) -> 0
B168: 158 | C168: 0 | D168: =(1+Inputs!$E$10)^(1/240)-1 -> 0.0001634329919 | E168: 102.6156534 | F168: =(1+Inputs!$E$11)^(1/240)-1 -> 0.0001231692607 | G168: =_xlfn.NORM.S.INV(RAND())*Inputs!$C$14/SQRT(240) -> 0.002808150016 | H168: 0.003095577277 | I168: 100.591938 | J168: =IF(MOD(B168,(240/Inputs!$D$26))=0,I168,J167*(1+D168)) -> 99.96048286 | K168: =(J168/I168-1)*Inputs!$D$18 -> -0.00627739347 | L168: 0 | M168: =IF(MOD(B168,(240/Inputs!$D$26))=0,K168-K167,0) -> 0
B169: 159 | C169: 0 | D169: =(1+Inputs!$E$10)^(1/240)-1 -> 0.0001634329919 | E169: 102.6324242 | F169: =(1+Inputs!$E$11)^(1/240)-1 -> 0.0001231692607 | G169: =_xlfn.NORM.S.INV(RAND())*Inputs!$C$14/SQRT(240) -> 0.001881532337 | H169: 0.002168694009 | I169: 100.8100912 | J169: =IF(MOD(B169,(240/Inputs!$D$26))=0,I169,J168*(1+D169)) -> 99.9768197 | K169: =(J169/I169-1)*Inputs!$D$18 -> -0.008265754527 | L169: 0 | M169: =IF(MOD(B169,(240/Inputs!$D$26))=0,K169-K168,0) -> 0
B170: 160 | C170: 1 | D170: =(1+Inputs!$E$10)^(1/240)-1 -> 0.0001634329919 | E170: 102.6491978 | F170: =(1+Inputs!$E$11)^(1/240)-1 -> 0.0001231692607 | G170: =_xlfn.NORM.S.INV(RAND())*Inputs!$C$14/SQRT(240) -> -0.007313524291 | H170: -0.007028998128 | I170: 100.1014972 | J170: =IF(MOD(B170,(240/Inputs!$D$26))=0,I170,J169*(1+D170)) -> 99.99315921 | K170: =(J170/I170-1)*Inputs!$D$18 -> -0.00108228166 | L170: -0.00108228166 | M170: =IF(MOD(B170,(240/Inputs!$D$26))=0,K170-K169,0) -> 0
B171: 161 | C171: 0 | D171: =(1+Inputs!$E$10)^(1/240)-1 -> 0.0001634329919 | E171: 102.665974 | F171: =(1+Inputs!$E$11)^(1/240)-1 -> 0.0001231692607 | G171: =_xlfn.NORM.S.INV(RAND())*Inputs!$C$14/SQRT(240) -> -0.002874644997 | H171: -0.002588846553 | I171: 99.84234981 | J171: =IF(MOD(B171,(240/Inputs!$D$26))=0,I171,J170*(1+D171)) -> 100.0095014 | K171: =(J171/I171-1)*Inputs!$D$18 -> 0.001674155135 | L171: 0 | M171: =IF(MOD(B171,(240/Inputs!$D$26))=0,K171-K170,0) -> 0
B172: 162 | C172: 0 | D172: =(1+Inputs!$E$10)^(1/240)-1 -> 0.0001634329919 | E172: 102.682753 | F172: =(1+Inputs!$E$11)^(1/240)-1 -> 0.0001231692607 | G172: =_xlfn.NORM.S.INV(RAND())*Inputs!$C$14/SQRT(240) -> 0.005803992242 | H172: 0.006092278178 | I172: 100.4506172 | J172: =IF(MOD(B172,(240/Inputs!$D$26))=0,I172,J171*(1+D172)) -> 100.0258462 | K172: =(J172/I172-1)*Inputs!$D$18 -> -0.004228654301 | L172: 0 | M172: =IF(MOD(B172,(240/Inputs!$D$26))=0,K172-K171,0) -> 0
B173: 163 | C173: 0 | D173: =(1+Inputs!$E$10)^(1/240)-1 -> 0.0001634329919 | E173: 102.6995348 | F173: =(1+Inputs!$E$11)^(1/240)-1 -> 0.0001231692607 | G173: =_xlfn.NORM.S.INV(RAND())*Inputs!$C$14/SQRT(240) -> -0.008793824282 | H173: -0.008509722406 | I173: 99.59581031 | J173: =IF(MOD(B173,(240/Inputs!$D$26))=0,I173,J172*(1+D173)) -> 100.0421938 | K173: =(J173/I173-1)*Inputs!$D$18 -> 0.004481950147 | L173: 0 | M173: =IF(MOD(B173,(240/Inputs!$D$26))=0,K173-K172,0) -> 0
B174: 164 | C174: 0 | D174: =(1+Inputs!$E$10)^(1/240)-1 -> 0.0001634329919 | E174: 102.7163193 | F174: =(1+Inputs!$E$11)^(1/240)-1 -> 0.0001231692607 | G174: =_xlfn.NORM.S.INV(RAND())*Inputs!$C$14/SQRT(240) -> 0.000968418538 | H174: 0.001255318491 | I174: 99.72083477 | J174: =IF(MOD(B174,(240/Inputs!$D$26))=0,I174,J173*(1+D174)) -> 100.058544 | K174: =(J174/I174-1)*Inputs!$D$18 -> 0.003386545953 | L174: 0 | M174: =IF(MOD(B174,(240/Inputs!$D$26))=0,K174-K173,0) -> 0
B175: 165 | C175: 0 | D175: =(1+Inputs!$E$10)^(1/240)-1 -> 0.0001634329919 | E175: 102.7331065 | F175: =(1+Inputs!$E$11)^(1/240)-1 -> 0.0001231692607 | G175: =_xlfn.NORM.S.INV(RAND())*Inputs!$C$14/SQRT(240) -> -0.002264746674 | H175: -0.001978773419 | I175: 99.52350984 | J175: =IF(MOD(B175,(240/Inputs!$D$26))=0,I175,J174*(1+D175)) -> 100.0748968 | K175: =(J175/I175-1)*Inputs!$D$18 -> 0.005540268773 | L175: 0 | M175: =IF(MOD(B175,(240/Inputs!$D$26))=0,K175-K174,0) -> 0
B176: 166 | C176: 0 | D176: =(1+Inputs!$E$10)^(1/240)-1 -> 0.0001634329919 | E176: 102.7498965 | F176: =(1+Inputs!$E$11)^(1/240)-1 -> 0.0001231692607 | G176: =_xlfn.NORM.S.INV(RAND())*Inputs!$C$14/SQRT(240) -> 0.001175303965 | H176: 0.001462263216 | I176: 99.6690394 | J176: =IF(MOD(B176,(240/Inputs!$D$26))=0,I176,J175*(1+D176)) -> 100.0912524 | K176: =(J176/I176-1)*Inputs!$D$18 -> 0.004236149646 | L176: 0 | M176: =IF(MOD(B176,(240/Inputs!$D$26))=0,K176-K175,0) -> 0
B177: 167 | C177: 0 | D177: =(1+Inputs!$E$10)^(1/240)-1 -> 0.0001634329919 | E177: 102.7666892 | F177: =(1+Inputs!$E$11)^(1/240)-1 -> 0.0001231692607 | G177: =_xlfn.NORM.S.INV(RAND())*Inputs!$C$14/SQRT(240) -> -0.001245181043 | H177: -0.0009589155577 | I177: 99.57346521 | J177: =IF(MOD(B177,(240/Inputs!$D$26))=0,I177,J176*(1+D177)) -> 100.1076106 | K177: =(J177/I177-1)*Inputs!$D$18 -> 0.005364334466 | L177: 0 | M177: =IF(MOD(B177,(240/Inputs!$D$26))=0,K177-K176,0) -> 0
B178: 168 | C178: 0 | D178: =(1+Inputs!$E$10)^(1/240)-1 -> 0.0001634329919 | E178: 102.7834847 | F178: =(1+Inputs!$E$11)^(1/240)-1 -> 0.0001231692607 | G178: =_xlfn.NORM.S.INV(RAND())*Inputs!$C$14/SQRT(240) -> -0.001887615074 | H178: -0.001601533724 | I178: 99.41399495 | J178: =IF(MOD(B178,(240/Inputs!$D$26))=0,I178,J177*(1+D178)) -> 100.1239715 | K178: =(J178/I178-1)*Inputs!$D$18 -> 0.007141615429 | L178: 0 | M178: =IF(MOD(B178,(240/Inputs!$D$26))=0,K178-K177,0) -> 0
B179: 169 | C179: 0 | D179: =(1+Inputs!$E$10)^(1/240)-1 -> 0.0001634329919 | E179: 102.8002829 | F179: =(1+Inputs!$E$11)^(1/240)-1 -> 0.0001231692607 | G179: =_xlfn.NORM.S.INV(RAND())*Inputs!$C$14/SQRT(240) -> -0.0005721292879 | H179: -0.0002856708904 | I179: 99.38559526 | J179: =IF(MOD(B179,(240/Inputs!$D$26))=0,I179,J178*(1+D179)) -> 100.140335 | K179: =(J179/I179-1)*Inputs!$D$18 -> 0.007594055888 | L179: 0 | M179: =IF(MOD(B179,(240/Inputs!$D$26))=0,K179-K178,0) -> 0
B180: 170 | C180: 0 | D180: =(1+Inputs!$E$10)^(1/240)-1 -> 0.0001634329919 | E180: 102.8170838 | F180: =(1+Inputs!$E$11)^(1/240)-1 -> 0.0001231692607 | G180: =_xlfn.NORM.S.INV(RAND())*Inputs!$C$14/SQRT(240) -> 0.00447272428 | H180: 0.004760628645 | I180: 99.85873318 | J180: =IF(MOD(B180,(240/Inputs!$D$26))=0,I180,J179*(1+D180)) -> 100.1567013 | K180: =(J180/I180-1)*Inputs!$D$18 -> 0.002983896132 | L180: 0 | M180: =IF(MOD(B180,(240/Inputs!$D$26))=0,K180-K179,0) -> 0
B181: 171 | C181: 0 | D181: =(1+Inputs!$E$10)^(1/240)-1 -> 0.0001634329919 | E181: 102.8338875 | F181: =(1+Inputs!$E$11)^(1/240)-1 -> 0.0001231692607 | G181: =_xlfn.NORM.S.INV(RAND())*Inputs!$C$14/SQRT(240) -> -0.003483697257 | H181: -0.00319807338 | I181: 99.53937762 | J181: =IF(MOD(B181,(240/Inputs!$D$26))=0,I181,J180*(1+D181)) -> 100.1730702 | K181: =(J181/I181-1)*Inputs!$D$18 -> 0.006366249905 | L181: 0 | M181: =IF(MOD(B181,(240/Inputs!$D$26))=0,K181-K180,0) -> 0
B182: 172 | C182: 0 | D182: =(1+Inputs!$E$10)^(1/240)-1 -> 0.0001634329919 | E182: 102.850694 | F182: =(1+Inputs!$E$11)^(1/240)-1 -> 0.0001231692607 | G182: =_xlfn.NORM.S.INV(RAND())*Inputs!$C$14/SQRT(240) -> -0.005580994273 | H182: -0.005295971528 | I182: 99.01221991 | J182: =IF(MOD(B182,(240/Inputs!$D$26))=0,I182,J181*(1+D182)) -> 100.1894418 | K182: =(J182/I182-1)*Inputs!$D$18 -> 0.01188966219 | L182: 0 | M182: =IF(MOD(B182,(240/Inputs!$D$26))=0,K182-K181,0) -> 0
B183: 173 | C183: 0 | D183: =(1+Inputs!$E$10)^(1/240)-1 -> 0.0001634329919 | E183: 102.8675032 | F183: =(1+Inputs!$E$11)^(1/240)-1 -> 0.0001231692607 | G183: =_xlfn.NORM.S.INV(RAND())*Inputs!$C$14/SQRT(240) -> 0.002167885125 | H183: 0.002455128872 | I183: 99.25530767 | J183: =IF(MOD(B183,(240/Inputs!$D$26))=0,I183,J182*(1+D183)) -> 100.205816 | K183: =(J183/I183-1)*Inputs!$D$18 -> 0.009576398184 | L183: 0 | M183: =IF(MOD(B183,(240/Inputs!$D$26))=0,K183-K182,0) -> 0
B184: 174 | C184: 0 | D184: =(1+Inputs!$E$10)^(1/240)-1 -> 0.0001634329919 | E184: 102.8843151 | F184: =(1+Inputs!$E$11)^(1/240)-1 -> 0.0001231692607 | G184: =_xlfn.NORM.S.INV(RAND())*Inputs!$C$14/SQRT(240) -> -0.006981191451 | H184: -0.006696570035 | I184: 98.59063755 | J184: =IF(MOD(B184,(240/Inputs!$D$26))=0,I184,J183*(1+D184)) -> 100.222193 | K184: =(J184/I184-1)*Inputs!$D$18 -> 0.01654878642 | L184: 0 | M184: =IF(MOD(B184,(240/Inputs!$D$26))=0,K184-K183,0) -> 0
B185: 175 | C185: 0 | D185: =(1+Inputs!$E$10)^(1/240)-1 -> 0.0001634329919 | E185: 102.9011298 | F185: =(1+Inputs!$E$11)^(1/240)-1 -> 0.0001231692607 | G185: =_xlfn.NORM.S.INV(RAND())*Inputs!$C$14/SQRT(240) -> 0.001042283458 | H185: 0.001329204582 | I185: 98.72168468 | J185: =IF(MOD(B185,(240/Inputs!$D$26))=0,I185,J184*(1+D185)) -> 100.2385726 | K185: =(J185/I185-1)*Inputs!$D$18 -> 0.01536529582 | L185: 0 | M185: =IF(MOD(B185,(240/Inputs!$D$26))=0,K185-K184,0) -> 0
B186: 176 | C186: 0 | D186: =(1+Inputs!$E$10)^(1/240)-1 -> 0.0001634329919 | E186: 102.9179473 | F186: =(1+Inputs!$E$11)^(1/240)-1 -> 0.0001231692607 | G186: =_xlfn.NORM.S.INV(RAND())*Inputs!$C$14/SQRT(240) -> 0.009785823622 | H186: 0.01007525084 | I186: 99.71633041 | J186: =IF(MOD(B186,(240/Inputs!$D$26))=0,I186,J185*(1+D186)) -> 100.2549549 | K186: =(J186/I186-1)*Inputs!$D$18 -> 0.005401567027 | L186: 0 | M186: =IF(MOD(B186,(240/Inputs!$D$26))=0,K186-K185,0) -> 0
B187: 177 | C187: 0 | D187: =(1+Inputs!$E$10)^(1/240)-1 -> 0.0001634329919 | E187: 102.9347675 | F187: =(1+Inputs!$E$11)^(1/240)-1 -> 0.0001231692607 | G187: =_xlfn.NORM.S.INV(RAND())*Inputs!$C$14/SQRT(240) -> -0.004691326231 | H187: -0.004406048488 | I187: 99.27697543 | J187: =IF(MOD(B187,(240/Inputs!$D$26))=0,I187,J186*(1+D187)) -> 100.2713398 | K187: =(J187/I187-1)*Inputs!$D$18 -> 0.01001606256 | L187: 0 | M187: =IF(MOD(B187,(240/Inputs!$D$26))=0,K187-K186,0) -> 0
B188: 178 | C188: 0 | D188: =(1+Inputs!$E$10)^(1/240)-1 -> 0.0001634329919 | E188: 102.9515904 | F188: =(1+Inputs!$E$11)^(1/240)-1 -> 0.0001231692607 | G188: =_xlfn.NORM.S.INV(RAND())*Inputs!$C$14/SQRT(240) -> -0.002421444938 | H188: -0.002135516596 | I188: 99.0649678 | J188: =IF(MOD(B188,(240/Inputs!$D$26))=0,I188,J187*(1+D188)) -> 100.2877275 | K188: =(J188/I188-1)*Inputs!$D$18 -> 0.0123430078 | L188: 0 | M188: =IF(MOD(B188,(240/Inputs!$D$26))=0,K188-K187,0) -> 0
B189: 179 | C189: 0 | D189: =(1+Inputs!$E$10)^(1/240)-1 -> 0.0001634329919 | E189: 102.9684161 | F189: =(1+Inputs!$E$11)^(1/240)-1 -> 0.0001231692607 | G189: =_xlfn.NORM.S.INV(RAND())*Inputs!$C$14/SQRT(240) -> 0.001029678491 | H189: 0.001316596003 | I189: 99.19539634 | J189: =IF(MOD(B189,(240/Inputs!$D$26))=0,I189,J188*(1+D189)) -> 100.3041178 | K189: =(J189/I189-1)*Inputs!$D$18 -> 0.01117714626 | L189: 0 | M189: =IF(MOD(B189,(240/Inputs!$D$26))=0,K189-K188,0) -> 0
B190: 180 | C190: 1 | D190: =(1+Inputs!$E$10)^(1/240)-1 -> 0.0001634329919 | E190: 102.9852445 | F190: =(1+Inputs!$E$11)^(1/240)-1 -> 0.0001231692607 | G190: =_xlfn.NORM.S.INV(RAND())*Inputs!$C$14/SQRT(240) -> 0.003291323058 | H190: 0.003578888808 | I190: 99.55040563 | J190: =IF(MOD(B190,(240/Inputs!$D$26))=0,I190,J189*(1+D190)) -> 100.3205108 | K190: =(J190/I190-1)*Inputs!$D$18 -> 0.007735831475 | L190: 0.007735831475 | M190: =IF(MOD(B190,(240/Inputs!$D$26))=0,K190-K189,0) -> 0
B191: 181 | C191: 0 | D191: =(1+Inputs!$E$10)^(1/240)-1 -> 0.0001634329919 | E191: 103.0020757 | F191: =(1+Inputs!$E$11)^(1/240)-1 -> 0.0001231692607 | G191: =_xlfn.NORM.S.INV(RAND())*Inputs!$C$14/SQRT(240) -> 0.01037385533 | H191: 0.01066345109 | I191: 100.6119565 | J191: =IF(MOD(B191,(240/Inputs!$D$26))=0,I191,J190*(1+D191)) -> 100.3369065 | K191: =(J191/I191-1)*Inputs!$D$18 -> -0.002733770903 | L191: 0 | M191: =IF(MOD(B191,(240/Inputs!$D$26))=0,K191-K190,0) -> 0
B192: 182 | C192: 0 | D192: =(1+Inputs!$E$10)^(1/240)-1 -> 0.0001634329919 | E192: 103.0189096 | F192: =(1+Inputs!$E$11)^(1/240)-1 -> 0.0001231692607 | G192: =_xlfn.NORM.S.INV(RAND())*Inputs!$C$14/SQRT(240) -> 0.00584133497 | H192: 0.00612963161 | I192: 101.2286707 | J192: =IF(MOD(B192,(240/Inputs!$D$26))=0,I192,J191*(1+D192)) -> 100.3533048 | K192: =(J192/I192-1)*Inputs!$D$18 -> -0.008647410866 | L192: 0 | M192: =IF(MOD(B192,(240/Inputs!$D$26))=0,K192-K191,0) -> 0
B193: 183 | C193: 0 | D193: =(1+Inputs!$E$10)^(1/240)-1 -> 0.0001634329919 | E193: 103.0357463 | F193: =(1+Inputs!$E$11)^(1/240)-1 -> 0.0001231692607 | G193: =_xlfn.NORM.S.INV(RAND())*Inputs!$C$14/SQRT(240) -> 0.001132943324 | H193: 0.001419890433 | I193: 101.3724044 | J193: =IF(MOD(B193,(240/Inputs!$D$26))=0,I193,J192*(1+D193)) -> 100.3697059 | K193: =(J193/I193-1)*Inputs!$D$18 -> -0.009891237107 | L193: 0 | M193: =IF(MOD(B193,(240/Inputs!$D$26))=0,K193-K192,0) -> 0
B194: 184 | C194: 0 | D194: =(1+Inputs!$E$10)^(1/240)-1 -> 0.0001634329919 | E194: 103.0525858 | F194: =(1+Inputs!$E$11)^(1/240)-1 -> 0.0001231692607 | G194: =_xlfn.NORM.S.INV(RAND())*Inputs!$C$14/SQRT(240) -> 0.006856925485 | H194: 0.007145513216 | I194: 102.0967622 | J194: =IF(MOD(B194,(240/Inputs!$D$26))=0,I194,J193*(1+D194)) -> 100.3861096 | K194: =(J194/I194-1)*Inputs!$D$18 -> -0.01675520932 | L194: 0 | M194: =IF(MOD(B194,(240/Inputs!$D$26))=0,K194-K193,0) -> 0
B195: 185 | C195: 0 | D195: =(1+Inputs!$E$10)^(1/240)-1 -> 0.0001634329919 | E195: 103.069428 | F195: =(1+Inputs!$E$11)^(1/240)-1 -> 0.0001231692607 | G195: =_xlfn.NORM.S.INV(RAND())*Inputs!$C$14/SQRT(240) -> -0.004297223857 | H195: -0.004011833155 | I195: 101.687167 | J195: =IF(MOD(B195,(240/Inputs!$D$26))=0,I195,J194*(1+D195)) -> 100.402516 | K195: =(J195/I195-1)*Inputs!$D$18 -> -0.01263336447 | L195: 0 | M195: =IF(MOD(B195,(240/Inputs!$D$26))=0,K195-K194,0) -> 0
B196: 186 | C196: 0 | D196: =(1+Inputs!$E$10)^(1/240)-1 -> 0.0001634329919 | E196: 103.0862729 | F196: =(1+Inputs!$E$11)^(1/240)-1 -> 0.0001231692607 | G196: =_xlfn.NORM.S.INV(RAND())*Inputs!$C$14/SQRT(240) -> -0.002537470343 | H196: -0.002251575257 | I196: 101.4582107 | J196: =IF(MOD(B196,(240/Inputs!$D$26))=0,I196,J195*(1+D196)) -> 100.4189251 | K196: =(J196/I196-1)*Inputs!$D$18 -> -0.01024348491 | L196: 0 | M196: =IF(MOD(B196,(240/Inputs!$D$26))=0,K196-K195,0) -> 0
B197: 187 | C197: 0 | D197: =(1+Inputs!$E$10)^(1/240)-1 -> 0.0001634329919 | E197: 103.1031206 | F197: =(1+Inputs!$E$11)^(1/240)-1 -> 0.0001231692607 | G197: =_xlfn.NORM.S.INV(RAND())*Inputs!$C$14/SQRT(240) -> 0.005559180478 | H197: 0.005847396246 | I197: 102.0514771 | J197: =IF(MOD(B197,(240/Inputs!$D$26))=0,I197,J196*(1+D197)) -> 100.4353369 | K197: =(J197/I197-1)*Inputs!$D$18 -> -0.01583651988 | L197: 0 | M197: =IF(MOD(B197,(240/Inputs!$D$26))=0,K197-K196,0) -> 0
B198: 188 | C198: 0 | D198: =(1+Inputs!$E$10)^(1/240)-1 -> 0.0001634329919 | E198: 103.1199711 | F198: =(1+Inputs!$E$11)^(1/240)-1 -> 0.0001231692607 | G198: =_xlfn.NORM.S.INV(RAND())*Inputs!$C$14/SQRT(240) -> 0.005904480009 | H198: 0.006192794747 | I198: 102.6834609 | J198: =IF(MOD(B198,(240/Inputs!$D$26))=0,I198,J197*(1+D198)) -> 100.4517513 | K198: =(J198/I198-1)*Inputs!$D$18 -> -0.02173387641 | L198: 0 | M198: =IF(MOD(B198,(240/Inputs!$D$26))=0,K198-K197,0) -> 0
B199: 189 | C199: 0 | D199: =(1+Inputs!$E$10)^(1/240)-1 -> 0.0001634329919 | E199: 103.1368243 | F199: =(1+Inputs!$E$11)^(1/240)-1 -> 0.0001231692607 | G199: =_xlfn.NORM.S.INV(RAND())*Inputs!$C$14/SQRT(240) -> 0.004942100733 | H199: 0.005230139632 | I199: 103.2205098 | J199: =IF(MOD(B199,(240/Inputs!$D$26))=0,I199,J198*(1+D199)) -> 100.4681684 | K199: =(J199/I199-1)*Inputs!$D$18 -> -0.02666467511 | L199: 0 | M199: =IF(MOD(B199,(240/Inputs!$D$26))=0,K199-K198,0) -> 0
B200: 190 | C200: 0 | D200: =(1+Inputs!$E$10)^(1/240)-1 -> 0.0001634329919 | E200: 103.1536802 | F200: =(1+Inputs!$E$11)^(1/240)-1 -> 0.0001231692607 | G200: =_xlfn.NORM.S.INV(RAND())*Inputs!$C$14/SQRT(240) -> 0.001008115959 | H200: 0.00129502729 | I200: 103.3541832 | J200: =IF(MOD(B200,(240/Inputs!$D$26))=0,I200,J199*(1+D200)) -> 100.4845882 | K200: =(J200/I200-1)*Inputs!$D$18 -> -0.02776467129 | L200: 0 | M200: =IF(MOD(B200,(240/Inputs!$D$26))=0,K200-K199,0) -> 0
B201: 191 | C201: 0 | D201: =(1+Inputs!$E$10)^(1/240)-1 -> 0.0001634329919 | E201: 103.1705389 | F201: =(1+Inputs!$E$11)^(1/240)-1 -> 0.0001231692607 | G201: =_xlfn.NORM.S.INV(RAND())*Inputs!$C$14/SQRT(240) -> 0.007958981744 | H201: 0.008247885349 | I201: 104.2066366 | J201: =IF(MOD(B201,(240/Inputs!$D$26))=0,I201,J200*(1+D201)) -> 100.5010107 | K201: =(J201/I201-1)*Inputs!$D$18 -> -0.03556036351 | L201: 0 | M201: =IF(MOD(B201,(240/Inputs!$D$26))=0,K201-K200,0) -> 0
B202: 192 | C202: 0 | D202: =(1+Inputs!$E$10)^(1/240)-1 -> 0.0001634329919 | E202: 103.1874004 | F202: =(1+Inputs!$E$11)^(1/240)-1 -> 0.0001231692607 | G202: =_xlfn.NORM.S.INV(RAND())*Inputs!$C$14/SQRT(240) -> -0.002369081605 | H202: -0.002083138254 | I202: 103.9895598 | J202: =IF(MOD(B202,(240/Inputs!$D$26))=0,I202,J201*(1+D202)) -> 100.5174359 | K202: =(J202/I202-1)*Inputs!$D$18 -> -0.03338915823 | L202: 0 | M202: =IF(MOD(B202,(240/Inputs!$D$26))=0,K202-K201,0) -> 0
... 48 more rows

Sheet Simulations - do not touch (hidden)
A1: Simulations - Do Not Touch
CY2: =PERCENTILE(B4:CW4,0.5) -> 0.05412796661 | CZ2: >2% | DA2: =COUNTIF($B$4:$CW$4,">2%")/100 -> 0.98
CY3: =PERCENTILE(B4:CW4,0.9) -> 0.08774590571 | CZ3: >4% | DA3: =COUNTIF($B$4:$CW$4,">4%")/100 -> 0.69
A4: Max(Absolute Value) | B4: =MAX(ABS(B10:B250)) -> 0.09381721354 | C4: =MAX(ABS(C10:C250)) -> 0.06732269596 | D4: =MAX(ABS(D10:D250)) -> 0.06776839005 | E4: =MAX(ABS(E10:E250)) -> 0.08101571898 | F4: =MAX(ABS(F10:F250)) -> 0.03185190706 | G4: =MAX(ABS(G10:G250)) -> 0.05308622097 | H4: =MAX(ABS(H10:H250)) -> 0.05729709676 | I4: =MAX(ABS(I10:I250)) -> 0.05798199977 | J4: =MAX(ABS(J10:J250)) -> 0.06013377126 | K4: =MAX(ABS(K10:K250)) -> 0.03418143317 | L4: =MAX(ABS(L10:L250)) -> 0.02562751505 | M4: =MAX(ABS(M10:M250)) -> 0.0478009907 | N4: =MAX(ABS(N10:N250)) -> 0.0906960783 | O4: =MAX(ABS(O10:O250)) -> 0.07884195064 | P4: =MAX(ABS(P10:P250)) -> 0.06090374744 | Q4: =MAX(ABS(Q10:Q250)) -> 0.03184045754 | R4: =MAX(ABS(R10:R250)) -> 0.03838050264 | S4: =MAX(ABS(S10:S250)) -> 0.05470070018 | T4: =MAX(ABS(T10:T250)) -> 0.08175952816 | U4: =MAX(ABS(U10:U250)) -> 0.07586529472 | V4: =MAX(ABS(V10:V250)) -> 0.06660161421 | W4: =MAX(ABS(W10:W250)) -> 0.05916711399 | X4: =MAX(ABS(X10:X250)) -> 0.04064894261 | Y4: =MAX(ABS(Y10:Y250)) -> 0.03651039891 | Z4: =MAX(ABS(Z10:Z250)) -> 0.01581090335 | AA4: =MAX(ABS(AA10:AA250)) -> 0.06227827515 | AB4: =MAX(ABS(AB10:AB250)) -> 0.1193585892 | AC4: =MAX(ABS(AC10:AC250)) -> 0.05808277674 | AD4: =MAX(ABS(AD10:AD250)) -> 0.06666086997 | AE4: =MAX(ABS(AE10:AE250)) -> 0.09148554222 | AF4: =MAX(ABS(AF10:AF250)) -> 0.05474616301 | AG4: =MAX(ABS(AG10:AG250)) -> 0.05355523305 | AH4: =MAX(ABS(AH10:AH250)) -> 0.1169848259 | AI4: =MAX(ABS(AI10:AI250)) -> 0.04639971972 | AJ4: =MAX(ABS(AJ10:AJ250)) -> 0.07003646987 | AK4: =MAX(ABS(AK10:AK250)) -> 0.02732010617 | AL4: =MAX(ABS(AL10:AL250)) -> 0.03359369573 | AM4: =MAX(ABS(AM10:AM250)) -> 0.04906215764 | AN4: =MAX(ABS(AN10:AN250)) -> 0.0673038653 | AO4: =MAX(ABS(AO10:AO250)) -> 0.09061146083 | AP4: =MAX(ABS(AP10:AP250)) -> 0.03798764041 | AQ4: =MAX(ABS(AQ10:AQ250)) -> 0.08619016679 | AR4: =MAX(ABS(AR10:AR250)) -> 0.06067094025 | AS4: =MAX(ABS(AS10:AS250)) -> 0.04494205443 | AT4: =MAX(ABS(AT10:AT250)) -> 0.06988859539 | AU4: =MAX(ABS(AU10:AU250)) -> 0.0874275107 | AV4: =MAX(ABS(AV10:AV250)) -> 0.06244300523 | AW4: =MAX(ABS(AW10:AW250)) -> 0.05038369979 | AX4: =MAX(ABS(AX10:AX250)) -> 0.0495014596 | AY4: =MAX(ABS(AY10:AY250)) -> 0.1313883945 | AZ4: =MAX(ABS(AZ10:AZ250)) -> 0.03301922266 | BA4: =MAX(ABS(BA10:BA250)) -> 0.06487203605 | BB4: =MAX(ABS(BB10:BB250)) -> 0.03318071881 | BC4: =MAX(ABS(BC10:BC250)) -> 0.04261677546 | BD4: =MAX(ABS(BD10:BD250)) -> 0.02287006998 | BE4: =MAX(ABS(BE10:BE250)) -> 0.02909581908 | BF4: =MAX(ABS(BF10:BF250)) -> 0.08336522079 | BG4: =MAX(ABS(BG10:BG250)) -> 0.03349666337 | BH4: =MAX(ABS(BH10:BH250)) -> 0.02115157981 | BI4: =MAX(ABS(BI10:BI250)) -> 0.04164401612 | BJ4: =MAX(ABS(BJ10:BJ250)) -> 0.02528713649 | BK4: =MAX(ABS(BK10:BK250)) -> 0.07224344398 | BL4: =MAX(ABS(BL10:BL250)) -> 0.1000831885 | BM4: =MAX(ABS(BM10:BM250)) -> 0.04042399831 | BN4: =MAX(ABS(BN10:BN250)) -> 0.04251727866 | BO4: =MAX(ABS(BO10:BO250)) -> 0.02216782875 | BP4: =MAX(ABS(BP10:BP250)) -> 0.0251339829 | BQ4: =MAX(ABS(BQ10:BQ250)) -> 0.03437113037 | BR4: =MAX(ABS(BR10:BR250)) -> 0.02141506128 | BS4: =MAX(ABS(BS10:BS250)) -> 0.05230808263 | BT4: =MAX(ABS(BT10:BT250)) -> 0.1047559811 | BU4: =MAX(ABS(BU10:BU250)) -> 0.04297226055 | BV4: =MAX(ABS(BV10:BV250)) -> 0.06314332238 | BW4: =MAX(ABS(BW10:BW250)) -> 0.03782716004 | BX4: =MAX(ABS(BX10:BX250)) -> 0.01062183556 | BY4: =MAX(ABS(BY10:BY250)) -> 0.06072219367 | BZ4: =MAX(ABS(BZ10:BZ250)) -> 0.05263986544 | CA4: =MAX(ABS(CA10:CA250)) -> 0.06869503504 | CB4: =MAX(ABS(CB10:CB250)) -> 0.02872901409 | CC4: =MAX(ABS(CC10:CC250)) -> 0.06275504296 | CD4: =MAX(ABS(CD10:CD250)) -> 0.06354850993 | CE4: =MAX(ABS(CE10:CE250)) -> 0.05814489892 | CF4: =MAX(ABS(CF10:CF250)) -> 0.1135180031 | CG4: =MAX(ABS(CG10:CG250)) -> 0.07097906686 | CH4: =MAX(ABS(CH10:CH250)) -> 0.06835470575 | CI4: =MAX(ABS(CI10:CI250)) -> 0.03389166051 | CJ4: =MAX(ABS(CJ10:CJ250)) -> 0.05641786868 | CK4: =MAX(ABS(CK10:CK250)) -> 0.08082146847 | CL4: =MAX(ABS(CL10:CL250)) -> 0.02276418276 | CM4: =MAX(ABS(CM10:CM250)) -> 0.0355809645 | CN4: =MAX(ABS(CN10:CN250)) -> 0.03064924436 | CO4: =MAX(ABS(CO10:CO250)) -> 0.0752110369 | CP4: =MAX(ABS(CP10:CP250)) -> 0.0784194151 | CQ4: =MAX(ABS(CQ10:CQ250)) -> 0.07468066983 | CR4: =MAX(ABS(CR10:CR250)) -> 0.03805737734 | CS4: =MAX(ABS(CS10:CS250)) -> 0.03305025894 | CT4: =MAX(ABS(CT10:CT250)) -> 0.04310961905 | CU4: =MAX(ABS(CU10:CU250)) -> 0.02831331679 | CV4: =MAX(ABS(CV10:CV250)) -> 0.04817512319 | CW4: =MAX(ABS(CW10:CW250)) -> 0.04059072773 | CY4: =PERCENTILE(B4:CW4,0.99) -> 0.1194788873 | CZ4: >6% | DA4: =COUNTIF($B$4:$CW$4,">6%")/100 -> 0.42
A5: Breach "concerned" level | B5: =IF(B4>Inputs!$H$35,1,0) -> 1 | C5: =IF(C4>Inputs!$H$35,1,0) -> 1 | D5: =IF(D4>Inputs!$H$35,1,0) -> 1 | E5: =IF(E4>Inputs!$H$35,1,0) -> 1 | F5: =IF(F4>Inputs!$H$35,1,0) -> 0 | G5: =IF(G4>Inputs!$H$35,1,0) -> 1 | H5: =IF(H4>Inputs!$H$35,1,0) -> 1 | I5: =IF(I4>Inputs!$H$35,1,0) -> 1 | J5: =IF(J4>Inputs!$H$35,1,0) -> 1 | K5: =IF(K4>Inputs!$H$35,1,0) -> 0 | L5: =IF(L4>Inputs!$H$35,1,0) -> 0 | M5: =IF(M4>Inputs!$H$35,1,0) -> 0 | N5: =IF(N4>Inputs!$H$35,1,0) -> 1 | O5: =IF(O4>Inputs!$H$35,1,0) -> 1 | P5: =IF(P4>Inputs!$H$35,1,0) -> 1 | Q5: =IF(Q4>Inputs!$H$35,1,0) -> 0 | R5: =IF(R4>Inputs!$H$35,1,0) -> 0 | S5: =IF(S4>Inputs!$H$35,1,0) -> 1 | T5: =IF(T4>Inputs!$H$35,1,0) -> 1 | U5: =IF(U4>Inputs!$H$35,1,0) -> 1 | V5: =IF(V4>Inputs!$H$35,1,0) -> 1 | W5: =IF(W4>Inputs!$H$35,1,0) -> 1 | X5: =IF(X4>Inputs!$H$35,1,0) -> 0 | Y5: =IF(Y4>Inputs!$H$35,1,0) -> 0 | Z5: =IF(Z4>Inputs!$H$35,1,0) -> 0 | AA5: =IF(AA4>Inputs!$H$35,1,0) -> 1 | AB5: =IF(AB4>Inputs!$H$35,1,0) -> 1 | AC5: =IF(AC4>Inputs!$H$35,1,0) -> 1 | AD5: =IF(AD4>Inputs!$H$35,1,0) -> 1 | AE5: =IF(AE4>Inputs!$H$35,1,0) -> 1 | AF5: =IF(AF4>Inputs!$H$35,1,0) -> 1 | AG5: =IF(AG4>Inputs!$H$35,1,0) -> 1 | AH5: =IF(AH4>Inputs!$H$35,1,0) -> 1 | AI5: =IF(AI4>Inputs!$H$35,1,0) -> 0 | AJ5: =IF(AJ4>Inputs!$H$35,1,0) -> 1 | AK5: =IF(AK4>Inputs!$H$35,1,0) -> 0 | AL5: =IF(AL4>Inputs!$H$35,1,0) -> 0 | AM5: =IF(AM4>Inputs!$H$35,1,0) -> 0 | AN5: =IF(AN4>Inputs!$H$35,1,0) -> 1 | AO5: =IF(AO4>Inputs!$H$35,1,0) -> 1 | AP5: =IF(AP4>Inputs!$H$35,1,0) -> 0 | AQ5: =IF(AQ4>Inputs!$H$35,1,0) -> 1 | AR5: =IF(AR4>Inputs!$H$35,1,0) -> 1 | AS5: =IF(AS4>Inputs!$H$35,1,0) -> 0 | AT5: =IF(AT4>Inputs!$H$35,1,0) -> 1 | AU5: =IF(AU4>Inputs!$H$35,1,0) -> 1 | AV5: =IF(AV4>Inputs!$H$35,1,0) -> 1 | AW5: =IF(AW4>Inputs!$H$35,1,0) -> 1 | AX5: =IF(AX4>Inputs!$H$35,1,0) -> 0 | AY5: =IF(AY4>Inputs!$H$35,1,0) -> 1 | AZ5: =IF(AZ4>Inputs!$H$35,1,0) -> 0 | BA5: =IF(BA4>Inputs!$H$35,1,0) -> 1 | BB5: =IF(BB4>Inputs!$H$35,1,0) -> 0 | BC5: =IF(BC4>Inputs!$H$35,1,0) -> 0 | BD5: =IF(BD4>Inputs!$H$35,1,0) -> 0 | BE5: =IF(BE4>Inputs!$H$35,1,0) -> 0 | BF5: =IF(BF4>Inputs!$H$35,1,0) -> 1 | BG5: =IF(BG4>Inputs!$H$35,1,0) -> 0 | BH5: =IF(BH4>Inputs!$H$35,1,0) -> 0 | BI5: =IF(BI4>Inputs!$H$35,1,0) -> 0 | BJ5: =IF(BJ4>Inputs!$H$35,1,0) -> 0 | BK5: =IF(BK4>Inputs!$H$35,1,0) -> 1 | BL5: =IF(BL4>Inputs!$H$35,1,0) -> 1 | BM5: =IF(BM4>Inputs!$H$35,1,0) -> 0 | BN5: =IF(BN4>Inputs!$H$35,1,0) -> 0 | BO5: =IF(BO4>Inputs!$H$35,1,0) -> 0 | BP5: =IF(BP4>Inputs!$H$35,1,0) -> 0 | BQ5: =IF(BQ4>Inputs!$H$35,1,0) -> 0 | BR5: =IF(BR4>Inputs!$H$35,1,0) -> 0 | BS5: =IF(BS4>Inputs!$H$35,1,0) -> 1 | BT5: =IF(BT4>Inputs!$H$35,1,0) -> 1 | BU5: =IF(BU4>Inputs!$H$35,1,0) -> 0 | BV5: =IF(BV4>Inputs!$H$35,1,0) -> 1 | BW5: =IF(BW4>Inputs!$H$35,1,0) -> 0 | BX5: =IF(BX4>Inputs!$H$35,1,0) -> 0 | BY5: =IF(BY4>Inputs!$H$35,1,0) -> 1 | BZ5: =IF(BZ4>Inputs!$H$35,1,0) -> 1 | CA5: =IF(CA4>Inputs!$H$35,1,0) -> 1 | CB5: =IF(CB4>Inputs!$H$35,1,0) -> 0 | CC5: =IF(CC4>Inputs!$H$35,1,0) -> 1 | CD5: =IF(CD4>Inputs!$H$35,1,0) -> 1 | CE5: =IF(CE4>Inputs!$H$35,1,0) -> 1 | CF5: =IF(CF4>Inputs!$H$35,1,0) -> 1 | CG5: =IF(CG4>Inputs!$H$35,1,0) -> 1 | CH5: =IF(CH4>Inputs!$H$35,1,0) -> 1 | CI5: =IF(CI4>Inputs!$H$35,1,0) -> 0 | CJ5: =IF(CJ4>Inputs!$H$35,1,0) -> 1 | CK5: =IF(CK4>Inputs!$H$35,1,0) -> 1 | CL5: =IF(CL4>Inputs!$H$35,1,0) -> 0 | CM5: =IF(CM4>Inputs!$H$35,1,0) -> 0 | CN5: =IF(CN4>Inputs!$H$35,1,0) -> 0 | CO5: =IF(CO4>Inputs!$H$35,1,0) -> 1 | CP5: =IF(CP4>Inputs!$H$35,1,0) -> 1 | CQ5: =IF(CQ4>Inputs!$H$35,1,0) -> 1 | CR5: =IF(CR4>Inputs!$H$35,1,0) -> 0 | CS5: =IF(CS4>Inputs!$H$35,1,0) -> 0 | CT5: =IF(CT4>Inputs!$H$35,1,0) -> 0 | CU5: =IF(CU4>Inputs!$H$35,1,0) -> 0 | CV5: =IF(CV4>Inputs!$H$35,1,0) -> 0 | CW5: =IF(CW4>Inputs!$H$35,1,0) -> 0 | CY5: =SUM(B5:CW5) -> 55 | CZ5: >8% | DA5: =COUNTIF($B$4:$CW$4,">8%")/100 -> 0.16
A6: Breach "highly concerned" level | B6: =IF(B4>Inputs!$H$36,1,0) -> 0 | C6: =IF(C4>Inputs!$H$36,1,0) -> 0 | D6: =IF(D4>Inputs!$H$36,1,0) -> 0 | E6: =IF(E4>Inputs!$H$36,1,0) -> 0 | F6: =IF(F4>Inputs!$H$36,1,0) -> 0 | G6: =IF(G4>Inputs!$H$36,1,0) -> 0 | H6: =IF(H4>Inputs!$H$36,1,0) -> 0 | I6: =IF(I4>Inputs!$H$36,1,0) -> 0 | J6: =IF(J4>Inputs!$H$36,1,0) -> 0 | K6: =IF(K4>Inputs!$H$36,1,0) -> 0 | L6: =IF(L4>Inputs!$H$36,1,0) -> 0 | M6: =IF(M4>Inputs!$H$36,1,0) -> 0 | N6: =IF(N4>Inputs!$H$36,1,0) -> 0 | O6: =IF(O4>Inputs!$H$36,1,0) -> 0 | P6: =IF(P4>Inputs!$H$36,1,0) -> 0 | Q6: =IF(Q4>Inputs!$H$36,1,0) -> 0 | R6: =IF(R4>Inputs!$H$36,1,0) -> 0 | S6: =IF(S4>Inputs!$H$36,1,0) -> 0 | T6: =IF(T4>Inputs!$H$36,1,0) -> 0 | U6: =IF(U4>Inputs!$H$36,1,0) -> 0 | V6: =IF(V4>Inputs!$H$36,1,0) -> 0 | W6: =IF(W4>Inputs!$H$36,1,0) -> 0 | X6: =IF(X4>Inputs!$H$36,1,0) -> 0 | Y6: =IF(Y4>Inputs!$H$36,1,0) -> 0 | Z6: =IF(Z4>Inputs!$H$36,1,0) -> 0 | AA6: =IF(AA4>Inputs!$H$36,1,0) -> 0 | AB6: =IF(AB4>Inputs!$H$36,1,0) -> 1 | AC6: =IF(AC4>Inputs!$H$36,1,0) -> 0 | AD6: =IF(AD4>Inputs!$H$36,1,0) -> 0 | AE6: =IF(AE4>Inputs!$H$36,1,0) -> 0 | AF6: =IF(AF4>Inputs!$H$36,1,0) -> 0 | AG6: =IF(AG4>Inputs!$H$36,1,0) -> 0 | AH6: =IF(AH4>Inputs!$H$36,1,0) -> 1 | AI6: =IF(AI4>Inputs!$H$36,1,0) -> 0 | AJ6: =IF(AJ4>Inputs!$H$36,1,0) -> 0 | AK6: =IF(AK4>Inputs!$H$36,1,0) -> 0 | AL6: =IF(AL4>Inputs!$H$36,1,0) -> 0 | AM6: =IF(AM4>Inputs!$H$36,1,0) -> 0 | AN6: =IF(AN4>Inputs!$H$36,1,0) -> 0 | AO6: =IF(AO4>Inputs!$H$36,1,0) -> 0 | AP6: =IF(AP4>Inputs!$H$36,1,0) -> 0 | AQ6: =IF(AQ4>Inputs!$H$36,1,0) -> 0 | AR6: =IF(AR4>Inputs!$H$36,1,0) -> 0 | AS6: =IF(AS4>Inputs!$H$36,1,0) -> 0 | AT6: =IF(AT4>Inputs!$H$36,1,0) -> 0 | AU6: =IF(AU4>Inputs!$H$36,1,0) -> 0 | AV6: =IF(AV4>Inputs!$H$36,1,0) -> 0 | AW6: =IF(AW4>Inputs!$H$36,1,0) -> 0 | AX6: =IF(AX4>Inputs!$H$36,1,0) -> 0 | AY6: =IF(AY4>Inputs!$H$36,1,0) -> 1 | AZ6: =IF(AZ4>Inputs!$H$36,1,0) -> 0 | BA6: =IF(BA4>Inputs!$H$36,1,0) -> 0 | BB6: =IF(BB4>Inputs!$H$36,1,0) -> 0 | BC6: =IF(BC4>Inputs!$H$36,1,0) -> 0 | BD6: =IF(BD4>Inputs!$H$36,1,0) -> 0 | BE6: =IF(BE4>Inputs!$H$36,1,0) -> 0 | BF6: =IF(BF4>Inputs!$H$36,1,0) -> 0 | BG6: =IF(BG4>Inputs!$H$36,1,0) -> 0 | BH6: =IF(BH4>Inputs!$H$36,1,0) -> 0 | BI6: =IF(BI4>Inputs!$H$36,1,0) -> 0 | BJ6: =IF(BJ4>Inputs!$H$36,1,0) -> 0 | BK6: =IF(BK4>Inputs!$H$36,1,0) -> 0 | BL6: =IF(BL4>Inputs!$H$36,1,0) -> 1 | BM6: =IF(BM4>Inputs!$H$36,1,0) -> 0 | BN6: =IF(BN4>Inputs!$H$36,1,0) -> 0 | BO6: =IF(BO4>Inputs!$H$36,1,0) -> 0 | BP6: =IF(BP4>Inputs!$H$36,1,0) -> 0 | BQ6: =IF(BQ4>Inputs!$H$36,1,0) -> 0 | BR6: =IF(BR4>Inputs!$H$36,1,0) -> 0 | BS6: =IF(BS4>Inputs!$H$36,1,0) -> 0 | BT6: =IF(BT4>Inputs!$H$36,1,0) -> 1 | BU6: =IF(BU4>Inputs!$H$36,1,0) -> 0 | BV6: =IF(BV4>Inputs!$H$36,1,0) -> 0 | BW6: =IF(BW4>Inputs!$H$36,1,0) -> 0 | BX6: =IF(BX4>Inputs!$H$36,1,0) -> 0 | BY6: =IF(BY4>Inputs!$H$36,1,0) -> 0 | BZ6: =IF(BZ4>Inputs!$H$36,1,0) -> 0 | CA6: =IF(CA4>Inputs!$H$36,1,0) -> 0 | CB6: =IF(CB4>Inputs!$H$36,1,0) -> 0 | CC6: =IF(CC4>Inputs!$H$36,1,0) -> 0 | CD6: =IF(CD4>Inputs!$H$36,1,0) -> 0 | CE6: =IF(CE4>Inputs!$H$36,1,0) -> 0 | CF6: =IF(CF4>Inputs!$H$36,1,0) -> 1 | CG6: =IF(CG4>Inputs!$H$36,1,0) -> 0 | CH6: =IF(CH4>Inputs!$H$36,1,0) -> 0 | CI6: =IF(CI4>Inputs!$H$36,1,0) -> 0 | CJ6: =IF(CJ4>Inputs!$H$36,1,0) -> 0 | CK6: =IF(CK4>Inputs!$H$36,1,0) -> 0 | CL6: =IF(CL4>Inputs!$H$36,1,0) -> 0 | CM6: =IF(CM4>Inputs!$H$36,1,0) -> 0 | CN6: =IF(CN4>Inputs!$H$36,1,0) -> 0 | CO6: =IF(CO4>Inputs!$H$36,1,0) -> 0 | CP6: =IF(CP4>Inputs!$H$36,1,0) -> 0 | CQ6: =IF(CQ4>Inputs!$H$36,1,0) -> 0 | CR6: =IF(CR4>Inputs!$H$36,1,0) -> 0 | CS6: =IF(CS4>Inputs!$H$36,1,0) -> 0 | CT6: =IF(CT4>Inputs!$H$36,1,0) -> 0 | CU6: =IF(CU4>Inputs!$H$36,1,0) -> 0 | CV6: =IF(CV4>Inputs!$H$36,1,0) -> 0 | CW6: =IF(CW4>Inputs!$H$36,1,0) -> 0 | CY6: =SUM(B6:CW6) -> 6 | CZ6: >10% | DA6: =COUNTIF($B$4:$CW$4,">10%")/100 -> 0.06
B10: 0 | C10: 0 | D10: 0 | E10: 0 | F10: 0 | G10: 0 | H10: 0 | I10: 0 | J10: 0 | K10: 0 | L10: 0 | M10: 0 | N10: 0 | O10: 0 | P10: 0 | Q10: 0 | R10: 0 | S10: 0 | T10: 0 | U10: 0 | V10: 0 | W10: 0 | X10: 0 | Y10: 0 | Z10: 0 | AA10: 0 | AB10: 0 | AC10: 0 | AD10: 0 | AE10: 0 | AF10: 0 | AG10: 0 | AH10: 0 | AI10: 0 | AJ10: 0 | AK10: 0 | AL10: 0 | AM10: 0 | AN10: 0 | AO10: 0 | AP10: 0 | AQ10: 0 | AR10: 0 | AS10: 0 | AT10: 0 | AU10: 0 | AV10: 0 | AW10: 0 | AX10: 0 | AY10: 0 | AZ10: 0 | BA10: 0 | BB10: 0 | BC10: 0 | BD10: 0 | BE10: 0 | BF10: 0 | BG10: 0 | BH10: 0 | BI10: 0 | BJ10: 0 | BK10: 0 | BL10: 0 | BM10: 0 | BN10: 0 | BO10: 0 | BP10: 0 | BQ10: 0 | BR10: 0 | BS10: 0 | BT10: 0 | BU10: 0 | BV10: 0 | BW10: 0 | BX10: 0 | BY10: 0 | BZ10: 0 | CA10: 0 | CB10: 0 | CC10: 0 | CD10: 0 | CE10: 0 | CF10: 0 | CG10: 0 | CH10: 0 | CI10: 0 | CJ10: 0 | CK10: 0 | CL10: 0 | CM10: 0 | CN10: 0 | CO10: 0 | CP10: 0 | CQ10: 0 | CR10: 0 | CS10: 0 | CT10: 0 | CU10: 0 | CV10: 0 | CW10: 0
B11: 0 | C11: 0 | D11: 0 | E11: 0 | F11: 0 | G11: 0 | H11: 0 | I11: 0 | J11: 0 | K11: 0 | L11: 0 | M11: 0 | N11: 0 | O11: 0 | P11: 0 | Q11: 0 | R11: 0 | S11: 0 | T11: 0 | U11: 0 | V11: 0 | W11: 0 | X11: 0 | Y11: 0 | Z11: 0 | AA11: 0 | AB11: 0 | AC11: 0 | AD11: 0 | AE11: 0 | AF11: 0 | AG11: 0 | AH11: 0 | AI11: 0 | AJ11: 0 | AK11: 0 | AL11: 0 | AM11: 0 | AN11: 0 | AO11: 0 | AP11: 0 | AQ11: 0 | AR11: 0 | AS11: 0 | AT11: 0 | AU11: 0 | AV11: 0 | AW11: 0 | AX11: 0 | AY11: 0 | AZ11: 0 | BA11: 0 | BB11: 0 | BC11: 0 | BD11: 0 | BE11: 0 | BF11: 0 | BG11: 0 | BH11: 0 | BI11: 0 | BJ11: 0 | BK11: 0 | BL11: 0 | BM11: 0 | BN11: 0 | BO11: 0 | BP11: 0 | BQ11: 0 | BR11: 0 | BS11: 0 | BT11: 0 | BU11: 0 | BV11: 0 | BW11: 0 | BX11: 0 | BY11: 0 | BZ11: 0 | CA11: 0 | CB11: 0 | CC11: 0 | CD11: 0 | CE11: 0 | CF11: 0 | CG11: 0 | CH11: 0 | CI11: 0 | CJ11: 0 | CK11: 0 | CL11: 0 | CM11: 0 | CN11: 0 | CO11: 0 | CP11: 0 | CQ11: 0 | CR11: 0 | CS11: 0 | CT11: 0 | CU11: 0 | CV11: 0 | CW11: 0
B12: 0 | C12: 0 | D12: 0 | E12: 0 | F12: 0 | G12: 0 | H12: 0 | I12: 0 | J12: 0 | K12: 0 | L12: 0 | M12: 0 | N12: 0 | O12: 0 | P12: 0 | Q12: 0 | R12: 0 | S12: 0 | T12: 0 | U12: 0 | V12: 0 | W12: 0 | X12: 0 | Y12: 0 | Z12: 0 | AA12: 0 | AB12: 0 | AC12: 0 | AD12: 0 | AE12: 0 | AF12: 0 | AG12: 0 | AH12: 0 | AI12: 0 | AJ12: 0 | AK12: 0 | AL12: 0 | AM12: 0 | AN12: 0 | AO12: 0 | AP12: 0 | AQ12: 0 | AR12: 0 | AS12: 0 | AT12: 0 | AU12: 0 | AV12: 0 | AW12: 0 | AX12: 0 | AY12: 0 | AZ12: 0 | BA12: 0 | BB12: 0 | BC12: 0 | BD12: 0 | BE12: 0 | BF12: 0 | BG12: 0 | BH12: 0 | BI12: 0 | BJ12: 0 | BK12: 0 | BL12: 0 | BM12: 0 | BN12: 0 | BO12: 0 | BP12: 0 | BQ12: 0 | BR12: 0 | BS12: 0 | BT12: 0 | BU12: 0 | BV12: 0 | BW12: 0 | BX12: 0 | BY12: 0 | BZ12: 0 | CA12: 0 | CB12: 0 | CC12: 0 | CD12: 0 | CE12: 0 | CF12: 0 | CG12: 0 | CH12: 0 | CI12: 0 | CJ12: 0 | CK12: 0 | CL12: 0 | CM12: 0 | CN12: 0 | CO12: 0 | CP12: 0 | CQ12: 0 | CR12: 0 | CS12: 0 | CT12: 0 | CU12: 0 | CV12: 0 | CW12: 0
B13: 0 | C13: 0 | D13: 0 | E13: 0 | F13: 0 | G13: 0 | H13: 0 | I13: 0 | J13: 0 | K13: 0 | L13: 0 | M13: 0 | N13: 0 | O13: 0 | P13: 0 | Q13: 0 | R13: 0 | S13: 0 | T13: 0 | U13: 0 | V13: 0 | W13: 0 | X13: 0 | Y13: 0 | Z13: 0 | AA13: 0 | AB13: 0 | AC13: 0 | AD13: 0 | AE13: 0 | AF13: 0 | AG13: 0 | AH13: 0 | AI13: 0 | AJ13: 0 | AK13: 0 | AL13: 0 | AM13: 0 | AN13: 0 | AO13: 0 | AP13: 0 | AQ13: 0 | AR13: 0 | AS13: 0 | AT13: 0 | AU13: 0 | AV13: 0 | AW13: 0 | AX13: 0 | AY13: 0 | AZ13: 0 | BA13: 0 | BB13: 0 | BC13: 0 | BD13: 0 | BE13: 0 | BF13: 0 | BG13: 0 | BH13: 0 | BI13: 0 | BJ13: 0 | BK13: 0 | BL13: 0 | BM13: 0 | BN13: 0 | BO13: 0 | BP13: 0 | BQ13: 0 | BR13: 0 | BS13: 0 | BT13: 0 | BU13: 0 | BV13: 0 | BW13: 0 | BX13: 0 | BY13: 0 | BZ13: 0 | CA13: 0 | CB13: 0 | CC13: 0 | CD13: 0 | CE13: 0 | CF13: 0 | CG13: 0 | CH13: 0 | CI13: 0 | CJ13: 0 | CK13: 0 | CL13: 0 | CM13: 0 | CN13: 0 | CO13: 0 | CP13: 0 | CQ13: 0 | CR13: 0 | CS13: 0 | CT13: 0 | CU13: 0 | CV13: 0 | CW13: 0
B14: 0 | C14: 0 | D14: 0 | E14: 0 | F14: 0 | G14: 0 | H14: 0 | I14: 0 | J14: 0 | K14: 0 | L14: 0 | M14: 0 | N14: 0 | O14: 0 | P14: 0 | Q14: 0 | R14: 0 | S14: 0 | T14: 0 | U14: 0 | V14: 0 | W14: 0 | X14: 0 | Y14: 0 | Z14: 0 | AA14: 0 | AB14: 0 | AC14: 0 | AD14: 0 | AE14: 0 | AF14: 0 | AG14: 0 | AH14: 0 | AI14: 0 | AJ14: 0 | AK14: 0 | AL14: 0 | AM14: 0 | AN14: 0 | AO14: 0 | AP14: 0 | AQ14: 0 | AR14: 0 | AS14: 0 | AT14: 0 | AU14: 0 | AV14: 0 | AW14: 0 | AX14: 0 | AY14: 0 | AZ14: 0 | BA14: 0 | BB14: 0 | BC14: 0 | BD14: 0 | BE14: 0 | BF14: 0 | BG14: 0 | BH14: 0 | BI14: 0 | BJ14: 0 | BK14: 0 | BL14: 0 | BM14: 0 | BN14: 0 | BO14: 0 | BP14: 0 | BQ14: 0 | BR14: 0 | BS14: 0 | BT14: 0 | BU14: 0 | BV14: 0 | BW14: 0 | BX14: 0 | BY14: 0 | BZ14: 0 | CA14: 0 | CB14: 0 | CC14: 0 | CD14: 0 | CE14: 0 | CF14: 0 | CG14: 0 | CH14: 0 | CI14: 0 | CJ14: 0 | CK14: 0 | CL14: 0 | CM14: 0 | CN14: 0 | CO14: 0 | CP14: 0 | CQ14: 0 | CR14: 0 | CS14: 0 | CT14: 0 | CU14: 0 | CV14: 0 | CW14: 0
B15: 0 | C15: 0 | D15: 0 | E15: 0 | F15: 0 | G15: 0 | H15: 0 | I15: 0 | J15: 0 | K15: 0 | L15: 0 | M15: 0 | N15: 0 | O15: 0 | P15: 0 | Q15: 0 | R15: 0 | S15: 0 | T15: 0 | U15: 0 | V15: 0 | W15: 0 | X15: 0 | Y15: 0 | Z15: 0 | AA15: 0 | AB15: 0 | AC15: 0 | AD15: 0 | AE15: 0 | AF15: 0 | AG15: 0 | AH15: 0 | AI15: 0 | AJ15: 0 | AK15: 0 | AL15: 0 | AM15: 0 | AN15: 0 | AO15: 0 | AP15: 0 | AQ15: 0 | AR15: 0 | AS15: 0 | AT15: 0 | AU15: 0 | AV15: 0 | AW15: 0 | AX15: 0 | AY15: 0 | AZ15: 0 | BA15: 0 | BB15: 0 | BC15: 0 | BD15: 0 | BE15: 0 | BF15: 0 | BG15: 0 | BH15: 0 | BI15: 0 | BJ15: 0 | BK15: 0 | BL15: 0 | BM15: 0 | BN15: 0 | BO15: 0 | BP15: 0 | BQ15: 0 | BR15: 0 | BS15: 0 | BT15: 0 | BU15: 0 | BV15: 0 | BW15: 0 | BX15: 0 | BY15: 0 | BZ15: 0 | CA15: 0 | CB15: 0 | CC15: 0 | CD15: 0 | CE15: 0 | CF15: 0 | CG15: 0 | CH15: 0 | CI15: 0 | CJ15: 0 | CK15: 0 | CL15: 0 | CM15: 0 | CN15: 0 | CO15: 0 | CP15: 0 | CQ15: 0 | CR15: 0 | CS15: 0 | CT15: 0 | CU15: 0 | CV15: 0 | CW15: 0
B16: 0 | C16: 0 | D16: 0 | E16: 0 | F16: 0 | G16: 0 | H16: 0 | I16: 0 | J16: 0 | K16: 0 | L16: 0 | M16: 0 | N16: 0 | O16: 0 | P16: 0 | Q16: 0 | R16: 0 | S16: 0 | T16: 0 | U16: 0 | V16: 0 | W16: 0 | X16: 0 | Y16: 0 | Z16: 0 | AA16: 0 | AB16: 0 | AC16: 0 | AD16: 0 | AE16: 0 | AF16: 0 | AG16: 0 | AH16: 0 | AI16: 0 | AJ16: 0 | AK16: 0 | AL16: 0 | AM16: 0 | AN16: 0 | AO16: 0 | AP16: 0 | AQ16: 0 | AR16: 0 | AS16: 0 | AT16: 0 | AU16: 0 | AV16: 0 | AW16: 0 | AX16: 0 | AY16: 0 | AZ16: 0 | BA16: 0 | BB16: 0 | BC16: 0 | BD16: 0 | BE16: 0 | BF16: 0 | BG16: 0 | BH16: 0 | BI16: 0 | BJ16: 0 | BK16: 0 | BL16: 0 | BM16: 0 | BN16: 0 | BO16: 0 | BP16: 0 | BQ16: 0 | BR16: 0 | BS16: 0 | BT16: 0 | BU16: 0 | BV16: 0 | BW16: 0 | BX16: 0 | BY16: 0 | BZ16: 0 | CA16: 0 | CB16: 0 | CC16: 0 | CD16: 0 | CE16: 0 | CF16: 0 | CG16: 0 | CH16: 0 | CI16: 0 | CJ16: 0 | CK16: 0 | CL16: 0 | CM16: 0 | CN16: 0 | CO16: 0 | CP16: 0 | CQ16: 0 | CR16: 0 | CS16: 0 | CT16: 0 | CU16: 0 | CV16: 0 | CW16: 0
B17: 0 | C17: 0 | D17: 0 | E17: 0 | F17: 0 | G17: 0 | H17: 0 | I17: 0 | J17: 0 | K17: 0 | L17: 0 | M17: 0 | N17: 0 | O17: 0 | P17: 0 | Q17: 0 | R17: 0 | S17: 0 | T17: 0 | U17: 0 | V17: 0 | W17: 0 | X17: 0 | Y17: 0 | Z17: 0 | AA17: 0 | AB17: 0 | AC17: 0 | AD17: 0 | AE17: 0 | AF17: 0 | AG17: 0 | AH17: 0 | AI17: 0 | AJ17: 0 | AK17: 0 | AL17: 0 | AM17: 0 | AN17: 0 | AO17: 0 | AP17: 0 | AQ17: 0 | AR17: 0 | AS17: 0 | AT17: 0 | AU17: 0 | AV17: 0 | AW17: 0 | AX17: 0 | AY17: 0 | AZ17: 0 | BA17: 0 | BB17: 0 | BC17: 0 | BD17: 0 | BE17: 0 | BF17: 0 | BG17: 0 | BH17: 0 | BI17: 0 | BJ17: 0 | BK17: 0 | BL17: 0 | BM17: 0 | BN17: 0 | BO17: 0 | BP17: 0 | BQ17: 0 | BR17: 0 | BS17: 0 | BT17: 0 | BU17: 0 | BV17: 0 | BW17: 0 | BX17: 0 | BY17: 0 | BZ17: 0 | CA17: 0 | CB17: 0 | CC17: 0 | CD17: 0 | CE17: 0 | CF17: 0 | CG17: 0 | CH17: 0 | CI17: 0 | CJ17: 0 | CK17: 0 | CL17: 0 | CM17: 0 | CN17: 0 | CO17: 0 | CP17: 0 | CQ17: 0 | CR17: 0 | CS17: 0 | CT17: 0 | CU17: 0 | CV17: 0 | CW17: 0
B18: 0 | C18: 0 | D18: 0 | E18: 0 | F18: 0 | G18: 0 | H18: 0 | I18: 0 | J18: 0 | K18: 0 | L18: 0 | M18: 0 | N18: 0 | O18: 0 | P18: 0 | Q18: 0 | R18: 0 | S18: 0 | T18: 0 | U18: 0 | V18: 0 | W18: 0 | X18: 0 | Y18: 0 | Z18: 0 | AA18: 0 | AB18: 0 | AC18: 0 | AD18: 0 | AE18: 0 | AF18: 0 | AG18: 0 | AH18: 0 | AI18: 0 | AJ18: 0 | AK18: 0 | AL18: 0 | AM18: 0 | AN18: 0 | AO18: 0 | AP18: 0 | AQ18: 0 | AR18: 0 | AS18: 0 | AT18: 0 | AU18: 0 | AV18: 0 | AW18: 0 | AX18: 0 | AY18: 0 | AZ18: 0 | BA18: 0 | BB18: 0 | BC18: 0 | BD18: 0 | BE18: 0 | BF18: 0 | BG18: 0 | BH18: 0 | BI18: 0 | BJ18: 0 | BK18: 0 | BL18: 0 | BM18: 0 | BN18: 0 | BO18: 0 | BP18: 0 | BQ18: 0 | BR18: 0 | BS18: 0 | BT18: 0 | BU18: 0 | BV18: 0 | BW18: 0 | BX18: 0 | BY18: 0 | BZ18: 0 | CA18: 0 | CB18: 0 | CC18: 0 | CD18: 0 | CE18: 0 | CF18: 0 | CG18: 0 | CH18: 0 | CI18: 0 | CJ18: 0 | CK18: 0 | CL18: 0 | CM18: 0 | CN18: 0 | CO18: 0 | CP18: 0 | CQ18: 0 | CR18: 0 | CS18: 0 | CT18: 0 | CU18: 0 | CV18: 0 | CW18: 0
B19: 0 | C19: 0 | D19: 0 | E19: 0 | F19: 0 | G19: 0 | H19: 0 | I19: 0 | J19: 0 | K19: 0 | L19: 0 | M19: 0 | N19: 0 | O19: 0 | P19: 0 | Q19: 0 | R19: 0 | S19: 0 | T19: 0 | U19: 0 | V19: 0 | W19: 0 | X19: 0 | Y19: 0 | Z19: 0 | AA19: 0 | AB19: 0 | AC19: 0 | AD19: 0 | AE19: 0 | AF19: 0 | AG19: 0 | AH19: 0 | AI19: 0 | AJ19: 0 | AK19: 0 | AL19: 0 | AM19: 0 | AN19: 0 | AO19: 0 | AP19: 0 | AQ19: 0 | AR19: 0 | AS19: 0 | AT19: 0 | AU19: 0 | AV19: 0 | AW19: 0 | AX19: 0 | AY19: 0 | AZ19: 0 | BA19: 0 | BB19: 0 | BC19: 0 | BD19: 0 | BE19: 0 | BF19: 0 | BG19: 0 | BH19: 0 | BI19: 0 | BJ19: 0 | BK19: 0 | BL19: 0 | BM19: 0 | BN19: 0 | BO19: 0 | BP19: 0 | BQ19: 0 | BR19: 0 | BS19: 0 | BT19: 0 | BU19: 0 | BV19: 0 | BW19: 0 | BX19: 0 | BY19: 0 | BZ19: 0 | CA19: 0 | CB19: 0 | CC19: 0 | CD19: 0 | CE19: 0 | CF19: 0 | CG19: 0 | CH19: 0 | CI19: 0 | CJ19: 0 | CK19: 0 | CL19: 0 | CM19: 0 | CN19: 0 | CO19: 0 | CP19: 0 | CQ19: 0 | CR19: 0 | CS19: 0 | CT19: 0 | CU19: 0 | CV19: 0 | CW19: 0
B20: 0 | C20: 0 | D20: 0 | E20: 0 | F20: 0 | G20: 0 | H20: 0 | I20: 0 | J20: 0 | K20: 0 | L20: 0 | M20: 0 | N20: 0 | O20: 0 | P20: 0 | Q20: 0 | R20: 0 | S20: 0 | T20: 0 | U20: 0 | V20: 0 | W20: 0 | X20: 0 | Y20: 0 | Z20: 0 | AA20: 0 | AB20: 0 | AC20: 0 | AD20: 0 | AE20: 0 | AF20: 0 | AG20: 0 | AH20: 0 | AI20: 0 | AJ20: 0 | AK20: 0 | AL20: 0 | AM20: 0 | AN20: 0 | AO20: 0 | AP20: 0 | AQ20: 0 | AR20: 0 | AS20: 0 | AT20: 0 | AU20: 0 | AV20: 0 | AW20: 0 | AX20: 0 | AY20: 0 | AZ20: 0 | BA20: 0 | BB20: 0 | BC20: 0 | BD20: 0 | BE20: 0 | BF20: 0 | BG20: 0 | BH20: 0 | BI20: 0 | BJ20: 0 | BK20: 0 | BL20: 0 | BM20: 0 | BN20: 0 | BO20: 0 | BP20: 0 | BQ20: 0 | BR20: 0 | BS20: 0 | BT20: 0 | BU20: 0 | BV20: 0 | BW20: 0 | BX20: 0 | BY20: 0 | BZ20: 0 | CA20: 0 | CB20: 0 | CC20: 0 | CD20: 0 | CE20: 0 | CF20: 0 | CG20: 0 | CH20: 0 | CI20: 0 | CJ20: 0 | CK20: 0 | CL20: 0 | CM20: 0 | CN20: 0 | CO20: 0 | CP20: 0 | CQ20: 0 | CR20: 0 | CS20: 0 | CT20: 0 | CU20: 0 | CV20: 0 | CW20: 0
B21: 0 | C21: 0 | D21: 0 | E21: 0 | F21: 0 | G21: 0 | H21: 0 | I21: 0 | J21: 0 | K21: 0 | L21: 0 | M21: 0 | N21: 0 | O21: 0 | P21: 0 | Q21: 0 | R21: 0 | S21: 0 | T21: 0 | U21: 0 | V21: 0 | W21: 0 | X21: 0 | Y21: 0 | Z21: 0 | AA21: 0 | AB21: 0 | AC21: 0 | AD21: 0 | AE21: 0 | AF21: 0 | AG21: 0 | AH21: 0 | AI21: 0 | AJ21: 0 | AK21: 0 | AL21: 0 | AM21: 0 | AN21: 0 | AO21: 0 | AP21: 0 | AQ21: 0 | AR21: 0 | AS21: 0 | AT21: 0 | AU21: 0 | AV21: 0 | AW21: 0 | AX21: 0 | AY21: 0 | AZ21: 0 | BA21: 0 | BB21: 0 | BC21: 0 | BD21: 0 | BE21: 0 | BF21: 0 | BG21: 0 | BH21: 0 | BI21: 0 | BJ21: 0 | BK21: 0 | BL21: 0 | BM21: 0 | BN21: 0 | BO21: 0 | BP21: 0 | BQ21: 0 | BR21: 0 | BS21: 0 | BT21: 0 | BU21: 0 | BV21: 0 | BW21: 0 | BX21: 0 | BY21: 0 | BZ21: 0 | CA21: 0 | CB21: 0 | CC21: 0 | CD21: 0 | CE21: 0 | CF21: 0 | CG21: 0 | CH21: 0 | CI21: 0 | CJ21: 0 | CK21: 0 | CL21: 0 | CM21: 0 | CN21: 0 | CO21: 0 | CP21: 0 | CQ21: 0 | CR21: 0 | CS21: 0 | CT21: 0 | CU21: 0 | CV21: 0 | CW21: 0
B22: 0 | C22: 0 | D22: 0 | E22: 0 | F22: 0 | G22: 0 | H22: 0 | I22: 0 | J22: 0 | K22: 0 | L22: 0 | M22: 0 | N22: 0 | O22: 0 | P22: 0 | Q22: 0 | R22: 0 | S22: 0 | T22: 0 | U22: 0 | V22: 0 | W22: 0 | X22: 0 | Y22: 0 | Z22: 0 | AA22: 0 | AB22: 0 | AC22: 0 | AD22: 0 | AE22: 0 | AF22: 0 | AG22: 0 | AH22: 0 | AI22: 0 | AJ22: 0 | AK22: 0 | AL22: 0 | AM22: 0 | AN22: 0 | AO22: 0 | AP22: 0 | AQ22: 0 | AR22: 0 | AS22: 0 | AT22: 0 | AU22: 0 | AV22: 0 | AW22: 0 | AX22: 0 | AY22: 0 | AZ22: 0 | BA22: 0 | BB22: 0 | BC22: 0 | BD22: 0 | BE22: 0 | BF22: 0 | BG22: 0 | BH22: 0 | BI22: 0 | BJ22: 0 | BK22: 0 | BL22: 0 | BM22: 0 | BN22: 0 | BO22: 0 | BP22: 0 | BQ22: 0 | BR22: 0 | BS22: 0 | BT22: 0 | BU22: 0 | BV22: 0 | BW22: 0 | BX22: 0 | BY22: 0 | BZ22: 0 | CA22: 0 | CB22: 0 | CC22: 0 | CD22: 0 | CE22: 0 | CF22: 0 | CG22: 0 | CH22: 0 | CI22: 0 | CJ22: 0 | CK22: 0 | CL22: 0 | CM22: 0 | CN22: 0 | CO22: 0 | CP22: 0 | CQ22: 0 | CR22: 0 | CS22: 0 | CT22: 0 | CU22: 0 | CV22: 0 | CW22: 0
B23: 0 | C23: 0 | D23: 0 | E23: 0 | F23: 0 | G23: 0 | H23: 0 | I23: 0 | J23: 0 | K23: 0 | L23: 0 | M23: 0 | N23: 0 | O23: 0 | P23: 0 | Q23: 0 | R23: 0 | S23: 0 | T23: 0 | U23: 0 | V23: 0 | W23: 0 | X23: 0 | Y23: 0 | Z23: 0 | AA23: 0 | AB23: 0 | AC23: 0 | AD23: 0 | AE23: 0 | AF23: 0 | AG23: 0 | AH23: 0 | AI23: 0 | AJ23: 0 | AK23: 0 | AL23: 0 | AM23: 0 | AN23: 0 | AO23: 0 | AP23: 0 | AQ23: 0 | AR23: 0 | AS23: 0 | AT23: 0 | AU23: 0 | AV23: 0 | AW23: 0 | AX23: 0 | AY23: 0 | AZ23: 0 | BA23: 0 | BB23: 0 | BC23: 0 | BD23: 0 | BE23: 0 | BF23: 0 | BG23: 0 | BH23: 0 | BI23: 0 | BJ23: 0 | BK23: 0 | BL23: 0 | BM23: 0 | BN23: 0 | BO23: 0 | BP23: 0 | BQ23: 0 | BR23: 0 | BS23: 0 | BT23: 0 | BU23: 0 | BV23: 0 | BW23: 0 | BX23: 0 | BY23: 0 | BZ23: 0 | CA23: 0 | CB23: 0 | CC23: 0 | CD23: 0 | CE23: 0 | CF23: 0 | CG23: 0 | CH23: 0 | CI23: 0 | CJ23: 0 | CK23: 0 | CL23: 0 | CM23: 0 | CN23: 0 | CO23: 0 | CP23: 0 | CQ23: 0 | CR23: 0 | CS23: 0 | CT23: 0 | CU23: 0 | CV23: 0 | CW23: 0
B24: 0 | C24: 0 | D24: 0 | E24: 0 | F24: 0 | G24: 0 | H24: 0 | I24: 0 | J24: 0 | K24: 0 | L24: 0 | M24: 0 | N24: 0 | O24: 0 | P24: 0 | Q24: 0 | R24: 0 | S24: 0 | T24: 0 | U24: 0 | V24: 0 | W24: 0 | X24: 0 | Y24: 0 | Z24: 0 | AA24: 0 | AB24: 0 | AC24: 0 | AD24: 0 | AE24: 0 | AF24: 0 | AG24: 0 | AH24: 0 | AI24: 0 | AJ24: 0 | AK24: 0 | AL24: 0 | AM24: 0 | AN24: 0 | AO24: 0 | AP24: 0 | AQ24: 0 | AR24: 0 | AS24: 0 | AT24: 0 | AU24: 0 | AV24: 0 | AW24: 0 | AX24: 0 | AY24: 0 | AZ24: 0 | BA24: 0 | BB24: 0 | BC24: 0 | BD24: 0 | BE24: 0 | BF24: 0 | BG24: 0 | BH24: 0 | BI24: 0 | BJ24: 0 | BK24: 0 | BL24: 0 | BM24: 0 | BN24: 0 | BO24: 0 | BP24: 0 | BQ24: 0 | BR24: 0 | BS24: 0 | BT24: 0 | BU24: 0 | BV24: 0 | BW24: 0 | BX24: 0 | BY24: 0 | BZ24: 0 | CA24: 0 | CB24: 0 | CC24: 0 | CD24: 0 | CE24: 0 | CF24: 0 | CG24: 0 | CH24: 0 | CI24: 0 | CJ24: 0 | CK24: 0 | CL24: 0 | CM24: 0 | CN24: 0 | CO24: 0 | CP24: 0 | CQ24: 0 | CR24: 0 | CS24: 0 | CT24: 0 | CU24: 0 | CV24: 0 | CW24: 0
B25: 0 | C25: 0 | D25: 0 | E25: 0 | F25: 0 | G25: 0 | H25: 0 | I25: 0 | J25: 0 | K25: 0 | L25: 0 | M25: 0 | N25: 0 | O25: 0 | P25: 0 | Q25: 0 | R25: 0 | S25: 0 | T25: 0 | U25: 0 | V25: 0 | W25: 0 | X25: 0 | Y25: 0 | Z25: 0 | AA25: 0 | AB25: 0 | AC25: 0 | AD25: 0 | AE25: 0 | AF25: 0 | AG25: 0 | AH25: 0 | AI25: 0 | AJ25: 0 | AK25: 0 | AL25: 0 | AM25: 0 | AN25: 0 | AO25: 0 | AP25: 0 | AQ25: 0 | AR25: 0 | AS25: 0 | AT25: 0 | AU25: 0 | AV25: 0 | AW25: 0 | AX25: 0 | AY25: 0 | AZ25: 0 | BA25: 0 | BB25: 0 | BC25: 0 | BD25: 0 | BE25: 0 | BF25: 0 | BG25: 0 | BH25: 0 | BI25: 0 | BJ25: 0 | BK25: 0 | BL25: 0 | BM25: 0 | BN25: 0 | BO25: 0 | BP25: 0 | BQ25: 0 | BR25: 0 | BS25: 0 | BT25: 0 | BU25: 0 | BV25: 0 | BW25: 0 | BX25: 0 | BY25: 0 | BZ25: 0 | CA25: 0 | CB25: 0 | CC25: 0 | CD25: 0 | CE25: 0 | CF25: 0 | CG25: 0 | CH25: 0 | CI25: 0 | CJ25: 0 | CK25: 0 | CL25: 0 | CM25: 0 | CN25: 0 | CO25: 0 | CP25: 0 | CQ25: 0 | CR25: 0 | CS25: 0 | CT25: 0 | CU25: 0 | CV25: 0 | CW25: 0
B26: 0 | C26: 0 | D26: 0 | E26: 0 | F26: 0 | G26: 0 | H26: 0 | I26: 0 | J26: 0 | K26: 0 | L26: 0 | M26: 0 | N26: 0 | O26: 0 | P26: 0 | Q26: 0 | R26: 0 | S26: 0 | T26: 0 | U26: 0 | V26: 0 | W26: 0 | X26: 0 | Y26: 0 | Z26: 0 | AA26: 0 | AB26: 0 | AC26: 0 | AD26: 0 | AE26: 0 | AF26: 0 | AG26: 0 | AH26: 0 | AI26: 0 | AJ26: 0 | AK26: 0 | AL26: 0 | AM26: 0 | AN26: 0 | AO26: 0 | AP26: 0 | AQ26: 0 | AR26: 0 | AS26: 0 | AT26: 0 | AU26: 0 | AV26: 0 | AW26: 0 | AX26: 0 | AY26: 0 | AZ26: 0 | BA26: 0 | BB26: 0 | BC26: 0 | BD26: 0 | BE26: 0 | BF26: 0 | BG26: 0 | BH26: 0 | BI26: 0 | BJ26: 0 | BK26: 0 | BL26: 0 | BM26: 0 | BN26: 0 | BO26: 0 | BP26: 0 | BQ26: 0 | BR26: 0 | BS26: 0 | BT26: 0 | BU26: 0 | BV26: 0 | BW26: 0 | BX26: 0 | BY26: 0 | BZ26: 0 | CA26: 0 | CB26: 0 | CC26: 0 | CD26: 0 | CE26: 0 | CF26: 0 | CG26: 0 | CH26: 0 | CI26: 0 | CJ26: 0 | CK26: 0 | CL26: 0 | CM26: 0 | CN26: 0 | CO26: 0 | CP26: 0 | CQ26: 0 | CR26: 0 | CS26: 0 | CT26: 0 | CU26: 0 | CV26: 0 | CW26: 0
B27: 0 | C27: 0 | D27: 0 | E27: 0 | F27: 0 | G27: 0 | H27: 0 | I27: 0 | J27: 0 | K27: 0 | L27: 0 | M27: 0 | N27: 0 | O27: 0 | P27: 0 | Q27: 0 | R27: 0 | S27: 0 | T27: 0 | U27: 0 | V27: 0 | W27: 0 | X27: 0 | Y27: 0 | Z27: 0 | AA27: 0 | AB27: 0 | AC27: 0 | AD27: 0 | AE27: 0 | AF27: 0 | AG27: 0 | AH27: 0 | AI27: 0 | AJ27: 0 | AK27: 0 | AL27: 0 | AM27: 0 | AN27: 0 | AO27: 0 | AP27: 0 | AQ27: 0 | AR27: 0 | AS27: 0 | AT27: 0 | AU27: 0 | AV27: 0 | AW27: 0 | AX27: 0 | AY27: 0 | AZ27: 0 | BA27: 0 | BB27: 0 | BC27: 0 | BD27: 0 | BE27: 0 | BF27: 0 | BG27: 0 | BH27: 0 | BI27: 0 | BJ27: 0 | BK27: 0 | BL27: 0 | BM27: 0 | BN27: 0 | BO27: 0 | BP27: 0 | BQ27: 0 | BR27: 0 | BS27: 0 | BT27: 0 | BU27: 0 | BV27: 0 | BW27: 0 | BX27: 0 | BY27: 0 | BZ27: 0 | CA27: 0 | CB27: 0 | CC27: 0 | CD27: 0 | CE27: 0 | CF27: 0 | CG27: 0 | CH27: 0 | CI27: 0 | CJ27: 0 | CK27: 0 | CL27: 0 | CM27: 0 | CN27: 0 | CO27: 0 | CP27: 0 | CQ27: 0 | CR27: 0 | CS27: 0 | CT27: 0 | CU27: 0 | CV27: 0 | CW27: 0
B28: 0 | C28: 0 | D28: 0 | E28: 0 | F28: 0 | G28: 0 | H28: 0 | I28: 0 | J28: 0 | K28: 0 | L28: 0 | M28: 0 | N28: 0 | O28: 0 | P28: 0 | Q28: 0 | R28: 0 | S28: 0 | T28: 0 | U28: 0 | V28: 0 | W28: 0 | X28: 0 | Y28: 0 | Z28: 0 | AA28: 0 | AB28: 0 | AC28: 0 | AD28: 0 | AE28: 0 | AF28: 0 | AG28: 0 | AH28: 0 | AI28: 0 | AJ28: 0 | AK28: 0 | AL28: 0 | AM28: 0 | AN28: 0 | AO28: 0 | AP28: 0 | AQ28: 0 | AR28: 0 | AS28: 0 | AT28: 0 | AU28: 0 | AV28: 0 | AW28: 0 | AX28: 0 | AY28: 0 | AZ28: 0 | BA28: 0 | BB28: 0 | BC28: 0 | BD28: 0 | BE28: 0 | BF28: 0 | BG28: 0 | BH28: 0 | BI28: 0 | BJ28: 0 | BK28: 0 | BL28: 0 | BM28: 0 | BN28: 0 | BO28: 0 | BP28: 0 | BQ28: 0 | BR28: 0 | BS28: 0 | BT28: 0 | BU28: 0 | BV28: 0 | BW28: 0 | BX28: 0 | BY28: 0 | BZ28: 0 | CA28: 0 | CB28: 0 | CC28: 0 | CD28: 0 | CE28: 0 | CF28: 0 | CG28: 0 | CH28: 0 | CI28: 0 | CJ28: 0 | CK28: 0 | CL28: 0 | CM28: 0 | CN28: 0 | CO28: 0 | CP28: 0 | CQ28: 0 | CR28: 0 | CS28: 0 | CT28: 0 | CU28: 0 | CV28: 0 | CW28: 0
B29: 0 | C29: 0 | D29: 0 | E29: 0 | F29: 0 | G29: 0 | H29: 0 | I29: 0 | J29: 0 | K29: 0 | L29: 0 | M29: 0 | N29: 0 | O29: 0 | P29: 0 | Q29: 0 | R29: 0 | S29: 0 | T29: 0 | U29: 0 | V29: 0 | W29: 0 | X29: 0 | Y29: 0 | Z29: 0 | AA29: 0 | AB29: 0 | AC29: 0 | AD29: 0 | AE29: 0 | AF29: 0 | AG29: 0 | AH29: 0 | AI29: 0 | AJ29: 0 | AK29: 0 | AL29: 0 | AM29: 0 | AN29: 0 | AO29: 0 | AP29: 0 | AQ29: 0 | AR29: 0 | AS29: 0 | AT29: 0 | AU29: 0 | AV29: 0 | AW29: 0 | AX29: 0 | AY29: 0 | AZ29: 0 | BA29: 0 | BB29: 0 | BC29: 0 | BD29: 0 | BE29: 0 | BF29: 0 | BG29: 0 | BH29: 0 | BI29: 0 | BJ29: 0 | BK29: 0 | BL29: 0 | BM29: 0 | BN29: 0 | BO29: 0 | BP29: 0 | BQ29: 0 | BR29: 0 | BS29: 0 | BT29: 0 | BU29: 0 | BV29: 0 | BW29: 0 | BX29: 0 | BY29: 0 | BZ29: 0 | CA29: 0 | CB29: 0 | CC29: 0 | CD29: 0 | CE29: 0 | CF29: 0 | CG29: 0 | CH29: 0 | CI29: 0 | CJ29: 0 | CK29: 0 | CL29: 0 | CM29: 0 | CN29: 0 | CO29: 0 | CP29: 0 | CQ29: 0 | CR29: 0 | CS29: 0 | CT29: 0 | CU29: 0 | CV29: 0 | CW29: 0
B30: 0.005587647374 | C30: 0.01811916913 | D30: 0.005064917389 | E30: -0.01233653568 | F30: 0.01319764419 | G30: 0.03629301716 | H30: -0.005415788874 | I30: -0.005787712184 | J30: 0.01052482884 | K30: 0.009941047188 | L30: 0.007485833962 | M30: -0.01961301556 | N30: -0.01636857727 | O30: 0.02411468636 | P30: 0.02840909656 | Q30: 0.01085590408 | R30: -0.02404282508 | S30: -0.002530457012 | T30: -0.01830659644 | U30: -0.02004701577 | V30: 0.02191329135 | W30: 0.03218643123 | X30: -0.008870193318 | Y30: -0.01749605008 | Z30: -0.01551519873 | AA30: -0.04828436066 | AB30: 0.02459539664 | AC30: -0.03069436164 | AD30: 0.009237402827 | AE30: -0.005292898757 | AF30: -0.02187269354 | AG30: -0.01698813809 | AH30: -0.02924296009 | AI30: -0.003768919656 | AJ30: -0.005481013318 | AK30: -0.008728592584 | AL30: -0.02024144899 | AM30: 0.01178589368 | AN30: -0.009457320902 | AO30: 0.02048000326 | AP30: 0.03731551787 | AQ30: -0.008174829196 | AR30: 0.02786400301 | AS30: -3.830267921e-05 | AT30: -0.02889390523 | AU30: -0.04930848802 | AV30: -0.01475533999 | AW30: -0.008371858416 | AX30: -0.006241501344 | AY30: 0.04314380822 | AZ30: 0.0006082132865 | BA30: -0.03421039344 | BB30: 0.01079734222 | BC30: 0.004437591573 | BD30: 0.02145279464 | BE30: -0.02909581908 | BF30: -0.02154080262 | BG30: -0.001714259426 | BH30: 0.01073715926 | BI30: 0.02189997747 | BJ30: -0.01323901281 | BK30: -0.03671458461 | BL30: 0.01679196447 | BM30: -0.04042399831 | BN30: 0.02115834571 | BO30: -0.01566144831 | BP30: 0.02142995161 | BQ30: 0.02566092807 | BR30: 0.006767484982 | BS30: -0.004125823804 | BT30: -0.01427756903 | BU30: -0.02713907974 | BV30: 0.06314332238 | BW30: -0.02258819293 | BX30: 0.005732998442 | BY30: 0.001521290897 | BZ30: 0.003831567626 | CA30: 0.03551426899 | CB30: 0.00959522932 | CC30: 0.005439575711 | CD30: 0.001863342246 | CE30: -0.003960807045 | CF30: -0.01590591004 | CG30: 0.00691249161 | CH30: 0.003450454975 | CI30: -0.0003574698123 | CJ30: -0.01908686811 | CK30: 0.006060008278 | CL30: -0.01308788195 | CM30: 0.0127556342 | CN30: -0.02697528946 | CO30: -0.04543253947 | CP30: -0.0003487262156 | CQ30: 0.02726788698 | CR30: -0.01084948098 | CS30: -0.0151636556 | CT30: 0.001492727377 | CU30: -0.02819018668 | CV30: -0.009059805691 | CW30: -0.005253668696
B31: 0 | C31: 0 | D31: 0 | E31: 0 | F31: 0 | G31: 0 | H31: 0 | I31: 0 | J31: 0 | K31: 0 | L31: 0 | M31: 0 | N31: 0 | O31: 0 | P31: 0 | Q31: 0 | R31: 0 | S31: 0 | T31: 0 | U31: 0 | V31: 0 | W31: 0 | X31: 0 | Y31: 0 | Z31: 0 | AA31: 0 | AB31: 0 | AC31: 0 | AD31: 0 | AE31: 0 | AF31: 0 | AG31: 0 | AH31: 0 | AI31: 0 | AJ31: 0 | AK31: 0 | AL31: 0 | AM31: 0 | AN31: 0 | AO31: 0 | AP31: 0 | AQ31: 0 | AR31: 0 | AS31: 0 | AT31: 0 | AU31: 0 | AV31: 0 | AW31: 0 | AX31: 0 | AY31: 0 | AZ31: 0 | BA31: 0 | BB31: 0 | BC31: 0 | BD31: 0 | BE31: 0 | BF31: 0 | BG31: 0 | BH31: 0 | BI31: 0 | BJ31: 0 | BK31: 0 | BL31: 0 | BM31: 0 | BN31: 0 | BO31: 0 | BP31: 0 | BQ31: 0 | BR31: 0 | BS31: 0 | BT31: 0 | BU31: 0 | BV31: 0 | BW31: 0 | BX31: 0 | BY31: 0 | BZ31: 0 | CA31: 0 | CB31: 0 | CC31: 0 | CD31: 0 | CE31: 0 | CF31: 0 | CG31: 0 | CH31: 0 | CI31: 0 | CJ31: 0 | CK31: 0 | CL31: 0 | CM31: 0 | CN31: 0 | CO31: 0 | CP31: 0 | CQ31: 0 | CR31: 0 | CS31: 0 | CT31: 0 | CU31: 0 | CV31: 0 | CW31: 0
B32: 0 | C32: 0 | D32: 0 | E32: 0 | F32: 0 | G32: 0 | H32: 0 | I32: 0 | J32: 0 | K32: 0 | L32: 0 | M32: 0 | N32: 0 | O32: 0 | P32: 0 | Q32: 0 | R32: 0 | S32: 0 | T32: 0 | U32: 0 | V32: 0 | W32: 0 | X32: 0 | Y32: 0 | Z32: 0 | AA32: 0 | AB32: 0 | AC32: 0 | AD32: 0 | AE32: 0 | AF32: 0 | AG32: 0 | AH32: 0 | AI32: 0 | AJ32: 0 | AK32: 0 | AL32: 0 | AM32: 0 | AN32: 0 | AO32: 0 | AP32: 0 | AQ32: 0 | AR32: 0 | AS32: 0 | AT32: 0 | AU32: 0 | AV32: 0 | AW32: 0 | AX32: 0 | AY32: 0 | AZ32: 0 | BA32: 0 | BB32: 0 | BC32: 0 | BD32: 0 | BE32: 0 | BF32: 0 | BG32: 0 | BH32: 0 | BI32: 0 | BJ32: 0 | BK32: 0 | BL32: 0 | BM32: 0 | BN32: 0 | BO32: 0 | BP32: 0 | BQ32: 0 | BR32: 0 | BS32: 0 | BT32: 0 | BU32: 0 | BV32: 0 | BW32: 0 | BX32: 0 | BY32: 0 | BZ32: 0 | CA32: 0 | CB32: 0 | CC32: 0 | CD32: 0 | CE32: 0 | CF32: 0 | CG32: 0 | CH32: 0 | CI32: 0 | CJ32: 0 | CK32: 0 | CL32: 0 | CM32: 0 | CN32: 0 | CO32: 0 | CP32: 0 | CQ32: 0 | CR32: 0 | CS32: 0 | CT32: 0 | CU32: 0 | CV32: 0 | CW32: 0
B33: 0 | C33: 0 | D33: 0 | E33: 0 | F33: 0 | G33: 0 | H33: 0 | I33: 0 | J33: 0 | K33: 0 | L33: 0 | M33: 0 | N33: 0 | O33: 0 | P33: 0 | Q33: 0 | R33: 0 | S33: 0 | T33: 0 | U33: 0 | V33: 0 | W33: 0 | X33: 0 | Y33: 0 | Z33: 0 | AA33: 0 | AB33: 0 | AC33: 0 | AD33: 0 | AE33: 0 | AF33: 0 | AG33: 0 | AH33: 0 | AI33: 0 | AJ33: 0 | AK33: 0 | AL33: 0 | AM33: 0 | AN33: 0 | AO33: 0 | AP33: 0 | AQ33: 0 | AR33: 0 | AS33: 0 | AT33: 0 | AU33: 0 | AV33: 0 | AW33: 0 | AX33: 0 | AY33: 0 | AZ33: 0 | BA33: 0 | BB33: 0 | BC33: 0 | BD33: 0 | BE33: 0 | BF33: 0 | BG33: 0 | BH33: 0 | BI33: 0 | BJ33: 0 | BK33: 0 | BL33: 0 | BM33: 0 | BN33: 0 | BO33: 0 | BP33: 0 | BQ33: 0 | BR33: 0 | BS33: 0 | BT33: 0 | BU33: 0 | BV33: 0 | BW33: 0 | BX33: 0 | BY33: 0 | BZ33: 0 | CA33: 0 | CB33: 0 | CC33: 0 | CD33: 0 | CE33: 0 | CF33: 0 | CG33: 0 | CH33: 0 | CI33: 0 | CJ33: 0 | CK33: 0 | CL33: 0 | CM33: 0 | CN33: 0 | CO33: 0 | CP33: 0 | CQ33: 0 | CR33: 0 | CS33: 0 | CT33: 0 | CU33: 0 | CV33: 0 | CW33: 0
B34: 0 | C34: 0 | D34: 0 | E34: 0 | F34: 0 | G34: 0 | H34: 0 | I34: 0 | J34: 0 | K34: 0 | L34: 0 | M34: 0 | N34: 0 | O34: 0 | P34: 0 | Q34: 0 | R34: 0 | S34: 0 | T34: 0 | U34: 0 | V34: 0 | W34: 0 | X34: 0 | Y34: 0 | Z34: 0 | AA34: 0 | AB34: 0 | AC34: 0 | AD34: 0 | AE34: 0 | AF34: 0 | AG34: 0 | AH34: 0 | AI34: 0 | AJ34: 0 | AK34: 0 | AL34: 0 | AM34: 0 | AN34: 0 | AO34: 0 | AP34: 0 | AQ34: 0 | AR34: 0 | AS34: 0 | AT34: 0 | AU34: 0 | AV34: 0 | AW34: 0 | AX34: 0 | AY34: 0 | AZ34: 0 | BA34: 0 | BB34: 0 | BC34: 0 | BD34: 0 | BE34: 0 | BF34: 0 | BG34: 0 | BH34: 0 | BI34: 0 | BJ34: 0 | BK34: 0 | BL34: 0 | BM34: 0 | BN34: 0 | BO34: 0 | BP34: 0 | BQ34: 0 | BR34: 0 | BS34: 0 | BT34: 0 | BU34: 0 | BV34: 0 | BW34: 0 | BX34: 0 | BY34: 0 | BZ34: 0 | CA34: 0 | CB34: 0 | CC34: 0 | CD34: 0 | CE34: 0 | CF34: 0 | CG34: 0 | CH34: 0 | CI34: 0 | CJ34: 0 | CK34: 0 | CL34: 0 | CM34: 0 | CN34: 0 | CO34: 0 | CP34: 0 | CQ34: 0 | CR34: 0 | CS34: 0 | CT34: 0 | CU34: 0 | CV34: 0 | CW34: 0
B35: 0 | C35: 0 | D35: 0 | E35: 0 | F35: 0 | G35: 0 | H35: 0 | I35: 0 | J35: 0 | K35: 0 | L35: 0 | M35: 0 | N35: 0 | O35: 0 | P35: 0 | Q35: 0 | R35: 0 | S35: 0 | T35: 0 | U35: 0 | V35: 0 | W35: 0 | X35: 0 | Y35: 0 | Z35: 0 | AA35: 0 | AB35: 0 | AC35: 0 | AD35: 0 | AE35: 0 | AF35: 0 | AG35: 0 | AH35: 0 | AI35: 0 | AJ35: 0 | AK35: 0 | AL35: 0 | AM35: 0 | AN35: 0 | AO35: 0 | AP35: 0 | AQ35: 0 | AR35: 0 | AS35: 0 | AT35: 0 | AU35: 0 | AV35: 0 | AW35: 0 | AX35: 0 | AY35: 0 | AZ35: 0 | BA35: 0 | BB35: 0 | BC35: 0 | BD35: 0 | BE35: 0 | BF35: 0 | BG35: 0 | BH35: 0 | BI35: 0 | BJ35: 0 | BK35: 0 | BL35: 0 | BM35: 0 | BN35: 0 | BO35: 0 | BP35: 0 | BQ35: 0 | BR35: 0 | BS35: 0 | BT35: 0 | BU35: 0 | BV35: 0 | BW35: 0 | BX35: 0 | BY35: 0 | BZ35: 0 | CA35: 0 | CB35: 0 | CC35: 0 | CD35: 0 | CE35: 0 | CF35: 0 | CG35: 0 | CH35: 0 | CI35: 0 | CJ35: 0 | CK35: 0 | CL35: 0 | CM35: 0 | CN35: 0 | CO35: 0 | CP35: 0 | CQ35: 0 | CR35: 0 | CS35: 0 | CT35: 0 | CU35: 0 | CV35: 0 | CW35: 0
B36: 0 | C36: 0 | D36: 0 | E36: 0 | F36: 0 | G36: 0 | H36: 0 | I36: 0 | J36: 0 | K36: 0 | L36: 0 | M36: 0 | N36: 0 | O36: 0 | P36: 0 | Q36: 0 | R36: 0 | S36: 0 | T36: 0 | U36: 0 | V36: 0 | W36: 0 | X36: 0 | Y36: 0 | Z36: 0 | AA36: 0 | AB36: 0 | AC36: 0 | AD36: 0 | AE36: 0 | AF36: 0 | AG36: 0 | AH36: 0 | AI36: 0 | AJ36: 0 | AK36: 0 | AL36: 0 | AM36: 0 | AN36: 0 | AO36: 0 | AP36: 0 | AQ36: 0 | AR36: 0 | AS36: 0 | AT36: 0 | AU36: 0 | AV36: 0 | AW36: 0 | AX36: 0 | AY36: 0 | AZ36: 0 | BA36: 0 | BB36: 0 | BC36: 0 | BD36: 0 | BE36: 0 | BF36: 0 | BG36: 0 | BH36: 0 | BI36: 0 | BJ36: 0 | BK36: 0 | BL36: 0 | BM36: 0 | BN36: 0 | BO36: 0 | BP36: 0 | BQ36: 0 | BR36: 0 | BS36: 0 | BT36: 0 | BU36: 0 | BV36: 0 | BW36: 0 | BX36: 0 | BY36: 0 | BZ36: 0 | CA36: 0 | CB36: 0 | CC36: 0 | CD36: 0 | CE36: 0 | CF36: 0 | CG36: 0 | CH36: 0 | CI36: 0 | CJ36: 0 | CK36: 0 | CL36: 0 | CM36: 0 | CN36: 0 | CO36: 0 | CP36: 0 | CQ36: 0 | CR36: 0 | CS36: 0 | CT36: 0 | CU36: 0 | CV36: 0 | CW36: 0
B37: 0 | C37: 0 | D37: 0 | E37: 0 | F37: 0 | G37: 0 | H37: 0 | I37: 0 | J37: 0 | K37: 0 | L37: 0 | M37: 0 | N37: 0 | O37: 0 | P37: 0 | Q37: 0 | R37: 0 | S37: 0 | T37: 0 | U37: 0 | V37: 0 | W37: 0 | X37: 0 | Y37: 0 | Z37: 0 | AA37: 0 | AB37: 0 | AC37: 0 | AD37: 0 | AE37: 0 | AF37: 0 | AG37: 0 | AH37: 0 | AI37: 0 | AJ37: 0 | AK37: 0 | AL37: 0 | AM37: 0 | AN37: 0 | AO37: 0 | AP37: 0 | AQ37: 0 | AR37: 0 | AS37: 0 | AT37: 0 | AU37: 0 | AV37: 0 | AW37: 0 | AX37: 0 | AY37: 0 | AZ37: 0 | BA37: 0 | BB37: 0 | BC37: 0 | BD37: 0 | BE37: 0 | BF37: 0 | BG37: 0 | BH37: 0 | BI37: 0 | BJ37: 0 | BK37: 0 | BL37: 0 | BM37: 0 | BN37: 0 | BO37: 0 | BP37: 0 | BQ37: 0 | BR37: 0 | BS37: 0 | BT37: 0 | BU37: 0 | BV37: 0 | BW37: 0 | BX37: 0 | BY37: 0 | BZ37: 0 | CA37: 0 | CB37: 0 | CC37: 0 | CD37: 0 | CE37: 0 | CF37: 0 | CG37: 0 | CH37: 0 | CI37: 0 | CJ37: 0 | CK37: 0 | CL37: 0 | CM37: 0 | CN37: 0 | CO37: 0 | CP37: 0 | CQ37: 0 | CR37: 0 | CS37: 0 | CT37: 0 | CU37: 0 | CV37: 0 | CW37: 0
B38: 0 | C38: 0 | D38: 0 | E38: 0 | F38: 0 | G38: 0 | H38: 0 | I38: 0 | J38: 0 | K38: 0 | L38: 0 | M38: 0 | N38: 0 | O38: 0 | P38: 0 | Q38: 0 | R38: 0 | S38: 0 | T38: 0 | U38: 0 | V38: 0 | W38: 0 | X38: 0 | Y38: 0 | Z38: 0 | AA38: 0 | AB38: 0 | AC38: 0 | AD38: 0 | AE38: 0 | AF38: 0 | AG38: 0 | AH38: 0 | AI38: 0 | AJ38: 0 | AK38: 0 | AL38: 0 | AM38: 0 | AN38: 0 | AO38: 0 | AP38: 0 | AQ38: 0 | AR38: 0 | AS38: 0 | AT38: 0 | AU38: 0 | AV38: 0 | AW38: 0 | AX38: 0 | AY38: 0 | AZ38: 0 | BA38: 0 | BB38: 0 | BC38: 0 | BD38: 0 | BE38: 0 | BF38: 0 | BG38: 0 | BH38: 0 | BI38: 0 | BJ38: 0 | BK38: 0 | BL38: 0 | BM38: 0 | BN38: 0 | BO38: 0 | BP38: 0 | BQ38: 0 | BR38: 0 | BS38: 0 | BT38: 0 | BU38: 0 | BV38: 0 | BW38: 0 | BX38: 0 | BY38: 0 | BZ38: 0 | CA38: 0 | CB38: 0 | CC38: 0 | CD38: 0 | CE38: 0 | CF38: 0 | CG38: 0 | CH38: 0 | CI38: 0 | CJ38: 0 | CK38: 0 | CL38: 0 | CM38: 0 | CN38: 0 | CO38: 0 | CP38: 0 | CQ38: 0 | CR38: 0 | CS38: 0 | CT38: 0 | CU38: 0 | CV38: 0 | CW38: 0
B39: 0 | C39: 0 | D39: 0 | E39: 0 | F39: 0 | G39: 0 | H39: 0 | I39: 0 | J39: 0 | K39: 0 | L39: 0 | M39: 0 | N39: 0 | O39: 0 | P39: 0 | Q39: 0 | R39: 0 | S39: 0 | T39: 0 | U39: 0 | V39: 0 | W39: 0 | X39: 0 | Y39: 0 | Z39: 0 | AA39: 0 | AB39: 0 | AC39: 0 | AD39: 0 | AE39: 0 | AF39: 0 | AG39: 0 | AH39: 0 | AI39: 0 | AJ39: 0 | AK39: 0 | AL39: 0 | AM39: 0 | AN39: 0 | AO39: 0 | AP39: 0 | AQ39: 0 | AR39: 0 | AS39: 0 | AT39: 0 | AU39: 0 | AV39: 0 | AW39: 0 | AX39: 0 | AY39: 0 | AZ39: 0 | BA39: 0 | BB39: 0 | BC39: 0 | BD39: 0 | BE39: 0 | BF39: 0 | BG39: 0 | BH39: 0 | BI39: 0 | BJ39: 0 | BK39: 0 | BL39: 0 | BM39: 0 | BN39: 0 | BO39: 0 | BP39: 0 | BQ39: 0 | BR39: 0 | BS39: 0 | BT39: 0 | BU39: 0 | BV39: 0 | BW39: 0 | BX39: 0 | BY39: 0 | BZ39: 0 | CA39: 0 | CB39: 0 | CC39: 0 | CD39: 0 | CE39: 0 | CF39: 0 | CG39: 0 | CH39: 0 | CI39: 0 | CJ39: 0 | CK39: 0 | CL39: 0 | CM39: 0 | CN39: 0 | CO39: 0 | CP39: 0 | CQ39: 0 | CR39: 0 | CS39: 0 | CT39: 0 | CU39: 0 | CV39: 0 | CW39: 0
B40: 0 | C40: 0 | D40: 0 | E40: 0 | F40: 0 | G40: 0 | H40: 0 | I40: 0 | J40: 0 | K40: 0 | L40: 0 | M40: 0 | N40: 0 | O40: 0 | P40: 0 | Q40: 0 | R40: 0 | S40: 0 | T40: 0 | U40: 0 | V40: 0 | W40: 0 | X40: 0 | Y40: 0 | Z40: 0 | AA40: 0 | AB40: 0 | AC40: 0 | AD40: 0 | AE40: 0 | AF40: 0 | AG40: 0 | AH40: 0 | AI40: 0 | AJ40: 0 | AK40: 0 | AL40: 0 | AM40: 0 | AN40: 0 | AO40: 0 | AP40: 0 | AQ40: 0 | AR40: 0 | AS40: 0 | AT40: 0 | AU40: 0 | AV40: 0 | AW40: 0 | AX40: 0 | AY40: 0 | AZ40: 0 | BA40: 0 | BB40: 0 | BC40: 0 | BD40: 0 | BE40: 0 | BF40: 0 | BG40: 0 | BH40: 0 | BI40: 0 | BJ40: 0 | BK40: 0 | BL40: 0 | BM40: 0 | BN40: 0 | BO40: 0 | BP40: 0 | BQ40: 0 | BR40: 0 | BS40: 0 | BT40: 0 | BU40: 0 | BV40: 0 | BW40: 0 | BX40: 0 | BY40: 0 | BZ40: 0 | CA40: 0 | CB40: 0 | CC40: 0 | CD40: 0 | CE40: 0 | CF40: 0 | CG40: 0 | CH40: 0 | CI40: 0 | CJ40: 0 | CK40: 0 | CL40: 0 | CM40: 0 | CN40: 0 | CO40: 0 | CP40: 0 | CQ40: 0 | CR40: 0 | CS40: 0 | CT40: 0 | CU40: 0 | CV40: 0 | CW40: 0
B41: 0 | C41: 0 | D41: 0 | E41: 0 | F41: 0 | G41: 0 | H41: 0 | I41: 0 | J41: 0 | K41: 0 | L41: 0 | M41: 0 | N41: 0 | O41: 0 | P41: 0 | Q41: 0 | R41: 0 | S41: 0 | T41: 0 | U41: 0 | V41: 0 | W41: 0 | X41: 0 | Y41: 0 | Z41: 0 | AA41: 0 | AB41: 0 | AC41: 0 | AD41: 0 | AE41: 0 | AF41: 0 | AG41: 0 | AH41: 0 | AI41: 0 | AJ41: 0 | AK41: 0 | AL41: 0 | AM41: 0 | AN41: 0 | AO41: 0 | AP41: 0 | AQ41: 0 | AR41: 0 | AS41: 0 | AT41: 0 | AU41: 0 | AV41: 0 | AW41: 0 | AX41: 0 | AY41: 0 | AZ41: 0 | BA41: 0 | BB41: 0 | BC41: 0 | BD41: 0 | BE41: 0 | BF41: 0 | BG41: 0 | BH41: 0 | BI41: 0 | BJ41: 0 | BK41: 0 | BL41: 0 | BM41: 0 | BN41: 0 | BO41: 0 | BP41: 0 | BQ41: 0 | BR41: 0 | BS41: 0 | BT41: 0 | BU41: 0 | BV41: 0 | BW41: 0 | BX41: 0 | BY41: 0 | BZ41: 0 | CA41: 0 | CB41: 0 | CC41: 0 | CD41: 0 | CE41: 0 | CF41: 0 | CG41: 0 | CH41: 0 | CI41: 0 | CJ41: 0 | CK41: 0 | CL41: 0 | CM41: 0 | CN41: 0 | CO41: 0 | CP41: 0 | CQ41: 0 | CR41: 0 | CS41: 0 | CT41: 0 | CU41: 0 | CV41: 0 | CW41: 0
B42: 0 | C42: 0 | D42: 0 | E42: 0 | F42: 0 | G42: 0 | H42: 0 | I42: 0 | J42: 0 | K42: 0 | L42: 0 | M42: 0 | N42: 0 | O42: 0 | P42: 0 | Q42: 0 | R42: 0 | S42: 0 | T42: 0 | U42: 0 | V42: 0 | W42: 0 | X42: 0 | Y42: 0 | Z42: 0 | AA42: 0 | AB42: 0 | AC42: 0 | AD42: 0 | AE42: 0 | AF42: 0 | AG42: 0 | AH42: 0 | AI42: 0 | AJ42: 0 | AK42: 0 | AL42: 0 | AM42: 0 | AN42: 0 | AO42: 0 | AP42: 0 | AQ42: 0 | AR42: 0 | AS42: 0 | AT42: 0 | AU42: 0 | AV42: 0 | AW42: 0 | AX42: 0 | AY42: 0 | AZ42: 0 | BA42: 0 | BB42: 0 | BC42: 0 | BD42: 0 | BE42: 0 | BF42: 0 | BG42: 0 | BH42: 0 | BI42: 0 | BJ42: 0 | BK42: 0 | BL42: 0 | BM42: 0 | BN42: 0 | BO42: 0 | BP42: 0 | BQ42: 0 | BR42: 0 | BS42: 0 | BT42: 0 | BU42: 0 | BV42: 0 | BW42: 0 | BX42: 0 | BY42: 0 | BZ42: 0 | CA42: 0 | CB42: 0 | CC42: 0 | CD42: 0 | CE42: 0 | CF42: 0 | CG42: 0 | CH42: 0 | CI42: 0 | CJ42: 0 | CK42: 0 | CL42: 0 | CM42: 0 | CN42: 0 | CO42: 0 | CP42: 0 | CQ42: 0 | CR42: 0 | CS42: 0 | CT42: 0 | CU42: 0 | CV42: 0 | CW42: 0
B43: 0 | C43: 0 | D43: 0 | E43: 0 | F43: 0 | G43: 0 | H43: 0 | I43: 0 | J43: 0 | K43: 0 | L43: 0 | M43: 0 | N43: 0 | O43: 0 | P43: 0 | Q43: 0 | R43: 0 | S43: 0 | T43: 0 | U43: 0 | V43: 0 | W43: 0 | X43: 0 | Y43: 0 | Z43: 0 | AA43: 0 | AB43: 0 | AC43: 0 | AD43: 0 | AE43: 0 | AF43: 0 | AG43: 0 | AH43: 0 | AI43: 0 | AJ43: 0 | AK43: 0 | AL43: 0 | AM43: 0 | AN43: 0 | AO43: 0 | AP43: 0 | AQ43: 0 | AR43: 0 | AS43: 0 | AT43: 0 | AU43: 0 | AV43: 0 | AW43: 0 | AX43: 0 | AY43: 0 | AZ43: 0 | BA43: 0 | BB43: 0 | BC43: 0 | BD43: 0 | BE43: 0 | BF43: 0 | BG43: 0 | BH43: 0 | BI43: 0 | BJ43: 0 | BK43: 0 | BL43: 0 | BM43: 0 | BN43: 0 | BO43: 0 | BP43: 0 | BQ43: 0 | BR43: 0 | BS43: 0 | BT43: 0 | BU43: 0 | BV43: 0 | BW43: 0 | BX43: 0 | BY43: 0 | BZ43: 0 | CA43: 0 | CB43: 0 | CC43: 0 | CD43: 0 | CE43: 0 | CF43: 0 | CG43: 0 | CH43: 0 | CI43: 0 | CJ43: 0 | CK43: 0 | CL43: 0 | CM43: 0 | CN43: 0 | CO43: 0 | CP43: 0 | CQ43: 0 | CR43: 0 | CS43: 0 | CT43: 0 | CU43: 0 | CV43: 0 | CW43: 0
B44: 0 | C44: 0 | D44: 0 | E44: 0 | F44: 0 | G44: 0 | H44: 0 | I44: 0 | J44: 0 | K44: 0 | L44: 0 | M44: 0 | N44: 0 | O44: 0 | P44: 0 | Q44: 0 | R44: 0 | S44: 0 | T44: 0 | U44: 0 | V44: 0 | W44: 0 | X44: 0 | Y44: 0 | Z44: 0 | AA44: 0 | AB44: 0 | AC44: 0 | AD44: 0 | AE44: 0 | AF44: 0 | AG44: 0 | AH44: 0 | AI44: 0 | AJ44: 0 | AK44: 0 | AL44: 0 | AM44: 0 | AN44: 0 | AO44: 0 | AP44: 0 | AQ44: 0 | AR44: 0 | AS44: 0 | AT44: 0 | AU44: 0 | AV44: 0 | AW44: 0 | AX44: 0 | AY44: 0 | AZ44: 0 | BA44: 0 | BB44: 0 | BC44: 0 | BD44: 0 | BE44: 0 | BF44: 0 | BG44: 0 | BH44: 0 | BI44: 0 | BJ44: 0 | BK44: 0 | BL44: 0 | BM44: 0 | BN44: 0 | BO44: 0 | BP44: 0 | BQ44: 0 | BR44: 0 | BS44: 0 | BT44: 0 | BU44: 0 | BV44: 0 | BW44: 0 | BX44: 0 | BY44: 0 | BZ44: 0 | CA44: 0 | CB44: 0 | CC44: 0 | CD44: 0 | CE44: 0 | CF44: 0 | CG44: 0 | CH44: 0 | CI44: 0 | CJ44: 0 | CK44: 0 | CL44: 0 | CM44: 0 | CN44: 0 | CO44: 0 | CP44: 0 | CQ44: 0 | CR44: 0 | CS44: 0 | CT44: 0 | CU44: 0 | CV44: 0 | CW44: 0
B45: 0 | C45: 0 | D45: 0 | E45: 0 | F45: 0 | G45: 0 | H45: 0 | I45: 0 | J45: 0 | K45: 0 | L45: 0 | M45: 0 | N45: 0 | O45: 0 | P45: 0 | Q45: 0 | R45: 0 | S45: 0 | T45: 0 | U45: 0 | V45: 0 | W45: 0 | X45: 0 | Y45: 0 | Z45: 0 | AA45: 0 | AB45: 0 | AC45: 0 | AD45: 0 | AE45: 0 | AF45: 0 | AG45: 0 | AH45: 0 | AI45: 0 | AJ45: 0 | AK45: 0 | AL45: 0 | AM45: 0 | AN45: 0 | AO45: 0 | AP45: 0 | AQ45: 0 | AR45: 0 | AS45: 0 | AT45: 0 | AU45: 0 | AV45: 0 | AW45: 0 | AX45: 0 | AY45: 0 | AZ45: 0 | BA45: 0 | BB45: 0 | BC45: 0 | BD45: 0 | BE45: 0 | BF45: 0 | BG45: 0 | BH45: 0 | BI45: 0 | BJ45: 0 | BK45: 0 | BL45: 0 | BM45: 0 | BN45: 0 | BO45: 0 | BP45: 0 | BQ45: 0 | BR45: 0 | BS45: 0 | BT45: 0 | BU45: 0 | BV45: 0 | BW45: 0 | BX45: 0 | BY45: 0 | BZ45: 0 | CA45: 0 | CB45: 0 | CC45: 0 | CD45: 0 | CE45: 0 | CF45: 0 | CG45: 0 | CH45: 0 | CI45: 0 | CJ45: 0 | CK45: 0 | CL45: 0 | CM45: 0 | CN45: 0 | CO45: 0 | CP45: 0 | CQ45: 0 | CR45: 0 | CS45: 0 | CT45: 0 | CU45: 0 | CV45: 0 | CW45: 0
B46: 0 | C46: 0 | D46: 0 | E46: 0 | F46: 0 | G46: 0 | H46: 0 | I46: 0 | J46: 0 | K46: 0 | L46: 0 | M46: 0 | N46: 0 | O46: 0 | P46: 0 | Q46: 0 | R46: 0 | S46: 0 | T46: 0 | U46: 0 | V46: 0 | W46: 0 | X46: 0 | Y46: 0 | Z46: 0 | AA46: 0 | AB46: 0 | AC46: 0 | AD46: 0 | AE46: 0 | AF46: 0 | AG46: 0 | AH46: 0 | AI46: 0 | AJ46: 0 | AK46: 0 | AL46: 0 | AM46: 0 | AN46: 0 | AO46: 0 | AP46: 0 | AQ46: 0 | AR46: 0 | AS46: 0 | AT46: 0 | AU46: 0 | AV46: 0 | AW46: 0 | AX46: 0 | AY46: 0 | AZ46: 0 | BA46: 0 | BB46: 0 | BC46: 0 | BD46: 0 | BE46: 0 | BF46: 0 | BG46: 0 | BH46: 0 | BI46: 0 | BJ46: 0 | BK46: 0 | BL46: 0 | BM46: 0 | BN46: 0 | BO46: 0 | BP46: 0 | BQ46: 0 | BR46: 0 | BS46: 0 | BT46: 0 | BU46: 0 | BV46: 0 | BW46: 0 | BX46: 0 | BY46: 0 | BZ46: 0 | CA46: 0 | CB46: 0 | CC46: 0 | CD46: 0 | CE46: 0 | CF46: 0 | CG46: 0 | CH46: 0 | CI46: 0 | CJ46: 0 | CK46: 0 | CL46: 0 | CM46: 0 | CN46: 0 | CO46: 0 | CP46: 0 | CQ46: 0 | CR46: 0 | CS46: 0 | CT46: 0 | CU46: 0 | CV46: 0 | CW46: 0
B47: 0 | C47: 0 | D47: 0 | E47: 0 | F47: 0 | G47: 0 | H47: 0 | I47: 0 | J47: 0 | K47: 0 | L47: 0 | M47: 0 | N47: 0 | O47: 0 | P47: 0 | Q47: 0 | R47: 0 | S47: 0 | T47: 0 | U47: 0 | V47: 0 | W47: 0 | X47: 0 | Y47: 0 | Z47: 0 | AA47: 0 | AB47: 0 | AC47: 0 | AD47: 0 | AE47: 0 | AF47: 0 | AG47: 0 | AH47: 0 | AI47: 0 | AJ47: 0 | AK47: 0 | AL47: 0 | AM47: 0 | AN47: 0 | AO47: 0 | AP47: 0 | AQ47: 0 | AR47: 0 | AS47: 0 | AT47: 0 | AU47: 0 | AV47: 0 | AW47: 0 | AX47: 0 | AY47: 0 | AZ47: 0 | BA47: 0 | BB47: 0 | BC47: 0 | BD47: 0 | BE47: 0 | BF47: 0 | BG47: 0 | BH47: 0 | BI47: 0 | BJ47: 0 | BK47: 0 | BL47: 0 | BM47: 0 | BN47: 0 | BO47: 0 | BP47: 0 | BQ47: 0 | BR47: 0 | BS47: 0 | BT47: 0 | BU47: 0 | BV47: 0 | BW47: 0 | BX47: 0 | BY47: 0 | BZ47: 0 | CA47: 0 | CB47: 0 | CC47: 0 | CD47: 0 | CE47: 0 | CF47: 0 | CG47: 0 | CH47: 0 | CI47: 0 | CJ47: 0 | CK47: 0 | CL47: 0 | CM47: 0 | CN47: 0 | CO47: 0 | CP47: 0 | CQ47: 0 | CR47: 0 | CS47: 0 | CT47: 0 | CU47: 0 | CV47: 0 | CW47: 0
B48: 0 | C48: 0 | D48: 0 | E48: 0 | F48: 0 | G48: 0 | H48: 0 | I48: 0 | J48: 0 | K48: 0 | L48: 0 | M48: 0 | N48: 0 | O48: 0 | P48: 0 | Q48: 0 | R48: 0 | S48: 0 | T48: 0 | U48: 0 | V48: 0 | W48: 0 | X48: 0 | Y48: 0 | Z48: 0 | AA48: 0 | AB48: 0 | AC48: 0 | AD48: 0 | AE48: 0 | AF48: 0 | AG48: 0 | AH48: 0 | AI48: 0 | AJ48: 0 | AK48: 0 | AL48: 0 | AM48: 0 | AN48: 0 | AO48: 0 | AP48: 0 | AQ48: 0 | AR48: 0 | AS48: 0 | AT48: 0 | AU48: 0 | AV48: 0 | AW48: 0 | AX48: 0 | AY48: 0 | AZ48: 0 | BA48: 0 | BB48: 0 | BC48: 0 | BD48: 0 | BE48: 0 | BF48: 0 | BG48: 0 | BH48: 0 | BI48: 0 | BJ48: 0 | BK48: 0 | BL48: 0 | BM48: 0 | BN48: 0 | BO48: 0 | BP48: 0 | BQ48: 0 | BR48: 0 | BS48: 0 | BT48: 0 | BU48: 0 | BV48: 0 | BW48: 0 | BX48: 0 | BY48: 0 | BZ48: 0 | CA48: 0 | CB48: 0 | CC48: 0 | CD48: 0 | CE48: 0 | CF48: 0 | CG48: 0 | CH48: 0 | CI48: 0 | CJ48: 0 | CK48: 0 | CL48: 0 | CM48: 0 | CN48: 0 | CO48: 0 | CP48: 0 | CQ48: 0 | CR48: 0 | CS48: 0 | CT48: 0 | CU48: 0 | CV48: 0 | CW48: 0
B49: 0 | C49: 0 | D49: 0 | E49: 0 | F49: 0 | G49: 0 | H49: 0 | I49: 0 | J49: 0 | K49: 0 | L49: 0 | M49: 0 | N49: 0 | O49: 0 | P49: 0 | Q49: 0 | R49: 0 | S49: 0 | T49: 0 | U49: 0 | V49: 0 | W49: 0 | X49: 0 | Y49: 0 | Z49: 0 | AA49: 0 | AB49: 0 | AC49: 0 | AD49: 0 | AE49: 0 | AF49: 0 | AG49: 0 | AH49: 0 | AI49: 0 | AJ49: 0 | AK49: 0 | AL49: 0 | AM49: 0 | AN49: 0 | AO49: 0 | AP49: 0 | AQ49: 0 | AR49: 0 | AS49: 0 | AT49: 0 | AU49: 0 | AV49: 0 | AW49: 0 | AX49: 0 | AY49: 0 | AZ49: 0 | BA49: 0 | BB49: 0 | BC49: 0 | BD49: 0 | BE49: 0 | BF49: 0 | BG49: 0 | BH49: 0 | BI49: 0 | BJ49: 0 | BK49: 0 | BL49: 0 | BM49: 0 | BN49: 0 | BO49: 0 | BP49: 0 | BQ49: 0 | BR49: 0 | BS49: 0 | BT49: 0 | BU49: 0 | BV49: 0 | BW49: 0 | BX49: 0 | BY49: 0 | BZ49: 0 | CA49: 0 | CB49: 0 | CC49: 0 | CD49: 0 | CE49: 0 | CF49: 0 | CG49: 0 | CH49: 0 | CI49: 0 | CJ49: 0 | CK49: 0 | CL49: 0 | CM49: 0 | CN49: 0 | CO49: 0 | CP49: 0 | CQ49: 0 | CR49: 0 | CS49: 0 | CT49: 0 | CU49: 0 | CV49: 0 | CW49: 0
B50: -0.01265965904 | C50: 0.04049391775 | D50: -0.01310598532 | E50: -0.0002063076225 | F50: 0.01992875273 | G50: 0.03814035027 | H50: 0.01554118969 | I50: 0.0128652791 | J50: 0.007980949846 | K50: 0.005206896092 | L50: -0.01422526596 | M50: -0.0478009907 | N50: -0.01528058974 | O50: -0.009019183347 | P50: -0.002915254406 | Q50: 0.009555558529 | R50: -0.002706833049 | S50: -0.02991741894 | T50: -0.04571995186 | U50: -0.0526221871 | V50: 0.01488759796 | W50: 0.01194461261 | X50: -0.02868745014 | Y50: -0.02222269043 | Z50: -0.007177379146 | AA50: -0.05948530607 | AB50: 0.02847104889 | AC50: -0.01670416642 | AD50: 0.01901343464 | AE50: -0.01834751448 | AF50: -0.0402996834 | AG50: -0.05064266698 | AH50: -0.06598853507 | AI50: 0.01057907993 | AJ50: -0.005820496041 | AK50: -0.00427661417 | AL50: 0.008131198932 | AM50: 0.002758204924 | AN50: -0.05190583726 | AO50: 0.03948833314 | AP50: 0.01227442882 | AQ50: -0.04186512971 | AR50: 0.01692940362 | AS50: -0.02325266997 | AT50: -0.06343876233 | AU50: -0.06527564494 | AV50: -0.02204333462 | AW50: -0.0294974357 | AX50: -0.02096478016 | AY50: 0.06131209748 | AZ50: -0.01188263028 | BA50: -0.04770242243 | BB50: 0.006661949992 | BC50: 0.01809722091 | BD50: 0.02148575852 | BE50: 0.00731777101 | BF50: -0.01271799302 | BG50: -0.0276387034 | BH50: 0.008719012391 | BI50: 0.03174563847 | BJ50: -0.01435941312 | BK50: -0.03643984313 | BL50: 0.02785966481 | BM50: -0.03678056942 | BN50: 0.01595686972 | BO50: -0.02216782875 | BP50: 0.02151137559 | BQ50: -0.003330799365 | BR50: -0.001859602023 | BS50: -0.004236902087 | BT50: -0.06231070277 | BU50: -0.01147723913 | BV50: 0.03817426867 | BW50: -0.02263675736 | BX50: -0.01011235816 | BY50: 0.00388297397 | BZ50: 0.004321351043 | CA50: 0.04010253945 | CB50: 0.0002497889738 | CC50: 0.01080463374 | CD50: -0.03742496336 | CE50: 0.006113403279 | CF50: -0.03642388993 | CG50: -0.002427222925 | CH50: 0.01887773212 | CI50: -0.0008596398647 | CJ50: -0.03926220708 | CK50: 0.003676272062 | CL50: 0.01661949095 | CM50: 0.0355809645 | CN50: -0.02133757522 | CO50: -0.05462117024 | CP50: -0.001110548961 | CQ50: 0.005003534109 | CR50: -0.0107165417 | CS50: -0.007023957146 | CT50: 0.0294112641 | CU50: -0.02538864276 | CV50: 0.04240331308 | CW50: 0.005978628126
B51: 0 | C51: 0 | D51: 0 | E51: 0 | F51: 0 | G51: 0 | H51: 0 | I51: 0 | J51: 0 | K51: 0 | L51: 0 | M51: 0 | N51: 0 | O51: 0 | P51: 0 | Q51: 0 | R51: 0 | S51: 0 | T51: 0 | U51: 0 | V51: 0 | W51: 0 | X51: 0 | Y51: 0 | Z51: 0 | AA51: 0 | AB51: 0 | AC51: 0 | AD51: 0 | AE51: 0 | AF51: 0 | AG51: 0 | AH51: 0 | AI51: 0 | AJ51: 0 | AK51: 0 | AL51: 0 | AM51: 0 | AN51: 0 | AO51: 0 | AP51: 0 | AQ51: 0 | AR51: 0 | AS51: 0 | AT51: 0 | AU51: 0 | AV51: 0 | AW51: 0 | AX51: 0 | AY51: 0 | AZ51: 0 | BA51: 0 | BB51: 0 | BC51: 0 | BD51: 0 | BE51: 0 | BF51: 0 | BG51: 0 | BH51: 0 | BI51: 0 | BJ51: 0 | BK51: 0 | BL51: 0 | BM51: 0 | BN51: 0 | BO51: 0 | BP51: 0 | BQ51: 0 | BR51: 0 | BS51: 0 | BT51: 0 | BU51: 0 | BV51: 0 | BW51: 0 | BX51: 0 | BY51: 0 | BZ51: 0 | CA51: 0 | CB51: 0 | CC51: 0 | CD51: 0 | CE51: 0 | CF51: 0 | CG51: 0 | CH51: 0 | CI51: 0 | CJ51: 0 | CK51: 0 | CL51: 0 | CM51: 0 | CN51: 0 | CO51: 0 | CP51: 0 | CQ51: 0 | CR51: 0 | CS51: 0 | CT51: 0 | CU51: 0 | CV51: 0 | CW51: 0
B52: 0 | C52: 0 | D52: 0 | E52: 0 | F52: 0 | G52: 0 | H52: 0 | I52: 0 | J52: 0 | K52: 0 | L52: 0 | M52: 0 | N52: 0 | O52: 0 | P52: 0 | Q52: 0 | R52: 0 | S52: 0 | T52: 0 | U52: 0 | V52: 0 | W52: 0 | X52: 0 | Y52: 0 | Z52: 0 | AA52: 0 | AB52: 0 | AC52: 0 | AD52: 0 | AE52: 0 | AF52: 0 | AG52: 0 | AH52: 0 | AI52: 0 | AJ52: 0 | AK52: 0 | AL52: 0 | AM52: 0 | AN52: 0 | AO52: 0 | AP52: 0 | AQ52: 0 | AR52: 0 | AS52: 0 | AT52: 0 | AU52: 0 | AV52: 0 | AW52: 0 | AX52: 0 | AY52: 0 | AZ52: 0 | BA52: 0 | BB52: 0 | BC52: 0 | BD52: 0 | BE52: 0 | BF52: 0 | BG52: 0 | BH52: 0 | BI52: 0 | BJ52: 0 | BK52: 0 | BL52: 0 | BM52: 0 | BN52: 0 | BO52: 0 | BP52: 0 | BQ52: 0 | BR52: 0 | BS52: 0 | BT52: 0 | BU52: 0 | BV52: 0 | BW52: 0 | BX52: 0 | BY52: 0 | BZ52: 0 | CA52: 0 | CB52: 0 | CC52: 0 | CD52: 0 | CE52: 0 | CF52: 0 | CG52: 0 | CH52: 0 | CI52: 0 | CJ52: 0 | CK52: 0 | CL52: 0 | CM52: 0 | CN52: 0 | CO52: 0 | CP52: 0 | CQ52: 0 | CR52: 0 | CS52: 0 | CT52: 0 | CU52: 0 | CV52: 0 | CW52: 0
B53: 0 | C53: 0 | D53: 0 | E53: 0 | F53: 0 | G53: 0 | H53: 0 | I53: 0 | J53: 0 | K53: 0 | L53: 0 | M53: 0 | N53: 0 | O53: 0 | P53: 0 | Q53: 0 | R53: 0 | S53: 0 | T53: 0 | U53: 0 | V53: 0 | W53: 0 | X53: 0 | Y53: 0 | Z53: 0 | AA53: 0 | AB53: 0 | AC53: 0 | AD53: 0 | AE53: 0 | AF53: 0 | AG53: 0 | AH53: 0 | AI53: 0 | AJ53: 0 | AK53: 0 | AL53: 0 | AM53: 0 | AN53: 0 | AO53: 0 | AP53: 0 | AQ53: 0 | AR53: 0 | AS53: 0 | AT53: 0 | AU53: 0 | AV53: 0 | AW53: 0 | AX53: 0 | AY53: 0 | AZ53: 0 | BA53: 0 | BB53: 0 | BC53: 0 | BD53: 0 | BE53: 0 | BF53: 0 | BG53: 0 | BH53: 0 | BI53: 0 | BJ53: 0 | BK53: 0 | BL53: 0 | BM53: 0 | BN53: 0 | BO53: 0 | BP53: 0 | BQ53: 0 | BR53: 0 | BS53: 0 | BT53: 0 | BU53: 0 | BV53: 0 | BW53: 0 | BX53: 0 | BY53: 0 | BZ53: 0 | CA53: 0 | CB53: 0 | CC53: 0 | CD53: 0 | CE53: 0 | CF53: 0 | CG53: 0 | CH53: 0 | CI53: 0 | CJ53: 0 | CK53: 0 | CL53: 0 | CM53: 0 | CN53: 0 | CO53: 0 | CP53: 0 | CQ53: 0 | CR53: 0 | CS53: 0 | CT53: 0 | CU53: 0 | CV53: 0 | CW53: 0
B54: 0 | C54: 0 | D54: 0 | E54: 0 | F54: 0 | G54: 0 | H54: 0 | I54: 0 | J54: 0 | K54: 0 | L54: 0 | M54: 0 | N54: 0 | O54: 0 | P54: 0 | Q54: 0 | R54: 0 | S54: 0 | T54: 0 | U54: 0 | V54: 0 | W54: 0 | X54: 0 | Y54: 0 | Z54: 0 | AA54: 0 | AB54: 0 | AC54: 0 | AD54: 0 | AE54: 0 | AF54: 0 | AG54: 0 | AH54: 0 | AI54: 0 | AJ54: 0 | AK54: 0 | AL54: 0 | AM54: 0 | AN54: 0 | AO54: 0 | AP54: 0 | AQ54: 0 | AR54: 0 | AS54: 0 | AT54: 0 | AU54: 0 | AV54: 0 | AW54: 0 | AX54: 0 | AY54: 0 | AZ54: 0 | BA54: 0 | BB54: 0 | BC54: 0 | BD54: 0 | BE54: 0 | BF54: 0 | BG54: 0 | BH54: 0 | BI54: 0 | BJ54: 0 | BK54: 0 | BL54: 0 | BM54: 0 | BN54: 0 | BO54: 0 | BP54: 0 | BQ54: 0 | BR54: 0 | BS54: 0 | BT54: 0 | BU54: 0 | BV54: 0 | BW54: 0 | BX54: 0 | BY54: 0 | BZ54: 0 | CA54: 0 | CB54: 0 | CC54: 0 | CD54: 0 | CE54: 0 | CF54: 0 | CG54: 0 | CH54: 0 | CI54: 0 | CJ54: 0 | CK54: 0 | CL54: 0 | CM54: 0 | CN54: 0 | CO54: 0 | CP54: 0 | CQ54: 0 | CR54: 0 | CS54: 0 | CT54: 0 | CU54: 0 | CV54: 0 | CW54: 0
B55: 0 | C55: 0 | D55: 0 | E55: 0 | F55: 0 | G55: 0 | H55: 0 | I55: 0 | J55: 0 | K55: 0 | L55: 0 | M55: 0 | N55: 0 | O55: 0 | P55: 0 | Q55: 0 | R55: 0 | S55: 0 | T55: 0 | U55: 0 | V55: 0 | W55: 0 | X55: 0 | Y55: 0 | Z55: 0 | AA55: 0 | AB55: 0 | AC55: 0 | AD55: 0 | AE55: 0 | AF55: 0 | AG55: 0 | AH55: 0 | AI55: 0 | AJ55: 0 | AK55: 0 | AL55: 0 | AM55: 0 | AN55: 0 | AO55: 0 | AP55: 0 | AQ55: 0 | AR55: 0 | AS55: 0 | AT55: 0 | AU55: 0 | AV55: 0 | AW55: 0 | AX55: 0 | AY55: 0 | AZ55: 0 | BA55: 0 | BB55: 0 | BC55: 0 | BD55: 0 | BE55: 0 | BF55: 0 | BG55: 0 | BH55: 0 | BI55: 0 | BJ55: 0 | BK55: 0 | BL55: 0 | BM55: 0 | BN55: 0 | BO55: 0 | BP55: 0 | BQ55: 0 | BR55: 0 | BS55: 0 | BT55: 0 | BU55: 0 | BV55: 0 | BW55: 0 | BX55: 0 | BY55: 0 | BZ55: 0 | CA55: 0 | CB55: 0 | CC55: 0 | CD55: 0 | CE55: 0 | CF55: 0 | CG55: 0 | CH55: 0 | CI55: 0 | CJ55: 0 | CK55: 0 | CL55: 0 | CM55: 0 | CN55: 0 | CO55: 0 | CP55: 0 | CQ55: 0 | CR55: 0 | CS55: 0 | CT55: 0 | CU55: 0 | CV55: 0 | CW55: 0
B56: 0 | C56: 0 | D56: 0 | E56: 0 | F56: 0 | G56: 0 | H56: 0 | I56: 0 | J56: 0 | K56: 0 | L56: 0 | M56: 0 | N56: 0 | O56: 0 | P56: 0 | Q56: 0 | R56: 0 | S56: 0 | T56: 0 | U56: 0 | V56: 0 | W56: 0 | X56: 0 | Y56: 0 | Z56: 0 | AA56: 0 | AB56: 0 | AC56: 0 | AD56: 0 | AE56: 0 | AF56: 0 | AG56: 0 | AH56: 0 | AI56: 0 | AJ56: 0 | AK56: 0 | AL56: 0 | AM56: 0 | AN56: 0 | AO56: 0 | AP56: 0 | AQ56: 0 | AR56: 0 | AS56: 0 | AT56: 0 | AU56: 0 | AV56: 0 | AW56: 0 | AX56: 0 | AY56: 0 | AZ56: 0 | BA56: 0 | BB56: 0 | BC56: 0 | BD56: 0 | BE56: 0 | BF56: 0 | BG56: 0 | BH56: 0 | BI56: 0 | BJ56: 0 | BK56: 0 | BL56: 0 | BM56: 0 | BN56: 0 | BO56: 0 | BP56: 0 | BQ56: 0 | BR56: 0 | BS56: 0 | BT56: 0 | BU56: 0 | BV56: 0 | BW56: 0 | BX56: 0 | BY56: 0 | BZ56: 0 | CA56: 0 | CB56: 0 | CC56: 0 | CD56: 0 | CE56: 0 | CF56: 0 | CG56: 0 | CH56: 0 | CI56: 0 | CJ56: 0 | CK56: 0 | CL56: 0 | CM56: 0 | CN56: 0 | CO56: 0 | CP56: 0 | CQ56: 0 | CR56: 0 | CS56: 0 | CT56: 0 | CU56: 0 | CV56: 0 | CW56: 0
B57: 0 | C57: 0 | D57: 0 | E57: 0 | F57: 0 | G57: 0 | H57: 0 | I57: 0 | J57: 0 | K57: 0 | L57: 0 | M57: 0 | N57: 0 | O57: 0 | P57: 0 | Q57: 0 | R57: 0 | S57: 0 | T57: 0 | U57: 0 | V57: 0 | W57: 0 | X57: 0 | Y57: 0 | Z57: 0 | AA57: 0 | AB57: 0 | AC57: 0 | AD57: 0 | AE57: 0 | AF57: 0 | AG57: 0 | AH57: 0 | AI57: 0 | AJ57: 0 | AK57: 0 | AL57: 0 | AM57: 0 | AN57: 0 | AO57: 0 | AP57: 0 | AQ57: 0 | AR57: 0 | AS57: 0 | AT57: 0 | AU57: 0 | AV57: 0 | AW57: 0 | AX57: 0 | AY57: 0 | AZ57: 0 | BA57: 0 | BB57: 0 | BC57: 0 | BD57: 0 | BE57: 0 | BF57: 0 | BG57: 0 | BH57: 0 | BI57: 0 | BJ57: 0 | BK57: 0 | BL57: 0 | BM57: 0 | BN57: 0 | BO57: 0 | BP57: 0 | BQ57: 0 | BR57: 0 | BS57: 0 | BT57: 0 | BU57: 0 | BV57: 0 | BW57: 0 | BX57: 0 | BY57: 0 | BZ57: 0 | CA57: 0 | CB57: 0 | CC57: 0 | CD57: 0 | CE57: 0 | CF57: 0 | CG57: 0 | CH57: 0 | CI57: 0 | CJ57: 0 | CK57: 0 | CL57: 0 | CM57: 0 | CN57: 0 | CO57: 0 | CP57: 0 | CQ57: 0 | CR57: 0 | CS57: 0 | CT57: 0 | CU57: 0 | CV57: 0 | CW57: 0
B58: 0 | C58: 0 | D58: 0 | E58: 0 | F58: 0 | G58: 0 | H58: 0 | I58: 0 | J58: 0 | K58: 0 | L58: 0 | M58: 0 | N58: 0 | O58: 0 | P58: 0 | Q58: 0 | R58: 0 | S58: 0 | T58: 0 | U58: 0 | V58: 0 | W58: 0 | X58: 0 | Y58: 0 | Z58: 0 | AA58: 0 | AB58: 0 | AC58: 0 | AD58: 0 | AE58: 0 | AF58: 0 | AG58: 0 | AH58: 0 | AI58: 0 | AJ58: 0 | AK58: 0 | AL58: 0 | AM58: 0 | AN58: 0 | AO58: 0 | AP58: 0 | AQ58: 0 | AR58: 0 | AS58: 0 | AT58: 0 | AU58: 0 | AV58: 0 | AW58: 0 | AX58: 0 | AY58: 0 | AZ58: 0 | BA58: 0 | BB58: 0 | BC58: 0 | BD58: 0 | BE58: 0 | BF58: 0 | BG58: 0 | BH58: 0 | BI58: 0 | BJ58: 0 | BK58: 0 | BL58: 0 | BM58: 0 | BN58: 0 | BO58: 0 | BP58: 0 | BQ58: 0 | BR58: 0 | BS58: 0 | BT58: 0 | BU58: 0 | BV58: 0 | BW58: 0 | BX58: 0 | BY58: 0 | BZ58: 0 | CA58: 0 | CB58: 0 | CC58: 0 | CD58: 0 | CE58: 0 | CF58: 0 | CG58: 0 | CH58: 0 | CI58: 0 | CJ58: 0 | CK58: 0 | CL58: 0 | CM58: 0 | CN58: 0 | CO58: 0 | CP58: 0 | CQ58: 0 | CR58: 0 | CS58: 0 | CT58: 0 | CU58: 0 | CV58: 0 | CW58: 0
B59: 0 | C59: 0 | D59: 0 | E59: 0 | F59: 0 | G59: 0 | H59: 0 | I59: 0 | J59: 0 | K59: 0 | L59: 0 | M59: 0 | N59: 0 | O59: 0 | P59: 0 | Q59: 0 | R59: 0 | S59: 0 | T59: 0 | U59: 0 | V59: 0 | W59: 0 | X59: 0 | Y59: 0 | Z59: 0 | AA59: 0 | AB59: 0 | AC59: 0 | AD59: 0 | AE59: 0 | AF59: 0 | AG59: 0 | AH59: 0 | AI59: 0 | AJ59: 0 | AK59: 0 | AL59: 0 | AM59: 0 | AN59: 0 | AO59: 0 | AP59: 0 | AQ59: 0 | AR59: 0 | AS59: 0 | AT59: 0 | AU59: 0 | AV59: 0 | AW59: 0 | AX59: 0 | AY59: 0 | AZ59: 0 | BA59: 0 | BB59: 0 | BC59: 0 | BD59: 0 | BE59: 0 | BF59: 0 | BG59: 0 | BH59: 0 | BI59: 0 | BJ59: 0 | BK59: 0 | BL59: 0 | BM59: 0 | BN59: 0 | BO59: 0 | BP59: 0 | BQ59: 0 | BR59: 0 | BS59: 0 | BT59: 0 | BU59: 0 | BV59: 0 | BW59: 0 | BX59: 0 | BY59: 0 | BZ59: 0 | CA59: 0 | CB59: 0 | CC59: 0 | CD59: 0 | CE59: 0 | CF59: 0 | CG59: 0 | CH59: 0 | CI59: 0 | CJ59: 0 | CK59: 0 | CL59: 0 | CM59: 0 | CN59: 0 | CO59: 0 | CP59: 0 | CQ59: 0 | CR59: 0 | CS59: 0 | CT59: 0 | CU59: 0 | CV59: 0 | CW59: 0
B60: 0 | C60: 0 | D60: 0 | E60: 0 | F60: 0 | G60: 0 | H60: 0 | I60: 0 | J60: 0 | K60: 0 | L60: 0 | M60: 0 | N60: 0 | O60: 0 | P60: 0 | Q60: 0 | R60: 0 | S60: 0 | T60: 0 | U60: 0 | V60: 0 | W60: 0 | X60: 0 | Y60: 0 | Z60: 0 | AA60: 0 | AB60: 0 | AC60: 0 | AD60: 0 | AE60: 0 | AF60: 0 | AG60: 0 | AH60: 0 | AI60: 0 | AJ60: 0 | AK60: 0 | AL60: 0 | AM60: 0 | AN60: 0 | AO60: 0 | AP60: 0 | AQ60: 0 | AR60: 0 | AS60: 0 | AT60: 0 | AU60: 0 | AV60: 0 | AW60: 0 | AX60: 0 | AY60: 0 | AZ60: 0 | BA60: 0 | BB60: 0 | BC60: 0 | BD60: 0 | BE60: 0 | BF60: 0 | BG60: 0 | BH60: 0 | BI60: 0 | BJ60: 0 | BK60: 0 | BL60: 0 | BM60: 0 | BN60: 0 | BO60: 0 | BP60: 0 | BQ60: 0 | BR60: 0 | BS60: 0 | BT60: 0 | BU60: 0 | BV60: 0 | BW60: 0 | BX60: 0 | BY60: 0 | BZ60: 0 | CA60: 0 | CB60: 0 | CC60: 0 | CD60: 0 | CE60: 0 | CF60: 0 | CG60: 0 | CH60: 0 | CI60: 0 | CJ60: 0 | CK60: 0 | CL60: 0 | CM60: 0 | CN60: 0 | CO60: 0 | CP60: 0 | CQ60: 0 | CR60: 0 | CS60: 0 | CT60: 0 | CU60: 0 | CV60: 0 | CW60: 0
B61: 0 | C61: 0 | D61: 0 | E61: 0 | F61: 0 | G61: 0 | H61: 0 | I61: 0 | J61: 0 | K61: 0 | L61: 0 | M61: 0 | N61: 0 | O61: 0 | P61: 0 | Q61: 0 | R61: 0 | S61: 0 | T61: 0 | U61: 0 | V61: 0 | W61: 0 | X61: 0 | Y61: 0 | Z61: 0 | AA61: 0 | AB61: 0 | AC61: 0 | AD61: 0 | AE61: 0 | AF61: 0 | AG61: 0 | AH61: 0 | AI61: 0 | AJ61: 0 | AK61: 0 | AL61: 0 | AM61: 0 | AN61: 0 | AO61: 0 | AP61: 0 | AQ61: 0 | AR61: 0 | AS61: 0 | AT61: 0 | AU61: 0 | AV61: 0 | AW61: 0 | AX61: 0 | AY61: 0 | AZ61: 0 | BA61: 0 | BB61: 0 | BC61: 0 | BD61: 0 | BE61: 0 | BF61: 0 | BG61: 0 | BH61: 0 | BI61: 0 | BJ61: 0 | BK61: 0 | BL61: 0 | BM61: 0 | BN61: 0 | BO61: 0 | BP61: 0 | BQ61: 0 | BR61: 0 | BS61: 0 | BT61: 0 | BU61: 0 | BV61: 0 | BW61: 0 | BX61: 0 | BY61: 0 | BZ61: 0 | CA61: 0 | CB61: 0 | CC61: 0 | CD61: 0 | CE61: 0 | CF61: 0 | CG61: 0 | CH61: 0 | CI61: 0 | CJ61: 0 | CK61: 0 | CL61: 0 | CM61: 0 | CN61: 0 | CO61: 0 | CP61: 0 | CQ61: 0 | CR61: 0 | CS61: 0 | CT61: 0 | CU61: 0 | CV61: 0 | CW61: 0
B62: 0 | C62: 0 | D62: 0 | E62: 0 | F62: 0 | G62: 0 | H62: 0 | I62: 0 | J62: 0 | K62: 0 | L62: 0 | M62: 0 | N62: 0 | O62: 0 | P62: 0 | Q62: 0 | R62: 0 | S62: 0 | T62: 0 | U62: 0 | V62: 0 | W62: 0 | X62: 0 | Y62: 0 | Z62: 0 | AA62: 0 | AB62: 0 | AC62: 0 | AD62: 0 | AE62: 0 | AF62: 0 | AG62: 0 | AH62: 0 | AI62: 0 | AJ62: 0 | AK62: 0 | AL62: 0 | AM62: 0 | AN62: 0 | AO62: 0 | AP62: 0 | AQ62: 0 | AR62: 0 | AS62: 0 | AT62: 0 | AU62: 0 | AV62: 0 | AW62: 0 | AX62: 0 | AY62: 0 | AZ62: 0 | BA62: 0 | BB62: 0 | BC62: 0 | BD62: 0 | BE62: 0 | BF62: 0 | BG62: 0 | BH62: 0 | BI62: 0 | BJ62: 0 | BK62: 0 | BL62: 0 | BM62: 0 | BN62: 0 | BO62: 0 | BP62: 0 | BQ62: 0 | BR62: 0 | BS62: 0 | BT62: 0 | BU62: 0 | BV62: 0 | BW62: 0 | BX62: 0 | BY62: 0 | BZ62: 0 | CA62: 0 | CB62: 0 | CC62: 0 | CD62: 0 | CE62: 0 | CF62: 0 | CG62: 0 | CH62: 0 | CI62: 0 | CJ62: 0 | CK62: 0 | CL62: 0 | CM62: 0 | CN62: 0 | CO62: 0 | CP62: 0 | CQ62: 0 | CR62: 0 | CS62: 0 | CT62: 0 | CU62: 0 | CV62: 0 | CW62: 0
B63: 0 | C63: 0 | D63: 0 | E63: 0 | F63: 0 | G63: 0 | H63: 0 | I63: 0 | J63: 0 | K63: 0 | L63: 0 | M63: 0 | N63: 0 | O63: 0 | P63: 0 | Q63: 0 | R63: 0 | S63: 0 | T63: 0 | U63: 0 | V63: 0 | W63: 0 | X63: 0 | Y63: 0 | Z63: 0 | AA63: 0 | AB63: 0 | AC63: 0 | AD63: 0 | AE63: 0 | AF63: 0 | AG63: 0 | AH63: 0 | AI63: 0 | AJ63: 0 | AK63: 0 | AL63: 0 | AM63: 0 | AN63: 0 | AO63: 0 | AP63: 0 | AQ63: 0 | AR63: 0 | AS63: 0 | AT63: 0 | AU63: 0 | AV63: 0 | AW63: 0 | AX63: 0 | AY63: 0 | AZ63: 0 | BA63: 0 | BB63: 0 | BC63: 0 | BD63: 0 | BE63: 0 | BF63: 0 | BG63: 0 | BH63: 0 | BI63: 0 | BJ63: 0 | BK63: 0 | BL63: 0 | BM63: 0 | BN63: 0 | BO63: 0 | BP63: 0 | BQ63: 0 | BR63: 0 | BS63: 0 | BT63: 0 | BU63: 0 | BV63: 0 | BW63: 0 | BX63: 0 | BY63: 0 | BZ63: 0 | CA63: 0 | CB63: 0 | CC63: 0 | CD63: 0 | CE63: 0 | CF63: 0 | CG63: 0 | CH63: 0 | CI63: 0 | CJ63: 0 | CK63: 0 | CL63: 0 | CM63: 0 | CN63: 0 | CO63: 0 | CP63: 0 | CQ63: 0 | CR63: 0 | CS63: 0 | CT63: 0 | CU63: 0 | CV63: 0 | CW63: 0
B64: 0 | C64: 0 | D64: 0 | E64: 0 | F64: 0 | G64: 0 | H64: 0 | I64: 0 | J64: 0 | K64: 0 | L64: 0 | M64: 0 | N64: 0 | O64: 0 | P64: 0 | Q64: 0 | R64: 0 | S64: 0 | T64: 0 | U64: 0 | V64: 0 | W64: 0 | X64: 0 | Y64: 0 | Z64: 0 | AA64: 0 | AB64: 0 | AC64: 0 | AD64: 0 | AE64: 0 | AF64: 0 | AG64: 0 | AH64: 0 | AI64: 0 | AJ64: 0 | AK64: 0 | AL64: 0 | AM64: 0 | AN64: 0 | AO64: 0 | AP64: 0 | AQ64: 0 | AR64: 0 | AS64: 0 | AT64: 0 | AU64: 0 | AV64: 0 | AW64: 0 | AX64: 0 | AY64: 0 | AZ64: 0 | BA64: 0 | BB64: 0 | BC64: 0 | BD64: 0 | BE64: 0 | BF64: 0 | BG64: 0 | BH64: 0 | BI64: 0 | BJ64: 0 | BK64: 0 | BL64: 0 | BM64: 0 | BN64: 0 | BO64: 0 | BP64: 0 | BQ64: 0 | BR64: 0 | BS64: 0 | BT64: 0 | BU64: 0 | BV64: 0 | BW64: 0 | BX64: 0 | BY64: 0 | BZ64: 0 | CA64: 0 | CB64: 0 | CC64: 0 | CD64: 0 | CE64: 0 | CF64: 0 | CG64: 0 | CH64: 0 | CI64: 0 | CJ64: 0 | CK64: 0 | CL64: 0 | CM64: 0 | CN64: 0 | CO64: 0 | CP64: 0 | CQ64: 0 | CR64: 0 | CS64: 0 | CT64: 0 | CU64: 0 | CV64: 0 | CW64: 0
B65: 0 | C65: 0 | D65: 0 | E65: 0 | F65: 0 | G65: 0 | H65: 0 | I65: 0 | J65: 0 | K65: 0 | L65: 0 | M65: 0 | N65: 0 | O65: 0 | P65: 0 | Q65: 0 | R65: 0 | S65: 0 | T65: 0 | U65: 0 | V65: 0 | W65: 0 | X65: 0 | Y65: 0 | Z65: 0 | AA65: 0 | AB65: 0 | AC65: 0 | AD65: 0 | AE65: 0 | AF65: 0 | AG65: 0 | AH65: 0 | AI65: 0 | AJ65: 0 | AK65: 0 | AL65: 0 | AM65: 0 | AN65: 0 | AO65: 0 | AP65: 0 | AQ65: 0 | AR65: 0 | AS65: 0 | AT65: 0 | AU65: 0 | AV65: 0 | AW65: 0 | AX65: 0 | AY65: 0 | AZ65: 0 | BA65: 0 | BB65: 0 | BC65: 0 | BD65: 0 | BE65: 0 | BF65: 0 | BG65: 0 | BH65: 0 | BI65: 0 | BJ65: 0 | BK65: 0 | BL65: 0 | BM65: 0 | BN65: 0 | BO65: 0 | BP65: 0 | BQ65: 0 | BR65: 0 | BS65: 0 | BT65: 0 | BU65: 0 | BV65: 0 | BW65: 0 | BX65: 0 | BY65: 0 | BZ65: 0 | CA65: 0 | CB65: 0 | CC65: 0 | CD65: 0 | CE65: 0 | CF65: 0 | CG65: 0 | CH65: 0 | CI65: 0 | CJ65: 0 | CK65: 0 | CL65: 0 | CM65: 0 | CN65: 0 | CO65: 0 | CP65: 0 | CQ65: 0 | CR65: 0 | CS65: 0 | CT65: 0 | CU65: 0 | CV65: 0 | CW65: 0
B66: 0 | C66: 0 | D66: 0 | E66: 0 | F66: 0 | G66: 0 | H66: 0 | I66: 0 | J66: 0 | K66: 0 | L66: 0 | M66: 0 | N66: 0 | O66: 0 | P66: 0 | Q66: 0 | R66: 0 | S66: 0 | T66: 0 | U66: 0 | V66: 0 | W66: 0 | X66: 0 | Y66: 0 | Z66: 0 | AA66: 0 | AB66: 0 | AC66: 0 | AD66: 0 | AE66: 0 | AF66: 0 | AG66: 0 | AH66: 0 | AI66: 0 | AJ66: 0 | AK66: 0 | AL66: 0 | AM66: 0 | AN66: 0 | AO66: 0 | AP66: 0 | AQ66: 0 | AR66: 0 | AS66: 0 | AT66: 0 | AU66: 0 | AV66: 0 | AW66: 0 | AX66: 0 | AY66: 0 | AZ66: 0 | BA66: 0 | BB66: 0 | BC66: 0 | BD66: 0 | BE66: 0 | BF66: 0 | BG66: 0 | BH66: 0 | BI66: 0 | BJ66: 0 | BK66: 0 | BL66: 0 | BM66: 0 | BN66: 0 | BO66: 0 | BP66: 0 | BQ66: 0 | BR66: 0 | BS66: 0 | BT66: 0 | BU66: 0 | BV66: 0 | BW66: 0 | BX66: 0 | BY66: 0 | BZ66: 0 | CA66: 0 | CB66: 0 | CC66: 0 | CD66: 0 | CE66: 0 | CF66: 0 | CG66: 0 | CH66: 0 | CI66: 0 | CJ66: 0 | CK66: 0 | CL66: 0 | CM66: 0 | CN66: 0 | CO66: 0 | CP66: 0 | CQ66: 0 | CR66: 0 | CS66: 0 | CT66: 0 | CU66: 0 | CV66: 0 | CW66: 0
B67: 0 | C67: 0 | D67: 0 | E67: 0 | F67: 0 | G67: 0 | H67: 0 | I67: 0 | J67: 0 | K67: 0 | L67: 0 | M67: 0 | N67: 0 | O67: 0 | P67: 0 | Q67: 0 | R67: 0 | S67: 0 | T67: 0 | U67: 0 | V67: 0 | W67: 0 | X67: 0 | Y67: 0 | Z67: 0 | AA67: 0 | AB67: 0 | AC67: 0 | AD67: 0 | AE67: 0 | AF67: 0 | AG67: 0 | AH67: 0 | AI67: 0 | AJ67: 0 | AK67: 0 | AL67: 0 | AM67: 0 | AN67: 0 | AO67: 0 | AP67: 0 | AQ67: 0 | AR67: 0 | AS67: 0 | AT67: 0 | AU67: 0 | AV67: 0 | AW67: 0 | AX67: 0 | AY67: 0 | AZ67: 0 | BA67: 0 | BB67: 0 | BC67: 0 | BD67: 0 | BE67: 0 | BF67: 0 | BG67: 0 | BH67: 0 | BI67: 0 | BJ67: 0 | BK67: 0 | BL67: 0 | BM67: 0 | BN67: 0 | BO67: 0 | BP67: 0 | BQ67: 0 | BR67: 0 | BS67: 0 | BT67: 0 | BU67: 0 | BV67: 0 | BW67: 0 | BX67: 0 | BY67: 0 | BZ67: 0 | CA67: 0 | CB67: 0 | CC67: 0 | CD67: 0 | CE67: 0 | CF67: 0 | CG67: 0 | CH67: 0 | CI67: 0 | CJ67: 0 | CK67: 0 | CL67: 0 | CM67: 0 | CN67: 0 | CO67: 0 | CP67: 0 | CQ67: 0 | CR67: 0 | CS67: 0 | CT67: 0 | CU67: 0 | CV67: 0 | CW67: 0
B68: 0 | C68: 0 | D68: 0 | E68: 0 | F68: 0 | G68: 0 | H68: 0 | I68: 0 | J68: 0 | K68: 0 | L68: 0 | M68: 0 | N68: 0 | O68: 0 | P68: 0 | Q68: 0 | R68: 0 | S68: 0 | T68: 0 | U68: 0 | V68: 0 | W68: 0 | X68: 0 | Y68: 0 | Z68: 0 | AA68: 0 | AB68: 0 | AC68: 0 | AD68: 0 | AE68: 0 | AF68: 0 | AG68: 0 | AH68: 0 | AI68: 0 | AJ68: 0 | AK68: 0 | AL68: 0 | AM68: 0 | AN68: 0 | AO68: 0 | AP68: 0 | AQ68: 0 | AR68: 0 | AS68: 0 | AT68: 0 | AU68: 0 | AV68: 0 | AW68: 0 | AX68: 0 | AY68: 0 | AZ68: 0 | BA68: 0 | BB68: 0 | BC68: 0 | BD68: 0 | BE68: 0 | BF68: 0 | BG68: 0 | BH68: 0 | BI68: 0 | BJ68: 0 | BK68: 0 | BL68: 0 | BM68: 0 | BN68: 0 | BO68: 0 | BP68: 0 | BQ68: 0 | BR68: 0 | BS68: 0 | BT68: 0 | BU68: 0 | BV68: 0 | BW68: 0 | BX68: 0 | BY68: 0 | BZ68: 0 | CA68: 0 | CB68: 0 | CC68: 0 | CD68: 0 | CE68: 0 | CF68: 0 | CG68: 0 | CH68: 0 | CI68: 0 | CJ68: 0 | CK68: 0 | CL68: 0 | CM68: 0 | CN68: 0 | CO68: 0 | CP68: 0 | CQ68: 0 | CR68: 0 | CS68: 0 | CT68: 0 | CU68: 0 | CV68: 0 | CW68: 0
B69: 0 | C69: 0 | D69: 0 | E69: 0 | F69: 0 | G69: 0 | H69: 0 | I69: 0 | J69: 0 | K69: 0 | L69: 0 | M69: 0 | N69: 0 | O69: 0 | P69: 0 | Q69: 0 | R69: 0 | S69: 0 | T69: 0 | U69: 0 | V69: 0 | W69: 0 | X69: 0 | Y69: 0 | Z69: 0 | AA69: 0 | AB69: 0 | AC69: 0 | AD69: 0 | AE69: 0 | AF69: 0 | AG69: 0 | AH69: 0 | AI69: 0 | AJ69: 0 | AK69: 0 | AL69: 0 | AM69: 0 | AN69: 0 | AO69: 0 | AP69: 0 | AQ69: 0 | AR69: 0 | AS69: 0 | AT69: 0 | AU69: 0 | AV69: 0 | AW69: 0 | AX69: 0 | AY69: 0 | AZ69: 0 | BA69: 0 | BB69: 0 | BC69: 0 | BD69: 0 | BE69: 0 | BF69: 0 | BG69: 0 | BH69: 0 | BI69: 0 | BJ69: 0 | BK69: 0 | BL69: 0 | BM69: 0 | BN69: 0 | BO69: 0 | BP69: 0 | BQ69: 0 | BR69: 0 | BS69: 0 | BT69: 0 | BU69: 0 | BV69: 0 | BW69: 0 | BX69: 0 | BY69: 0 | BZ69: 0 | CA69: 0 | CB69: 0 | CC69: 0 | CD69: 0 | CE69: 0 | CF69: 0 | CG69: 0 | CH69: 0 | CI69: 0 | CJ69: 0 | CK69: 0 | CL69: 0 | CM69: 0 | CN69: 0 | CO69: 0 | CP69: 0 | CQ69: 0 | CR69: 0 | CS69: 0 | CT69: 0 | CU69: 0 | CV69: 0 | CW69: 0
B70: -0.07143525113 | C70: 0.04809322015 | D70: -0.02747683087 | E70: 0.005282946417 | F70: 0.03185190706 | G70: 0.05308622097 | H70: 0.004390356613 | I70: 0.02573650994 | J70: 0.03420773547 | K70: -0.01236843696 | L70: 0.001154402072 | M70: -0.005188953157 | N70: -0.03100531478 | O70: 0.01255539524 | P70: 0.01825922307 | Q70: 0.007187740921 | R70: 0.003152727649 | S70: -0.04087896837 | T70: -0.05933104056 | U70: -0.05531686222 | V70: 0.01990407545 | W70: -0.02582234649 | X70: -0.0333587298 | Y70: -0.02649539479 | Z70: -0.0154413814 | AA70: -0.03348297247 | AB70: 0.01544640718 | AC70: -0.05808277674 | AD70: 0.06666086997 | AE70: -0.06086416937 | AF70: -0.05474616301 | AG70: -0.02698748511 | AH70: -0.08098888891 | AI70: 0.03772808293 | AJ70: -0.04500758187 | AK70: 0.01534457685 | AL70: -0.02308598339 | AM70: -0.008769047632 | AN70: -0.04974270586 | AO70: 0.09061146083 | AP70: -0.002360189719 | AQ70: -0.08427845132 | AR70: 0.01500980133 | AS70: -0.04276619537 | AT70: -0.06988859539 | AU70: -0.0874275107 | AV70: -0.03814802949 | AW70: -0.03738423014 | AX70: -0.03465963964 | AY70: 0.07288716366 | AZ70: -0.02411548635 | BA70: -0.05322939463 | BB70: 0.02965315813 | BC70: -0.004200759481 | BD70: 0.006500015111 | BE70: 0.0244090626 | BF70: -0.03307440085 | BG70: -0.03349666337 | BH70: -0.01152452601 | BI70: 0.001552751754 | BJ70: 0.001903890549 | BK70: -0.02675560375 | BL70: 0.009865075477 | BM70: -0.02234907382 | BN70: 0.03143671883 | BO70: -0.0002662172036 | BP70: -0.01079882453 | BQ70: 0.02867207753 | BR70: -0.02141506128 | BS70: 0.009765933842 | BT70: -0.07443433382 | BU70: -0.001623942465 | BV70: 0.05898193839 | BW70: -0.006064745369 | BX70: -0.009354619601 | BY70: 0.003083048246 | BZ70: -0.03067053741 | CA70: 0.01891681778 | CB70: 0.005760875473 | CC70: -0.0161209553 | CD70: -0.01937276121 | CE70: 0.009882610645 | CF70: -0.06466504339 | CG70: -0.02423350351 | CH70: 0.02640123718 | CI70: -0.005048248552 | CJ70: -0.05641786868 | CK70: -0.0423090174 | CL70: -0.01578450063 | CM70: 0.02141907016 | CN70: -0.01756692043 | CO70: -0.05855139741 | CP70: 0.00993426536 | CQ70: -0.01520603243 | CR70: -0.03805737734 | CS70: -0.0155502764 | CT70: 0.03865299003 | CU70: -0.02677749857 | CV70: 0.0002202468831 | CW70: -0.01565818289
B71: 0 | C71: 0 | D71: 0 | E71: 0 | F71: 0 | G71: 0 | H71: 0 | I71: 0 | J71: 0 | K71: 0 | L71: 0 | M71: 0 | N71: 0 | O71: 0 | P71: 0 | Q71: 0 | R71: 0 | S71: 0 | T71: 0 | U71: 0 | V71: 0 | W71: 0 | X71: 0 | Y71: 0 | Z71: 0 | AA71: 0 | AB71: 0 | AC71: 0 | AD71: 0 | AE71: 0 | AF71: 0 | AG71: 0 | AH71: 0 | AI71: 0 | AJ71: 0 | AK71: 0 | AL71: 0 | AM71: 0 | AN71: 0 | AO71: 0 | AP71: 0 | AQ71: 0 | AR71: 0 | AS71: 0 | AT71: 0 | AU71: 0 | AV71: 0 | AW71: 0 | AX71: 0 | AY71: 0 | AZ71: 0 | BA71: 0 | BB71: 0 | BC71: 0 | BD71: 0 | BE71: 0 | BF71: 0 | BG71: 0 | BH71: 0 | BI71: 0 | BJ71: 0 | BK71: 0 | BL71: 0 | BM71: 0 | BN71: 0 | BO71: 0 | BP71: 0 | BQ71: 0 | BR71: 0 | BS71: 0 | BT71: 0 | BU71: 0 | BV71: 0 | BW71: 0 | BX71: 0 | BY71: 0 | BZ71: 0 | CA71: 0 | CB71: 0 | CC71: 0 | CD71: 0 | CE71: 0 | CF71: 0 | CG71: 0 | CH71: 0 | CI71: 0 | CJ71: 0 | CK71: 0 | CL71: 0 | CM71: 0 | CN71: 0 | CO71: 0 | CP71: 0 | CQ71: 0 | CR71: 0 | CS71: 0 | CT71: 0 | CU71: 0 | CV71: 0 | CW71: 0
B72: 0 | C72: 0 | D72: 0 | E72: 0 | F72: 0 | G72: 0 | H72: 0 | I72: 0 | J72: 0 | K72: 0 | L72: 0 | M72: 0 | N72: 0 | O72: 0 | P72: 0 | Q72: 0 | R72: 0 | S72: 0 | T72: 0 | U72: 0 | V72: 0 | W72: 0 | X72: 0 | Y72: 0 | Z72: 0 | AA72: 0 | AB72: 0 | AC72: 0 | AD72: 0 | AE72: 0 | AF72: 0 | AG72: 0 | AH72: 0 | AI72: 0 | AJ72: 0 | AK72: 0 | AL72: 0 | AM72: 0 | AN72: 0 | AO72: 0 | AP72: 0 | AQ72: 0 | AR72: 0 | AS72: 0 | AT72: 0 | AU72: 0 | AV72: 0 | AW72: 0 | AX72: 0 | AY72: 0 | AZ72: 0 | BA72: 0 | BB72: 0 | BC72: 0 | BD72: 0 | BE72: 0 | BF72: 0 | BG72: 0 | BH72: 0 | BI72: 0 | BJ72: 0 | BK72: 0 | BL72: 0 | BM72: 0 | BN72: 0 | BO72: 0 | BP72: 0 | BQ72: 0 | BR72: 0 | BS72: 0 | BT72: 0 | BU72: 0 | BV72: 0 | BW72: 0 | BX72: 0 | BY72: 0 | BZ72: 0 | CA72: 0 | CB72: 0 | CC72: 0 | CD72: 0 | CE72: 0 | CF72: 0 | CG72: 0 | CH72: 0 | CI72: 0 | CJ72: 0 | CK72: 0 | CL72: 0 | CM72: 0 | CN72: 0 | CO72: 0 | CP72: 0 | CQ72: 0 | CR72: 0 | CS72: 0 | CT72: 0 | CU72: 0 | CV72: 0 | CW72: 0
B73: 0 | C73: 0 | D73: 0 | E73: 0 | F73: 0 | G73: 0 | H73: 0 | I73: 0 | J73: 0 | K73: 0 | L73: 0 | M73: 0 | N73: 0 | O73: 0 | P73: 0 | Q73: 0 | R73: 0 | S73: 0 | T73: 0 | U73: 0 | V73: 0 | W73: 0 | X73: 0 | Y73: 0 | Z73: 0 | AA73: 0 | AB73: 0 | AC73: 0 | AD73: 0 | AE73: 0 | AF73: 0 | AG73: 0 | AH73: 0 | AI73: 0 | AJ73: 0 | AK73: 0 | AL73: 0 | AM73: 0 | AN73: 0 | AO73: 0 | AP73: 0 | AQ73: 0 | AR73: 0 | AS73: 0 | AT73: 0 | AU73: 0 | AV73: 0 | AW73: 0 | AX73: 0 | AY73: 0 | AZ73: 0 | BA73: 0 | BB73: 0 | BC73: 0 | BD73: 0 | BE73: 0 | BF73: 0 | BG73: 0 | BH73: 0 | BI73: 0 | BJ73: 0 | BK73: 0 | BL73: 0 | BM73: 0 | BN73: 0 | BO73: 0 | BP73: 0 | BQ73: 0 | BR73: 0 | BS73: 0 | BT73: 0 | BU73: 0 | BV73: 0 | BW73: 0 | BX73: 0 | BY73: 0 | BZ73: 0 | CA73: 0 | CB73: 0 | CC73: 0 | CD73: 0 | CE73: 0 | CF73: 0 | CG73: 0 | CH73: 0 | CI73: 0 | CJ73: 0 | CK73: 0 | CL73: 0 | CM73: 0 | CN73: 0 | CO73: 0 | CP73: 0 | CQ73: 0 | CR73: 0 | CS73: 0 | CT73: 0 | CU73: 0 | CV73: 0 | CW73: 0
B74: 0 | C74: 0 | D74: 0 | E74: 0 | F74: 0 | G74: 0 | H74: 0 | I74: 0 | J74: 0 | K74: 0 | L74: 0 | M74: 0 | N74: 0 | O74: 0 | P74: 0 | Q74: 0 | R74: 0 | S74: 0 | T74: 0 | U74: 0 | V74: 0 | W74: 0 | X74: 0 | Y74: 0 | Z74: 0 | AA74: 0 | AB74: 0 | AC74: 0 | AD74: 0 | AE74: 0 | AF74: 0 | AG74: 0 | AH74: 0 | AI74: 0 | AJ74: 0 | AK74: 0 | AL74: 0 | AM74: 0 | AN74: 0 | AO74: 0 | AP74: 0 | AQ74: 0 | AR74: 0 | AS74: 0 | AT74: 0 | AU74: 0 | AV74: 0 | AW74: 0 | AX74: 0 | AY74: 0 | AZ74: 0 | BA74: 0 | BB74: 0 | BC74: 0 | BD74: 0 | BE74: 0 | BF74: 0 | BG74: 0 | BH74: 0 | BI74: 0 | BJ74: 0 | BK74: 0 | BL74: 0 | BM74: 0 | BN74: 0 | BO74: 0 | BP74: 0 | BQ74: 0 | BR74: 0 | BS74: 0 | BT74: 0 | BU74: 0 | BV74: 0 | BW74: 0 | BX74: 0 | BY74: 0 | BZ74: 0 | CA74: 0 | CB74: 0 | CC74: 0 | CD74: 0 | CE74: 0 | CF74: 0 | CG74: 0 | CH74: 0 | CI74: 0 | CJ74: 0 | CK74: 0 | CL74: 0 | CM74: 0 | CN74: 0 | CO74: 0 | CP74: 0 | CQ74: 0 | CR74: 0 | CS74: 0 | CT74: 0 | CU74: 0 | CV74: 0 | CW74: 0
B75: 0 | C75: 0 | D75: 0 | E75: 0 | F75: 0 | G75: 0 | H75: 0 | I75: 0 | J75: 0 | K75: 0 | L75: 0 | M75: 0 | N75: 0 | O75: 0 | P75: 0 | Q75: 0 | R75: 0 | S75: 0 | T75: 0 | U75: 0 | V75: 0 | W75: 0 | X75: 0 | Y75: 0 | Z75: 0 | AA75: 0 | AB75: 0 | AC75: 0 | AD75: 0 | AE75: 0 | AF75: 0 | AG75: 0 | AH75: 0 | AI75: 0 | AJ75: 0 | AK75: 0 | AL75: 0 | AM75: 0 | AN75: 0 | AO75: 0 | AP75: 0 | AQ75: 0 | AR75: 0 | AS75: 0 | AT75: 0 | AU75: 0 | AV75: 0 | AW75: 0 | AX75: 0 | AY75: 0 | AZ75: 0 | BA75: 0 | BB75: 0 | BC75: 0 | BD75: 0 | BE75: 0 | BF75: 0 | BG75: 0 | BH75: 0 | BI75: 0 | BJ75: 0 | BK75: 0 | BL75: 0 | BM75: 0 | BN75: 0 | BO75: 0 | BP75: 0 | BQ75: 0 | BR75: 0 | BS75: 0 | BT75: 0 | BU75: 0 | BV75: 0 | BW75: 0 | BX75: 0 | BY75: 0 | BZ75: 0 | CA75: 0 | CB75: 0 | CC75: 0 | CD75: 0 | CE75: 0 | CF75: 0 | CG75: 0 | CH75: 0 | CI75: 0 | CJ75: 0 | CK75: 0 | CL75: 0 | CM75: 0 | CN75: 0 | CO75: 0 | CP75: 0 | CQ75: 0 | CR75: 0 | CS75: 0 | CT75: 0 | CU75: 0 | CV75: 0 | CW75: 0
B76: 0 | C76: 0 | D76: 0 | E76: 0 | F76: 0 | G76: 0 | H76: 0 | I76: 0 | J76: 0 | K76: 0 | L76: 0 | M76: 0 | N76: 0 | O76: 0 | P76: 0 | Q76: 0 | R76: 0 | S76: 0 | T76: 0 | U76: 0 | V76: 0 | W76: 0 | X76: 0 | Y76: 0 | Z76: 0 | AA76: 0 | AB76: 0 | AC76: 0 | AD76: 0 | AE76: 0 | AF76: 0 | AG76: 0 | AH76: 0 | AI76: 0 | AJ76: 0 | AK76: 0 | AL76: 0 | AM76: 0 | AN76: 0 | AO76: 0 | AP76: 0 | AQ76: 0 | AR76: 0 | AS76: 0 | AT76: 0 | AU76: 0 | AV76: 0 | AW76: 0 | AX76: 0 | AY76: 0 | AZ76: 0 | BA76: 0 | BB76: 0 | BC76: 0 | BD76: 0 | BE76: 0 | BF76: 0 | BG76: 0 | BH76: 0 | BI76: 0 | BJ76: 0 | BK76: 0 | BL76: 0 | BM76: 0 | BN76: 0 | BO76: 0 | BP76: 0 | BQ76: 0 | BR76: 0 | BS76: 0 | BT76: 0 | BU76: 0 | BV76: 0 | BW76: 0 | BX76: 0 | BY76: 0 | BZ76: 0 | CA76: 0 | CB76: 0 | CC76: 0 | CD76: 0 | CE76: 0 | CF76: 0 | CG76: 0 | CH76: 0 | CI76: 0 | CJ76: 0 | CK76: 0 | CL76: 0 | CM76: 0 | CN76: 0 | CO76: 0 | CP76: 0 | CQ76: 0 | CR76: 0 | CS76: 0 | CT76: 0 | CU76: 0 | CV76: 0 | CW76: 0
B77: 0 | C77: 0 | D77: 0 | E77: 0 | F77: 0 | G77: 0 | H77: 0 | I77: 0 | J77: 0 | K77: 0 | L77: 0 | M77: 0 | N77: 0 | O77: 0 | P77: 0 | Q77: 0 | R77: 0 | S77: 0 | T77: 0 | U77: 0 | V77: 0 | W77: 0 | X77: 0 | Y77: 0 | Z77: 0 | AA77: 0 | AB77: 0 | AC77: 0 | AD77: 0 | AE77: 0 | AF77: 0 | AG77: 0 | AH77: 0 | AI77: 0 | AJ77: 0 | AK77: 0 | AL77: 0 | AM77: 0 | AN77: 0 | AO77: 0 | AP77: 0 | AQ77: 0 | AR77: 0 | AS77: 0 | AT77: 0 | AU77: 0 | AV77: 0 | AW77: 0 | AX77: 0 | AY77: 0 | AZ77: 0 | BA77: 0 | BB77: 0 | BC77: 0 | BD77: 0 | BE77: 0 | BF77: 0 | BG77: 0 | BH77: 0 | BI77: 0 | BJ77: 0 | BK77: 0 | BL77: 0 | BM77: 0 | BN77: 0 | BO77: 0 | BP77: 0 | BQ77: 0 | BR77: 0 | BS77: 0 | BT77: 0 | BU77: 0 | BV77: 0 | BW77: 0 | BX77: 0 | BY77: 0 | BZ77: 0 | CA77: 0 | CB77: 0 | CC77: 0 | CD77: 0 | CE77: 0 | CF77: 0 | CG77: 0 | CH77: 0 | CI77: 0 | CJ77: 0 | CK77: 0 | CL77: 0 | CM77: 0 | CN77: 0 | CO77: 0 | CP77: 0 | CQ77: 0 | CR77: 0 | CS77: 0 | CT77: 0 | CU77: 0 | CV77: 0 | CW77: 0
B78: 0 | C78: 0 | D78: 0 | E78: 0 | F78: 0 | G78: 0 | H78: 0 | I78: 0 | J78: 0 | K78: 0 | L78: 0 | M78: 0 | N78: 0 | O78: 0 | P78: 0 | Q78: 0 | R78: 0 | S78: 0 | T78: 0 | U78: 0 | V78: 0 | W78: 0 | X78: 0 | Y78: 0 | Z78: 0 | AA78: 0 | AB78: 0 | AC78: 0 | AD78: 0 | AE78: 0 | AF78: 0 | AG78: 0 | AH78: 0 | AI78: 0 | AJ78: 0 | AK78: 0 | AL78: 0 | AM78: 0 | AN78: 0 | AO78: 0 | AP78: 0 | AQ78: 0 | AR78: 0 | AS78: 0 | AT78: 0 | AU78: 0 | AV78: 0 | AW78: 0 | AX78: 0 | AY78: 0 | AZ78: 0 | BA78: 0 | BB78: 0 | BC78: 0 | BD78: 0 | BE78: 0 | BF78: 0 | BG78: 0 | BH78: 0 | BI78: 0 | BJ78: 0 | BK78: 0 | BL78: 0 | BM78: 0 | BN78: 0 | BO78: 0 | BP78: 0 | BQ78: 0 | BR78: 0 | BS78: 0 | BT78: 0 | BU78: 0 | BV78: 0 | BW78: 0 | BX78: 0 | BY78: 0 | BZ78: 0 | CA78: 0 | CB78: 0 | CC78: 0 | CD78: 0 | CE78: 0 | CF78: 0 | CG78: 0 | CH78: 0 | CI78: 0 | CJ78: 0 | CK78: 0 | CL78: 0 | CM78: 0 | CN78: 0 | CO78: 0 | CP78: 0 | CQ78: 0 | CR78: 0 | CS78: 0 | CT78: 0 | CU78: 0 | CV78: 0 | CW78: 0
B79: 0 | C79: 0 | D79: 0 | E79: 0 | F79: 0 | G79: 0 | H79: 0 | I79: 0 | J79: 0 | K79: 0 | L79: 0 | M79: 0 | N79: 0 | O79: 0 | P79: 0 | Q79: 0 | R79: 0 | S79: 0 | T79: 0 | U79: 0 | V79: 0 | W79: 0 | X79: 0 | Y79: 0 | Z79: 0 | AA79: 0 | AB79: 0 | AC79: 0 | AD79: 0 | AE79: 0 | AF79: 0 | AG79: 0 | AH79: 0 | AI79: 0 | AJ79: 0 | AK79: 0 | AL79: 0 | AM79: 0 | AN79: 0 | AO79: 0 | AP79: 0 | AQ79: 0 | AR79: 0 | AS79: 0 | AT79: 0 | AU79: 0 | AV79: 0 | AW79: 0 | AX79: 0 | AY79: 0 | AZ79: 0 | BA79: 0 | BB79: 0 | BC79: 0 | BD79: 0 | BE79: 0 | BF79: 0 | BG79: 0 | BH79: 0 | BI79: 0 | BJ79: 0 | BK79: 0 | BL79: 0 | BM79: 0 | BN79: 0 | BO79: 0 | BP79: 0 | BQ79: 0 | BR79: 0 | BS79: 0 | BT79: 0 | BU79: 0 | BV79: 0 | BW79: 0 | BX79: 0 | BY79: 0 | BZ79: 0 | CA79: 0 | CB79: 0 | CC79: 0 | CD79: 0 | CE79: 0 | CF79: 0 | CG79: 0 | CH79: 0 | CI79: 0 | CJ79: 0 | CK79: 0 | CL79: 0 | CM79: 0 | CN79: 0 | CO79: 0 | CP79: 0 | CQ79: 0 | CR79: 0 | CS79: 0 | CT79: 0 | CU79: 0 | CV79: 0 | CW79: 0
B80: 0 | C80: 0 | D80: 0 | E80: 0 | F80: 0 | G80: 0 | H80: 0 | I80: 0 | J80: 0 | K80: 0 | L80: 0 | M80: 0 | N80: 0 | O80: 0 | P80: 0 | Q80: 0 | R80: 0 | S80: 0 | T80: 0 | U80: 0 | V80: 0 | W80: 0 | X80: 0 | Y80: 0 | Z80: 0 | AA80: 0 | AB80: 0 | AC80: 0 | AD80: 0 | AE80: 0 | AF80: 0 | AG80: 0 | AH80: 0 | AI80: 0 | AJ80: 0 | AK80: 0 | AL80: 0 | AM80: 0 | AN80: 0 | AO80: 0 | AP80: 0 | AQ80: 0 | AR80: 0 | AS80: 0 | AT80: 0 | AU80: 0 | AV80: 0 | AW80: 0 | AX80: 0 | AY80: 0 | AZ80: 0 | BA80: 0 | BB80: 0 | BC80: 0 | BD80: 0 | BE80: 0 | BF80: 0 | BG80: 0 | BH80: 0 | BI80: 0 | BJ80: 0 | BK80: 0 | BL80: 0 | BM80: 0 | BN80: 0 | BO80: 0 | BP80: 0 | BQ80: 0 | BR80: 0 | BS80: 0 | BT80: 0 | BU80: 0 | BV80: 0 | BW80: 0 | BX80: 0 | BY80: 0 | BZ80: 0 | CA80: 0 | CB80: 0 | CC80: 0 | CD80: 0 | CE80: 0 | CF80: 0 | CG80: 0 | CH80: 0 | CI80: 0 | CJ80: 0 | CK80: 0 | CL80: 0 | CM80: 0 | CN80: 0 | CO80: 0 | CP80: 0 | CQ80: 0 | CR80: 0 | CS80: 0 | CT80: 0 | CU80: 0 | CV80: 0 | CW80: 0
B81: 0 | C81: 0 | D81: 0 | E81: 0 | F81: 0 | G81: 0 | H81: 0 | I81: 0 | J81: 0 | K81: 0 | L81: 0 | M81: 0 | N81: 0 | O81: 0 | P81: 0 | Q81: 0 | R81: 0 | S81: 0 | T81: 0 | U81: 0 | V81: 0 | W81: 0 | X81: 0 | Y81: 0 | Z81: 0 | AA81: 0 | AB81: 0 | AC81: 0 | AD81: 0 | AE81: 0 | AF81: 0 | AG81: 0 | AH81: 0 | AI81: 0 | AJ81: 0 | AK81: 0 | AL81: 0 | AM81: 0 | AN81: 0 | AO81: 0 | AP81: 0 | AQ81: 0 | AR81: 0 | AS81: 0 | AT81: 0 | AU81: 0 | AV81: 0 | AW81: 0 | AX81: 0 | AY81: 0 | AZ81: 0 | BA81: 0 | BB81: 0 | BC81: 0 | BD81: 0 | BE81: 0 | BF81: 0 | BG81: 0 | BH81: 0 | BI81: 0 | BJ81: 0 | BK81: 0 | BL81: 0 | BM81: 0 | BN81: 0 | BO81: 0 | BP81: 0 | BQ81: 0 | BR81: 0 | BS81: 0 | BT81: 0 | BU81: 0 | BV81: 0 | BW81: 0 | BX81: 0 | BY81: 0 | BZ81: 0 | CA81: 0 | CB81: 0 | CC81: 0 | CD81: 0 | CE81: 0 | CF81: 0 | CG81: 0 | CH81: 0 | CI81: 0 | CJ81: 0 | CK81: 0 | CL81: 0 | CM81: 0 | CN81: 0 | CO81: 0 | CP81: 0 | CQ81: 0 | CR81: 0 | CS81: 0 | CT81: 0 | CU81: 0 | CV81: 0 | CW81: 0
B82: 0 | C82: 0 | D82: 0 | E82: 0 | F82: 0 | G82: 0 | H82: 0 | I82: 0 | J82: 0 | K82: 0 | L82: 0 | M82: 0 | N82: 0 | O82: 0 | P82: 0 | Q82: 0 | R82: 0 | S82: 0 | T82: 0 | U82: 0 | V82: 0 | W82: 0 | X82: 0 | Y82: 0 | Z82: 0 | AA82: 0 | AB82: 0 | AC82: 0 | AD82: 0 | AE82: 0 | AF82: 0 | AG82: 0 | AH82: 0 | AI82: 0 | AJ82: 0 | AK82: 0 | AL82: 0 | AM82: 0 | AN82: 0 | AO82: 0 | AP82: 0 | AQ82: 0 | AR82: 0 | AS82: 0 | AT82: 0 | AU82: 0 | AV82: 0 | AW82: 0 | AX82: 0 | AY82: 0 | AZ82: 0 | BA82: 0 | BB82: 0 | BC82: 0 | BD82: 0 | BE82: 0 | BF82: 0 | BG82: 0 | BH82: 0 | BI82: 0 | BJ82: 0 | BK82: 0 | BL82: 0 | BM82: 0 | BN82: 0 | BO82: 0 | BP82: 0 | BQ82: 0 | BR82: 0 | BS82: 0 | BT82: 0 | BU82: 0 | BV82: 0 | BW82: 0 | BX82: 0 | BY82: 0 | BZ82: 0 | CA82: 0 | CB82: 0 | CC82: 0 | CD82: 0 | CE82: 0 | CF82: 0 | CG82: 0 | CH82: 0 | CI82: 0 | CJ82: 0 | CK82: 0 | CL82: 0 | CM82: 0 | CN82: 0 | CO82: 0 | CP82: 0 | CQ82: 0 | CR82: 0 | CS82: 0 | CT82: 0 | CU82: 0 | CV82: 0 | CW82: 0
B83: 0 | C83: 0 | D83: 0 | E83: 0 | F83: 0 | G83: 0 | H83: 0 | I83: 0 | J83: 0 | K83: 0 | L83: 0 | M83: 0 | N83: 0 | O83: 0 | P83: 0 | Q83: 0 | R83: 0 | S83: 0 | T83: 0 | U83: 0 | V83: 0 | W83: 0 | X83: 0 | Y83: 0 | Z83: 0 | AA83: 0 | AB83: 0 | AC83: 0 | AD83: 0 | AE83: 0 | AF83: 0 | AG83: 0 | AH83: 0 | AI83: 0 | AJ83: 0 | AK83: 0 | AL83: 0 | AM83: 0 | AN83: 0 | AO83: 0 | AP83: 0 | AQ83: 0 | AR83: 0 | AS83: 0 | AT83: 0 | AU83: 0 | AV83: 0 | AW83: 0 | AX83: 0 | AY83: 0 | AZ83: 0 | BA83: 0 | BB83: 0 | BC83: 0 | BD83: 0 | BE83: 0 | BF83: 0 | BG83: 0 | BH83: 0 | BI83: 0 | BJ83: 0 | BK83: 0 | BL83: 0 | BM83: 0 | BN83: 0 | BO83: 0 | BP83: 0 | BQ83: 0 | BR83: 0 | BS83: 0 | BT83: 0 | BU83: 0 | BV83: 0 | BW83: 0 | BX83: 0 | BY83: 0 | BZ83: 0 | CA83: 0 | CB83: 0 | CC83: 0 | CD83: 0 | CE83: 0 | CF83: 0 | CG83: 0 | CH83: 0 | CI83: 0 | CJ83: 0 | CK83: 0 | CL83: 0 | CM83: 0 | CN83: 0 | CO83: 0 | CP83: 0 | CQ83: 0 | CR83: 0 | CS83: 0 | CT83: 0 | CU83: 0 | CV83: 0 | CW83: 0
B84: 0 | C84: 0 | D84: 0 | E84: 0 | F84: 0 | G84: 0 | H84: 0 | I84: 0 | J84: 0 | K84: 0 | L84: 0 | M84: 0 | N84: 0 | O84: 0 | P84: 0 | Q84: 0 | R84: 0 | S84: 0 | T84: 0 | U84: 0 | V84: 0 | W84: 0 | X84: 0 | Y84: 0 | Z84: 0 | AA84: 0 | AB84: 0 | AC84: 0 | AD84: 0 | AE84: 0 | AF84: 0 | AG84: 0 | AH84: 0 | AI84: 0 | AJ84: 0 | AK84: 0 | AL84: 0 | AM84: 0 | AN84: 0 | AO84: 0 | AP84: 0 | AQ84: 0 | AR84: 0 | AS84: 0 | AT84: 0 | AU84: 0 | AV84: 0 | AW84: 0 | AX84: 0 | AY84: 0 | AZ84: 0 | BA84: 0 | BB84: 0 | BC84: 0 | BD84: 0 | BE84: 0 | BF84: 0 | BG84: 0 | BH84: 0 | BI84: 0 | BJ84: 0 | BK84: 0 | BL84: 0 | BM84: 0 | BN84: 0 | BO84: 0 | BP84: 0 | BQ84: 0 | BR84: 0 | BS84: 0 | BT84: 0 | BU84: 0 | BV84: 0 | BW84: 0 | BX84: 0 | BY84: 0 | BZ84: 0 | CA84: 0 | CB84: 0 | CC84: 0 | CD84: 0 | CE84: 0 | CF84: 0 | CG84: 0 | CH84: 0 | CI84: 0 | CJ84: 0 | CK84: 0 | CL84: 0 | CM84: 0 | CN84: 0 | CO84: 0 | CP84: 0 | CQ84: 0 | CR84: 0 | CS84: 0 | CT84: 0 | CU84: 0 | CV84: 0 | CW84: 0
B85: 0 | C85: 0 | D85: 0 | E85: 0 | F85: 0 | G85: 0 | H85: 0 | I85: 0 | J85: 0 | K85: 0 | L85: 0 | M85: 0 | N85: 0 | O85: 0 | P85: 0 | Q85: 0 | R85: 0 | S85: 0 | T85: 0 | U85: 0 | V85: 0 | W85: 0 | X85: 0 | Y85: 0 | Z85: 0 | AA85: 0 | AB85: 0 | AC85: 0 | AD85: 0 | AE85: 0 | AF85: 0 | AG85: 0 | AH85: 0 | AI85: 0 | AJ85: 0 | AK85: 0 | AL85: 0 | AM85: 0 | AN85: 0 | AO85: 0 | AP85: 0 | AQ85: 0 | AR85: 0 | AS85: 0 | AT85: 0 | AU85: 0 | AV85: 0 | AW85: 0 | AX85: 0 | AY85: 0 | AZ85: 0 | BA85: 0 | BB85: 0 | BC85: 0 | BD85: 0 | BE85: 0 | BF85: 0 | BG85: 0 | BH85: 0 | BI85: 0 | BJ85: 0 | BK85: 0 | BL85: 0 | BM85: 0 | BN85: 0 | BO85: 0 | BP85: 0 | BQ85: 0 | BR85: 0 | BS85: 0 | BT85: 0 | BU85: 0 | BV85: 0 | BW85: 0 | BX85: 0 | BY85: 0 | BZ85: 0 | CA85: 0 | CB85: 0 | CC85: 0 | CD85: 0 | CE85: 0 | CF85: 0 | CG85: 0 | CH85: 0 | CI85: 0 | CJ85: 0 | CK85: 0 | CL85: 0 | CM85: 0 | CN85: 0 | CO85: 0 | CP85: 0 | CQ85: 0 | CR85: 0 | CS85: 0 | CT85: 0 | CU85: 0 | CV85: 0 | CW85: 0
B86: 0 | C86: 0 | D86: 0 | E86: 0 | F86: 0 | G86: 0 | H86: 0 | I86: 0 | J86: 0 | K86: 0 | L86: 0 | M86: 0 | N86: 0 | O86: 0 | P86: 0 | Q86: 0 | R86: 0 | S86: 0 | T86: 0 | U86: 0 | V86: 0 | W86: 0 | X86: 0 | Y86: 0 | Z86: 0 | AA86: 0 | AB86: 0 | AC86: 0 | AD86: 0 | AE86: 0 | AF86: 0 | AG86: 0 | AH86: 0 | AI86: 0 | AJ86: 0 | AK86: 0 | AL86: 0 | AM86: 0 | AN86: 0 | AO86: 0 | AP86: 0 | AQ86: 0 | AR86: 0 | AS86: 0 | AT86: 0 | AU86: 0 | AV86: 0 | AW86: 0 | AX86: 0 | AY86: 0 | AZ86: 0 | BA86: 0 | BB86: 0 | BC86: 0 | BD86: 0 | BE86: 0 | BF86: 0 | BG86: 0 | BH86: 0 | BI86: 0 | BJ86: 0 | BK86: 0 | BL86: 0 | BM86: 0 | BN86: 0 | BO86: 0 | BP86: 0 | BQ86: 0 | BR86: 0 | BS86: 0 | BT86: 0 | BU86: 0 | BV86: 0 | BW86: 0 | BX86: 0 | BY86: 0 | BZ86: 0 | CA86: 0 | CB86: 0 | CC86: 0 | CD86: 0 | CE86: 0 | CF86: 0 | CG86: 0 | CH86: 0 | CI86: 0 | CJ86: 0 | CK86: 0 | CL86: 0 | CM86: 0 | CN86: 0 | CO86: 0 | CP86: 0 | CQ86: 0 | CR86: 0 | CS86: 0 | CT86: 0 | CU86: 0 | CV86: 0 | CW86: 0
B87: 0 | C87: 0 | D87: 0 | E87: 0 | F87: 0 | G87: 0 | H87: 0 | I87: 0 | J87: 0 | K87: 0 | L87: 0 | M87: 0 | N87: 0 | O87: 0 | P87: 0 | Q87: 0 | R87: 0 | S87: 0 | T87: 0 | U87: 0 | V87: 0 | W87: 0 | X87: 0 | Y87: 0 | Z87: 0 | AA87: 0 | AB87: 0 | AC87: 0 | AD87: 0 | AE87: 0 | AF87: 0 | AG87: 0 | AH87: 0 | AI87: 0 | AJ87: 0 | AK87: 0 | AL87: 0 | AM87: 0 | AN87: 0 | AO87: 0 | AP87: 0 | AQ87: 0 | AR87: 0 | AS87: 0 | AT87: 0 | AU87: 0 | AV87: 0 | AW87: 0 | AX87: 0 | AY87: 0 | AZ87: 0 | BA87: 0 | BB87: 0 | BC87: 0 | BD87: 0 | BE87: 0 | BF87: 0 | BG87: 0 | BH87: 0 | BI87: 0 | BJ87: 0 | BK87: 0 | BL87: 0 | BM87: 0 | BN87: 0 | BO87: 0 | BP87: 0 | BQ87: 0 | BR87: 0 | BS87: 0 | BT87: 0 | BU87: 0 | BV87: 0 | BW87: 0 | BX87: 0 | BY87: 0 | BZ87: 0 | CA87: 0 | CB87: 0 | CC87: 0 | CD87: 0 | CE87: 0 | CF87: 0 | CG87: 0 | CH87: 0 | CI87: 0 | CJ87: 0 | CK87: 0 | CL87: 0 | CM87: 0 | CN87: 0 | CO87: 0 | CP87: 0 | CQ87: 0 | CR87: 0 | CS87: 0 | CT87: 0 | CU87: 0 | CV87: 0 | CW87: 0
B88: 0 | C88: 0 | D88: 0 | E88: 0 | F88: 0 | G88: 0 | H88: 0 | I88: 0 | J88: 0 | K88: 0 | L88: 0 | M88: 0 | N88: 0 | O88: 0 | P88: 0 | Q88: 0 | R88: 0 | S88: 0 | T88: 0 | U88: 0 | V88: 0 | W88: 0 | X88: 0 | Y88: 0 | Z88: 0 | AA88: 0 | AB88: 0 | AC88: 0 | AD88: 0 | AE88: 0 | AF88: 0 | AG88: 0 | AH88: 0 | AI88: 0 | AJ88: 0 | AK88: 0 | AL88: 0 | AM88: 0 | AN88: 0 | AO88: 0 | AP88: 0 | AQ88: 0 | AR88: 0 | AS88: 0 | AT88: 0 | AU88: 0 | AV88: 0 | AW88: 0 | AX88: 0 | AY88: 0 | AZ88: 0 | BA88: 0 | BB88: 0 | BC88: 0 | BD88: 0 | BE88: 0 | BF88: 0 | BG88: 0 | BH88: 0 | BI88: 0 | BJ88: 0 | BK88: 0 | BL88: 0 | BM88: 0 | BN88: 0 | BO88: 0 | BP88: 0 | BQ88: 0 | BR88: 0 | BS88: 0 | BT88: 0 | BU88: 0 | BV88: 0 | BW88: 0 | BX88: 0 | BY88: 0 | BZ88: 0 | CA88: 0 | CB88: 0 | CC88: 0 | CD88: 0 | CE88: 0 | CF88: 0 | CG88: 0 | CH88: 0 | CI88: 0 | CJ88: 0 | CK88: 0 | CL88: 0 | CM88: 0 | CN88: 0 | CO88: 0 | CP88: 0 | CQ88: 0 | CR88: 0 | CS88: 0 | CT88: 0 | CU88: 0 | CV88: 0 | CW88: 0
B89: 0 | C89: 0 | D89: 0 | E89: 0 | F89: 0 | G89: 0 | H89: 0 | I89: 0 | J89: 0 | K89: 0 | L89: 0 | M89: 0 | N89: 0 | O89: 0 | P89: 0 | Q89: 0 | R89: 0 | S89: 0 | T89: 0 | U89: 0 | V89: 0 | W89: 0 | X89: 0 | Y89: 0 | Z89: 0 | AA89: 0 | AB89: 0 | AC89: 0 | AD89: 0 | AE89: 0 | AF89: 0 | AG89: 0 | AH89: 0 | AI89: 0 | AJ89: 0 | AK89: 0 | AL89: 0 | AM89: 0 | AN89: 0 | AO89: 0 | AP89: 0 | AQ89: 0 | AR89: 0 | AS89: 0 | AT89: 0 | AU89: 0 | AV89: 0 | AW89: 0 | AX89: 0 | AY89: 0 | AZ89: 0 | BA89: 0 | BB89: 0 | BC89: 0 | BD89: 0 | BE89: 0 | BF89: 0 | BG89: 0 | BH89: 0 | BI89: 0 | BJ89: 0 | BK89: 0 | BL89: 0 | BM89: 0 | BN89: 0 | BO89: 0 | BP89: 0 | BQ89: 0 | BR89: 0 | BS89: 0 | BT89: 0 | BU89: 0 | BV89: 0 | BW89: 0 | BX89: 0 | BY89: 0 | BZ89: 0 | CA89: 0 | CB89: 0 | CC89: 0 | CD89: 0 | CE89: 0 | CF89: 0 | CG89: 0 | CH89: 0 | CI89: 0 | CJ89: 0 | CK89: 0 | CL89: 0 | CM89: 0 | CN89: 0 | CO89: 0 | CP89: 0 | CQ89: 0 | CR89: 0 | CS89: 0 | CT89: 0 | CU89: 0 | CV89: 0 | CW89: 0
B90: -0.06984805167 | C90: 0.0291964051 | D90: -0.03793725011 | E90: 0.0007142170604 | F90: 0.02015449103 | G90: 0.04019292342 | H90: -0.02738611178 | I90: -0.009041247197 | J90: 0.06013377126 | K90: -0.03058533745 | L90: -0.001392022011 | M90: -0.03652234478 | N90: -0.06702198523 | O90: 0.02530377173 | P90: 0.06090374744 | Q90: 0.03184045754 | R90: -0.02178957347 | S90: -0.05470070018 | T90: -0.05994637034 | U90: -0.0428562864 | V90: -0.008437834901 | W90: 0.02446741086 | X90: -0.01845033206 | Y90: 0.007991348939 | Z90: -0.003037325023 | AA90: -0.005786122414 | AB90: 0.02296389454 | AC90: -0.04387025063 | AD90: 0.04882559608 | AE90: -0.0703643293 | AF90: -0.04730999372 | AG90: -0.03842934967 | AH90: -0.0811314964 | AI90: 0.008022967105 | AJ90: -0.06700676355 | AK90: 0.02020038956 | AL90: -0.004592026798 | AM90: 0.03419165307 | AN90: -0.05967802352 | AO90: 0.08698579673 | AP90: -0.003681206016 | AQ90: -0.07839930983 | AR90: -0.02111962628 | AS90: -0.04494205443 | AT90: -0.04031307197 | AU90: -0.0865105948 | AV90: 0.01738784004 | AW90: -0.05038369979 | AX90: -0.02977481743 | AY90: 0.09947760865 | AZ90: -0.02177780481 | BA90: -0.06487203605 | BB90: -0.02203779705 | BC90: -0.02959320388 | BD90: -0.009435864424 | BE90: 0.0247309792 | BF90: -0.009025489164 | BG90: -0.03241088788 | BH90: -0.008574311603 | BI90: -0.0006567686064 | BJ90: 0.003775212758 | BK90: -0.01586972261 | BL90: 0.02639631279 | BM90: -0.03550436796 | BN90: 0.04251727866 | BO90: -0.001465337476 | BP90: -0.01434691784 | BQ90: 0.03437113037 | BR90: -0.001935049553 | BS90: 0.02952016795 | BT90: -0.07972060834 | BU90: -0.02108347805 | BV90: 0.05087354349 | BW90: -0.03782716004 | BX90: -0.007792367625 | BY90: 0.02687337341 | BZ90: -0.0420019432 | CA90: -0.01528294837 | CB90: -0.01864157795 | CC90: -0.02708508403 | CD90: -0.01500295836 | CE90: 0.001820461809 | CF90: -0.1028739302 | CG90: -0.03504093403 | CH90: 0.04870216019 | CI90: -0.001454559842 | CJ90: -0.03986158868 | CK90: -0.0422689437 | CL90: -0.01384325979 | CM90: -0.008488457757 | CN90: -0.00958364913 | CO90: -0.04685202241 | CP90: 0.007702833672 | CQ90: -0.03117056414 | CR90: -0.03553091113 | CS90: -0.01978733468 | CT90: 0.04310961905 | CU90: -0.01365009558 | CV90: -0.006484665349 | CW90: -0.02489293422
B91: 0 | C91: 0 | D91: 0 | E91: 0 | F91: 0 | G91: 0 | H91: 0 | I91: 0 | J91: 0 | K91: 0 | L91: 0 | M91: 0 | N91: 0 | O91: 0 | P91: 0 | Q91: 0 | R91: 0 | S91: 0 | T91: 0 | U91: 0 | V91: 0 | W91: 0 | X91: 0 | Y91: 0 | Z91: 0 | AA91: 0 | AB91: 0 | AC91: 0 | AD91: 0 | AE91: 0 | AF91: 0 | AG91: 0 | AH91: 0 | AI91: 0 | AJ91: 0 | AK91: 0 | AL91: 0 | AM91: 0 | AN91: 0 | AO91: 0 | AP91: 0 | AQ91: 0 | AR91: 0 | AS91: 0 | AT91: 0 | AU91: 0 | AV91: 0 | AW91: 0 | AX91: 0 | AY91: 0 | AZ91: 0 | BA91: 0 | BB91: 0 | BC91: 0 | BD91: 0 | BE91: 0 | BF91: 0 | BG91: 0 | BH91: 0 | BI91: 0 | BJ91: 0 | BK91: 0 | BL91: 0 | BM91: 0 | BN91: 0 | BO91: 0 | BP91: 0 | BQ91: 0 | BR91: 0 | BS91: 0 | BT91: 0 | BU91: 0 | BV91: 0 | BW91: 0 | BX91: 0 | BY91: 0 | BZ91: 0 | CA91: 0 | CB91: 0 | CC91: 0 | CD91: 0 | CE91: 0 | CF91: 0 | CG91: 0 | CH91: 0 | CI91: 0 | CJ91: 0 | CK91: 0 | CL91: 0 | CM91: 0 | CN91: 0 | CO91: 0 | CP91: 0 | CQ91: 0 | CR91: 0 | CS91: 0 | CT91: 0 | CU91: 0 | CV91: 0 | CW91: 0
B92: 0 | C92: 0 | D92: 0 | E92: 0 | F92: 0 | G92: 0 | H92: 0 | I92: 0 | J92: 0 | K92: 0 | L92: 0 | M92: 0 | N92: 0 | O92: 0 | P92: 0 | Q92: 0 | R92: 0 | S92: 0 | T92: 0 | U92: 0 | V92: 0 | W92: 0 | X92: 0 | Y92: 0 | Z92: 0 | AA92: 0 | AB92: 0 | AC92: 0 | AD92: 0 | AE92: 0 | AF92: 0 | AG92: 0 | AH92: 0 | AI92: 0 | AJ92: 0 | AK92: 0 | AL92: 0 | AM92: 0 | AN92: 0 | AO92: 0 | AP92: 0 | AQ92: 0 | AR92: 0 | AS92: 0 | AT92: 0 | AU92: 0 | AV92: 0 | AW92: 0 | AX92: 0 | AY92: 0 | AZ92: 0 | BA92: 0 | BB92: 0 | BC92: 0 | BD92: 0 | BE92: 0 | BF92: 0 | BG92: 0 | BH92: 0 | BI92: 0 | BJ92: 0 | BK92: 0 | BL92: 0 | BM92: 0 | BN92: 0 | BO92: 0 | BP92: 0 | BQ92: 0 | BR92: 0 | BS92: 0 | BT92: 0 | BU92: 0 | BV92: 0 | BW92: 0 | BX92: 0 | BY92: 0 | BZ92: 0 | CA92: 0 | CB92: 0 | CC92: 0 | CD92: 0 | CE92: 0 | CF92: 0 | CG92: 0 | CH92: 0 | CI92: 0 | CJ92: 0 | CK92: 0 | CL92: 0 | CM92: 0 | CN92: 0 | CO92: 0 | CP92: 0 | CQ92: 0 | CR92: 0 | CS92: 0 | CT92: 0 | CU92: 0 | CV92: 0 | CW92: 0
B93: 0 | C93: 0 | D93: 0 | E93: 0 | F93: 0 | G93: 0 | H93: 0 | I93: 0 | J93: 0 | K93: 0 | L93: 0 | M93: 0 | N93: 0 | O93: 0 | P93: 0 | Q93: 0 | R93: 0 | S93: 0 | T93: 0 | U93: 0 | V93: 0 | W93: 0 | X93: 0 | Y93: 0 | Z93: 0 | AA93: 0 | AB93: 0 | AC93: 0 | AD93: 0 | AE93: 0 | AF93: 0 | AG93: 0 | AH93: 0 | AI93: 0 | AJ93: 0 | AK93: 0 | AL93: 0 | AM93: 0 | AN93: 0 | AO93: 0 | AP93: 0 | AQ93: 0 | AR93: 0 | AS93: 0 | AT93: 0 | AU93: 0 | AV93: 0 | AW93: 0 | AX93: 0 | AY93: 0 | AZ93: 0 | BA93: 0 | BB93: 0 | BC93: 0 | BD93: 0 | BE93: 0 | BF93: 0 | BG93: 0 | BH93: 0 | BI93: 0 | BJ93: 0 | BK93: 0 | BL93: 0 | BM93: 0 | BN93: 0 | BO93: 0 | BP93: 0 | BQ93: 0 | BR93: 0 | BS93: 0 | BT93: 0 | BU93: 0 | BV93: 0 | BW93: 0 | BX93: 0 | BY93: 0 | BZ93: 0 | CA93: 0 | CB93: 0 | CC93: 0 | CD93: 0 | CE93: 0 | CF93: 0 | CG93: 0 | CH93: 0 | CI93: 0 | CJ93: 0 | CK93: 0 | CL93: 0 | CM93: 0 | CN93: 0 | CO93: 0 | CP93: 0 | CQ93: 0 | CR93: 0 | CS93: 0 | CT93: 0 | CU93: 0 | CV93: 0 | CW93: 0
B94: 0 | C94: 0 | D94: 0 | E94: 0 | F94: 0 | G94: 0 | H94: 0 | I94: 0 | J94: 0 | K94: 0 | L94: 0 | M94: 0 | N94: 0 | O94: 0 | P94: 0 | Q94: 0 | R94: 0 | S94: 0 | T94: 0 | U94: 0 | V94: 0 | W94: 0 | X94: 0 | Y94: 0 | Z94: 0 | AA94: 0 | AB94: 0 | AC94: 0 | AD94: 0 | AE94: 0 | AF94: 0 | AG94: 0 | AH94: 0 | AI94: 0 | AJ94: 0 | AK94: 0 | AL94: 0 | AM94: 0 | AN94: 0 | AO94: 0 | AP94: 0 | AQ94: 0 | AR94: 0 | AS94: 0 | AT94: 0 | AU94: 0 | AV94: 0 | AW94: 0 | AX94: 0 | AY94: 0 | AZ94: 0 | BA94: 0 | BB94: 0 | BC94: 0 | BD94: 0 | BE94: 0 | BF94: 0 | BG94: 0 | BH94: 0 | BI94: 0 | BJ94: 0 | BK94: 0 | BL94: 0 | BM94: 0 | BN94: 0 | BO94: 0 | BP94: 0 | BQ94: 0 | BR94: 0 | BS94: 0 | BT94: 0 | BU94: 0 | BV94: 0 | BW94: 0 | BX94: 0 | BY94: 0 | BZ94: 0 | CA94: 0 | CB94: 0 | CC94: 0 | CD94: 0 | CE94: 0 | CF94: 0 | CG94: 0 | CH94: 0 | CI94: 0 | CJ94: 0 | CK94: 0 | CL94: 0 | CM94: 0 | CN94: 0 | CO94: 0 | CP94: 0 | CQ94: 0 | CR94: 0 | CS94: 0 | CT94: 0 | CU94: 0 | CV94: 0 | CW94: 0
B95: 0 | C95: 0 | D95: 0 | E95: 0 | F95: 0 | G95: 0 | H95: 0 | I95: 0 | J95: 0 | K95: 0 | L95: 0 | M95: 0 | N95: 0 | O95: 0 | P95: 0 | Q95: 0 | R95: 0 | S95: 0 | T95: 0 | U95: 0 | V95: 0 | W95: 0 | X95: 0 | Y95: 0 | Z95: 0 | AA95: 0 | AB95: 0 | AC95: 0 | AD95: 0 | AE95: 0 | AF95: 0 | AG95: 0 | AH95: 0 | AI95: 0 | AJ95: 0 | AK95: 0 | AL95: 0 | AM95: 0 | AN95: 0 | AO95: 0 | AP95: 0 | AQ95: 0 | AR95: 0 | AS95: 0 | AT95: 0 | AU95: 0 | AV95: 0 | AW95: 0 | AX95: 0 | AY95: 0 | AZ95: 0 | BA95: 0 | BB95: 0 | BC95: 0 | BD95: 0 | BE95: 0 | BF95: 0 | BG95: 0 | BH95: 0 | BI95: 0 | BJ95: 0 | BK95: 0 | BL95: 0 | BM95: 0 | BN95: 0 | BO95: 0 | BP95: 0 | BQ95: 0 | BR95: 0 | BS95: 0 | BT95: 0 | BU95: 0 | BV95: 0 | BW95: 0 | BX95: 0 | BY95: 0 | BZ95: 0 | CA95: 0 | CB95: 0 | CC95: 0 | CD95: 0 | CE95: 0 | CF95: 0 | CG95: 0 | CH95: 0 | CI95: 0 | CJ95: 0 | CK95: 0 | CL95: 0 | CM95: 0 | CN95: 0 | CO95: 0 | CP95: 0 | CQ95: 0 | CR95: 0 | CS95: 0 | CT95: 0 | CU95: 0 | CV95: 0 | CW95: 0
B96: 0 | C96: 0 | D96: 0 | E96: 0 | F96: 0 | G96: 0 | H96: 0 | I96: 0 | J96: 0 | K96: 0 | L96: 0 | M96: 0 | N96: 0 | O96: 0 | P96: 0 | Q96: 0 | R96: 0 | S96: 0 | T96: 0 | U96: 0 | V96: 0 | W96: 0 | X96: 0 | Y96: 0 | Z96: 0 | AA96: 0 | AB96: 0 | AC96: 0 | AD96: 0 | AE96: 0 | AF96: 0 | AG96: 0 | AH96: 0 | AI96: 0 | AJ96: 0 | AK96: 0 | AL96: 0 | AM96: 0 | AN96: 0 | AO96: 0 | AP96: 0 | AQ96: 0 | AR96: 0 | AS96: 0 | AT96: 0 | AU96: 0 | AV96: 0 | AW96: 0 | AX96: 0 | AY96: 0 | AZ96: 0 | BA96: 0 | BB96: 0 | BC96: 0 | BD96: 0 | BE96: 0 | BF96: 0 | BG96: 0 | BH96: 0 | BI96: 0 | BJ96: 0 | BK96: 0 | BL96: 0 | BM96: 0 | BN96: 0 | BO96: 0 | BP96: 0 | BQ96: 0 | BR96: 0 | BS96: 0 | BT96: 0 | BU96: 0 | BV96: 0 | BW96: 0 | BX96: 0 | BY96: 0 | BZ96: 0 | CA96: 0 | CB96: 0 | CC96: 0 | CD96: 0 | CE96: 0 | CF96: 0 | CG96: 0 | CH96: 0 | CI96: 0 | CJ96: 0 | CK96: 0 | CL96: 0 | CM96: 0 | CN96: 0 | CO96: 0 | CP96: 0 | CQ96: 0 | CR96: 0 | CS96: 0 | CT96: 0 | CU96: 0 | CV96: 0 | CW96: 0
B97: 0 | C97: 0 | D97: 0 | E97: 0 | F97: 0 | G97: 0 | H97: 0 | I97: 0 | J97: 0 | K97: 0 | L97: 0 | M97: 0 | N97: 0 | O97: 0 | P97: 0 | Q97: 0 | R97: 0 | S97: 0 | T97: 0 | U97: 0 | V97: 0 | W97: 0 | X97: 0 | Y97: 0 | Z97: 0 | AA97: 0 | AB97: 0 | AC97: 0 | AD97: 0 | AE97: 0 | AF97: 0 | AG97: 0 | AH97: 0 | AI97: 0 | AJ97: 0 | AK97: 0 | AL97: 0 | AM97: 0 | AN97: 0 | AO97: 0 | AP97: 0 | AQ97: 0 | AR97: 0 | AS97: 0 | AT97: 0 | AU97: 0 | AV97: 0 | AW97: 0 | AX97: 0 | AY97: 0 | AZ97: 0 | BA97: 0 | BB97: 0 | BC97: 0 | BD97: 0 | BE97: 0 | BF97: 0 | BG97: 0 | BH97: 0 | BI97: 0 | BJ97: 0 | BK97: 0 | BL97: 0 | BM97: 0 | BN97: 0 | BO97: 0 | BP97: 0 | BQ97: 0 | BR97: 0 | BS97: 0 | BT97: 0 | BU97: 0 | BV97: 0 | BW97: 0 | BX97: 0 | BY97: 0 | BZ97: 0 | CA97: 0 | CB97: 0 | CC97: 0 | CD97: 0 | CE97: 0 | CF97: 0 | CG97: 0 | CH97: 0 | CI97: 0 | CJ97: 0 | CK97: 0 | CL97: 0 | CM97: 0 | CN97: 0 | CO97: 0 | CP97: 0 | CQ97: 0 | CR97: 0 | CS97: 0 | CT97: 0 | CU97: 0 | CV97: 0 | CW97: 0
B98: 0 | C98: 0 | D98: 0 | E98: 0 | F98: 0 | G98: 0 | H98: 0 | I98: 0 | J98: 0 | K98: 0 | L98: 0 | M98: 0 | N98: 0 | O98: 0 | P98: 0 | Q98: 0 | R98: 0 | S98: 0 | T98: 0 | U98: 0 | V98: 0 | W98: 0 | X98: 0 | Y98: 0 | Z98: 0 | AA98: 0 | AB98: 0 | AC98: 0 | AD98: 0 | AE98: 0 | AF98: 0 | AG98: 0 | AH98: 0 | AI98: 0 | AJ98: 0 | AK98: 0 | AL98: 0 | AM98: 0 | AN98: 0 | AO98: 0 | AP98: 0 | AQ98: 0 | AR98: 0 | AS98: 0 | AT98: 0 | AU98: 0 | AV98: 0 | AW98: 0 | AX98: 0 | AY98: 0 | AZ98: 0 | BA98: 0 | BB98: 0 | BC98: 0 | BD98: 0 | BE98: 0 | BF98: 0 | BG98: 0 | BH98: 0 | BI98: 0 | BJ98: 0 | BK98: 0 | BL98: 0 | BM98: 0 | BN98: 0 | BO98: 0 | BP98: 0 | BQ98: 0 | BR98: 0 | BS98: 0 | BT98: 0 | BU98: 0 | BV98: 0 | BW98: 0 | BX98: 0 | BY98: 0 | BZ98: 0 | CA98: 0 | CB98: 0 | CC98: 0 | CD98: 0 | CE98: 0 | CF98: 0 | CG98: 0 | CH98: 0 | CI98: 0 | CJ98: 0 | CK98: 0 | CL98: 0 | CM98: 0 | CN98: 0 | CO98: 0 | CP98: 0 | CQ98: 0 | CR98: 0 | CS98: 0 | CT98: 0 | CU98: 0 | CV98: 0 | CW98: 0
B99: 0 | C99: 0 | D99: 0 | E99: 0 | F99: 0 | G99: 0 | H99: 0 | I99: 0 | J99: 0 | K99: 0 | L99: 0 | M99: 0 | N99: 0 | O99: 0 | P99: 0 | Q99: 0 | R99: 0 | S99: 0 | T99: 0 | U99: 0 | V99: 0 | W99: 0 | X99: 0 | Y99: 0 | Z99: 0 | AA99: 0 | AB99: 0 | AC99: 0 | AD99: 0 | AE99: 0 | AF99: 0 | AG99: 0 | AH99: 0 | AI99: 0 | AJ99: 0 | AK99: 0 | AL99: 0 | AM99: 0 | AN99: 0 | AO99: 0 | AP99: 0 | AQ99: 0 | AR99: 0 | AS99: 0 | AT99: 0 | AU99: 0 | AV99: 0 | AW99: 0 | AX99: 0 | AY99: 0 | AZ99: 0 | BA99: 0 | BB99: 0 | BC99: 0 | BD99: 0 | BE99: 0 | BF99: 0 | BG99: 0 | BH99: 0 | BI99: 0 | BJ99: 0 | BK99: 0 | BL99: 0 | BM99: 0 | BN99: 0 | BO99: 0 | BP99: 0 | BQ99: 0 | BR99: 0 | BS99: 0 | BT99: 0 | BU99: 0 | BV99: 0 | BW99: 0 | BX99: 0 | BY99: 0 | BZ99: 0 | CA99: 0 | CB99: 0 | CC99: 0 | CD99: 0 | CE99: 0 | CF99: 0 | CG99: 0 | CH99: 0 | CI99: 0 | CJ99: 0 | CK99: 0 | CL99: 0 | CM99: 0 | CN99: 0 | CO99: 0 | CP99: 0 | CQ99: 0 | CR99: 0 | CS99: 0 | CT99: 0 | CU99: 0 | CV99: 0 | CW99: 0
B100: 0 | C100: 0 | D100: 0 | E100: 0 | F100: 0 | G100: 0 | H100: 0 | I100: 0 | J100: 0 | K100: 0 | L100: 0 | M100: 0 | N100: 0 | O100: 0 | P100: 0 | Q100: 0 | R100: 0 | S100: 0 | T100: 0 | U100: 0 | V100: 0 | W100: 0 | X100: 0 | Y100: 0 | Z100: 0 | AA100: 0 | AB100: 0 | AC100: 0 | AD100: 0 | AE100: 0 | AF100: 0 | AG100: 0 | AH100: 0 | AI100: 0 | AJ100: 0 | AK100: 0 | AL100: 0 | AM100: 0 | AN100: 0 | AO100: 0 | AP100: 0 | AQ100: 0 | AR100: 0 | AS100: 0 | AT100: 0 | AU100: 0 | AV100: 0 | AW100: 0 | AX100: 0 | AY100: 0 | AZ100: 0 | BA100: 0 | BB100: 0 | BC100: 0 | BD100: 0 | BE100: 0 | BF100: 0 | BG100: 0 | BH100: 0 | BI100: 0 | BJ100: 0 | BK100: 0 | BL100: 0 | BM100: 0 | BN100: 0 | BO100: 0 | BP100: 0 | BQ100: 0 | BR100: 0 | BS100: 0 | BT100: 0 | BU100: 0 | BV100: 0 | BW100: 0 | BX100: 0 | BY100: 0 | BZ100: 0 | CA100: 0 | CB100: 0 | CC100: 0 | CD100: 0 | CE100: 0 | CF100: 0 | CG100: 0 | CH100: 0 | CI100: 0 | CJ100: 0 | CK100: 0 | CL100: 0 | CM100: 0 | CN100: 0 | CO100: 0 | CP100: 0 | CQ100: 0 | CR100: 0 | CS100: 0 | CT100: 0 | CU100: 0 | CV100: 0 | CW100: 0
B101: 0 | C101: 0 | D101: 0 | E101: 0 | F101: 0 | G101: 0 | H101: 0 | I101: 0 | J101: 0 | K101: 0 | L101: 0 | M101: 0 | N101: 0 | O101: 0 | P101: 0 | Q101: 0 | R101: 0 | S101: 0 | T101: 0 | U101: 0 | V101: 0 | W101: 0 | X101: 0 | Y101: 0 | Z101: 0 | AA101: 0 | AB101: 0 | AC101: 0 | AD101: 0 | AE101: 0 | AF101: 0 | AG101: 0 | AH101: 0 | AI101: 0 | AJ101: 0 | AK101: 0 | AL101: 0 | AM101: 0 | AN101: 0 | AO101: 0 | AP101: 0 | AQ101: 0 | AR101: 0 | AS101: 0 | AT101: 0 | AU101: 0 | AV101: 0 | AW101: 0 | AX101: 0 | AY101: 0 | AZ101: 0 | BA101: 0 | BB101: 0 | BC101: 0 | BD101: 0 | BE101: 0 | BF101: 0 | BG101: 0 | BH101: 0 | BI101: 0 | BJ101: 0 | BK101: 0 | BL101: 0 | BM101: 0 | BN101: 0 | BO101: 0 | BP101: 0 | BQ101: 0 | BR101: 0 | BS101: 0 | BT101: 0 | BU101: 0 | BV101: 0 | BW101: 0 | BX101: 0 | BY101: 0 | BZ101: 0 | CA101: 0 | CB101: 0 | CC101: 0 | CD101: 0 | CE101: 0 | CF101: 0 | CG101: 0 | CH101: 0 | CI101: 0 | CJ101: 0 | CK101: 0 | CL101: 0 | CM101: 0 | CN101: 0 | CO101: 0 | CP101: 0 | CQ101: 0 | CR101: 0 | CS101: 0 | CT101: 0 | CU101: 0 | CV101: 0 | CW101: 0
B102: 0 | C102: 0 | D102: 0 | E102: 0 | F102: 0 | G102: 0 | H102: 0 | I102: 0 | J102: 0 | K102: 0 | L102: 0 | M102: 0 | N102: 0 | O102: 0 | P102: 0 | Q102: 0 | R102: 0 | S102: 0 | T102: 0 | U102: 0 | V102: 0 | W102: 0 | X102: 0 | Y102: 0 | Z102: 0 | AA102: 0 | AB102: 0 | AC102: 0 | AD102: 0 | AE102: 0 | AF102: 0 | AG102: 0 | AH102: 0 | AI102: 0 | AJ102: 0 | AK102: 0 | AL102: 0 | AM102: 0 | AN102: 0 | AO102: 0 | AP102: 0 | AQ102: 0 | AR102: 0 | AS102: 0 | AT102: 0 | AU102: 0 | AV102: 0 | AW102: 0 | AX102: 0 | AY102: 0 | AZ102: 0 | BA102: 0 | BB102: 0 | BC102: 0 | BD102: 0 | BE102: 0 | BF102: 0 | BG102: 0 | BH102: 0 | BI102: 0 | BJ102: 0 | BK102: 0 | BL102: 0 | BM102: 0 | BN102: 0 | BO102: 0 | BP102: 0 | BQ102: 0 | BR102: 0 | BS102: 0 | BT102: 0 | BU102: 0 | BV102: 0 | BW102: 0 | BX102: 0 | BY102: 0 | BZ102: 0 | CA102: 0 | CB102: 0 | CC102: 0 | CD102: 0 | CE102: 0 | CF102: 0 | CG102: 0 | CH102: 0 | CI102: 0 | CJ102: 0 | CK102: 0 | CL102: 0 | CM102: 0 | CN102: 0 | CO102: 0 | CP102: 0 | CQ102: 0 | CR102: 0 | CS102: 0 | CT102: 0 | CU102: 0 | CV102: 0 | CW102: 0
B103: 0 | C103: 0 | D103: 0 | E103: 0 | F103: 0 | G103: 0 | H103: 0 | I103: 0 | J103: 0 | K103: 0 | L103: 0 | M103: 0 | N103: 0 | O103: 0 | P103: 0 | Q103: 0 | R103: 0 | S103: 0 | T103: 0 | U103: 0 | V103: 0 | W103: 0 | X103: 0 | Y103: 0 | Z103: 0 | AA103: 0 | AB103: 0 | AC103: 0 | AD103: 0 | AE103: 0 | AF103: 0 | AG103: 0 | AH103: 0 | AI103: 0 | AJ103: 0 | AK103: 0 | AL103: 0 | AM103: 0 | AN103: 0 | AO103: 0 | AP103: 0 | AQ103: 0 | AR103: 0 | AS103: 0 | AT103: 0 | AU103: 0 | AV103: 0 | AW103: 0 | AX103: 0 | AY103: 0 | AZ103: 0 | BA103: 0 | BB103: 0 | BC103: 0 | BD103: 0 | BE103: 0 | BF103: 0 | BG103: 0 | BH103: 0 | BI103: 0 | BJ103: 0 | BK103: 0 | BL103: 0 | BM103: 0 | BN103: 0 | BO103: 0 | BP103: 0 | BQ103: 0 | BR103: 0 | BS103: 0 | BT103: 0 | BU103: 0 | BV103: 0 | BW103: 0 | BX103: 0 | BY103: 0 | BZ103: 0 | CA103: 0 | CB103: 0 | CC103: 0 | CD103: 0 | CE103: 0 | CF103: 0 | CG103: 0 | CH103: 0 | CI103: 0 | CJ103: 0 | CK103: 0 | CL103: 0 | CM103: 0 | CN103: 0 | CO103: 0 | CP103: 0 | CQ103: 0 | CR103: 0 | CS103: 0 | CT103: 0 | CU103: 0 | CV103: 0 | CW103: 0
B104: 0 | C104: 0 | D104: 0 | E104: 0 | F104: 0 | G104: 0 | H104: 0 | I104: 0 | J104: 0 | K104: 0 | L104: 0 | M104: 0 | N104: 0 | O104: 0 | P104: 0 | Q104: 0 | R104: 0 | S104: 0 | T104: 0 | U104: 0 | V104: 0 | W104: 0 | X104: 0 | Y104: 0 | Z104: 0 | AA104: 0 | AB104: 0 | AC104: 0 | AD104: 0 | AE104: 0 | AF104: 0 | AG104: 0 | AH104: 0 | AI104: 0 | AJ104: 0 | AK104: 0 | AL104: 0 | AM104: 0 | AN104: 0 | AO104: 0 | AP104: 0 | AQ104: 0 | AR104: 0 | AS104: 0 | AT104: 0 | AU104: 0 | AV104: 0 | AW104: 0 | AX104: 0 | AY104: 0 | AZ104: 0 | BA104: 0 | BB104: 0 | BC104: 0 | BD104: 0 | BE104: 0 | BF104: 0 | BG104: 0 | BH104: 0 | BI104: 0 | BJ104: 0 | BK104: 0 | BL104: 0 | BM104: 0 | BN104: 0 | BO104: 0 | BP104: 0 | BQ104: 0 | BR104: 0 | BS104: 0 | BT104: 0 | BU104: 0 | BV104: 0 | BW104: 0 | BX104: 0 | BY104: 0 | BZ104: 0 | CA104: 0 | CB104: 0 | CC104: 0 | CD104: 0 | CE104: 0 | CF104: 0 | CG104: 0 | CH104: 0 | CI104: 0 | CJ104: 0 | CK104: 0 | CL104: 0 | CM104: 0 | CN104: 0 | CO104: 0 | CP104: 0 | CQ104: 0 | CR104: 0 | CS104: 0 | CT104: 0 | CU104: 0 | CV104: 0 | CW104: 0
B105: 0 | C105: 0 | D105: 0 | E105: 0 | F105: 0 | G105: 0 | H105: 0 | I105: 0 | J105: 0 | K105: 0 | L105: 0 | M105: 0 | N105: 0 | O105: 0 | P105: 0 | Q105: 0 | R105: 0 | S105: 0 | T105: 0 | U105: 0 | V105: 0 | W105: 0 | X105: 0 | Y105: 0 | Z105: 0 | AA105: 0 | AB105: 0 | AC105: 0 | AD105: 0 | AE105: 0 | AF105: 0 | AG105: 0 | AH105: 0 | AI105: 0 | AJ105: 0 | AK105: 0 | AL105: 0 | AM105: 0 | AN105: 0 | AO105: 0 | AP105: 0 | AQ105: 0 | AR105: 0 | AS105: 0 | AT105: 0 | AU105: 0 | AV105: 0 | AW105: 0 | AX105: 0 | AY105: 0 | AZ105: 0 | BA105: 0 | BB105: 0 | BC105: 0 | BD105: 0 | BE105: 0 | BF105: 0 | BG105: 0 | BH105: 0 | BI105: 0 | BJ105: 0 | BK105: 0 | BL105: 0 | BM105: 0 | BN105: 0 | BO105: 0 | BP105: 0 | BQ105: 0 | BR105: 0 | BS105: 0 | BT105: 0 | BU105: 0 | BV105: 0 | BW105: 0 | BX105: 0 | BY105: 0 | BZ105: 0 | CA105: 0 | CB105: 0 | CC105: 0 | CD105: 0 | CE105: 0 | CF105: 0 | CG105: 0 | CH105: 0 | CI105: 0 | CJ105: 0 | CK105: 0 | CL105: 0 | CM105: 0 | CN105: 0 | CO105: 0 | CP105: 0 | CQ105: 0 | CR105: 0 | CS105: 0 | CT105: 0 | CU105: 0 | CV105: 0 | CW105: 0
B106: 0 | C106: 0 | D106: 0 | E106: 0 | F106: 0 | G106: 0 | H106: 0 | I106: 0 | J106: 0 | K106: 0 | L106: 0 | M106: 0 | N106: 0 | O106: 0 | P106: 0 | Q106: 0 | R106: 0 | S106: 0 | T106: 0 | U106: 0 | V106: 0 | W106: 0 | X106: 0 | Y106: 0 | Z106: 0 | AA106: 0 | AB106: 0 | AC106: 0 | AD106: 0 | AE106: 0 | AF106: 0 | AG106: 0 | AH106: 0 | AI106: 0 | AJ106: 0 | AK106: 0 | AL106: 0 | AM106: 0 | AN106: 0 | AO106: 0 | AP106: 0 | AQ106: 0 | AR106: 0 | AS106: 0 | AT106: 0 | AU106: 0 | AV106: 0 | AW106: 0 | AX106: 0 | AY106: 0 | AZ106: 0 | BA106: 0 | BB106: 0 | BC106: 0 | BD106: 0 | BE106: 0 | BF106: 0 | BG106: 0 | BH106: 0 | BI106: 0 | BJ106: 0 | BK106: 0 | BL106: 0 | BM106: 0 | BN106: 0 | BO106: 0 | BP106: 0 | BQ106: 0 | BR106: 0 | BS106: 0 | BT106: 0 | BU106: 0 | BV106: 0 | BW106: 0 | BX106: 0 | BY106: 0 | BZ106: 0 | CA106: 0 | CB106: 0 | CC106: 0 | CD106: 0 | CE106: 0 | CF106: 0 | CG106: 0 | CH106: 0 | CI106: 0 | CJ106: 0 | CK106: 0 | CL106: 0 | CM106: 0 | CN106: 0 | CO106: 0 | CP106: 0 | CQ106: 0 | CR106: 0 | CS106: 0 | CT106: 0 | CU106: 0 | CV106: 0 | CW106: 0
B107: 0 | C107: 0 | D107: 0 | E107: 0 | F107: 0 | G107: 0 | H107: 0 | I107: 0 | J107: 0 | K107: 0 | L107: 0 | M107: 0 | N107: 0 | O107: 0 | P107: 0 | Q107: 0 | R107: 0 | S107: 0 | T107: 0 | U107: 0 | V107: 0 | W107: 0 | X107: 0 | Y107: 0 | Z107: 0 | AA107: 0 | AB107: 0 | AC107: 0 | AD107: 0 | AE107: 0 | AF107: 0 | AG107: 0 | AH107: 0 | AI107: 0 | AJ107: 0 | AK107: 0 | AL107: 0 | AM107: 0 | AN107: 0 | AO107: 0 | AP107: 0 | AQ107: 0 | AR107: 0 | AS107: 0 | AT107: 0 | AU107: 0 | AV107: 0 | AW107: 0 | AX107: 0 | AY107: 0 | AZ107: 0 | BA107: 0 | BB107: 0 | BC107: 0 | BD107: 0 | BE107: 0 | BF107: 0 | BG107: 0 | BH107: 0 | BI107: 0 | BJ107: 0 | BK107: 0 | BL107: 0 | BM107: 0 | BN107: 0 | BO107: 0 | BP107: 0 | BQ107: 0 | BR107: 0 | BS107: 0 | BT107: 0 | BU107: 0 | BV107: 0 | BW107: 0 | BX107: 0 | BY107: 0 | BZ107: 0 | CA107: 0 | CB107: 0 | CC107: 0 | CD107: 0 | CE107: 0 | CF107: 0 | CG107: 0 | CH107: 0 | CI107: 0 | CJ107: 0 | CK107: 0 | CL107: 0 | CM107: 0 | CN107: 0 | CO107: 0 | CP107: 0 | CQ107: 0 | CR107: 0 | CS107: 0 | CT107: 0 | CU107: 0 | CV107: 0 | CW107: 0
B108: 0 | C108: 0 | D108: 0 | E108: 0 | F108: 0 | G108: 0 | H108: 0 | I108: 0 | J108: 0 | K108: 0 | L108: 0 | M108: 0 | N108: 0 | O108: 0 | P108: 0 | Q108: 0 | R108: 0 | S108: 0 | T108: 0 | U108: 0 | V108: 0 | W108: 0 | X108: 0 | Y108: 0 | Z108: 0 | AA108: 0 | AB108: 0 | AC108: 0 | AD108: 0 | AE108: 0 | AF108: 0 | AG108: 0 | AH108: 0 | AI108: 0 | AJ108: 0 | AK108: 0 | AL108: 0 | AM108: 0 | AN108: 0 | AO108: 0 | AP108: 0 | AQ108: 0 | AR108: 0 | AS108: 0 | AT108: 0 | AU108: 0 | AV108: 0 | AW108: 0 | AX108: 0 | AY108: 0 | AZ108: 0 | BA108: 0 | BB108: 0 | BC108: 0 | BD108: 0 | BE108: 0 | BF108: 0 | BG108: 0 | BH108: 0 | BI108: 0 | BJ108: 0 | BK108: 0 | BL108: 0 | BM108: 0 | BN108: 0 | BO108: 0 | BP108: 0 | BQ108: 0 | BR108: 0 | BS108: 0 | BT108: 0 | BU108: 0 | BV108: 0 | BW108: 0 | BX108: 0 | BY108: 0 | BZ108: 0 | CA108: 0 | CB108: 0 | CC108: 0 | CD108: 0 | CE108: 0 | CF108: 0 | CG108: 0 | CH108: 0 | CI108: 0 | CJ108: 0 | CK108: 0 | CL108: 0 | CM108: 0 | CN108: 0 | CO108: 0 | CP108: 0 | CQ108: 0 | CR108: 0 | CS108: 0 | CT108: 0 | CU108: 0 | CV108: 0 | CW108: 0
B109: 0 | C109: 0 | D109: 0 | E109: 0 | F109: 0 | G109: 0 | H109: 0 | I109: 0 | J109: 0 | K109: 0 | L109: 0 | M109: 0 | N109: 0 | O109: 0 | P109: 0 | Q109: 0 | R109: 0 | S109: 0 | T109: 0 | U109: 0 | V109: 0 | W109: 0 | X109: 0 | Y109: 0 | Z109: 0 | AA109: 0 | AB109: 0 | AC109: 0 | AD109: 0 | AE109: 0 | AF109: 0 | AG109: 0 | AH109: 0 | AI109: 0 | AJ109: 0 | AK109: 0 | AL109: 0 | AM109: 0 | AN109: 0 | AO109: 0 | AP109: 0 | AQ109: 0 | AR109: 0 | AS109: 0 | AT109: 0 | AU109: 0 | AV109: 0 | AW109: 0 | AX109: 0 | AY109: 0 | AZ109: 0 | BA109: 0 | BB109: 0 | BC109: 0 | BD109: 0 | BE109: 0 | BF109: 0 | BG109: 0 | BH109: 0 | BI109: 0 | BJ109: 0 | BK109: 0 | BL109: 0 | BM109: 0 | BN109: 0 | BO109: 0 | BP109: 0 | BQ109: 0 | BR109: 0 | BS109: 0 | BT109: 0 | BU109: 0 | BV109: 0 | BW109: 0 | BX109: 0 | BY109: 0 | BZ109: 0 | CA109: 0 | CB109: 0 | CC109: 0 | CD109: 0 | CE109: 0 | CF109: 0 | CG109: 0 | CH109: 0 | CI109: 0 | CJ109: 0 | CK109: 0 | CL109: 0 | CM109: 0 | CN109: 0 | CO109: 0 | CP109: 0 | CQ109: 0 | CR109: 0 | CS109: 0 | CT109: 0 | CU109: 0 | CV109: 0 | CW109: 0
B110: -0.09381721354 | C110: 0.06732269596 | D110: -0.06776839005 | E110: -0.02422280079 | F110: 0.02757740049 | G110: 0.03495827006 | H110: -0.05729709676 | I110: -0.02676440851 | J110: 0.02399839886 | K110: -0.03418143317 | L110: 0.01744176477 | M110: -0.03680329055 | N110: -0.0906960783 | O110: 0.008535467514 | P110: -0.0004414678737 | Q110: 0.01317053686 | R110: -0.003471091247 | S110: -0.04953048639 | T110: -0.04833258496 | U110: -0.04268314666 | V110: -0.01417954904 | W110: 0.001377323847 | X110: -0.006624455597 | Y110: 0.03651039891 | Z110: -0.01138774361 | AA110: -0.05139244502 | AB110: 0.04822067109 | AC110: -0.0370986272 | AD110: 0.04406926319 | AE110: -0.07878573425 | AF110: -0.04437554653 | AG110: -0.05355523305 | AH110: -0.1169848259 | AI110: -0.01009497229 | AJ110: -0.07003646987 | AK110: -0.01049278777 | AL110: -0.03359369573 | AM110: 0.0455116433 | AN110: -0.0673038653 | AO110: 0.06112303568 | AP110: -0.01847797951 | AQ110: -0.07551871036 | AR110: -0.04133268593 | AS110: -0.03363283164 | AT110: -0.06023463656 | AU110: -0.08484519148 | AV110: -0.01061225632 | AW110: -0.05003855009 | AX110: -0.0495014596 | AY110: 0.1313883945 | AZ110: -0.03034022306 | BA110: -0.05271205298 | BB110: -0.005135500807 | BC110: -0.04261677546 | BD110: 0.005916520916 | BE110: 0.02415011313 | BF110: -0.007875400866 | BG110: -0.03309588618 | BH110: -0.01302602611 | BI110: -0.02802765497 | BJ110: 0.006195049681 | BK110: -0.05409861245 | BL110: 0.03036438806 | BM110: -0.03860514774 | BN110: 0.02510808067 | BO110: -0.01832800784 | BP110: -0.0251339829 | BQ110: 0.02745087712 | BR110: -0.01165850866 | BS110: 0.008923327414 | BT110: -0.1047559811 | BU110: -0.03118820553 | BV110: 0.01952667812 | BW110: -0.03070032123 | BX110: -0.001764315716 | BY110: 0.03096637337 | BZ110: -0.05263986544 | CA110: -0.02480086585 | CB110: -0.01982122152 | CC110: -0.02960704724 | CD110: -0.04146099349 | CE110: -0.002278997597 | CF110: -0.1135180031 | CG110: -0.0264507974 | CH110: 0.06099837701 | CI110: -0.01323902678 | CJ110: -0.03005317102 | CK110: -0.08082146847 | CL110: -0.01061267481 | CM110: -0.003997886502 | CN110: -0.01840156963 | CO110: -0.0616367412 | CP110: 0.02286187669 | CQ110: -0.07468066983 | CR110: -0.03412518219 | CS110: -0.02291141713 | CT110: 0.01116247905 | CU110: -0.02831331679 | CV110: 0.02162193729 | CW110: -0.02533272114
B111: 0 | C111: 0 | D111: 0 | E111: 0 | F111: 0 | G111: 0 | H111: 0 | I111: 0 | J111: 0 | K111: 0 | L111: 0 | M111: 0 | N111: 0 | O111: 0 | P111: 0 | Q111: 0 | R111: 0 | S111: 0 | T111: 0 | U111: 0 | V111: 0 | W111: 0 | X111: 0 | Y111: 0 | Z111: 0 | AA111: 0 | AB111: 0 | AC111: 0 | AD111: 0 | AE111: 0 | AF111: 0 | AG111: 0 | AH111: 0 | AI111: 0 | AJ111: 0 | AK111: 0 | AL111: 0 | AM111: 0 | AN111: 0 | AO111: 0 | AP111: 0 | AQ111: 0 | AR111: 0 | AS111: 0 | AT111: 0 | AU111: 0 | AV111: 0 | AW111: 0 | AX111: 0 | AY111: 0 | AZ111: 0 | BA111: 0 | BB111: 0 | BC111: 0 | BD111: 0 | BE111: 0 | BF111: 0 | BG111: 0 | BH111: 0 | BI111: 0 | BJ111: 0 | BK111: 0 | BL111: 0 | BM111: 0 | BN111: 0 | BO111: 0 | BP111: 0 | BQ111: 0 | BR111: 0 | BS111: 0 | BT111: 0 | BU111: 0 | BV111: 0 | BW111: 0 | BX111: 0 | BY111: 0 | BZ111: 0 | CA111: 0 | CB111: 0 | CC111: 0 | CD111: 0 | CE111: 0 | CF111: 0 | CG111: 0 | CH111: 0 | CI111: 0 | CJ111: 0 | CK111: 0 | CL111: 0 | CM111: 0 | CN111: 0 | CO111: 0 | CP111: 0 | CQ111: 0 | CR111: 0 | CS111: 0 | CT111: 0 | CU111: 0 | CV111: 0 | CW111: 0
B112: 0 | C112: 0 | D112: 0 | E112: 0 | F112: 0 | G112: 0 | H112: 0 | I112: 0 | J112: 0 | K112: 0 | L112: 0 | M112: 0 | N112: 0 | O112: 0 | P112: 0 | Q112: 0 | R112: 0 | S112: 0 | T112: 0 | U112: 0 | V112: 0 | W112: 0 | X112: 0 | Y112: 0 | Z112: 0 | AA112: 0 | AB112: 0 | AC112: 0 | AD112: 0 | AE112: 0 | AF112: 0 | AG112: 0 | AH112: 0 | AI112: 0 | AJ112: 0 | AK112: 0 | AL112: 0 | AM112: 0 | AN112: 0 | AO112: 0 | AP112: 0 | AQ112: 0 | AR112: 0 | AS112: 0 | AT112: 0 | AU112: 0 | AV112: 0 | AW112: 0 | AX112: 0 | AY112: 0 | AZ112: 0 | BA112: 0 | BB112: 0 | BC112: 0 | BD112: 0 | BE112: 0 | BF112: 0 | BG112: 0 | BH112: 0 | BI112: 0 | BJ112: 0 | BK112: 0 | BL112: 0 | BM112: 0 | BN112: 0 | BO112: 0 | BP112: 0 | BQ112: 0 | BR112: 0 | BS112: 0 | BT112: 0 | BU112: 0 | BV112: 0 | BW112: 0 | BX112: 0 | BY112: 0 | BZ112: 0 | CA112: 0 | CB112: 0 | CC112: 0 | CD112: 0 | CE112: 0 | CF112: 0 | CG112: 0 | CH112: 0 | CI112: 0 | CJ112: 0 | CK112: 0 | CL112: 0 | CM112: 0 | CN112: 0 | CO112: 0 | CP112: 0 | CQ112: 0 | CR112: 0 | CS112: 0 | CT112: 0 | CU112: 0 | CV112: 0 | CW112: 0
B113: 0 | C113: 0 | D113: 0 | E113: 0 | F113: 0 | G113: 0 | H113: 0 | I113: 0 | J113: 0 | K113: 0 | L113: 0 | M113: 0 | N113: 0 | O113: 0 | P113: 0 | Q113: 0 | R113: 0 | S113: 0 | T113: 0 | U113: 0 | V113: 0 | W113: 0 | X113: 0 | Y113: 0 | Z113: 0 | AA113: 0 | AB113: 0 | AC113: 0 | AD113: 0 | AE113: 0 | AF113: 0 | AG113: 0 | AH113: 0 | AI113: 0 | AJ113: 0 | AK113: 0 | AL113: 0 | AM113: 0 | AN113: 0 | AO113: 0 | AP113: 0 | AQ113: 0 | AR113: 0 | AS113: 0 | AT113: 0 | AU113: 0 | AV113: 0 | AW113: 0 | AX113: 0 | AY113: 0 | AZ113: 0 | BA113: 0 | BB113: 0 | BC113: 0 | BD113: 0 | BE113: 0 | BF113: 0 | BG113: 0 | BH113: 0 | BI113: 0 | BJ113: 0 | BK113: 0 | BL113: 0 | BM113: 0 | BN113: 0 | BO113: 0 | BP113: 0 | BQ113: 0 | BR113: 0 | BS113: 0 | BT113: 0 | BU113: 0 | BV113: 0 | BW113: 0 | BX113: 0 | BY113: 0 | BZ113: 0 | CA113: 0 | CB113: 0 | CC113: 0 | CD113: 0 | CE113: 0 | CF113: 0 | CG113: 0 | CH113: 0 | CI113: 0 | CJ113: 0 | CK113: 0 | CL113: 0 | CM113: 0 | CN113: 0 | CO113: 0 | CP113: 0 | CQ113: 0 | CR113: 0 | CS113: 0 | CT113: 0 | CU113: 0 | CV113: 0 | CW113: 0
B114: 0 | C114: 0 | D114: 0 | E114: 0 | F114: 0 | G114: 0 | H114: 0 | I114: 0 | J114: 0 | K114: 0 | L114: 0 | M114: 0 | N114: 0 | O114: 0 | P114: 0 | Q114: 0 | R114: 0 | S114: 0 | T114: 0 | U114: 0 | V114: 0 | W114: 0 | X114: 0 | Y114: 0 | Z114: 0 | AA114: 0 | AB114: 0 | AC114: 0 | AD114: 0 | AE114: 0 | AF114: 0 | AG114: 0 | AH114: 0 | AI114: 0 | AJ114: 0 | AK114: 0 | AL114: 0 | AM114: 0 | AN114: 0 | AO114: 0 | AP114: 0 | AQ114: 0 | AR114: 0 | AS114: 0 | AT114: 0 | AU114: 0 | AV114: 0 | AW114: 0 | AX114: 0 | AY114: 0 | AZ114: 0 | BA114: 0 | BB114: 0 | BC114: 0 | BD114: 0 | BE114: 0 | BF114: 0 | BG114: 0 | BH114: 0 | BI114: 0 | BJ114: 0 | BK114: 0 | BL114: 0 | BM114: 0 | BN114: 0 | BO114: 0 | BP114: 0 | BQ114: 0 | BR114: 0 | BS114: 0 | BT114: 0 | BU114: 0 | BV114: 0 | BW114: 0 | BX114: 0 | BY114: 0 | BZ114: 0 | CA114: 0 | CB114: 0 | CC114: 0 | CD114: 0 | CE114: 0 | CF114: 0 | CG114: 0 | CH114: 0 | CI114: 0 | CJ114: 0 | CK114: 0 | CL114: 0 | CM114: 0 | CN114: 0 | CO114: 0 | CP114: 0 | CQ114: 0 | CR114: 0 | CS114: 0 | CT114: 0 | CU114: 0 | CV114: 0 | CW114: 0
B115: 0 | C115: 0 | D115: 0 | E115: 0 | F115: 0 | G115: 0 | H115: 0 | I115: 0 | J115: 0 | K115: 0 | L115: 0 | M115: 0 | N115: 0 | O115: 0 | P115: 0 | Q115: 0 | R115: 0 | S115: 0 | T115: 0 | U115: 0 | V115: 0 | W115: 0 | X115: 0 | Y115: 0 | Z115: 0 | AA115: 0 | AB115: 0 | AC115: 0 | AD115: 0 | AE115: 0 | AF115: 0 | AG115: 0 | AH115: 0 | AI115: 0 | AJ115: 0 | AK115: 0 | AL115: 0 | AM115: 0 | AN115: 0 | AO115: 0 | AP115: 0 | AQ115: 0 | AR115: 0 | AS115: 0 | AT115: 0 | AU115: 0 | AV115: 0 | AW115: 0 | AX115: 0 | AY115: 0 | AZ115: 0 | BA115: 0 | BB115: 0 | BC115: 0 | BD115: 0 | BE115: 0 | BF115: 0 | BG115: 0 | BH115: 0 | BI115: 0 | BJ115: 0 | BK115: 0 | BL115: 0 | BM115: 0 | BN115: 0 | BO115: 0 | BP115: 0 | BQ115: 0 | BR115: 0 | BS115: 0 | BT115: 0 | BU115: 0 | BV115: 0 | BW115: 0 | BX115: 0 | BY115: 0 | BZ115: 0 | CA115: 0 | CB115: 0 | CC115: 0 | CD115: 0 | CE115: 0 | CF115: 0 | CG115: 0 | CH115: 0 | CI115: 0 | CJ115: 0 | CK115: 0 | CL115: 0 | CM115: 0 | CN115: 0 | CO115: 0 | CP115: 0 | CQ115: 0 | CR115: 0 | CS115: 0 | CT115: 0 | CU115: 0 | CV115: 0 | CW115: 0
B116: 0 | C116: 0 | D116: 0 | E116: 0 | F116: 0 | G116: 0 | H116: 0 | I116: 0 | J116: 0 | K116: 0 | L116: 0 | M116: 0 | N116: 0 | O116: 0 | P116: 0 | Q116: 0 | R116: 0 | S116: 0 | T116: 0 | U116: 0 | V116: 0 | W116: 0 | X116: 0 | Y116: 0 | Z116: 0 | AA116: 0 | AB116: 0 | AC116: 0 | AD116: 0 | AE116: 0 | AF116: 0 | AG116: 0 | AH116: 0 | AI116: 0 | AJ116: 0 | AK116: 0 | AL116: 0 | AM116: 0 | AN116: 0 | AO116: 0 | AP116: 0 | AQ116: 0 | AR116: 0 | AS116: 0 | AT116: 0 | AU116: 0 | AV116: 0 | AW116: 0 | AX116: 0 | AY116: 0 | AZ116: 0 | BA116: 0 | BB116: 0 | BC116: 0 | BD116: 0 | BE116: 0 | BF116: 0 | BG116: 0 | BH116: 0 | BI116: 0 | BJ116: 0 | BK116: 0 | BL116: 0 | BM116: 0 | BN116: 0 | BO116: 0 | BP116: 0 | BQ116: 0 | BR116: 0 | BS116: 0 | BT116: 0 | BU116: 0 | BV116: 0 | BW116: 0 | BX116: 0 | BY116: 0 | BZ116: 0 | CA116: 0 | CB116: 0 | CC116: 0 | CD116: 0 | CE116: 0 | CF116: 0 | CG116: 0 | CH116: 0 | CI116: 0 | CJ116: 0 | CK116: 0 | CL116: 0 | CM116: 0 | CN116: 0 | CO116: 0 | CP116: 0 | CQ116: 0 | CR116: 0 | CS116: 0 | CT116: 0 | CU116: 0 | CV116: 0 | CW116: 0
B117: 0 | C117: 0 | D117: 0 | E117: 0 | F117: 0 | G117: 0 | H117: 0 | I117: 0 | J117: 0 | K117: 0 | L117: 0 | M117: 0 | N117: 0 | O117: 0 | P117: 0 | Q117: 0 | R117: 0 | S117: 0 | T117: 0 | U117: 0 | V117: 0 | W117: 0 | X117: 0 | Y117: 0 | Z117: 0 | AA117: 0 | AB117: 0 | AC117: 0 | AD117: 0 | AE117: 0 | AF117: 0 | AG117: 0 | AH117: 0 | AI117: 0 | AJ117: 0 | AK117: 0 | AL117: 0 | AM117: 0 | AN117: 0 | AO117: 0 | AP117: 0 | AQ117: 0 | AR117: 0 | AS117: 0 | AT117: 0 | AU117: 0 | AV117: 0 | AW117: 0 | AX117: 0 | AY117: 0 | AZ117: 0 | BA117: 0 | BB117: 0 | BC117: 0 | BD117: 0 | BE117: 0 | BF117: 0 | BG117: 0 | BH117: 0 | BI117: 0 | BJ117: 0 | BK117: 0 | BL117: 0 | BM117: 0 | BN117: 0 | BO117: 0 | BP117: 0 | BQ117: 0 | BR117: 0 | BS117: 0 | BT117: 0 | BU117: 0 | BV117: 0 | BW117: 0 | BX117: 0 | BY117: 0 | BZ117: 0 | CA117: 0 | CB117: 0 | CC117: 0 | CD117: 0 | CE117: 0 | CF117: 0 | CG117: 0 | CH117: 0 | CI117: 0 | CJ117: 0 | CK117: 0 | CL117: 0 | CM117: 0 | CN117: 0 | CO117: 0 | CP117: 0 | CQ117: 0 | CR117: 0 | CS117: 0 | CT117: 0 | CU117: 0 | CV117: 0 | CW117: 0
B118: 0 | C118: 0 | D118: 0 | E118: 0 | F118: 0 | G118: 0 | H118: 0 | I118: 0 | J118: 0 | K118: 0 | L118: 0 | M118: 0 | N118: 0 | O118: 0 | P118: 0 | Q118: 0 | R118: 0 | S118: 0 | T118: 0 | U118: 0 | V118: 0 | W118: 0 | X118: 0 | Y118: 0 | Z118: 0 | AA118: 0 | AB118: 0 | AC118: 0 | AD118: 0 | AE118: 0 | AF118: 0 | AG118: 0 | AH118: 0 | AI118: 0 | AJ118: 0 | AK118: 0 | AL118: 0 | AM118: 0 | AN118: 0 | AO118: 0 | AP118: 0 | AQ118: 0 | AR118: 0 | AS118: 0 | AT118: 0 | AU118: 0 | AV118: 0 | AW118: 0 | AX118: 0 | AY118: 0 | AZ118: 0 | BA118: 0 | BB118: 0 | BC118: 0 | BD118: 0 | BE118: 0 | BF118: 0 | BG118: 0 | BH118: 0 | BI118: 0 | BJ118: 0 | BK118: 0 | BL118: 0 | BM118: 0 | BN118: 0 | BO118: 0 | BP118: 0 | BQ118: 0 | BR118: 0 | BS118: 0 | BT118: 0 | BU118: 0 | BV118: 0 | BW118: 0 | BX118: 0 | BY118: 0 | BZ118: 0 | CA118: 0 | CB118: 0 | CC118: 0 | CD118: 0 | CE118: 0 | CF118: 0 | CG118: 0 | CH118: 0 | CI118: 0 | CJ118: 0 | CK118: 0 | CL118: 0 | CM118: 0 | CN118: 0 | CO118: 0 | CP118: 0 | CQ118: 0 | CR118: 0 | CS118: 0 | CT118: 0 | CU118: 0 | CV118: 0 | CW118: 0
B119: 0 | C119: 0 | D119: 0 | E119: 0 | F119: 0 | G119: 0 | H119: 0 | I119: 0 | J119: 0 | K119: 0 | L119: 0 | M119: 0 | N119: 0 | O119: 0 | P119: 0 | Q119: 0 | R119: 0 | S119: 0 | T119: 0 | U119: 0 | V119: 0 | W119: 0 | X119: 0 | Y119: 0 | Z119: 0 | AA119: 0 | AB119: 0 | AC119: 0 | AD119: 0 | AE119: 0 | AF119: 0 | AG119: 0 | AH119: 0 | AI119: 0 | AJ119: 0 | AK119: 0 | AL119: 0 | AM119: 0 | AN119: 0 | AO119: 0 | AP119: 0 | AQ119: 0 | AR119: 0 | AS119: 0 | AT119: 0 | AU119: 0 | AV119: 0 | AW119: 0 | AX119: 0 | AY119: 0 | AZ119: 0 | BA119: 0 | BB119: 0 | BC119: 0 | BD119: 0 | BE119: 0 | BF119: 0 | BG119: 0 | BH119: 0 | BI119: 0 | BJ119: 0 | BK119: 0 | BL119: 0 | BM119: 0 | BN119: 0 | BO119: 0 | BP119: 0 | BQ119: 0 | BR119: 0 | BS119: 0 | BT119: 0 | BU119: 0 | BV119: 0 | BW119: 0 | BX119: 0 | BY119: 0 | BZ119: 0 | CA119: 0 | CB119: 0 | CC119: 0 | CD119: 0 | CE119: 0 | CF119: 0 | CG119: 0 | CH119: 0 | CI119: 0 | CJ119: 0 | CK119: 0 | CL119: 0 | CM119: 0 | CN119: 0 | CO119: 0 | CP119: 0 | CQ119: 0 | CR119: 0 | CS119: 0 | CT119: 0 | CU119: 0 | CV119: 0 | CW119: 0
B120: 0 | C120: 0 | D120: 0 | E120: 0 | F120: 0 | G120: 0 | H120: 0 | I120: 0 | J120: 0 | K120: 0 | L120: 0 | M120: 0 | N120: 0 | O120: 0 | P120: 0 | Q120: 0 | R120: 0 | S120: 0 | T120: 0 | U120: 0 | V120: 0 | W120: 0 | X120: 0 | Y120: 0 | Z120: 0 | AA120: 0 | AB120: 0 | AC120: 0 | AD120: 0 | AE120: 0 | AF120: 0 | AG120: 0 | AH120: 0 | AI120: 0 | AJ120: 0 | AK120: 0 | AL120: 0 | AM120: 0 | AN120: 0 | AO120: 0 | AP120: 0 | AQ120: 0 | AR120: 0 | AS120: 0 | AT120: 0 | AU120: 0 | AV120: 0 | AW120: 0 | AX120: 0 | AY120: 0 | AZ120: 0 | BA120: 0 | BB120: 0 | BC120: 0 | BD120: 0 | BE120: 0 | BF120: 0 | BG120: 0 | BH120: 0 | BI120: 0 | BJ120: 0 | BK120: 0 | BL120: 0 | BM120: 0 | BN120: 0 | BO120: 0 | BP120: 0 | BQ120: 0 | BR120: 0 | BS120: 0 | BT120: 0 | BU120: 0 | BV120: 0 | BW120: 0 | BX120: 0 | BY120: 0 | BZ120: 0 | CA120: 0 | CB120: 0 | CC120: 0 | CD120: 0 | CE120: 0 | CF120: 0 | CG120: 0 | CH120: 0 | CI120: 0 | CJ120: 0 | CK120: 0 | CL120: 0 | CM120: 0 | CN120: 0 | CO120: 0 | CP120: 0 | CQ120: 0 | CR120: 0 | CS120: 0 | CT120: 0 | CU120: 0 | CV120: 0 | CW120: 0
B121: 0 | C121: 0 | D121: 0 | E121: 0 | F121: 0 | G121: 0 | H121: 0 | I121: 0 | J121: 0 | K121: 0 | L121: 0 | M121: 0 | N121: 0 | O121: 0 | P121: 0 | Q121: 0 | R121: 0 | S121: 0 | T121: 0 | U121: 0 | V121: 0 | W121: 0 | X121: 0 | Y121: 0 | Z121: 0 | AA121: 0 | AB121: 0 | AC121: 0 | AD121: 0 | AE121: 0 | AF121: 0 | AG121: 0 | AH121: 0 | AI121: 0 | AJ121: 0 | AK121: 0 | AL121: 0 | AM121: 0 | AN121: 0 | AO121: 0 | AP121: 0 | AQ121: 0 | AR121: 0 | AS121: 0 | AT121: 0 | AU121: 0 | AV121: 0 | AW121: 0 | AX121: 0 | AY121: 0 | AZ121: 0 | BA121: 0 | BB121: 0 | BC121: 0 | BD121: 0 | BE121: 0 | BF121: 0 | BG121: 0 | BH121: 0 | BI121: 0 | BJ121: 0 | BK121: 0 | BL121: 0 | BM121: 0 | BN121: 0 | BO121: 0 | BP121: 0 | BQ121: 0 | BR121: 0 | BS121: 0 | BT121: 0 | BU121: 0 | BV121: 0 | BW121: 0 | BX121: 0 | BY121: 0 | BZ121: 0 | CA121: 0 | CB121: 0 | CC121: 0 | CD121: 0 | CE121: 0 | CF121: 0 | CG121: 0 | CH121: 0 | CI121: 0 | CJ121: 0 | CK121: 0 | CL121: 0 | CM121: 0 | CN121: 0 | CO121: 0 | CP121: 0 | CQ121: 0 | CR121: 0 | CS121: 0 | CT121: 0 | CU121: 0 | CV121: 0 | CW121: 0
B122: 0 | C122: 0 | D122: 0 | E122: 0 | F122: 0 | G122: 0 | H122: 0 | I122: 0 | J122: 0 | K122: 0 | L122: 0 | M122: 0 | N122: 0 | O122: 0 | P122: 0 | Q122: 0 | R122: 0 | S122: 0 | T122: 0 | U122: 0 | V122: 0 | W122: 0 | X122: 0 | Y122: 0 | Z122: 0 | AA122: 0 | AB122: 0 | AC122: 0 | AD122: 0 | AE122: 0 | AF122: 0 | AG122: 0 | AH122: 0 | AI122: 0 | AJ122: 0 | AK122: 0 | AL122: 0 | AM122: 0 | AN122: 0 | AO122: 0 | AP122: 0 | AQ122: 0 | AR122: 0 | AS122: 0 | AT122: 0 | AU122: 0 | AV122: 0 | AW122: 0 | AX122: 0 | AY122: 0 | AZ122: 0 | BA122: 0 | BB122: 0 | BC122: 0 | BD122: 0 | BE122: 0 | BF122: 0 | BG122: 0 | BH122: 0 | BI122: 0 | BJ122: 0 | BK122: 0 | BL122: 0 | BM122: 0 | BN122: 0 | BO122: 0 | BP122: 0 | BQ122: 0 | BR122: 0 | BS122: 0 | BT122: 0 | BU122: 0 | BV122: 0 | BW122: 0 | BX122: 0 | BY122: 0 | BZ122: 0 | CA122: 0 | CB122: 0 | CC122: 0 | CD122: 0 | CE122: 0 | CF122: 0 | CG122: 0 | CH122: 0 | CI122: 0 | CJ122: 0 | CK122: 0 | CL122: 0 | CM122: 0 | CN122: 0 | CO122: 0 | CP122: 0 | CQ122: 0 | CR122: 0 | CS122: 0 | CT122: 0 | CU122: 0 | CV122: 0 | CW122: 0
B123: 0 | C123: 0 | D123: 0 | E123: 0 | F123: 0 | G123: 0 | H123: 0 | I123: 0 | J123: 0 | K123: 0 | L123: 0 | M123: 0 | N123: 0 | O123: 0 | P123: 0 | Q123: 0 | R123: 0 | S123: 0 | T123: 0 | U123: 0 | V123: 0 | W123: 0 | X123: 0 | Y123: 0 | Z123: 0 | AA123: 0 | AB123: 0 | AC123: 0 | AD123: 0 | AE123: 0 | AF123: 0 | AG123: 0 | AH123: 0 | AI123: 0 | AJ123: 0 | AK123: 0 | AL123: 0 | AM123: 0 | AN123: 0 | AO123: 0 | AP123: 0 | AQ123: 0 | AR123: 0 | AS123: 0 | AT123: 0 | AU123: 0 | AV123: 0 | AW123: 0 | AX123: 0 | AY123: 0 | AZ123: 0 | BA123: 0 | BB123: 0 | BC123: 0 | BD123: 0 | BE123: 0 | BF123: 0 | BG123: 0 | BH123: 0 | BI123: 0 | BJ123: 0 | BK123: 0 | BL123: 0 | BM123: 0 | BN123: 0 | BO123: 0 | BP123: 0 | BQ123: 0 | BR123: 0 | BS123: 0 | BT123: 0 | BU123: 0 | BV123: 0 | BW123: 0 | BX123: 0 | BY123: 0 | BZ123: 0 | CA123: 0 | CB123: 0 | CC123: 0 | CD123: 0 | CE123: 0 | CF123: 0 | CG123: 0 | CH123: 0 | CI123: 0 | CJ123: 0 | CK123: 0 | CL123: 0 | CM123: 0 | CN123: 0 | CO123: 0 | CP123: 0 | CQ123: 0 | CR123: 0 | CS123: 0 | CT123: 0 | CU123: 0 | CV123: 0 | CW123: 0
B124: 0 | C124: 0 | D124: 0 | E124: 0 | F124: 0 | G124: 0 | H124: 0 | I124: 0 | J124: 0 | K124: 0 | L124: 0 | M124: 0 | N124: 0 | O124: 0 | P124: 0 | Q124: 0 | R124: 0 | S124: 0 | T124: 0 | U124: 0 | V124: 0 | W124: 0 | X124: 0 | Y124: 0 | Z124: 0 | AA124: 0 | AB124: 0 | AC124: 0 | AD124: 0 | AE124: 0 | AF124: 0 | AG124: 0 | AH124: 0 | AI124: 0 | AJ124: 0 | AK124: 0 | AL124: 0 | AM124: 0 | AN124: 0 | AO124: 0 | AP124: 0 | AQ124: 0 | AR124: 0 | AS124: 0 | AT124: 0 | AU124: 0 | AV124: 0 | AW124: 0 | AX124: 0 | AY124: 0 | AZ124: 0 | BA124: 0 | BB124: 0 | BC124: 0 | BD124: 0 | BE124: 0 | BF124: 0 | BG124: 0 | BH124: 0 | BI124: 0 | BJ124: 0 | BK124: 0 | BL124: 0 | BM124: 0 | BN124: 0 | BO124: 0 | BP124: 0 | BQ124: 0 | BR124: 0 | BS124: 0 | BT124: 0 | BU124: 0 | BV124: 0 | BW124: 0 | BX124: 0 | BY124: 0 | BZ124: 0 | CA124: 0 | CB124: 0 | CC124: 0 | CD124: 0 | CE124: 0 | CF124: 0 | CG124: 0 | CH124: 0 | CI124: 0 | CJ124: 0 | CK124: 0 | CL124: 0 | CM124: 0 | CN124: 0 | CO124: 0 | CP124: 0 | CQ124: 0 | CR124: 0 | CS124: 0 | CT124: 0 | CU124: 0 | CV124: 0 | CW124: 0
B125: 0 | C125: 0 | D125: 0 | E125: 0 | F125: 0 | G125: 0 | H125: 0 | I125: 0 | J125: 0 | K125: 0 | L125: 0 | M125: 0 | N125: 0 | O125: 0 | P125: 0 | Q125: 0 | R125: 0 | S125: 0 | T125: 0 | U125: 0 | V125: 0 | W125: 0 | X125: 0 | Y125: 0 | Z125: 0 | AA125: 0 | AB125: 0 | AC125: 0 | AD125: 0 | AE125: 0 | AF125: 0 | AG125: 0 | AH125: 0 | AI125: 0 | AJ125: 0 | AK125: 0 | AL125: 0 | AM125: 0 | AN125: 0 | AO125: 0 | AP125: 0 | AQ125: 0 | AR125: 0 | AS125: 0 | AT125: 0 | AU125: 0 | AV125: 0 | AW125: 0 | AX125: 0 | AY125: 0 | AZ125: 0 | BA125: 0 | BB125: 0 | BC125: 0 | BD125: 0 | BE125: 0 | BF125: 0 | BG125: 0 | BH125: 0 | BI125: 0 | BJ125: 0 | BK125: 0 | BL125: 0 | BM125: 0 | BN125: 0 | BO125: 0 | BP125: 0 | BQ125: 0 | BR125: 0 | BS125: 0 | BT125: 0 | BU125: 0 | BV125: 0 | BW125: 0 | BX125: 0 | BY125: 0 | BZ125: 0 | CA125: 0 | CB125: 0 | CC125: 0 | CD125: 0 | CE125: 0 | CF125: 0 | CG125: 0 | CH125: 0 | CI125: 0 | CJ125: 0 | CK125: 0 | CL125: 0 | CM125: 0 | CN125: 0 | CO125: 0 | CP125: 0 | CQ125: 0 | CR125: 0 | CS125: 0 | CT125: 0 | CU125: 0 | CV125: 0 | CW125: 0
B126: 0 | C126: 0 | D126: 0 | E126: 0 | F126: 0 | G126: 0 | H126: 0 | I126: 0 | J126: 0 | K126: 0 | L126: 0 | M126: 0 | N126: 0 | O126: 0 | P126: 0 | Q126: 0 | R126: 0 | S126: 0 | T126: 0 | U126: 0 | V126: 0 | W126: 0 | X126: 0 | Y126: 0 | Z126: 0 | AA126: 0 | AB126: 0 | AC126: 0 | AD126: 0 | AE126: 0 | AF126: 0 | AG126: 0 | AH126: 0 | AI126: 0 | AJ126: 0 | AK126: 0 | AL126: 0 | AM126: 0 | AN126: 0 | AO126: 0 | AP126: 0 | AQ126: 0 | AR126: 0 | AS126: 0 | AT126: 0 | AU126: 0 | AV126: 0 | AW126: 0 | AX126: 0 | AY126: 0 | AZ126: 0 | BA126: 0 | BB126: 0 | BC126: 0 | BD126: 0 | BE126: 0 | BF126: 0 | BG126: 0 | BH126: 0 | BI126: 0 | BJ126: 0 | BK126: 0 | BL126: 0 | BM126: 0 | BN126: 0 | BO126: 0 | BP126: 0 | BQ126: 0 | BR126: 0 | BS126: 0 | BT126: 0 | BU126: 0 | BV126: 0 | BW126: 0 | BX126: 0 | BY126: 0 | BZ126: 0 | CA126: 0 | CB126: 0 | CC126: 0 | CD126: 0 | CE126: 0 | CF126: 0 | CG126: 0 | CH126: 0 | CI126: 0 | CJ126: 0 | CK126: 0 | CL126: 0 | CM126: 0 | CN126: 0 | CO126: 0 | CP126: 0 | CQ126: 0 | CR126: 0 | CS126: 0 | CT126: 0 | CU126: 0 | CV126: 0 | CW126: 0
B127: 0 | C127: 0 | D127: 0 | E127: 0 | F127: 0 | G127: 0 | H127: 0 | I127: 0 | J127: 0 | K127: 0 | L127: 0 | M127: 0 | N127: 0 | O127: 0 | P127: 0 | Q127: 0 | R127: 0 | S127: 0 | T127: 0 | U127: 0 | V127: 0 | W127: 0 | X127: 0 | Y127: 0 | Z127: 0 | AA127: 0 | AB127: 0 | AC127: 0 | AD127: 0 | AE127: 0 | AF127: 0 | AG127: 0 | AH127: 0 | AI127: 0 | AJ127: 0 | AK127: 0 | AL127: 0 | AM127: 0 | AN127: 0 | AO127: 0 | AP127: 0 | AQ127: 0 | AR127: 0 | AS127: 0 | AT127: 0 | AU127: 0 | AV127: 0 | AW127: 0 | AX127: 0 | AY127: 0 | AZ127: 0 | BA127: 0 | BB127: 0 | BC127: 0 | BD127: 0 | BE127: 0 | BF127: 0 | BG127: 0 | BH127: 0 | BI127: 0 | BJ127: 0 | BK127: 0 | BL127: 0 | BM127: 0 | BN127: 0 | BO127: 0 | BP127: 0 | BQ127: 0 | BR127: 0 | BS127: 0 | BT127: 0 | BU127: 0 | BV127: 0 | BW127: 0 | BX127: 0 | BY127: 0 | BZ127: 0 | CA127: 0 | CB127: 0 | CC127: 0 | CD127: 0 | CE127: 0 | CF127: 0 | CG127: 0 | CH127: 0 | CI127: 0 | CJ127: 0 | CK127: 0 | CL127: 0 | CM127: 0 | CN127: 0 | CO127: 0 | CP127: 0 | CQ127: 0 | CR127: 0 | CS127: 0 | CT127: 0 | CU127: 0 | CV127: 0 | CW127: 0
B128: 0 | C128: 0 | D128: 0 | E128: 0 | F128: 0 | G128: 0 | H128: 0 | I128: 0 | J128: 0 | K128: 0 | L128: 0 | M128: 0 | N128: 0 | O128: 0 | P128: 0 | Q128: 0 | R128: 0 | S128: 0 | T128: 0 | U128: 0 | V128: 0 | W128: 0 | X128: 0 | Y128: 0 | Z128: 0 | AA128: 0 | AB128: 0 | AC128: 0 | AD128: 0 | AE128: 0 | AF128: 0 | AG128: 0 | AH128: 0 | AI128: 0 | AJ128: 0 | AK128: 0 | AL128: 0 | AM128: 0 | AN128: 0 | AO128: 0 | AP128: 0 | AQ128: 0 | AR128: 0 | AS128: 0 | AT128: 0 | AU128: 0 | AV128: 0 | AW128: 0 | AX128: 0 | AY128: 0 | AZ128: 0 | BA128: 0 | BB128: 0 | BC128: 0 | BD128: 0 | BE128: 0 | BF128: 0 | BG128: 0 | BH128: 0 | BI128: 0 | BJ128: 0 | BK128: 0 | BL128: 0 | BM128: 0 | BN128: 0 | BO128: 0 | BP128: 0 | BQ128: 0 | BR128: 0 | BS128: 0 | BT128: 0 | BU128: 0 | BV128: 0 | BW128: 0 | BX128: 0 | BY128: 0 | BZ128: 0 | CA128: 0 | CB128: 0 | CC128: 0 | CD128: 0 | CE128: 0 | CF128: 0 | CG128: 0 | CH128: 0 | CI128: 0 | CJ128: 0 | CK128: 0 | CL128: 0 | CM128: 0 | CN128: 0 | CO128: 0 | CP128: 0 | CQ128: 0 | CR128: 0 | CS128: 0 | CT128: 0 | CU128: 0 | CV128: 0 | CW128: 0
B129: 0 | C129: 0 | D129: 0 | E129: 0 | F129: 0 | G129: 0 | H129: 0 | I129: 0 | J129: 0 | K129: 0 | L129: 0 | M129: 0 | N129: 0 | O129: 0 | P129: 0 | Q129: 0 | R129: 0 | S129: 0 | T129: 0 | U129: 0 | V129: 0 | W129: 0 | X129: 0 | Y129: 0 | Z129: 0 | AA129: 0 | AB129: 0 | AC129: 0 | AD129: 0 | AE129: 0 | AF129: 0 | AG129: 0 | AH129: 0 | AI129: 0 | AJ129: 0 | AK129: 0 | AL129: 0 | AM129: 0 | AN129: 0 | AO129: 0 | AP129: 0 | AQ129: 0 | AR129: 0 | AS129: 0 | AT129: 0 | AU129: 0 | AV129: 0 | AW129: 0 | AX129: 0 | AY129: 0 | AZ129: 0 | BA129: 0 | BB129: 0 | BC129: 0 | BD129: 0 | BE129: 0 | BF129: 0 | BG129: 0 | BH129: 0 | BI129: 0 | BJ129: 0 | BK129: 0 | BL129: 0 | BM129: 0 | BN129: 0 | BO129: 0 | BP129: 0 | BQ129: 0 | BR129: 0 | BS129: 0 | BT129: 0 | BU129: 0 | BV129: 0 | BW129: 0 | BX129: 0 | BY129: 0 | BZ129: 0 | CA129: 0 | CB129: 0 | CC129: 0 | CD129: 0 | CE129: 0 | CF129: 0 | CG129: 0 | CH129: 0 | CI129: 0 | CJ129: 0 | CK129: 0 | CL129: 0 | CM129: 0 | CN129: 0 | CO129: 0 | CP129: 0 | CQ129: 0 | CR129: 0 | CS129: 0 | CT129: 0 | CU129: 0 | CV129: 0 | CW129: 0
B130: 0 | C130: 0 | D130: 0 | E130: 0 | F130: 0 | G130: 0 | H130: 0 | I130: 0 | J130: 0 | K130: 0 | L130: 0 | M130: 0 | N130: 0 | O130: 0 | P130: 0 | Q130: 0 | R130: 0 | S130: 0 | T130: 0 | U130: 0 | V130: 0 | W130: 0 | X130: 0 | Y130: 0 | Z130: 0 | AA130: 0 | AB130: 0 | AC130: 0 | AD130: 0 | AE130: 0 | AF130: 0 | AG130: 0 | AH130: 0 | AI130: 0 | AJ130: 0 | AK130: 0 | AL130: 0 | AM130: 0 | AN130: 0 | AO130: 0 | AP130: 0 | AQ130: 0 | AR130: 0 | AS130: 0 | AT130: 0 | AU130: 0 | AV130: 0 | AW130: 0 | AX130: 0 | AY130: 0 | AZ130: 0 | BA130: 0 | BB130: 0 | BC130: 0 | BD130: 0 | BE130: 0 | BF130: 0 | BG130: 0 | BH130: 0 | BI130: 0 | BJ130: 0 | BK130: 0 | BL130: 0 | BM130: 0 | BN130: 0 | BO130: 0 | BP130: 0 | BQ130: 0 | BR130: 0 | BS130: 0 | BT130: 0 | BU130: 0 | BV130: 0 | BW130: 0 | BX130: 0 | BY130: 0 | BZ130: 0 | CA130: 0 | CB130: 0 | CC130: 0 | CD130: 0 | CE130: 0 | CF130: 0 | CG130: 0 | CH130: 0 | CI130: 0 | CJ130: 0 | CK130: 0 | CL130: 0 | CM130: 0 | CN130: 0 | CO130: 0 | CP130: 0 | CQ130: 0 | CR130: 0 | CS130: 0 | CT130: 0 | CU130: 0 | CV130: 0 | CW130: 0
B131: 0 | C131: 0 | D131: 0 | E131: 0 | F131: 0 | G131: 0 | H131: 0 | I131: 0 | J131: 0 | K131: 0 | L131: 0 | M131: 0 | N131: 0 | O131: 0 | P131: 0 | Q131: 0 | R131: 0 | S131: 0 | T131: 0 | U131: 0 | V131: 0 | W131: 0 | X131: 0 | Y131: 0 | Z131: 0 | AA131: 0 | AB131: 0 | AC131: 0 | AD131: 0 | AE131: 0 | AF131: 0 | AG131: 0 | AH131: 0 | AI131: 0 | AJ131: 0 | AK131: 0 | AL131: 0 | AM131: 0 | AN131: 0 | AO131: 0 | AP131: 0 | AQ131: 0 | AR131: 0 | AS131: 0 | AT131: 0 | AU131: 0 | AV131: 0 | AW131: 0 | AX131: 0 | AY131: 0 | AZ131: 0 | BA131: 0 | BB131: 0 | BC131: 0 | BD131: 0 | BE131: 0 | BF131: 0 | BG131: 0 | BH131: 0 | BI131: 0 | BJ131: 0 | BK131: 0 | BL131: 0 | BM131: 0 | BN131: 0 | BO131: 0 | BP131: 0 | BQ131: 0 | BR131: 0 | BS131: 0 | BT131: 0 | BU131: 0 | BV131: 0 | BW131: 0 | BX131: 0 | BY131: 0 | BZ131: 0 | CA131: 0 | CB131: 0 | CC131: 0 | CD131: 0 | CE131: 0 | CF131: 0 | CG131: 0 | CH131: 0 | CI131: 0 | CJ131: 0 | CK131: 0 | CL131: 0 | CM131: 0 | CN131: 0 | CO131: 0 | CP131: 0 | CQ131: 0 | CR131: 0 | CS131: 0 | CT131: 0 | CU131: 0 | CV131: 0 | CW131: 0
B132: 0 | C132: 0 | D132: 0 | E132: 0 | F132: 0 | G132: 0 | H132: 0 | I132: 0 | J132: 0 | K132: 0 | L132: 0 | M132: 0 | N132: 0 | O132: 0 | P132: 0 | Q132: 0 | R132: 0 | S132: 0 | T132: 0 | U132: 0 | V132: 0 | W132: 0 | X132: 0 | Y132: 0 | Z132: 0 | AA132: 0 | AB132: 0 | AC132: 0 | AD132: 0 | AE132: 0 | AF132: 0 | AG132: 0 | AH132: 0 | AI132: 0 | AJ132: 0 | AK132: 0 | AL132: 0 | AM132: 0 | AN132: 0 | AO132: 0 | AP132: 0 | AQ132: 0 | AR132: 0 | AS132: 0 | AT132: 0 | AU132: 0 | AV132: 0 | AW132: 0 | AX132: 0 | AY132: 0 | AZ132: 0 | BA132: 0 | BB132: 0 | BC132: 0 | BD132: 0 | BE132: 0 | BF132: 0 | BG132: 0 | BH132: 0 | BI132: 0 | BJ132: 0 | BK132: 0 | BL132: 0 | BM132: 0 | BN132: 0 | BO132: 0 | BP132: 0 | BQ132: 0 | BR132: 0 | BS132: 0 | BT132: 0 | BU132: 0 | BV132: 0 | BW132: 0 | BX132: 0 | BY132: 0 | BZ132: 0 | CA132: 0 | CB132: 0 | CC132: 0 | CD132: 0 | CE132: 0 | CF132: 0 | CG132: 0 | CH132: 0 | CI132: 0 | CJ132: 0 | CK132: 0 | CL132: 0 | CM132: 0 | CN132: 0 | CO132: 0 | CP132: 0 | CQ132: 0 | CR132: 0 | CS132: 0 | CT132: 0 | CU132: 0 | CV132: 0 | CW132: 0
B133: 0 | C133: 0 | D133: 0 | E133: 0 | F133: 0 | G133: 0 | H133: 0 | I133: 0 | J133: 0 | K133: 0 | L133: 0 | M133: 0 | N133: 0 | O133: 0 | P133: 0 | Q133: 0 | R133: 0 | S133: 0 | T133: 0 | U133: 0 | V133: 0 | W133: 0 | X133: 0 | Y133: 0 | Z133: 0 | AA133: 0 | AB133: 0 | AC133: 0 | AD133: 0 | AE133: 0 | AF133: 0 | AG133: 0 | AH133: 0 | AI133: 0 | AJ133: 0 | AK133: 0 | AL133: 0 | AM133: 0 | AN133: 0 | AO133: 0 | AP133: 0 | AQ133: 0 | AR133: 0 | AS133: 0 | AT133: 0 | AU133: 0 | AV133: 0 | AW133: 0 | AX133: 0 | AY133: 0 | AZ133: 0 | BA133: 0 | BB133: 0 | BC133: 0 | BD133: 0 | BE133: 0 | BF133: 0 | BG133: 0 | BH133: 0 | BI133: 0 | BJ133: 0 | BK133: 0 | BL133: 0 | BM133: 0 | BN133: 0 | BO133: 0 | BP133: 0 | BQ133: 0 | BR133: 0 | BS133: 0 | BT133: 0 | BU133: 0 | BV133: 0 | BW133: 0 | BX133: 0 | BY133: 0 | BZ133: 0 | CA133: 0 | CB133: 0 | CC133: 0 | CD133: 0 | CE133: 0 | CF133: 0 | CG133: 0 | CH133: 0 | CI133: 0 | CJ133: 0 | CK133: 0 | CL133: 0 | CM133: 0 | CN133: 0 | CO133: 0 | CP133: 0 | CQ133: 0 | CR133: 0 | CS133: 0 | CT133: 0 | CU133: 0 | CV133: 0 | CW133: 0
B134: 0 | C134: 0 | D134: 0 | E134: 0 | F134: 0 | G134: 0 | H134: 0 | I134: 0 | J134: 0 | K134: 0 | L134: 0 | M134: 0 | N134: 0 | O134: 0 | P134: 0 | Q134: 0 | R134: 0 | S134: 0 | T134: 0 | U134: 0 | V134: 0 | W134: 0 | X134: 0 | Y134: 0 | Z134: 0 | AA134: 0 | AB134: 0 | AC134: 0 | AD134: 0 | AE134: 0 | AF134: 0 | AG134: 0 | AH134: 0 | AI134: 0 | AJ134: 0 | AK134: 0 | AL134: 0 | AM134: 0 | AN134: 0 | AO134: 0 | AP134: 0 | AQ134: 0 | AR134: 0 | AS134: 0 | AT134: 0 | AU134: 0 | AV134: 0 | AW134: 0 | AX134: 0 | AY134: 0 | AZ134: 0 | BA134: 0 | BB134: 0 | BC134: 0 | BD134: 0 | BE134: 0 | BF134: 0 | BG134: 0 | BH134: 0 | BI134: 0 | BJ134: 0 | BK134: 0 | BL134: 0 | BM134: 0 | BN134: 0 | BO134: 0 | BP134: 0 | BQ134: 0 | BR134: 0 | BS134: 0 | BT134: 0 | BU134: 0 | BV134: 0 | BW134: 0 | BX134: 0 | BY134: 0 | BZ134: 0 | CA134: 0 | CB134: 0 | CC134: 0 | CD134: 0 | CE134: 0 | CF134: 0 | CG134: 0 | CH134: 0 | CI134: 0 | CJ134: 0 | CK134: 0 | CL134: 0 | CM134: 0 | CN134: 0 | CO134: 0 | CP134: 0 | CQ134: 0 | CR134: 0 | CS134: 0 | CT134: 0 | CU134: 0 | CV134: 0 | CW134: 0
B135: 0 | C135: 0 | D135: 0 | E135: 0 | F135: 0 | G135: 0 | H135: 0 | I135: 0 | J135: 0 | K135: 0 | L135: 0 | M135: 0 | N135: 0 | O135: 0 | P135: 0 | Q135: 0 | R135: 0 | S135: 0 | T135: 0 | U135: 0 | V135: 0 | W135: 0 | X135: 0 | Y135: 0 | Z135: 0 | AA135: 0 | AB135: 0 | AC135: 0 | AD135: 0 | AE135: 0 | AF135: 0 | AG135: 0 | AH135: 0 | AI135: 0 | AJ135: 0 | AK135: 0 | AL135: 0 | AM135: 0 | AN135: 0 | AO135: 0 | AP135: 0 | AQ135: 0 | AR135: 0 | AS135: 0 | AT135: 0 | AU135: 0 | AV135: 0 | AW135: 0 | AX135: 0 | AY135: 0 | AZ135: 0 | BA135: 0 | BB135: 0 | BC135: 0 | BD135: 0 | BE135: 0 | BF135: 0 | BG135: 0 | BH135: 0 | BI135: 0 | BJ135: 0 | BK135: 0 | BL135: 0 | BM135: 0 | BN135: 0 | BO135: 0 | BP135: 0 | BQ135: 0 | BR135: 0 | BS135: 0 | BT135: 0 | BU135: 0 | BV135: 0 | BW135: 0 | BX135: 0 | BY135: 0 | BZ135: 0 | CA135: 0 | CB135: 0 | CC135: 0 | CD135: 0 | CE135: 0 | CF135: 0 | CG135: 0 | CH135: 0 | CI135: 0 | CJ135: 0 | CK135: 0 | CL135: 0 | CM135: 0 | CN135: 0 | CO135: 0 | CP135: 0 | CQ135: 0 | CR135: 0 | CS135: 0 | CT135: 0 | CU135: 0 | CV135: 0 | CW135: 0
B136: 0 | C136: 0 | D136: 0 | E136: 0 | F136: 0 | G136: 0 | H136: 0 | I136: 0 | J136: 0 | K136: 0 | L136: 0 | M136: 0 | N136: 0 | O136: 0 | P136: 0 | Q136: 0 | R136: 0 | S136: 0 | T136: 0 | U136: 0 | V136: 0 | W136: 0 | X136: 0 | Y136: 0 | Z136: 0 | AA136: 0 | AB136: 0 | AC136: 0 | AD136: 0 | AE136: 0 | AF136: 0 | AG136: 0 | AH136: 0 | AI136: 0 | AJ136: 0 | AK136: 0 | AL136: 0 | AM136: 0 | AN136: 0 | AO136: 0 | AP136: 0 | AQ136: 0 | AR136: 0 | AS136: 0 | AT136: 0 | AU136: 0 | AV136: 0 | AW136: 0 | AX136: 0 | AY136: 0 | AZ136: 0 | BA136: 0 | BB136: 0 | BC136: 0 | BD136: 0 | BE136: 0 | BF136: 0 | BG136: 0 | BH136: 0 | BI136: 0 | BJ136: 0 | BK136: 0 | BL136: 0 | BM136: 0 | BN136: 0 | BO136: 0 | BP136: 0 | BQ136: 0 | BR136: 0 | BS136: 0 | BT136: 0 | BU136: 0 | BV136: 0 | BW136: 0 | BX136: 0 | BY136: 0 | BZ136: 0 | CA136: 0 | CB136: 0 | CC136: 0 | CD136: 0 | CE136: 0 | CF136: 0 | CG136: 0 | CH136: 0 | CI136: 0 | CJ136: 0 | CK136: 0 | CL136: 0 | CM136: 0 | CN136: 0 | CO136: 0 | CP136: 0 | CQ136: 0 | CR136: 0 | CS136: 0 | CT136: 0 | CU136: 0 | CV136: 0 | CW136: 0
B137: 0 | C137: 0 | D137: 0 | E137: 0 | F137: 0 | G137: 0 | H137: 0 | I137: 0 | J137: 0 | K137: 0 | L137: 0 | M137: 0 | N137: 0 | O137: 0 | P137: 0 | Q137: 0 | R137: 0 | S137: 0 | T137: 0 | U137: 0 | V137: 0 | W137: 0 | X137: 0 | Y137: 0 | Z137: 0 | AA137: 0 | AB137: 0 | AC137: 0 | AD137: 0 | AE137: 0 | AF137: 0 | AG137: 0 | AH137: 0 | AI137: 0 | AJ137: 0 | AK137: 0 | AL137: 0 | AM137: 0 | AN137: 0 | AO137: 0 | AP137: 0 | AQ137: 0 | AR137: 0 | AS137: 0 | AT137: 0 | AU137: 0 | AV137: 0 | AW137: 0 | AX137: 0 | AY137: 0 | AZ137: 0 | BA137: 0 | BB137: 0 | BC137: 0 | BD137: 0 | BE137: 0 | BF137: 0 | BG137: 0 | BH137: 0 | BI137: 0 | BJ137: 0 | BK137: 0 | BL137: 0 | BM137: 0 | BN137: 0 | BO137: 0 | BP137: 0 | BQ137: 0 | BR137: 0 | BS137: 0 | BT137: 0 | BU137: 0 | BV137: 0 | BW137: 0 | BX137: 0 | BY137: 0 | BZ137: 0 | CA137: 0 | CB137: 0 | CC137: 0 | CD137: 0 | CE137: 0 | CF137: 0 | CG137: 0 | CH137: 0 | CI137: 0 | CJ137: 0 | CK137: 0 | CL137: 0 | CM137: 0 | CN137: 0 | CO137: 0 | CP137: 0 | CQ137: 0 | CR137: 0 | CS137: 0 | CT137: 0 | CU137: 0 | CV137: 0 | CW137: 0
B138: 0 | C138: 0 | D138: 0 | E138: 0 | F138: 0 | G138: 0 | H138: 0 | I138: 0 | J138: 0 | K138: 0 | L138: 0 | M138: 0 | N138: 0 | O138: 0 | P138: 0 | Q138: 0 | R138: 0 | S138: 0 | T138: 0 | U138: 0 | V138: 0 | W138: 0 | X138: 0 | Y138: 0 | Z138: 0 | AA138: 0 | AB138: 0 | AC138: 0 | AD138: 0 | AE138: 0 | AF138: 0 | AG138: 0 | AH138: 0 | AI138: 0 | AJ138: 0 | AK138: 0 | AL138: 0 | AM138: 0 | AN138: 0 | AO138: 0 | AP138: 0 | AQ138: 0 | AR138: 0 | AS138: 0 | AT138: 0 | AU138: 0 | AV138: 0 | AW138: 0 | AX138: 0 | AY138: 0 | AZ138: 0 | BA138: 0 | BB138: 0 | BC138: 0 | BD138: 0 | BE138: 0 | BF138: 0 | BG138: 0 | BH138: 0 | BI138: 0 | BJ138: 0 | BK138: 0 | BL138: 0 | BM138: 0 | BN138: 0 | BO138: 0 | BP138: 0 | BQ138: 0 | BR138: 0 | BS138: 0 | BT138: 0 | BU138: 0 | BV138: 0 | BW138: 0 | BX138: 0 | BY138: 0 | BZ138: 0 | CA138: 0 | CB138: 0 | CC138: 0 | CD138: 0 | CE138: 0 | CF138: 0 | CG138: 0 | CH138: 0 | CI138: 0 | CJ138: 0 | CK138: 0 | CL138: 0 | CM138: 0 | CN138: 0 | CO138: 0 | CP138: 0 | CQ138: 0 | CR138: 0 | CS138: 0 | CT138: 0 | CU138: 0 | CV138: 0 | CW138: 0
B139: 0 | C139: 0 | D139: 0 | E139: 0 | F139: 0 | G139: 0 | H139: 0 | I139: 0 | J139: 0 | K139: 0 | L139: 0 | M139: 0 | N139: 0 | O139: 0 | P139: 0 | Q139: 0 | R139: 0 | S139: 0 | T139: 0 | U139: 0 | V139: 0 | W139: 0 | X139: 0 | Y139: 0 | Z139: 0 | AA139: 0 | AB139: 0 | AC139: 0 | AD139: 0 | AE139: 0 | AF139: 0 | AG139: 0 | AH139: 0 | AI139: 0 | AJ139: 0 | AK139: 0 | AL139: 0 | AM139: 0 | AN139: 0 | AO139: 0 | AP139: 0 | AQ139: 0 | AR139: 0 | AS139: 0 | AT139: 0 | AU139: 0 | AV139: 0 | AW139: 0 | AX139: 0 | AY139: 0 | AZ139: 0 | BA139: 0 | BB139: 0 | BC139: 0 | BD139: 0 | BE139: 0 | BF139: 0 | BG139: 0 | BH139: 0 | BI139: 0 | BJ139: 0 | BK139: 0 | BL139: 0 | BM139: 0 | BN139: 0 | BO139: 0 | BP139: 0 | BQ139: 0 | BR139: 0 | BS139: 0 | BT139: 0 | BU139: 0 | BV139: 0 | BW139: 0 | BX139: 0 | BY139: 0 | BZ139: 0 | CA139: 0 | CB139: 0 | CC139: 0 | CD139: 0 | CE139: 0 | CF139: 0 | CG139: 0 | CH139: 0 | CI139: 0 | CJ139: 0 | CK139: 0 | CL139: 0 | CM139: 0 | CN139: 0 | CO139: 0 | CP139: 0 | CQ139: 0 | CR139: 0 | CS139: 0 | CT139: 0 | CU139: 0 | CV139: 0 | CW139: 0
B140: 0 | C140: 0 | D140: 0 | E140: 0 | F140: 0 | G140: 0 | H140: 0 | I140: 0 | J140: 0 | K140: 0 | L140: 0 | M140: 0 | N140: 0 | O140: 0 | P140: 0 | Q140: 0 | R140: 0 | S140: 0 | T140: 0 | U140: 0 | V140: 0 | W140: 0 | X140: 0 | Y140: 0 | Z140: 0 | AA140: 0 | AB140: 0 | AC140: 0 | AD140: 0 | AE140: 0 | AF140: 0 | AG140: 0 | AH140: 0 | AI140: 0 | AJ140: 0 | AK140: 0 | AL140: 0 | AM140: 0 | AN140: 0 | AO140: 0 | AP140: 0 | AQ140: 0 | AR140: 0 | AS140: 0 | AT140: 0 | AU140: 0 | AV140: 0 | AW140: 0 | AX140: 0 | AY140: 0 | AZ140: 0 | BA140: 0 | BB140: 0 | BC140: 0 | BD140: 0 | BE140: 0 | BF140: 0 | BG140: 0 | BH140: 0 | BI140: 0 | BJ140: 0 | BK140: 0 | BL140: 0 | BM140: 0 | BN140: 0 | BO140: 0 | BP140: 0 | BQ140: 0 | BR140: 0 | BS140: 0 | BT140: 0 | BU140: 0 | BV140: 0 | BW140: 0 | BX140: 0 | BY140: 0 | BZ140: 0 | CA140: 0 | CB140: 0 | CC140: 0 | CD140: 0 | CE140: 0 | CF140: 0 | CG140: 0 | CH140: 0 | CI140: 0 | CJ140: 0 | CK140: 0 | CL140: 0 | CM140: 0 | CN140: 0 | CO140: 0 | CP140: 0 | CQ140: 0 | CR140: 0 | CS140: 0 | CT140: 0 | CU140: 0 | CV140: 0 | CW140: 0
B141: 0 | C141: 0 | D141: 0 | E141: 0 | F141: 0 | G141: 0 | H141: 0 | I141: 0 | J141: 0 | K141: 0 | L141: 0 | M141: 0 | N141: 0 | O141: 0 | P141: 0 | Q141: 0 | R141: 0 | S141: 0 | T141: 0 | U141: 0 | V141: 0 | W141: 0 | X141: 0 | Y141: 0 | Z141: 0 | AA141: 0 | AB141: 0 | AC141: 0 | AD141: 0 | AE141: 0 | AF141: 0 | AG141: 0 | AH141: 0 | AI141: 0 | AJ141: 0 | AK141: 0 | AL141: 0 | AM141: 0 | AN141: 0 | AO141: 0 | AP141: 0 | AQ141: 0 | AR141: 0 | AS141: 0 | AT141: 0 | AU141: 0 | AV141: 0 | AW141: 0 | AX141: 0 | AY141: 0 | AZ141: 0 | BA141: 0 | BB141: 0 | BC141: 0 | BD141: 0 | BE141: 0 | BF141: 0 | BG141: 0 | BH141: 0 | BI141: 0 | BJ141: 0 | BK141: 0 | BL141: 0 | BM141: 0 | BN141: 0 | BO141: 0 | BP141: 0 | BQ141: 0 | BR141: 0 | BS141: 0 | BT141: 0 | BU141: 0 | BV141: 0 | BW141: 0 | BX141: 0 | BY141: 0 | BZ141: 0 | CA141: 0 | CB141: 0 | CC141: 0 | CD141: 0 | CE141: 0 | CF141: 0 | CG141: 0 | CH141: 0 | CI141: 0 | CJ141: 0 | CK141: 0 | CL141: 0 | CM141: 0 | CN141: 0 | CO141: 0 | CP141: 0 | CQ141: 0 | CR141: 0 | CS141: 0 | CT141: 0 | CU141: 0 | CV141: 0 | CW141: 0
B142: 0 | C142: 0 | D142: 0 | E142: 0 | F142: 0 | G142: 0 | H142: 0 | I142: 0 | J142: 0 | K142: 0 | L142: 0 | M142: 0 | N142: 0 | O142: 0 | P142: 0 | Q142: 0 | R142: 0 | S142: 0 | T142: 0 | U142: 0 | V142: 0 | W142: 0 | X142: 0 | Y142: 0 | Z142: 0 | AA142: 0 | AB142: 0 | AC142: 0 | AD142: 0 | AE142: 0 | AF142: 0 | AG142: 0 | AH142: 0 | AI142: 0 | AJ142: 0 | AK142: 0 | AL142: 0 | AM142: 0 | AN142: 0 | AO142: 0 | AP142: 0 | AQ142: 0 | AR142: 0 | AS142: 0 | AT142: 0 | AU142: 0 | AV142: 0 | AW142: 0 | AX142: 0 | AY142: 0 | AZ142: 0 | BA142: 0 | BB142: 0 | BC142: 0 | BD142: 0 | BE142: 0 | BF142: 0 | BG142: 0 | BH142: 0 | BI142: 0 | BJ142: 0 | BK142: 0 | BL142: 0 | BM142: 0 | BN142: 0 | BO142: 0 | BP142: 0 | BQ142: 0 | BR142: 0 | BS142: 0 | BT142: 0 | BU142: 0 | BV142: 0 | BW142: 0 | BX142: 0 | BY142: 0 | BZ142: 0 | CA142: 0 | CB142: 0 | CC142: 0 | CD142: 0 | CE142: 0 | CF142: 0 | CG142: 0 | CH142: 0 | CI142: 0 | CJ142: 0 | CK142: 0 | CL142: 0 | CM142: 0 | CN142: 0 | CO142: 0 | CP142: 0 | CQ142: 0 | CR142: 0 | CS142: 0 | CT142: 0 | CU142: 0 | CV142: 0 | CW142: 0
B143: 0 | C143: 0 | D143: 0 | E143: 0 | F143: 0 | G143: 0 | H143: 0 | I143: 0 | J143: 0 | K143: 0 | L143: 0 | M143: 0 | N143: 0 | O143: 0 | P143: 0 | Q143: 0 | R143: 0 | S143: 0 | T143: 0 | U143: 0 | V143: 0 | W143: 0 | X143: 0 | Y143: 0 | Z143: 0 | AA143: 0 | AB143: 0 | AC143: 0 | AD143: 0 | AE143: 0 | AF143: 0 | AG143: 0 | AH143: 0 | AI143: 0 | AJ143: 0 | AK143: 0 | AL143: 0 | AM143: 0 | AN143: 0 | AO143: 0 | AP143: 0 | AQ143: 0 | AR143: 0 | AS143: 0 | AT143: 0 | AU143: 0 | AV143: 0 | AW143: 0 | AX143: 0 | AY143: 0 | AZ143: 0 | BA143: 0 | BB143: 0 | BC143: 0 | BD143: 0 | BE143: 0 | BF143: 0 | BG143: 0 | BH143: 0 | BI143: 0 | BJ143: 0 | BK143: 0 | BL143: 0 | BM143: 0 | BN143: 0 | BO143: 0 | BP143: 0 | BQ143: 0 | BR143: 0 | BS143: 0 | BT143: 0 | BU143: 0 | BV143: 0 | BW143: 0 | BX143: 0 | BY143: 0 | BZ143: 0 | CA143: 0 | CB143: 0 | CC143: 0 | CD143: 0 | CE143: 0 | CF143: 0 | CG143: 0 | CH143: 0 | CI143: 0 | CJ143: 0 | CK143: 0 | CL143: 0 | CM143: 0 | CN143: 0 | CO143: 0 | CP143: 0 | CQ143: 0 | CR143: 0 | CS143: 0 | CT143: 0 | CU143: 0 | CV143: 0 | CW143: 0
B144: 0 | C144: 0 | D144: 0 | E144: 0 | F144: 0 | G144: 0 | H144: 0 | I144: 0 | J144: 0 | K144: 0 | L144: 0 | M144: 0 | N144: 0 | O144: 0 | P144: 0 | Q144: 0 | R144: 0 | S144: 0 | T144: 0 | U144: 0 | V144: 0 | W144: 0 | X144: 0 | Y144: 0 | Z144: 0 | AA144: 0 | AB144: 0 | AC144: 0 | AD144: 0 | AE144: 0 | AF144: 0 | AG144: 0 | AH144: 0 | AI144: 0 | AJ144: 0 | AK144: 0 | AL144: 0 | AM144: 0 | AN144: 0 | AO144: 0 | AP144: 0 | AQ144: 0 | AR144: 0 | AS144: 0 | AT144: 0 | AU144: 0 | AV144: 0 | AW144: 0 | AX144: 0 | AY144: 0 | AZ144: 0 | BA144: 0 | BB144: 0 | BC144: 0 | BD144: 0 | BE144: 0 | BF144: 0 | BG144: 0 | BH144: 0 | BI144: 0 | BJ144: 0 | BK144: 0 | BL144: 0 | BM144: 0 | BN144: 0 | BO144: 0 | BP144: 0 | BQ144: 0 | BR144: 0 | BS144: 0 | BT144: 0 | BU144: 0 | BV144: 0 | BW144: 0 | BX144: 0 | BY144: 0 | BZ144: 0 | CA144: 0 | CB144: 0 | CC144: 0 | CD144: 0 | CE144: 0 | CF144: 0 | CG144: 0 | CH144: 0 | CI144: 0 | CJ144: 0 | CK144: 0 | CL144: 0 | CM144: 0 | CN144: 0 | CO144: 0 | CP144: 0 | CQ144: 0 | CR144: 0 | CS144: 0 | CT144: 0 | CU144: 0 | CV144: 0 | CW144: 0
B145: 0 | C145: 0 | D145: 0 | E145: 0 | F145: 0 | G145: 0 | H145: 0 | I145: 0 | J145: 0 | K145: 0 | L145: 0 | M145: 0 | N145: 0 | O145: 0 | P145: 0 | Q145: 0 | R145: 0 | S145: 0 | T145: 0 | U145: 0 | V145: 0 | W145: 0 | X145: 0 | Y145: 0 | Z145: 0 | AA145: 0 | AB145: 0 | AC145: 0 | AD145: 0 | AE145: 0 | AF145: 0 | AG145: 0 | AH145: 0 | AI145: 0 | AJ145: 0 | AK145: 0 | AL145: 0 | AM145: 0 | AN145: 0 | AO145: 0 | AP145: 0 | AQ145: 0 | AR145: 0 | AS145: 0 | AT145: 0 | AU145: 0 | AV145: 0 | AW145: 0 | AX145: 0 | AY145: 0 | AZ145: 0 | BA145: 0 | BB145: 0 | BC145: 0 | BD145: 0 | BE145: 0 | BF145: 0 | BG145: 0 | BH145: 0 | BI145: 0 | BJ145: 0 | BK145: 0 | BL145: 0 | BM145: 0 | BN145: 0 | BO145: 0 | BP145: 0 | BQ145: 0 | BR145: 0 | BS145: 0 | BT145: 0 | BU145: 0 | BV145: 0 | BW145: 0 | BX145: 0 | BY145: 0 | BZ145: 0 | CA145: 0 | CB145: 0 | CC145: 0 | CD145: 0 | CE145: 0 | CF145: 0 | CG145: 0 | CH145: 0 | CI145: 0 | CJ145: 0 | CK145: 0 | CL145: 0 | CM145: 0 | CN145: 0 | CO145: 0 | CP145: 0 | CQ145: 0 | CR145: 0 | CS145: 0 | CT145: 0 | CU145: 0 | CV145: 0 | CW145: 0
B146: 0 | C146: 0 | D146: 0 | E146: 0 | F146: 0 | G146: 0 | H146: 0 | I146: 0 | J146: 0 | K146: 0 | L146: 0 | M146: 0 | N146: 0 | O146: 0 | P146: 0 | Q146: 0 | R146: 0 | S146: 0 | T146: 0 | U146: 0 | V146: 0 | W146: 0 | X146: 0 | Y146: 0 | Z146: 0 | AA146: 0 | AB146: 0 | AC146: 0 | AD146: 0 | AE146: 0 | AF146: 0 | AG146: 0 | AH146: 0 | AI146: 0 | AJ146: 0 | AK146: 0 | AL146: 0 | AM146: 0 | AN146: 0 | AO146: 0 | AP146: 0 | AQ146: 0 | AR146: 0 | AS146: 0 | AT146: 0 | AU146: 0 | AV146: 0 | AW146: 0 | AX146: 0 | AY146: 0 | AZ146: 0 | BA146: 0 | BB146: 0 | BC146: 0 | BD146: 0 | BE146: 0 | BF146: 0 | BG146: 0 | BH146: 0 | BI146: 0 | BJ146: 0 | BK146: 0 | BL146: 0 | BM146: 0 | BN146: 0 | BO146: 0 | BP146: 0 | BQ146: 0 | BR146: 0 | BS146: 0 | BT146: 0 | BU146: 0 | BV146: 0 | BW146: 0 | BX146: 0 | BY146: 0 | BZ146: 0 | CA146: 0 | CB146: 0 | CC146: 0 | CD146: 0 | CE146: 0 | CF146: 0 | CG146: 0 | CH146: 0 | CI146: 0 | CJ146: 0 | CK146: 0 | CL146: 0 | CM146: 0 | CN146: 0 | CO146: 0 | CP146: 0 | CQ146: 0 | CR146: 0 | CS146: 0 | CT146: 0 | CU146: 0 | CV146: 0 | CW146: 0
B147: 0 | C147: 0 | D147: 0 | E147: 0 | F147: 0 | G147: 0 | H147: 0 | I147: 0 | J147: 0 | K147: 0 | L147: 0 | M147: 0 | N147: 0 | O147: 0 | P147: 0 | Q147: 0 | R147: 0 | S147: 0 | T147: 0 | U147: 0 | V147: 0 | W147: 0 | X147: 0 | Y147: 0 | Z147: 0 | AA147: 0 | AB147: 0 | AC147: 0 | AD147: 0 | AE147: 0 | AF147: 0 | AG147: 0 | AH147: 0 | AI147: 0 | AJ147: 0 | AK147: 0 | AL147: 0 | AM147: 0 | AN147: 0 | AO147: 0 | AP147: 0 | AQ147: 0 | AR147: 0 | AS147: 0 | AT147: 0 | AU147: 0 | AV147: 0 | AW147: 0 | AX147: 0 | AY147: 0 | AZ147: 0 | BA147: 0 | BB147: 0 | BC147: 0 | BD147: 0 | BE147: 0 | BF147: 0 | BG147: 0 | BH147: 0 | BI147: 0 | BJ147: 0 | BK147: 0 | BL147: 0 | BM147: 0 | BN147: 0 | BO147: 0 | BP147: 0 | BQ147: 0 | BR147: 0 | BS147: 0 | BT147: 0 | BU147: 0 | BV147: 0 | BW147: 0 | BX147: 0 | BY147: 0 | BZ147: 0 | CA147: 0 | CB147: 0 | CC147: 0 | CD147: 0 | CE147: 0 | CF147: 0 | CG147: 0 | CH147: 0 | CI147: 0 | CJ147: 0 | CK147: 0 | CL147: 0 | CM147: 0 | CN147: 0 | CO147: 0 | CP147: 0 | CQ147: 0 | CR147: 0 | CS147: 0 | CT147: 0 | CU147: 0 | CV147: 0 | CW147: 0
B148: 0 | C148: 0 | D148: 0 | E148: 0 | F148: 0 | G148: 0 | H148: 0 | I148: 0 | J148: 0 | K148: 0 | L148: 0 | M148: 0 | N148: 0 | O148: 0 | P148: 0 | Q148: 0 | R148: 0 | S148: 0 | T148: 0 | U148: 0 | V148: 0 | W148: 0 | X148: 0 | Y148: 0 | Z148: 0 | AA148: 0 | AB148: 0 | AC148: 0 | AD148: 0 | AE148: 0 | AF148: 0 | AG148: 0 | AH148: 0 | AI148: 0 | AJ148: 0 | AK148: 0 | AL148: 0 | AM148: 0 | AN148: 0 | AO148: 0 | AP148: 0 | AQ148: 0 | AR148: 0 | AS148: 0 | AT148: 0 | AU148: 0 | AV148: 0 | AW148: 0 | AX148: 0 | AY148: 0 | AZ148: 0 | BA148: 0 | BB148: 0 | BC148: 0 | BD148: 0 | BE148: 0 | BF148: 0 | BG148: 0 | BH148: 0 | BI148: 0 | BJ148: 0 | BK148: 0 | BL148: 0 | BM148: 0 | BN148: 0 | BO148: 0 | BP148: 0 | BQ148: 0 | BR148: 0 | BS148: 0 | BT148: 0 | BU148: 0 | BV148: 0 | BW148: 0 | BX148: 0 | BY148: 0 | BZ148: 0 | CA148: 0 | CB148: 0 | CC148: 0 | CD148: 0 | CE148: 0 | CF148: 0 | CG148: 0 | CH148: 0 | CI148: 0 | CJ148: 0 | CK148: 0 | CL148: 0 | CM148: 0 | CN148: 0 | CO148: 0 | CP148: 0 | CQ148: 0 | CR148: 0 | CS148: 0 | CT148: 0 | CU148: 0 | CV148: 0 | CW148: 0
B149: 0 | C149: 0 | D149: 0 | E149: 0 | F149: 0 | G149: 0 | H149: 0 | I149: 0 | J149: 0 | K149: 0 | L149: 0 | M149: 0 | N149: 0 | O149: 0 | P149: 0 | Q149: 0 | R149: 0 | S149: 0 | T149: 0 | U149: 0 | V149: 0 | W149: 0 | X149: 0 | Y149: 0 | Z149: 0 | AA149: 0 | AB149: 0 | AC149: 0 | AD149: 0 | AE149: 0 | AF149: 0 | AG149: 0 | AH149: 0 | AI149: 0 | AJ149: 0 | AK149: 0 | AL149: 0 | AM149: 0 | AN149: 0 | AO149: 0 | AP149: 0 | AQ149: 0 | AR149: 0 | AS149: 0 | AT149: 0 | AU149: 0 | AV149: 0 | AW149: 0 | AX149: 0 | AY149: 0 | AZ149: 0 | BA149: 0 | BB149: 0 | BC149: 0 | BD149: 0 | BE149: 0 | BF149: 0 | BG149: 0 | BH149: 0 | BI149: 0 | BJ149: 0 | BK149: 0 | BL149: 0 | BM149: 0 | BN149: 0 | BO149: 0 | BP149: 0 | BQ149: 0 | BR149: 0 | BS149: 0 | BT149: 0 | BU149: 0 | BV149: 0 | BW149: 0 | BX149: 0 | BY149: 0 | BZ149: 0 | CA149: 0 | CB149: 0 | CC149: 0 | CD149: 0 | CE149: 0 | CF149: 0 | CG149: 0 | CH149: 0 | CI149: 0 | CJ149: 0 | CK149: 0 | CL149: 0 | CM149: 0 | CN149: 0 | CO149: 0 | CP149: 0 | CQ149: 0 | CR149: 0 | CS149: 0 | CT149: 0 | CU149: 0 | CV149: 0 | CW149: 0
B150: -0.01594426246 | C150: 0.01584042667 | D150: 0.02090986876 | E150: -0.0325670185 | F150: -0.02180118571 | G150: -0.02205094303 | H150: 0.01603840563 | I150: -0.01192685538 | J150: 0.01912326872 | K150: -0.01588977509 | L150: -0.005341754861 | M150: -0.01068219403 | N150: -0.01969512834 | O150: -0.006279153727 | P150: -0.009715727437 | Q150: -0.007082600559 | R150: 0.004241196206 | S150: -0.01073540742 | T150: -0.01345892842 | U150: 0.009141938471 | V150: 0.009660068858 | W150: 0.01593671898 | X150: 0.04064894261 | Y150: -0.02398113544 | Z150: 0.01187931706 | AA150: 0.005413812842 | AB150: -0.02849050315 | AC150: 0.01885708637 | AD150: 0.003433975679 | AE150: 0.009226544476 | AF150: 0.02450604096 | AG150: -0.004900999014 | AH150: -0.009395057433 | AI150: -0.008443420496 | AJ150: 0.03078354415 | AK150: 0.01722384361 | AL150: 0.008586466658 | AM150: 0.02036086113 | AN150: 0.005129289086 | AO150: 0.02130915349 | AP150: 0.01671603981 | AQ150: -0.02452835318 | AR150: 0.06067094025 | AS150: -0.001558969414 | AT150: -0.01443874137 | AU150: -0.01126545598 | AV150: 0.03841532986 | AW150: -0.04246132262 | AX150: -0.0209317597 | AY150: 0.009551257409 | AZ150: 0.006522615799 | BA150: 0.01305205447 | BB150: 0.02103771431 | BC150: 0.008281571055 | BD150: 0.01287475085 | BE150: 0.008009673759 | BF150: -0.003969992146 | BG150: -0.01324242973 | BH150: -9.515854055e-05 | BI150: 0.005537262396 | BJ150: 0.003918414823 | BK150: -0.01472671141 | BL150: -0.009901698979 | BM150: -0.006225836129 | BN150: -0.008571027894 | BO150: 0.00235989563 | BP150: -0.006096521551 | BQ150: 0.02218913768 | BR150: 0.001790493671 | BS150: -0.01508925238 | BT150: 0.01921382571 | BU150: -0.01659994271 | BV150: -0.005024203691 | BW150: 0.007814996184 | BX150: -0.008499760669 | BY150: -0.03341993818 | BZ150: -0.009050843631 | CA150: 0.03622311833 | CB150: -0.01045363568 | CC150: -0.007152923354 | CD150: 0.02543891556 | CE150: 0.01235321323 | CF150: 0.01921369822 | CG150: -0.0001335840293 | CH150: 0.005655481449 | CI150: 0.01333305242 | CJ150: -0.01263514804 | CK150: 0.02234372255 | CL150: 0.02276418276 | CM150: -0.0119897508 | CN150: -0.0294619607 | CO150: -0.03583993287 | CP150: 0.06559913355 | CQ150: -0.01736992944 | CR150: -0.007086003744 | CS150: 0.004979139885 | CT150: -0.02177102385 | CU150: 0.02628731428 | CV150: -0.03217862555 | CW150: 0.01348797186
B151: 0 | C151: 0 | D151: 0 | E151: 0 | F151: 0 | G151: 0 | H151: 0 | I151: 0 | J151: 0 | K151: 0 | L151: 0 | M151: 0 | N151: 0 | O151: 0 | P151: 0 | Q151: 0 | R151: 0 | S151: 0 | T151: 0 | U151: 0 | V151: 0 | W151: 0 | X151: 0 | Y151: 0 | Z151: 0 | AA151: 0 | AB151: 0 | AC151: 0 | AD151: 0 | AE151: 0 | AF151: 0 | AG151: 0 | AH151: 0 | AI151: 0 | AJ151: 0 | AK151: 0 | AL151: 0 | AM151: 0 | AN151: 0 | AO151: 0 | AP151: 0 | AQ151: 0 | AR151: 0 | AS151: 0 | AT151: 0 | AU151: 0 | AV151: 0 | AW151: 0 | AX151: 0 | AY151: 0 | AZ151: 0 | BA151: 0 | BB151: 0 | BC151: 0 | BD151: 0 | BE151: 0 | BF151: 0 | BG151: 0 | BH151: 0 | BI151: 0 | BJ151: 0 | BK151: 0 | BL151: 0 | BM151: 0 | BN151: 0 | BO151: 0 | BP151: 0 | BQ151: 0 | BR151: 0 | BS151: 0 | BT151: 0 | BU151: 0 | BV151: 0 | BW151: 0 | BX151: 0 | BY151: 0 | BZ151: 0 | CA151: 0 | CB151: 0 | CC151: 0 | CD151: 0 | CE151: 0 | CF151: 0 | CG151: 0 | CH151: 0 | CI151: 0 | CJ151: 0 | CK151: 0 | CL151: 0 | CM151: 0 | CN151: 0 | CO151: 0 | CP151: 0 | CQ151: 0 | CR151: 0 | CS151: 0 | CT151: 0 | CU151: 0 | CV151: 0 | CW151: 0
B152: 0 | C152: 0 | D152: 0 | E152: 0 | F152: 0 | G152: 0 | H152: 0 | I152: 0 | J152: 0 | K152: 0 | L152: 0 | M152: 0 | N152: 0 | O152: 0 | P152: 0 | Q152: 0 | R152: 0 | S152: 0 | T152: 0 | U152: 0 | V152: 0 | W152: 0 | X152: 0 | Y152: 0 | Z152: 0 | AA152: 0 | AB152: 0 | AC152: 0 | AD152: 0 | AE152: 0 | AF152: 0 | AG152: 0 | AH152: 0 | AI152: 0 | AJ152: 0 | AK152: 0 | AL152: 0 | AM152: 0 | AN152: 0 | AO152: 0 | AP152: 0 | AQ152: 0 | AR152: 0 | AS152: 0 | AT152: 0 | AU152: 0 | AV152: 0 | AW152: 0 | AX152: 0 | AY152: 0 | AZ152: 0 | BA152: 0 | BB152: 0 | BC152: 0 | BD152: 0 | BE152: 0 | BF152: 0 | BG152: 0 | BH152: 0 | BI152: 0 | BJ152: 0 | BK152: 0 | BL152: 0 | BM152: 0 | BN152: 0 | BO152: 0 | BP152: 0 | BQ152: 0 | BR152: 0 | BS152: 0 | BT152: 0 | BU152: 0 | BV152: 0 | BW152: 0 | BX152: 0 | BY152: 0 | BZ152: 0 | CA152: 0 | CB152: 0 | CC152: 0 | CD152: 0 | CE152: 0 | CF152: 0 | CG152: 0 | CH152: 0 | CI152: 0 | CJ152: 0 | CK152: 0 | CL152: 0 | CM152: 0 | CN152: 0 | CO152: 0 | CP152: 0 | CQ152: 0 | CR152: 0 | CS152: 0 | CT152: 0 | CU152: 0 | CV152: 0 | CW152: 0
B153: 0 | C153: 0 | D153: 0 | E153: 0 | F153: 0 | G153: 0 | H153: 0 | I153: 0 | J153: 0 | K153: 0 | L153: 0 | M153: 0 | N153: 0 | O153: 0 | P153: 0 | Q153: 0 | R153: 0 | S153: 0 | T153: 0 | U153: 0 | V153: 0 | W153: 0 | X153: 0 | Y153: 0 | Z153: 0 | AA153: 0 | AB153: 0 | AC153: 0 | AD153: 0 | AE153: 0 | AF153: 0 | AG153: 0 | AH153: 0 | AI153: 0 | AJ153: 0 | AK153: 0 | AL153: 0 | AM153: 0 | AN153: 0 | AO153: 0 | AP153: 0 | AQ153: 0 | AR153: 0 | AS153: 0 | AT153: 0 | AU153: 0 | AV153: 0 | AW153: 0 | AX153: 0 | AY153: 0 | AZ153: 0 | BA153: 0 | BB153: 0 | BC153: 0 | BD153: 0 | BE153: 0 | BF153: 0 | BG153: 0 | BH153: 0 | BI153: 0 | BJ153: 0 | BK153: 0 | BL153: 0 | BM153: 0 | BN153: 0 | BO153: 0 | BP153: 0 | BQ153: 0 | BR153: 0 | BS153: 0 | BT153: 0 | BU153: 0 | BV153: 0 | BW153: 0 | BX153: 0 | BY153: 0 | BZ153: 0 | CA153: 0 | CB153: 0 | CC153: 0 | CD153: 0 | CE153: 0 | CF153: 0 | CG153: 0 | CH153: 0 | CI153: 0 | CJ153: 0 | CK153: 0 | CL153: 0 | CM153: 0 | CN153: 0 | CO153: 0 | CP153: 0 | CQ153: 0 | CR153: 0 | CS153: 0 | CT153: 0 | CU153: 0 | CV153: 0 | CW153: 0
B154: 0 | C154: 0 | D154: 0 | E154: 0 | F154: 0 | G154: 0 | H154: 0 | I154: 0 | J154: 0 | K154: 0 | L154: 0 | M154: 0 | N154: 0 | O154: 0 | P154: 0 | Q154: 0 | R154: 0 | S154: 0 | T154: 0 | U154: 0 | V154: 0 | W154: 0 | X154: 0 | Y154: 0 | Z154: 0 | AA154: 0 | AB154: 0 | AC154: 0 | AD154: 0 | AE154: 0 | AF154: 0 | AG154: 0 | AH154: 0 | AI154: 0 | AJ154: 0 | AK154: 0 | AL154: 0 | AM154: 0 | AN154: 0 | AO154: 0 | AP154: 0 | AQ154: 0 | AR154: 0 | AS154: 0 | AT154: 0 | AU154: 0 | AV154: 0 | AW154: 0 | AX154: 0 | AY154: 0 | AZ154: 0 | BA154: 0 | BB154: 0 | BC154: 0 | BD154: 0 | BE154: 0 | BF154: 0 | BG154: 0 | BH154: 0 | BI154: 0 | BJ154: 0 | BK154: 0 | BL154: 0 | BM154: 0 | BN154: 0 | BO154: 0 | BP154: 0 | BQ154: 0 | BR154: 0 | BS154: 0 | BT154: 0 | BU154: 0 | BV154: 0 | BW154: 0 | BX154: 0 | BY154: 0 | BZ154: 0 | CA154: 0 | CB154: 0 | CC154: 0 | CD154: 0 | CE154: 0 | CF154: 0 | CG154: 0 | CH154: 0 | CI154: 0 | CJ154: 0 | CK154: 0 | CL154: 0 | CM154: 0 | CN154: 0 | CO154: 0 | CP154: 0 | CQ154: 0 | CR154: 0 | CS154: 0 | CT154: 0 | CU154: 0 | CV154: 0 | CW154: 0
B155: 0 | C155: 0 | D155: 0 | E155: 0 | F155: 0 | G155: 0 | H155: 0 | I155: 0 | J155: 0 | K155: 0 | L155: 0 | M155: 0 | N155: 0 | O155: 0 | P155: 0 | Q155: 0 | R155: 0 | S155: 0 | T155: 0 | U155: 0 | V155: 0 | W155: 0 | X155: 0 | Y155: 0 | Z155: 0 | AA155: 0 | AB155: 0 | AC155: 0 | AD155: 0 | AE155: 0 | AF155: 0 | AG155: 0 | AH155: 0 | AI155: 0 | AJ155: 0 | AK155: 0 | AL155: 0 | AM155: 0 | AN155: 0 | AO155: 0 | AP155: 0 | AQ155: 0 | AR155: 0 | AS155: 0 | AT155: 0 | AU155: 0 | AV155: 0 | AW155: 0 | AX155: 0 | AY155: 0 | AZ155: 0 | BA155: 0 | BB155: 0 | BC155: 0 | BD155: 0 | BE155: 0 | BF155: 0 | BG155: 0 | BH155: 0 | BI155: 0 | BJ155: 0 | BK155: 0 | BL155: 0 | BM155: 0 | BN155: 0 | BO155: 0 | BP155: 0 | BQ155: 0 | BR155: 0 | BS155: 0 | BT155: 0 | BU155: 0 | BV155: 0 | BW155: 0 | BX155: 0 | BY155: 0 | BZ155: 0 | CA155: 0 | CB155: 0 | CC155: 0 | CD155: 0 | CE155: 0 | CF155: 0 | CG155: 0 | CH155: 0 | CI155: 0 | CJ155: 0 | CK155: 0 | CL155: 0 | CM155: 0 | CN155: 0 | CO155: 0 | CP155: 0 | CQ155: 0 | CR155: 0 | CS155: 0 | CT155: 0 | CU155: 0 | CV155: 0 | CW155: 0
B156: 0 | C156: 0 | D156: 0 | E156: 0 | F156: 0 | G156: 0 | H156: 0 | I156: 0 | J156: 0 | K156: 0 | L156: 0 | M156: 0 | N156: 0 | O156: 0 | P156: 0 | Q156: 0 | R156: 0 | S156: 0 | T156: 0 | U156: 0 | V156: 0 | W156: 0 | X156: 0 | Y156: 0 | Z156: 0 | AA156: 0 | AB156: 0 | AC156: 0 | AD156: 0 | AE156: 0 | AF156: 0 | AG156: 0 | AH156: 0 | AI156: 0 | AJ156: 0 | AK156: 0 | AL156: 0 | AM156: 0 | AN156: 0 | AO156: 0 | AP156: 0 | AQ156: 0 | AR156: 0 | AS156: 0 | AT156: 0 | AU156: 0 | AV156: 0 | AW156: 0 | AX156: 0 | AY156: 0 | AZ156: 0 | BA156: 0 | BB156: 0 | BC156: 0 | BD156: 0 | BE156: 0 | BF156: 0 | BG156: 0 | BH156: 0 | BI156: 0 | BJ156: 0 | BK156: 0 | BL156: 0 | BM156: 0 | BN156: 0 | BO156: 0 | BP156: 0 | BQ156: 0 | BR156: 0 | BS156: 0 | BT156: 0 | BU156: 0 | BV156: 0 | BW156: 0 | BX156: 0 | BY156: 0 | BZ156: 0 | CA156: 0 | CB156: 0 | CC156: 0 | CD156: 0 | CE156: 0 | CF156: 0 | CG156: 0 | CH156: 0 | CI156: 0 | CJ156: 0 | CK156: 0 | CL156: 0 | CM156: 0 | CN156: 0 | CO156: 0 | CP156: 0 | CQ156: 0 | CR156: 0 | CS156: 0 | CT156: 0 | CU156: 0 | CV156: 0 | CW156: 0
B157: 0 | C157: 0 | D157: 0 | E157: 0 | F157: 0 | G157: 0 | H157: 0 | I157: 0 | J157: 0 | K157: 0 | L157: 0 | M157: 0 | N157: 0 | O157: 0 | P157: 0 | Q157: 0 | R157: 0 | S157: 0 | T157: 0 | U157: 0 | V157: 0 | W157: 0 | X157: 0 | Y157: 0 | Z157: 0 | AA157: 0 | AB157: 0 | AC157: 0 | AD157: 0 | AE157: 0 | AF157: 0 | AG157: 0 | AH157: 0 | AI157: 0 | AJ157: 0 | AK157: 0 | AL157: 0 | AM157: 0 | AN157: 0 | AO157: 0 | AP157: 0 | AQ157: 0 | AR157: 0 | AS157: 0 | AT157: 0 | AU157: 0 | AV157: 0 | AW157: 0 | AX157: 0 | AY157: 0 | AZ157: 0 | BA157: 0 | BB157: 0 | BC157: 0 | BD157: 0 | BE157: 0 | BF157: 0 | BG157: 0 | BH157: 0 | BI157: 0 | BJ157: 0 | BK157: 0 | BL157: 0 | BM157: 0 | BN157: 0 | BO157: 0 | BP157: 0 | BQ157: 0 | BR157: 0 | BS157: 0 | BT157: 0 | BU157: 0 | BV157: 0 | BW157: 0 | BX157: 0 | BY157: 0 | BZ157: 0 | CA157: 0 | CB157: 0 | CC157: 0 | CD157: 0 | CE157: 0 | CF157: 0 | CG157: 0 | CH157: 0 | CI157: 0 | CJ157: 0 | CK157: 0 | CL157: 0 | CM157: 0 | CN157: 0 | CO157: 0 | CP157: 0 | CQ157: 0 | CR157: 0 | CS157: 0 | CT157: 0 | CU157: 0 | CV157: 0 | CW157: 0
B158: 0 | C158: 0 | D158: 0 | E158: 0 | F158: 0 | G158: 0 | H158: 0 | I158: 0 | J158: 0 | K158: 0 | L158: 0 | M158: 0 | N158: 0 | O158: 0 | P158: 0 | Q158: 0 | R158: 0 | S158: 0 | T158: 0 | U158: 0 | V158: 0 | W158: 0 | X158: 0 | Y158: 0 | Z158: 0 | AA158: 0 | AB158: 0 | AC158: 0 | AD158: 0 | AE158: 0 | AF158: 0 | AG158: 0 | AH158: 0 | AI158: 0 | AJ158: 0 | AK158: 0 | AL158: 0 | AM158: 0 | AN158: 0 | AO158: 0 | AP158: 0 | AQ158: 0 | AR158: 0 | AS158: 0 | AT158: 0 | AU158: 0 | AV158: 0 | AW158: 0 | AX158: 0 | AY158: 0 | AZ158: 0 | BA158: 0 | BB158: 0 | BC158: 0 | BD158: 0 | BE158: 0 | BF158: 0 | BG158: 0 | BH158: 0 | BI158: 0 | BJ158: 0 | BK158: 0 | BL158: 0 | BM158: 0 | BN158: 0 | BO158: 0 | BP158: 0 | BQ158: 0 | BR158: 0 | BS158: 0 | BT158: 0 | BU158: 0 | BV158: 0 | BW158: 0 | BX158: 0 | BY158: 0 | BZ158: 0 | CA158: 0 | CB158: 0 | CC158: 0 | CD158: 0 | CE158: 0 | CF158: 0 | CG158: 0 | CH158: 0 | CI158: 0 | CJ158: 0 | CK158: 0 | CL158: 0 | CM158: 0 | CN158: 0 | CO158: 0 | CP158: 0 | CQ158: 0 | CR158: 0 | CS158: 0 | CT158: 0 | CU158: 0 | CV158: 0 | CW158: 0
B159: 0 | C159: 0 | D159: 0 | E159: 0 | F159: 0 | G159: 0 | H159: 0 | I159: 0 | J159: 0 | K159: 0 | L159: 0 | M159: 0 | N159: 0 | O159: 0 | P159: 0 | Q159: 0 | R159: 0 | S159: 0 | T159: 0 | U159: 0 | V159: 0 | W159: 0 | X159: 0 | Y159: 0 | Z159: 0 | AA159: 0 | AB159: 0 | AC159: 0 | AD159: 0 | AE159: 0 | AF159: 0 | AG159: 0 | AH159: 0 | AI159: 0 | AJ159: 0 | AK159: 0 | AL159: 0 | AM159: 0 | AN159: 0 | AO159: 0 | AP159: 0 | AQ159: 0 | AR159: 0 | AS159: 0 | AT159: 0 | AU159: 0 | AV159: 0 | AW159: 0 | AX159: 0 | AY159: 0 | AZ159: 0 | BA159: 0 | BB159: 0 | BC159: 0 | BD159: 0 | BE159: 0 | BF159: 0 | BG159: 0 | BH159: 0 | BI159: 0 | BJ159: 0 | BK159: 0 | BL159: 0 | BM159: 0 | BN159: 0 | BO159: 0 | BP159: 0 | BQ159: 0 | BR159: 0 | BS159: 0 | BT159: 0 | BU159: 0 | BV159: 0 | BW159: 0 | BX159: 0 | BY159: 0 | BZ159: 0 | CA159: 0 | CB159: 0 | CC159: 0 | CD159: 0 | CE159: 0 | CF159: 0 | CG159: 0 | CH159: 0 | CI159: 0 | CJ159: 0 | CK159: 0 | CL159: 0 | CM159: 0 | CN159: 0 | CO159: 0 | CP159: 0 | CQ159: 0 | CR159: 0 | CS159: 0 | CT159: 0 | CU159: 0 | CV159: 0 | CW159: 0
B160: 0 | C160: 0 | D160: 0 | E160: 0 | F160: 0 | G160: 0 | H160: 0 | I160: 0 | J160: 0 | K160: 0 | L160: 0 | M160: 0 | N160: 0 | O160: 0 | P160: 0 | Q160: 0 | R160: 0 | S160: 0 | T160: 0 | U160: 0 | V160: 0 | W160: 0 | X160: 0 | Y160: 0 | Z160: 0 | AA160: 0 | AB160: 0 | AC160: 0 | AD160: 0 | AE160: 0 | AF160: 0 | AG160: 0 | AH160: 0 | AI160: 0 | AJ160: 0 | AK160: 0 | AL160: 0 | AM160: 0 | AN160: 0 | AO160: 0 | AP160: 0 | AQ160: 0 | AR160: 0 | AS160: 0 | AT160: 0 | AU160: 0 | AV160: 0 | AW160: 0 | AX160: 0 | AY160: 0 | AZ160: 0 | BA160: 0 | BB160: 0 | BC160: 0 | BD160: 0 | BE160: 0 | BF160: 0 | BG160: 0 | BH160: 0 | BI160: 0 | BJ160: 0 | BK160: 0 | BL160: 0 | BM160: 0 | BN160: 0 | BO160: 0 | BP160: 0 | BQ160: 0 | BR160: 0 | BS160: 0 | BT160: 0 | BU160: 0 | BV160: 0 | BW160: 0 | BX160: 0 | BY160: 0 | BZ160: 0 | CA160: 0 | CB160: 0 | CC160: 0 | CD160: 0 | CE160: 0 | CF160: 0 | CG160: 0 | CH160: 0 | CI160: 0 | CJ160: 0 | CK160: 0 | CL160: 0 | CM160: 0 | CN160: 0 | CO160: 0 | CP160: 0 | CQ160: 0 | CR160: 0 | CS160: 0 | CT160: 0 | CU160: 0 | CV160: 0 | CW160: 0
B161: 0 | C161: 0 | D161: 0 | E161: 0 | F161: 0 | G161: 0 | H161: 0 | I161: 0 | J161: 0 | K161: 0 | L161: 0 | M161: 0 | N161: 0 | O161: 0 | P161: 0 | Q161: 0 | R161: 0 | S161: 0 | T161: 0 | U161: 0 | V161: 0 | W161: 0 | X161: 0 | Y161: 0 | Z161: 0 | AA161: 0 | AB161: 0 | AC161: 0 | AD161: 0 | AE161: 0 | AF161: 0 | AG161: 0 | AH161: 0 | AI161: 0 | AJ161: 0 | AK161: 0 | AL161: 0 | AM161: 0 | AN161: 0 | AO161: 0 | AP161: 0 | AQ161: 0 | AR161: 0 | AS161: 0 | AT161: 0 | AU161: 0 | AV161: 0 | AW161: 0 | AX161: 0 | AY161: 0 | AZ161: 0 | BA161: 0 | BB161: 0 | BC161: 0 | BD161: 0 | BE161: 0 | BF161: 0 | BG161: 0 | BH161: 0 | BI161: 0 | BJ161: 0 | BK161: 0 | BL161: 0 | BM161: 0 | BN161: 0 | BO161: 0 | BP161: 0 | BQ161: 0 | BR161: 0 | BS161: 0 | BT161: 0 | BU161: 0 | BV161: 0 | BW161: 0 | BX161: 0 | BY161: 0 | BZ161: 0 | CA161: 0 | CB161: 0 | CC161: 0 | CD161: 0 | CE161: 0 | CF161: 0 | CG161: 0 | CH161: 0 | CI161: 0 | CJ161: 0 | CK161: 0 | CL161: 0 | CM161: 0 | CN161: 0 | CO161: 0 | CP161: 0 | CQ161: 0 | CR161: 0 | CS161: 0 | CT161: 0 | CU161: 0 | CV161: 0 | CW161: 0
B162: 0 | C162: 0 | D162: 0 | E162: 0 | F162: 0 | G162: 0 | H162: 0 | I162: 0 | J162: 0 | K162: 0 | L162: 0 | M162: 0 | N162: 0 | O162: 0 | P162: 0 | Q162: 0 | R162: 0 | S162: 0 | T162: 0 | U162: 0 | V162: 0 | W162: 0 | X162: 0 | Y162: 0 | Z162: 0 | AA162: 0 | AB162: 0 | AC162: 0 | AD162: 0 | AE162: 0 | AF162: 0 | AG162: 0 | AH162: 0 | AI162: 0 | AJ162: 0 | AK162: 0 | AL162: 0 | AM162: 0 | AN162: 0 | AO162: 0 | AP162: 0 | AQ162: 0 | AR162: 0 | AS162: 0 | AT162: 0 | AU162: 0 | AV162: 0 | AW162: 0 | AX162: 0 | AY162: 0 | AZ162: 0 | BA162: 0 | BB162: 0 | BC162: 0 | BD162: 0 | BE162: 0 | BF162: 0 | BG162: 0 | BH162: 0 | BI162: 0 | BJ162: 0 | BK162: 0 | BL162: 0 | BM162: 0 | BN162: 0 | BO162: 0 | BP162: 0 | BQ162: 0 | BR162: 0 | BS162: 0 | BT162: 0 | BU162: 0 | BV162: 0 | BW162: 0 | BX162: 0 | BY162: 0 | BZ162: 0 | CA162: 0 | CB162: 0 | CC162: 0 | CD162: 0 | CE162: 0 | CF162: 0 | CG162: 0 | CH162: 0 | CI162: 0 | CJ162: 0 | CK162: 0 | CL162: 0 | CM162: 0 | CN162: 0 | CO162: 0 | CP162: 0 | CQ162: 0 | CR162: 0 | CS162: 0 | CT162: 0 | CU162: 0 | CV162: 0 | CW162: 0
B163: 0 | C163: 0 | D163: 0 | E163: 0 | F163: 0 | G163: 0 | H163: 0 | I163: 0 | J163: 0 | K163: 0 | L163: 0 | M163: 0 | N163: 0 | O163: 0 | P163: 0 | Q163: 0 | R163: 0 | S163: 0 | T163: 0 | U163: 0 | V163: 0 | W163: 0 | X163: 0 | Y163: 0 | Z163: 0 | AA163: 0 | AB163: 0 | AC163: 0 | AD163: 0 | AE163: 0 | AF163: 0 | AG163: 0 | AH163: 0 | AI163: 0 | AJ163: 0 | AK163: 0 | AL163: 0 | AM163: 0 | AN163: 0 | AO163: 0 | AP163: 0 | AQ163: 0 | AR163: 0 | AS163: 0 | AT163: 0 | AU163: 0 | AV163: 0 | AW163: 0 | AX163: 0 | AY163: 0 | AZ163: 0 | BA163: 0 | BB163: 0 | BC163: 0 | BD163: 0 | BE163: 0 | BF163: 0 | BG163: 0 | BH163: 0 | BI163: 0 | BJ163: 0 | BK163: 0 | BL163: 0 | BM163: 0 | BN163: 0 | BO163: 0 | BP163: 0 | BQ163: 0 | BR163: 0 | BS163: 0 | BT163: 0 | BU163: 0 | BV163: 0 | BW163: 0 | BX163: 0 | BY163: 0 | BZ163: 0 | CA163: 0 | CB163: 0 | CC163: 0 | CD163: 0 | CE163: 0 | CF163: 0 | CG163: 0 | CH163: 0 | CI163: 0 | CJ163: 0 | CK163: 0 | CL163: 0 | CM163: 0 | CN163: 0 | CO163: 0 | CP163: 0 | CQ163: 0 | CR163: 0 | CS163: 0 | CT163: 0 | CU163: 0 | CV163: 0 | CW163: 0
B164: 0 | C164: 0 | D164: 0 | E164: 0 | F164: 0 | G164: 0 | H164: 0 | I164: 0 | J164: 0 | K164: 0 | L164: 0 | M164: 0 | N164: 0 | O164: 0 | P164: 0 | Q164: 0 | R164: 0 | S164: 0 | T164: 0 | U164: 0 | V164: 0 | W164: 0 | X164: 0 | Y164: 0 | Z164: 0 | AA164: 0 | AB164: 0 | AC164: 0 | AD164: 0 | AE164: 0 | AF164: 0 | AG164: 0 | AH164: 0 | AI164: 0 | AJ164: 0 | AK164: 0 | AL164: 0 | AM164: 0 | AN164: 0 | AO164: 0 | AP164: 0 | AQ164: 0 | AR164: 0 | AS164: 0 | AT164: 0 | AU164: 0 | AV164: 0 | AW164: 0 | AX164: 0 | AY164: 0 | AZ164: 0 | BA164: 0 | BB164: 0 | BC164: 0 | BD164: 0 | BE164: 0 | BF164: 0 | BG164: 0 | BH164: 0 | BI164: 0 | BJ164: 0 | BK164: 0 | BL164: 0 | BM164: 0 | BN164: 0 | BO164: 0 | BP164: 0 | BQ164: 0 | BR164: 0 | BS164: 0 | BT164: 0 | BU164: 0 | BV164: 0 | BW164: 0 | BX164: 0 | BY164: 0 | BZ164: 0 | CA164: 0 | CB164: 0 | CC164: 0 | CD164: 0 | CE164: 0 | CF164: 0 | CG164: 0 | CH164: 0 | CI164: 0 | CJ164: 0 | CK164: 0 | CL164: 0 | CM164: 0 | CN164: 0 | CO164: 0 | CP164: 0 | CQ164: 0 | CR164: 0 | CS164: 0 | CT164: 0 | CU164: 0 | CV164: 0 | CW164: 0
B165: 0 | C165: 0 | D165: 0 | E165: 0 | F165: 0 | G165: 0 | H165: 0 | I165: 0 | J165: 0 | K165: 0 | L165: 0 | M165: 0 | N165: 0 | O165: 0 | P165: 0 | Q165: 0 | R165: 0 | S165: 0 | T165: 0 | U165: 0 | V165: 0 | W165: 0 | X165: 0 | Y165: 0 | Z165: 0 | AA165: 0 | AB165: 0 | AC165: 0 | AD165: 0 | AE165: 0 | AF165: 0 | AG165: 0 | AH165: 0 | AI165: 0 | AJ165: 0 | AK165: 0 | AL165: 0 | AM165: 0 | AN165: 0 | AO165: 0 | AP165: 0 | AQ165: 0 | AR165: 0 | AS165: 0 | AT165: 0 | AU165: 0 | AV165: 0 | AW165: 0 | AX165: 0 | AY165: 0 | AZ165: 0 | BA165: 0 | BB165: 0 | BC165: 0 | BD165: 0 | BE165: 0 | BF165: 0 | BG165: 0 | BH165: 0 | BI165: 0 | BJ165: 0 | BK165: 0 | BL165: 0 | BM165: 0 | BN165: 0 | BO165: 0 | BP165: 0 | BQ165: 0 | BR165: 0 | BS165: 0 | BT165: 0 | BU165: 0 | BV165: 0 | BW165: 0 | BX165: 0 | BY165: 0 | BZ165: 0 | CA165: 0 | CB165: 0 | CC165: 0 | CD165: 0 | CE165: 0 | CF165: 0 | CG165: 0 | CH165: 0 | CI165: 0 | CJ165: 0 | CK165: 0 | CL165: 0 | CM165: 0 | CN165: 0 | CO165: 0 | CP165: 0 | CQ165: 0 | CR165: 0 | CS165: 0 | CT165: 0 | CU165: 0 | CV165: 0 | CW165: 0
B166: 0 | C166: 0 | D166: 0 | E166: 0 | F166: 0 | G166: 0 | H166: 0 | I166: 0 | J166: 0 | K166: 0 | L166: 0 | M166: 0 | N166: 0 | O166: 0 | P166: 0 | Q166: 0 | R166: 0 | S166: 0 | T166: 0 | U166: 0 | V166: 0 | W166: 0 | X166: 0 | Y166: 0 | Z166: 0 | AA166: 0 | AB166: 0 | AC166: 0 | AD166: 0 | AE166: 0 | AF166: 0 | AG166: 0 | AH166: 0 | AI166: 0 | AJ166: 0 | AK166: 0 | AL166: 0 | AM166: 0 | AN166: 0 | AO166: 0 | AP166: 0 | AQ166: 0 | AR166: 0 | AS166: 0 | AT166: 0 | AU166: 0 | AV166: 0 | AW166: 0 | AX166: 0 | AY166: 0 | AZ166: 0 | BA166: 0 | BB166: 0 | BC166: 0 | BD166: 0 | BE166: 0 | BF166: 0 | BG166: 0 | BH166: 0 | BI166: 0 | BJ166: 0 | BK166: 0 | BL166: 0 | BM166: 0 | BN166: 0 | BO166: 0 | BP166: 0 | BQ166: 0 | BR166: 0 | BS166: 0 | BT166: 0 | BU166: 0 | BV166: 0 | BW166: 0 | BX166: 0 | BY166: 0 | BZ166: 0 | CA166: 0 | CB166: 0 | CC166: 0 | CD166: 0 | CE166: 0 | CF166: 0 | CG166: 0 | CH166: 0 | CI166: 0 | CJ166: 0 | CK166: 0 | CL166: 0 | CM166: 0 | CN166: 0 | CO166: 0 | CP166: 0 | CQ166: 0 | CR166: 0 | CS166: 0 | CT166: 0 | CU166: 0 | CV166: 0 | CW166: 0
B167: 0 | C167: 0 | D167: 0 | E167: 0 | F167: 0 | G167: 0 | H167: 0 | I167: 0 | J167: 0 | K167: 0 | L167: 0 | M167: 0 | N167: 0 | O167: 0 | P167: 0 | Q167: 0 | R167: 0 | S167: 0 | T167: 0 | U167: 0 | V167: 0 | W167: 0 | X167: 0 | Y167: 0 | Z167: 0 | AA167: 0 | AB167: 0 | AC167: 0 | AD167: 0 | AE167: 0 | AF167: 0 | AG167: 0 | AH167: 0 | AI167: 0 | AJ167: 0 | AK167: 0 | AL167: 0 | AM167: 0 | AN167: 0 | AO167: 0 | AP167: 0 | AQ167: 0 | AR167: 0 | AS167: 0 | AT167: 0 | AU167: 0 | AV167: 0 | AW167: 0 | AX167: 0 | AY167: 0 | AZ167: 0 | BA167: 0 | BB167: 0 | BC167: 0 | BD167: 0 | BE167: 0 | BF167: 0 | BG167: 0 | BH167: 0 | BI167: 0 | BJ167: 0 | BK167: 0 | BL167: 0 | BM167: 0 | BN167: 0 | BO167: 0 | BP167: 0 | BQ167: 0 | BR167: 0 | BS167: 0 | BT167: 0 | BU167: 0 | BV167: 0 | BW167: 0 | BX167: 0 | BY167: 0 | BZ167: 0 | CA167: 0 | CB167: 0 | CC167: 0 | CD167: 0 | CE167: 0 | CF167: 0 | CG167: 0 | CH167: 0 | CI167: 0 | CJ167: 0 | CK167: 0 | CL167: 0 | CM167: 0 | CN167: 0 | CO167: 0 | CP167: 0 | CQ167: 0 | CR167: 0 | CS167: 0 | CT167: 0 | CU167: 0 | CV167: 0 | CW167: 0
B168: 0 | C168: 0 | D168: 0 | E168: 0 | F168: 0 | G168: 0 | H168: 0 | I168: 0 | J168: 0 | K168: 0 | L168: 0 | M168: 0 | N168: 0 | O168: 0 | P168: 0 | Q168: 0 | R168: 0 | S168: 0 | T168: 0 | U168: 0 | V168: 0 | W168: 0 | X168: 0 | Y168: 0 | Z168: 0 | AA168: 0 | AB168: 0 | AC168: 0 | AD168: 0 | AE168: 0 | AF168: 0 | AG168: 0 | AH168: 0 | AI168: 0 | AJ168: 0 | AK168: 0 | AL168: 0 | AM168: 0 | AN168: 0 | AO168: 0 | AP168: 0 | AQ168: 0 | AR168: 0 | AS168: 0 | AT168: 0 | AU168: 0 | AV168: 0 | AW168: 0 | AX168: 0 | AY168: 0 | AZ168: 0 | BA168: 0 | BB168: 0 | BC168: 0 | BD168: 0 | BE168: 0 | BF168: 0 | BG168: 0 | BH168: 0 | BI168: 0 | BJ168: 0 | BK168: 0 | BL168: 0 | BM168: 0 | BN168: 0 | BO168: 0 | BP168: 0 | BQ168: 0 | BR168: 0 | BS168: 0 | BT168: 0 | BU168: 0 | BV168: 0 | BW168: 0 | BX168: 0 | BY168: 0 | BZ168: 0 | CA168: 0 | CB168: 0 | CC168: 0 | CD168: 0 | CE168: 0 | CF168: 0 | CG168: 0 | CH168: 0 | CI168: 0 | CJ168: 0 | CK168: 0 | CL168: 0 | CM168: 0 | CN168: 0 | CO168: 0 | CP168: 0 | CQ168: 0 | CR168: 0 | CS168: 0 | CT168: 0 | CU168: 0 | CV168: 0 | CW168: 0
B169: 0 | C169: 0 | D169: 0 | E169: 0 | F169: 0 | G169: 0 | H169: 0 | I169: 0 | J169: 0 | K169: 0 | L169: 0 | M169: 0 | N169: 0 | O169: 0 | P169: 0 | Q169: 0 | R169: 0 | S169: 0 | T169: 0 | U169: 0 | V169: 0 | W169: 0 | X169: 0 | Y169: 0 | Z169: 0 | AA169: 0 | AB169: 0 | AC169: 0 | AD169: 0 | AE169: 0 | AF169: 0 | AG169: 0 | AH169: 0 | AI169: 0 | AJ169: 0 | AK169: 0 | AL169: 0 | AM169: 0 | AN169: 0 | AO169: 0 | AP169: 0 | AQ169: 0 | AR169: 0 | AS169: 0 | AT169: 0 | AU169: 0 | AV169: 0 | AW169: 0 | AX169: 0 | AY169: 0 | AZ169: 0 | BA169: 0 | BB169: 0 | BC169: 0 | BD169: 0 | BE169: 0 | BF169: 0 | BG169: 0 | BH169: 0 | BI169: 0 | BJ169: 0 | BK169: 0 | BL169: 0 | BM169: 0 | BN169: 0 | BO169: 0 | BP169: 0 | BQ169: 0 | BR169: 0 | BS169: 0 | BT169: 0 | BU169: 0 | BV169: 0 | BW169: 0 | BX169: 0 | BY169: 0 | BZ169: 0 | CA169: 0 | CB169: 0 | CC169: 0 | CD169: 0 | CE169: 0 | CF169: 0 | CG169: 0 | CH169: 0 | CI169: 0 | CJ169: 0 | CK169: 0 | CL169: 0 | CM169: 0 | CN169: 0 | CO169: 0 | CP169: 0 | CQ169: 0 | CR169: 0 | CS169: 0 | CT169: 0 | CU169: 0 | CV169: 0 | CW169: 0
B170: 0.02205043787 | C170: -0.02336123843 | D170: -0.02039794024 | E170: -0.02544691451 | F170: 0.02189393747 | G170: 0.008441057621 | H170: 0.04018583658 | I170: -0.00792914993 | J170: 0.01027688226 | K170: -0.008190674816 | L170: 0.0007481501871 | M170: -0.0153382356 | N170: -0.0342646951 | O170: -0.02892821496 | P170: -0.01190043894 | Q170: -0.003981601409 | R170: 0.01614834692 | S170: -0.02745103728 | T170: -0.006076258187 | U170: 0.008608046062 | V170: -0.03283755956 | W170: -0.02298724403 | X170: 0.03746112042 | Y170: -0.0221255288 | Z170: 0.00395806247 | AA170: -0.01216882507 | AB170: -0.0474424188 | AC170: 0.02743019463 | AD170: -0.01387246197 | AE170: 0.00523234052 | AF170: 0.0230821513 | AG170: -0.03193969683 | AH170: 6.331045894e-05 | AI170: -0.02036489231 | AJ170: 0.02869039899 | AK170: 0.02732010617 | AL170: 0.03194658184 | AM170: 0.01598932044 | AN170: 0.01788886756 | AO170: 0.0425230001 | AP170: 0.00449777523 | AQ170: -0.05359956436 | AR170: 0.04341615697 | AS170: 0.007136944867 | AT170: -0.01651705553 | AU170: -0.02780442202 | AV170: 0.03876738706 | AW170: -0.04699193733 | AX170: -0.01169104822 | AY170: 0.01335687389 | AZ170: 0.03301922266 | BA170: -0.002338895913 | BB170: -0.02274802688 | BC170: 0.00394678049 | BD170: -0.01692240409 | BE170: 0.01228880598 | BF170: -0.01104250426 | BG170: -0.007501519425 | BH170: 0.00645052574 | BI170: -0.01326166181 | BJ170: 0.003474431506 | BK170: -0.03354374366 | BL170: 0.07106259891 | BM170: -0.0196434803 | BN170: -0.02097548099 | BO170: -0.006407476779 | BP170: 0.007228152195 | BQ170: 0.002379967179 | BR170: 0.007919870333 | BS170: -0.006404129847 | BT170: 0.02792633853 | BU170: -0.0264121626 | BV170: 0.003807249684 | BW170: 0.008473961595 | BX170: -0.001412389533 | BY170: -0.03025436583 | BZ170: -0.008084168536 | CA170: 0.06869503504 | CB170: -0.02334073012 | CC170: -0.01733161816 | CD170: 0.04687088355 | CE170: 0.05814489892 | CF170: 0.008382613803 | CG170: 0.03696339724 | CH170: -0.007844928318 | CI170: 0.01915266768 | CJ170: -0.02749638548 | CK170: 0.02511195529 | CL170: 0.007109569391 | CM170: 0.004076032673 | CN170: -0.02564848106 | CO170: -0.06108064549 | CP170: 0.07156527919 | CQ170: -0.02547050429 | CR170: 0.01186864167 | CS170: -0.02100311755 | CT170: -0.0180390903 | CU170: 0.01104391414 | CV170: -0.01562961776 | CW170: 0.04059072773
B171: 0 | C171: 0 | D171: 0 | E171: 0 | F171: 0 | G171: 0 | H171: 0 | I171: 0 | J171: 0 | K171: 0 | L171: 0 | M171: 0 | N171: 0 | O171: 0 | P171: 0 | Q171: 0 | R171: 0 | S171: 0 | T171: 0 | U171: 0 | V171: 0 | W171: 0 | X171: 0 | Y171: 0 | Z171: 0 | AA171: 0 | AB171: 0 | AC171: 0 | AD171: 0 | AE171: 0 | AF171: 0 | AG171: 0 | AH171: 0 | AI171: 0 | AJ171: 0 | AK171: 0 | AL171: 0 | AM171: 0 | AN171: 0 | AO171: 0 | AP171: 0 | AQ171: 0 | AR171: 0 | AS171: 0 | AT171: 0 | AU171: 0 | AV171: 0 | AW171: 0 | AX171: 0 | AY171: 0 | AZ171: 0 | BA171: 0 | BB171: 0 | BC171: 0 | BD171: 0 | BE171: 0 | BF171: 0 | BG171: 0 | BH171: 0 | BI171: 0 | BJ171: 0 | BK171: 0 | BL171: 0 | BM171: 0 | BN171: 0 | BO171: 0 | BP171: 0 | BQ171: 0 | BR171: 0 | BS171: 0 | BT171: 0 | BU171: 0 | BV171: 0 | BW171: 0 | BX171: 0 | BY171: 0 | BZ171: 0 | CA171: 0 | CB171: 0 | CC171: 0 | CD171: 0 | CE171: 0 | CF171: 0 | CG171: 0 | CH171: 0 | CI171: 0 | CJ171: 0 | CK171: 0 | CL171: 0 | CM171: 0 | CN171: 0 | CO171: 0 | CP171: 0 | CQ171: 0 | CR171: 0 | CS171: 0 | CT171: 0 | CU171: 0 | CV171: 0 | CW171: 0
B172: 0 | C172: 0 | D172: 0 | E172: 0 | F172: 0 | G172: 0 | H172: 0 | I172: 0 | J172: 0 | K172: 0 | L172: 0 | M172: 0 | N172: 0 | O172: 0 | P172: 0 | Q172: 0 | R172: 0 | S172: 0 | T172: 0 | U172: 0 | V172: 0 | W172: 0 | X172: 0 | Y172: 0 | Z172: 0 | AA172: 0 | AB172: 0 | AC172: 0 | AD172: 0 | AE172: 0 | AF172: 0 | AG172: 0 | AH172: 0 | AI172: 0 | AJ172: 0 | AK172: 0 | AL172: 0 | AM172: 0 | AN172: 0 | AO172: 0 | AP172: 0 | AQ172: 0 | AR172: 0 | AS172: 0 | AT172: 0 | AU172: 0 | AV172: 0 | AW172: 0 | AX172: 0 | AY172: 0 | AZ172: 0 | BA172: 0 | BB172: 0 | BC172: 0 | BD172: 0 | BE172: 0 | BF172: 0 | BG172: 0 | BH172: 0 | BI172: 0 | BJ172: 0 | BK172: 0 | BL172: 0 | BM172: 0 | BN172: 0 | BO172: 0 | BP172: 0 | BQ172: 0 | BR172: 0 | BS172: 0 | BT172: 0 | BU172: 0 | BV172: 0 | BW172: 0 | BX172: 0 | BY172: 0 | BZ172: 0 | CA172: 0 | CB172: 0 | CC172: 0 | CD172: 0 | CE172: 0 | CF172: 0 | CG172: 0 | CH172: 0 | CI172: 0 | CJ172: 0 | CK172: 0 | CL172: 0 | CM172: 0 | CN172: 0 | CO172: 0 | CP172: 0 | CQ172: 0 | CR172: 0 | CS172: 0 | CT172: 0 | CU172: 0 | CV172: 0 | CW172: 0
B173: 0 | C173: 0 | D173: 0 | E173: 0 | F173: 0 | G173: 0 | H173: 0 | I173: 0 | J173: 0 | K173: 0 | L173: 0 | M173: 0 | N173: 0 | O173: 0 | P173: 0 | Q173: 0 | R173: 0 | S173: 0 | T173: 0 | U173: 0 | V173: 0 | W173: 0 | X173: 0 | Y173: 0 | Z173: 0 | AA173: 0 | AB173: 0 | AC173: 0 | AD173: 0 | AE173: 0 | AF173: 0 | AG173: 0 | AH173: 0 | AI173: 0 | AJ173: 0 | AK173: 0 | AL173: 0 | AM173: 0 | AN173: 0 | AO173: 0 | AP173: 0 | AQ173: 0 | AR173: 0 | AS173: 0 | AT173: 0 | AU173: 0 | AV173: 0 | AW173: 0 | AX173: 0 | AY173: 0 | AZ173: 0 | BA173: 0 | BB173: 0 | BC173: 0 | BD173: 0 | BE173: 0 | BF173: 0 | BG173: 0 | BH173: 0 | BI173: 0 | BJ173: 0 | BK173: 0 | BL173: 0 | BM173: 0 | BN173: 0 | BO173: 0 | BP173: 0 | BQ173: 0 | BR173: 0 | BS173: 0 | BT173: 0 | BU173: 0 | BV173: 0 | BW173: 0 | BX173: 0 | BY173: 0 | BZ173: 0 | CA173: 0 | CB173: 0 | CC173: 0 | CD173: 0 | CE173: 0 | CF173: 0 | CG173: 0 | CH173: 0 | CI173: 0 | CJ173: 0 | CK173: 0 | CL173: 0 | CM173: 0 | CN173: 0 | CO173: 0 | CP173: 0 | CQ173: 0 | CR173: 0 | CS173: 0 | CT173: 0 | CU173: 0 | CV173: 0 | CW173: 0
B174: 0 | C174: 0 | D174: 0 | E174: 0 | F174: 0 | G174: 0 | H174: 0 | I174: 0 | J174: 0 | K174: 0 | L174: 0 | M174: 0 | N174: 0 | O174: 0 | P174: 0 | Q174: 0 | R174: 0 | S174: 0 | T174: 0 | U174: 0 | V174: 0 | W174: 0 | X174: 0 | Y174: 0 | Z174: 0 | AA174: 0 | AB174: 0 | AC174: 0 | AD174: 0 | AE174: 0 | AF174: 0 | AG174: 0 | AH174: 0 | AI174: 0 | AJ174: 0 | AK174: 0 | AL174: 0 | AM174: 0 | AN174: 0 | AO174: 0 | AP174: 0 | AQ174: 0 | AR174: 0 | AS174: 0 | AT174: 0 | AU174: 0 | AV174: 0 | AW174: 0 | AX174: 0 | AY174: 0 | AZ174: 0 | BA174: 0 | BB174: 0 | BC174: 0 | BD174: 0 | BE174: 0 | BF174: 0 | BG174: 0 | BH174: 0 | BI174: 0 | BJ174: 0 | BK174: 0 | BL174: 0 | BM174: 0 | BN174: 0 | BO174: 0 | BP174: 0 | BQ174: 0 | BR174: 0 | BS174: 0 | BT174: 0 | BU174: 0 | BV174: 0 | BW174: 0 | BX174: 0 | BY174: 0 | BZ174: 0 | CA174: 0 | CB174: 0 | CC174: 0 | CD174: 0 | CE174: 0 | CF174: 0 | CG174: 0 | CH174: 0 | CI174: 0 | CJ174: 0 | CK174: 0 | CL174: 0 | CM174: 0 | CN174: 0 | CO174: 0 | CP174: 0 | CQ174: 0 | CR174: 0 | CS174: 0 | CT174: 0 | CU174: 0 | CV174: 0 | CW174: 0
B175: 0 | C175: 0 | D175: 0 | E175: 0 | F175: 0 | G175: 0 | H175: 0 | I175: 0 | J175: 0 | K175: 0 | L175: 0 | M175: 0 | N175: 0 | O175: 0 | P175: 0 | Q175: 0 | R175: 0 | S175: 0 | T175: 0 | U175: 0 | V175: 0 | W175: 0 | X175: 0 | Y175: 0 | Z175: 0 | AA175: 0 | AB175: 0 | AC175: 0 | AD175: 0 | AE175: 0 | AF175: 0 | AG175: 0 | AH175: 0 | AI175: 0 | AJ175: 0 | AK175: 0 | AL175: 0 | AM175: 0 | AN175: 0 | AO175: 0 | AP175: 0 | AQ175: 0 | AR175: 0 | AS175: 0 | AT175: 0 | AU175: 0 | AV175: 0 | AW175: 0 | AX175: 0 | AY175: 0 | AZ175: 0 | BA175: 0 | BB175: 0 | BC175: 0 | BD175: 0 | BE175: 0 | BF175: 0 | BG175: 0 | BH175: 0 | BI175: 0 | BJ175: 0 | BK175: 0 | BL175: 0 | BM175: 0 | BN175: 0 | BO175: 0 | BP175: 0 | BQ175: 0 | BR175: 0 | BS175: 0 | BT175: 0 | BU175: 0 | BV175: 0 | BW175: 0 | BX175: 0 | BY175: 0 | BZ175: 0 | CA175: 0 | CB175: 0 | CC175: 0 | CD175: 0 | CE175: 0 | CF175: 0 | CG175: 0 | CH175: 0 | CI175: 0 | CJ175: 0 | CK175: 0 | CL175: 0 | CM175: 0 | CN175: 0 | CO175: 0 | CP175: 0 | CQ175: 0 | CR175: 0 | CS175: 0 | CT175: 0 | CU175: 0 | CV175: 0 | CW175: 0
B176: 0 | C176: 0 | D176: 0 | E176: 0 | F176: 0 | G176: 0 | H176: 0 | I176: 0 | J176: 0 | K176: 0 | L176: 0 | M176: 0 | N176: 0 | O176: 0 | P176: 0 | Q176: 0 | R176: 0 | S176: 0 | T176: 0 | U176: 0 | V176: 0 | W176: 0 | X176: 0 | Y176: 0 | Z176: 0 | AA176: 0 | AB176: 0 | AC176: 0 | AD176: 0 | AE176: 0 | AF176: 0 | AG176: 0 | AH176: 0 | AI176: 0 | AJ176: 0 | AK176: 0 | AL176: 0 | AM176: 0 | AN176: 0 | AO176: 0 | AP176: 0 | AQ176: 0 | AR176: 0 | AS176: 0 | AT176: 0 | AU176: 0 | AV176: 0 | AW176: 0 | AX176: 0 | AY176: 0 | AZ176: 0 | BA176: 0 | BB176: 0 | BC176: 0 | BD176: 0 | BE176: 0 | BF176: 0 | BG176: 0 | BH176: 0 | BI176: 0 | BJ176: 0 | BK176: 0 | BL176: 0 | BM176: 0 | BN176: 0 | BO176: 0 | BP176: 0 | BQ176: 0 | BR176: 0 | BS176: 0 | BT176: 0 | BU176: 0 | BV176: 0 | BW176: 0 | BX176: 0 | BY176: 0 | BZ176: 0 | CA176: 0 | CB176: 0 | CC176: 0 | CD176: 0 | CE176: 0 | CF176: 0 | CG176: 0 | CH176: 0 | CI176: 0 | CJ176: 0 | CK176: 0 | CL176: 0 | CM176: 0 | CN176: 0 | CO176: 0 | CP176: 0 | CQ176: 0 | CR176: 0 | CS176: 0 | CT176: 0 | CU176: 0 | CV176: 0 | CW176: 0
B177: 0 | C177: 0 | D177: 0 | E177: 0 | F177: 0 | G177: 0 | H177: 0 | I177: 0 | J177: 0 | K177: 0 | L177: 0 | M177: 0 | N177: 0 | O177: 0 | P177: 0 | Q177: 0 | R177: 0 | S177: 0 | T177: 0 | U177: 0 | V177: 0 | W177: 0 | X177: 0 | Y177: 0 | Z177: 0 | AA177: 0 | AB177: 0 | AC177: 0 | AD177: 0 | AE177: 0 | AF177: 0 | AG177: 0 | AH177: 0 | AI177: 0 | AJ177: 0 | AK177: 0 | AL177: 0 | AM177: 0 | AN177: 0 | AO177: 0 | AP177: 0 | AQ177: 0 | AR177: 0 | AS177: 0 | AT177: 0 | AU177: 0 | AV177: 0 | AW177: 0 | AX177: 0 | AY177: 0 | AZ177: 0 | BA177: 0 | BB177: 0 | BC177: 0 | BD177: 0 | BE177: 0 | BF177: 0 | BG177: 0 | BH177: 0 | BI177: 0 | BJ177: 0 | BK177: 0 | BL177: 0 | BM177: 0 | BN177: 0 | BO177: 0 | BP177: 0 | BQ177: 0 | BR177: 0 | BS177: 0 | BT177: 0 | BU177: 0 | BV177: 0 | BW177: 0 | BX177: 0 | BY177: 0 | BZ177: 0 | CA177: 0 | CB177: 0 | CC177: 0 | CD177: 0 | CE177: 0 | CF177: 0 | CG177: 0 | CH177: 0 | CI177: 0 | CJ177: 0 | CK177: 0 | CL177: 0 | CM177: 0 | CN177: 0 | CO177: 0 | CP177: 0 | CQ177: 0 | CR177: 0 | CS177: 0 | CT177: 0 | CU177: 0 | CV177: 0 | CW177: 0
B178: 0 | C178: 0 | D178: 0 | E178: 0 | F178: 0 | G178: 0 | H178: 0 | I178: 0 | J178: 0 | K178: 0 | L178: 0 | M178: 0 | N178: 0 | O178: 0 | P178: 0 | Q178: 0 | R178: 0 | S178: 0 | T178: 0 | U178: 0 | V178: 0 | W178: 0 | X178: 0 | Y178: 0 | Z178: 0 | AA178: 0 | AB178: 0 | AC178: 0 | AD178: 0 | AE178: 0 | AF178: 0 | AG178: 0 | AH178: 0 | AI178: 0 | AJ178: 0 | AK178: 0 | AL178: 0 | AM178: 0 | AN178: 0 | AO178: 0 | AP178: 0 | AQ178: 0 | AR178: 0 | AS178: 0 | AT178: 0 | AU178: 0 | AV178: 0 | AW178: 0 | AX178: 0 | AY178: 0 | AZ178: 0 | BA178: 0 | BB178: 0 | BC178: 0 | BD178: 0 | BE178: 0 | BF178: 0 | BG178: 0 | BH178: 0 | BI178: 0 | BJ178: 0 | BK178: 0 | BL178: 0 | BM178: 0 | BN178: 0 | BO178: 0 | BP178: 0 | BQ178: 0 | BR178: 0 | BS178: 0 | BT178: 0 | BU178: 0 | BV178: 0 | BW178: 0 | BX178: 0 | BY178: 0 | BZ178: 0 | CA178: 0 | CB178: 0 | CC178: 0 | CD178: 0 | CE178: 0 | CF178: 0 | CG178: 0 | CH178: 0 | CI178: 0 | CJ178: 0 | CK178: 0 | CL178: 0 | CM178: 0 | CN178: 0 | CO178: 0 | CP178: 0 | CQ178: 0 | CR178: 0 | CS178: 0 | CT178: 0 | CU178: 0 | CV178: 0 | CW178: 0
B179: 0 | C179: 0 | D179: 0 | E179: 0 | F179: 0 | G179: 0 | H179: 0 | I179: 0 | J179: 0 | K179: 0 | L179: 0 | M179: 0 | N179: 0 | O179: 0 | P179: 0 | Q179: 0 | R179: 0 | S179: 0 | T179: 0 | U179: 0 | V179: 0 | W179: 0 | X179: 0 | Y179: 0 | Z179: 0 | AA179: 0 | AB179: 0 | AC179: 0 | AD179: 0 | AE179: 0 | AF179: 0 | AG179: 0 | AH179: 0 | AI179: 0 | AJ179: 0 | AK179: 0 | AL179: 0 | AM179: 0 | AN179: 0 | AO179: 0 | AP179: 0 | AQ179: 0 | AR179: 0 | AS179: 0 | AT179: 0 | AU179: 0 | AV179: 0 | AW179: 0 | AX179: 0 | AY179: 0 | AZ179: 0 | BA179: 0 | BB179: 0 | BC179: 0 | BD179: 0 | BE179: 0 | BF179: 0 | BG179: 0 | BH179: 0 | BI179: 0 | BJ179: 0 | BK179: 0 | BL179: 0 | BM179: 0 | BN179: 0 | BO179: 0 | BP179: 0 | BQ179: 0 | BR179: 0 | BS179: 0 | BT179: 0 | BU179: 0 | BV179: 0 | BW179: 0 | BX179: 0 | BY179: 0 | BZ179: 0 | CA179: 0 | CB179: 0 | CC179: 0 | CD179: 0 | CE179: 0 | CF179: 0 | CG179: 0 | CH179: 0 | CI179: 0 | CJ179: 0 | CK179: 0 | CL179: 0 | CM179: 0 | CN179: 0 | CO179: 0 | CP179: 0 | CQ179: 0 | CR179: 0 | CS179: 0 | CT179: 0 | CU179: 0 | CV179: 0 | CW179: 0
B180: 0 | C180: 0 | D180: 0 | E180: 0 | F180: 0 | G180: 0 | H180: 0 | I180: 0 | J180: 0 | K180: 0 | L180: 0 | M180: 0 | N180: 0 | O180: 0 | P180: 0 | Q180: 0 | R180: 0 | S180: 0 | T180: 0 | U180: 0 | V180: 0 | W180: 0 | X180: 0 | Y180: 0 | Z180: 0 | AA180: 0 | AB180: 0 | AC180: 0 | AD180: 0 | AE180: 0 | AF180: 0 | AG180: 0 | AH180: 0 | AI180: 0 | AJ180: 0 | AK180: 0 | AL180: 0 | AM180: 0 | AN180: 0 | AO180: 0 | AP180: 0 | AQ180: 0 | AR180: 0 | AS180: 0 | AT180: 0 | AU180: 0 | AV180: 0 | AW180: 0 | AX180: 0 | AY180: 0 | AZ180: 0 | BA180: 0 | BB180: 0 | BC180: 0 | BD180: 0 | BE180: 0 | BF180: 0 | BG180: 0 | BH180: 0 | BI180: 0 | BJ180: 0 | BK180: 0 | BL180: 0 | BM180: 0 | BN180: 0 | BO180: 0 | BP180: 0 | BQ180: 0 | BR180: 0 | BS180: 0 | BT180: 0 | BU180: 0 | BV180: 0 | BW180: 0 | BX180: 0 | BY180: 0 | BZ180: 0 | CA180: 0 | CB180: 0 | CC180: 0 | CD180: 0 | CE180: 0 | CF180: 0 | CG180: 0 | CH180: 0 | CI180: 0 | CJ180: 0 | CK180: 0 | CL180: 0 | CM180: 0 | CN180: 0 | CO180: 0 | CP180: 0 | CQ180: 0 | CR180: 0 | CS180: 0 | CT180: 0 | CU180: 0 | CV180: 0 | CW180: 0
B181: 0 | C181: 0 | D181: 0 | E181: 0 | F181: 0 | G181: 0 | H181: 0 | I181: 0 | J181: 0 | K181: 0 | L181: 0 | M181: 0 | N181: 0 | O181: 0 | P181: 0 | Q181: 0 | R181: 0 | S181: 0 | T181: 0 | U181: 0 | V181: 0 | W181: 0 | X181: 0 | Y181: 0 | Z181: 0 | AA181: 0 | AB181: 0 | AC181: 0 | AD181: 0 | AE181: 0 | AF181: 0 | AG181: 0 | AH181: 0 | AI181: 0 | AJ181: 0 | AK181: 0 | AL181: 0 | AM181: 0 | AN181: 0 | AO181: 0 | AP181: 0 | AQ181: 0 | AR181: 0 | AS181: 0 | AT181: 0 | AU181: 0 | AV181: 0 | AW181: 0 | AX181: 0 | AY181: 0 | AZ181: 0 | BA181: 0 | BB181: 0 | BC181: 0 | BD181: 0 | BE181: 0 | BF181: 0 | BG181: 0 | BH181: 0 | BI181: 0 | BJ181: 0 | BK181: 0 | BL181: 0 | BM181: 0 | BN181: 0 | BO181: 0 | BP181: 0 | BQ181: 0 | BR181: 0 | BS181: 0 | BT181: 0 | BU181: 0 | BV181: 0 | BW181: 0 | BX181: 0 | BY181: 0 | BZ181: 0 | CA181: 0 | CB181: 0 | CC181: 0 | CD181: 0 | CE181: 0 | CF181: 0 | CG181: 0 | CH181: 0 | CI181: 0 | CJ181: 0 | CK181: 0 | CL181: 0 | CM181: 0 | CN181: 0 | CO181: 0 | CP181: 0 | CQ181: 0 | CR181: 0 | CS181: 0 | CT181: 0 | CU181: 0 | CV181: 0 | CW181: 0
B182: 0 | C182: 0 | D182: 0 | E182: 0 | F182: 0 | G182: 0 | H182: 0 | I182: 0 | J182: 0 | K182: 0 | L182: 0 | M182: 0 | N182: 0 | O182: 0 | P182: 0 | Q182: 0 | R182: 0 | S182: 0 | T182: 0 | U182: 0 | V182: 0 | W182: 0 | X182: 0 | Y182: 0 | Z182: 0 | AA182: 0 | AB182: 0 | AC182: 0 | AD182: 0 | AE182: 0 | AF182: 0 | AG182: 0 | AH182: 0 | AI182: 0 | AJ182: 0 | AK182: 0 | AL182: 0 | AM182: 0 | AN182: 0 | AO182: 0 | AP182: 0 | AQ182: 0 | AR182: 0 | AS182: 0 | AT182: 0 | AU182: 0 | AV182: 0 | AW182: 0 | AX182: 0 | AY182: 0 | AZ182: 0 | BA182: 0 | BB182: 0 | BC182: 0 | BD182: 0 | BE182: 0 | BF182: 0 | BG182: 0 | BH182: 0 | BI182: 0 | BJ182: 0 | BK182: 0 | BL182: 0 | BM182: 0 | BN182: 0 | BO182: 0 | BP182: 0 | BQ182: 0 | BR182: 0 | BS182: 0 | BT182: 0 | BU182: 0 | BV182: 0 | BW182: 0 | BX182: 0 | BY182: 0 | BZ182: 0 | CA182: 0 | CB182: 0 | CC182: 0 | CD182: 0 | CE182: 0 | CF182: 0 | CG182: 0 | CH182: 0 | CI182: 0 | CJ182: 0 | CK182: 0 | CL182: 0 | CM182: 0 | CN182: 0 | CO182: 0 | CP182: 0 | CQ182: 0 | CR182: 0 | CS182: 0 | CT182: 0 | CU182: 0 | CV182: 0 | CW182: 0
B183: 0 | C183: 0 | D183: 0 | E183: 0 | F183: 0 | G183: 0 | H183: 0 | I183: 0 | J183: 0 | K183: 0 | L183: 0 | M183: 0 | N183: 0 | O183: 0 | P183: 0 | Q183: 0 | R183: 0 | S183: 0 | T183: 0 | U183: 0 | V183: 0 | W183: 0 | X183: 0 | Y183: 0 | Z183: 0 | AA183: 0 | AB183: 0 | AC183: 0 | AD183: 0 | AE183: 0 | AF183: 0 | AG183: 0 | AH183: 0 | AI183: 0 | AJ183: 0 | AK183: 0 | AL183: 0 | AM183: 0 | AN183: 0 | AO183: 0 | AP183: 0 | AQ183: 0 | AR183: 0 | AS183: 0 | AT183: 0 | AU183: 0 | AV183: 0 | AW183: 0 | AX183: 0 | AY183: 0 | AZ183: 0 | BA183: 0 | BB183: 0 | BC183: 0 | BD183: 0 | BE183: 0 | BF183: 0 | BG183: 0 | BH183: 0 | BI183: 0 | BJ183: 0 | BK183: 0 | BL183: 0 | BM183: 0 | BN183: 0 | BO183: 0 | BP183: 0 | BQ183: 0 | BR183: 0 | BS183: 0 | BT183: 0 | BU183: 0 | BV183: 0 | BW183: 0 | BX183: 0 | BY183: 0 | BZ183: 0 | CA183: 0 | CB183: 0 | CC183: 0 | CD183: 0 | CE183: 0 | CF183: 0 | CG183: 0 | CH183: 0 | CI183: 0 | CJ183: 0 | CK183: 0 | CL183: 0 | CM183: 0 | CN183: 0 | CO183: 0 | CP183: 0 | CQ183: 0 | CR183: 0 | CS183: 0 | CT183: 0 | CU183: 0 | CV183: 0 | CW183: 0
B184: 0 | C184: 0 | D184: 0 | E184: 0 | F184: 0 | G184: 0 | H184: 0 | I184: 0 | J184: 0 | K184: 0 | L184: 0 | M184: 0 | N184: 0 | O184: 0 | P184: 0 | Q184: 0 | R184: 0 | S184: 0 | T184: 0 | U184: 0 | V184: 0 | W184: 0 | X184: 0 | Y184: 0 | Z184: 0 | AA184: 0 | AB184: 0 | AC184: 0 | AD184: 0 | AE184: 0 | AF184: 0 | AG184: 0 | AH184: 0 | AI184: 0 | AJ184: 0 | AK184: 0 | AL184: 0 | AM184: 0 | AN184: 0 | AO184: 0 | AP184: 0 | AQ184: 0 | AR184: 0 | AS184: 0 | AT184: 0 | AU184: 0 | AV184: 0 | AW184: 0 | AX184: 0 | AY184: 0 | AZ184: 0 | BA184: 0 | BB184: 0 | BC184: 0 | BD184: 0 | BE184: 0 | BF184: 0 | BG184: 0 | BH184: 0 | BI184: 0 | BJ184: 0 | BK184: 0 | BL184: 0 | BM184: 0 | BN184: 0 | BO184: 0 | BP184: 0 | BQ184: 0 | BR184: 0 | BS184: 0 | BT184: 0 | BU184: 0 | BV184: 0 | BW184: 0 | BX184: 0 | BY184: 0 | BZ184: 0 | CA184: 0 | CB184: 0 | CC184: 0 | CD184: 0 | CE184: 0 | CF184: 0 | CG184: 0 | CH184: 0 | CI184: 0 | CJ184: 0 | CK184: 0 | CL184: 0 | CM184: 0 | CN184: 0 | CO184: 0 | CP184: 0 | CQ184: 0 | CR184: 0 | CS184: 0 | CT184: 0 | CU184: 0 | CV184: 0 | CW184: 0
B185: 0 | C185: 0 | D185: 0 | E185: 0 | F185: 0 | G185: 0 | H185: 0 | I185: 0 | J185: 0 | K185: 0 | L185: 0 | M185: 0 | N185: 0 | O185: 0 | P185: 0 | Q185: 0 | R185: 0 | S185: 0 | T185: 0 | U185: 0 | V185: 0 | W185: 0 | X185: 0 | Y185: 0 | Z185: 0 | AA185: 0 | AB185: 0 | AC185: 0 | AD185: 0 | AE185: 0 | AF185: 0 | AG185: 0 | AH185: 0 | AI185: 0 | AJ185: 0 | AK185: 0 | AL185: 0 | AM185: 0 | AN185: 0 | AO185: 0 | AP185: 0 | AQ185: 0 | AR185: 0 | AS185: 0 | AT185: 0 | AU185: 0 | AV185: 0 | AW185: 0 | AX185: 0 | AY185: 0 | AZ185: 0 | BA185: 0 | BB185: 0 | BC185: 0 | BD185: 0 | BE185: 0 | BF185: 0 | BG185: 0 | BH185: 0 | BI185: 0 | BJ185: 0 | BK185: 0 | BL185: 0 | BM185: 0 | BN185: 0 | BO185: 0 | BP185: 0 | BQ185: 0 | BR185: 0 | BS185: 0 | BT185: 0 | BU185: 0 | BV185: 0 | BW185: 0 | BX185: 0 | BY185: 0 | BZ185: 0 | CA185: 0 | CB185: 0 | CC185: 0 | CD185: 0 | CE185: 0 | CF185: 0 | CG185: 0 | CH185: 0 | CI185: 0 | CJ185: 0 | CK185: 0 | CL185: 0 | CM185: 0 | CN185: 0 | CO185: 0 | CP185: 0 | CQ185: 0 | CR185: 0 | CS185: 0 | CT185: 0 | CU185: 0 | CV185: 0 | CW185: 0
B186: 0 | C186: 0 | D186: 0 | E186: 0 | F186: 0 | G186: 0 | H186: 0 | I186: 0 | J186: 0 | K186: 0 | L186: 0 | M186: 0 | N186: 0 | O186: 0 | P186: 0 | Q186: 0 | R186: 0 | S186: 0 | T186: 0 | U186: 0 | V186: 0 | W186: 0 | X186: 0 | Y186: 0 | Z186: 0 | AA186: 0 | AB186: 0 | AC186: 0 | AD186: 0 | AE186: 0 | AF186: 0 | AG186: 0 | AH186: 0 | AI186: 0 | AJ186: 0 | AK186: 0 | AL186: 0 | AM186: 0 | AN186: 0 | AO186: 0 | AP186: 0 | AQ186: 0 | AR186: 0 | AS186: 0 | AT186: 0 | AU186: 0 | AV186: 0 | AW186: 0 | AX186: 0 | AY186: 0 | AZ186: 0 | BA186: 0 | BB186: 0 | BC186: 0 | BD186: 0 | BE186: 0 | BF186: 0 | BG186: 0 | BH186: 0 | BI186: 0 | BJ186: 0 | BK186: 0 | BL186: 0 | BM186: 0 | BN186: 0 | BO186: 0 | BP186: 0 | BQ186: 0 | BR186: 0 | BS186: 0 | BT186: 0 | BU186: 0 | BV186: 0 | BW186: 0 | BX186: 0 | BY186: 0 | BZ186: 0 | CA186: 0 | CB186: 0 | CC186: 0 | CD186: 0 | CE186: 0 | CF186: 0 | CG186: 0 | CH186: 0 | CI186: 0 | CJ186: 0 | CK186: 0 | CL186: 0 | CM186: 0 | CN186: 0 | CO186: 0 | CP186: 0 | CQ186: 0 | CR186: 0 | CS186: 0 | CT186: 0 | CU186: 0 | CV186: 0 | CW186: 0
B187: 0 | C187: 0 | D187: 0 | E187: 0 | F187: 0 | G187: 0 | H187: 0 | I187: 0 | J187: 0 | K187: 0 | L187: 0 | M187: 0 | N187: 0 | O187: 0 | P187: 0 | Q187: 0 | R187: 0 | S187: 0 | T187: 0 | U187: 0 | V187: 0 | W187: 0 | X187: 0 | Y187: 0 | Z187: 0 | AA187: 0 | AB187: 0 | AC187: 0 | AD187: 0 | AE187: 0 | AF187: 0 | AG187: 0 | AH187: 0 | AI187: 0 | AJ187: 0 | AK187: 0 | AL187: 0 | AM187: 0 | AN187: 0 | AO187: 0 | AP187: 0 | AQ187: 0 | AR187: 0 | AS187: 0 | AT187: 0 | AU187: 0 | AV187: 0 | AW187: 0 | AX187: 0 | AY187: 0 | AZ187: 0 | BA187: 0 | BB187: 0 | BC187: 0 | BD187: 0 | BE187: 0 | BF187: 0 | BG187: 0 | BH187: 0 | BI187: 0 | BJ187: 0 | BK187: 0 | BL187: 0 | BM187: 0 | BN187: 0 | BO187: 0 | BP187: 0 | BQ187: 0 | BR187: 0 | BS187: 0 | BT187: 0 | BU187: 0 | BV187: 0 | BW187: 0 | BX187: 0 | BY187: 0 | BZ187: 0 | CA187: 0 | CB187: 0 | CC187: 0 | CD187: 0 | CE187: 0 | CF187: 0 | CG187: 0 | CH187: 0 | CI187: 0 | CJ187: 0 | CK187: 0 | CL187: 0 | CM187: 0 | CN187: 0 | CO187: 0 | CP187: 0 | CQ187: 0 | CR187: 0 | CS187: 0 | CT187: 0 | CU187: 0 | CV187: 0 | CW187: 0
B188: 0 | C188: 0 | D188: 0 | E188: 0 | F188: 0 | G188: 0 | H188: 0 | I188: 0 | J188: 0 | K188: 0 | L188: 0 | M188: 0 | N188: 0 | O188: 0 | P188: 0 | Q188: 0 | R188: 0 | S188: 0 | T188: 0 | U188: 0 | V188: 0 | W188: 0 | X188: 0 | Y188: 0 | Z188: 0 | AA188: 0 | AB188: 0 | AC188: 0 | AD188: 0 | AE188: 0 | AF188: 0 | AG188: 0 | AH188: 0 | AI188: 0 | AJ188: 0 | AK188: 0 | AL188: 0 | AM188: 0 | AN188: 0 | AO188: 0 | AP188: 0 | AQ188: 0 | AR188: 0 | AS188: 0 | AT188: 0 | AU188: 0 | AV188: 0 | AW188: 0 | AX188: 0 | AY188: 0 | AZ188: 0 | BA188: 0 | BB188: 0 | BC188: 0 | BD188: 0 | BE188: 0 | BF188: 0 | BG188: 0 | BH188: 0 | BI188: 0 | BJ188: 0 | BK188: 0 | BL188: 0 | BM188: 0 | BN188: 0 | BO188: 0 | BP188: 0 | BQ188: 0 | BR188: 0 | BS188: 0 | BT188: 0 | BU188: 0 | BV188: 0 | BW188: 0 | BX188: 0 | BY188: 0 | BZ188: 0 | CA188: 0 | CB188: 0 | CC188: 0 | CD188: 0 | CE188: 0 | CF188: 0 | CG188: 0 | CH188: 0 | CI188: 0 | CJ188: 0 | CK188: 0 | CL188: 0 | CM188: 0 | CN188: 0 | CO188: 0 | CP188: 0 | CQ188: 0 | CR188: 0 | CS188: 0 | CT188: 0 | CU188: 0 | CV188: 0 | CW188: 0
B189: 0 | C189: 0 | D189: 0 | E189: 0 | F189: 0 | G189: 0 | H189: 0 | I189: 0 | J189: 0 | K189: 0 | L189: 0 | M189: 0 | N189: 0 | O189: 0 | P189: 0 | Q189: 0 | R189: 0 | S189: 0 | T189: 0 | U189: 0 | V189: 0 | W189: 0 | X189: 0 | Y189: 0 | Z189: 0 | AA189: 0 | AB189: 0 | AC189: 0 | AD189: 0 | AE189: 0 | AF189: 0 | AG189: 0 | AH189: 0 | AI189: 0 | AJ189: 0 | AK189: 0 | AL189: 0 | AM189: 0 | AN189: 0 | AO189: 0 | AP189: 0 | AQ189: 0 | AR189: 0 | AS189: 0 | AT189: 0 | AU189: 0 | AV189: 0 | AW189: 0 | AX189: 0 | AY189: 0 | AZ189: 0 | BA189: 0 | BB189: 0 | BC189: 0 | BD189: 0 | BE189: 0 | BF189: 0 | BG189: 0 | BH189: 0 | BI189: 0 | BJ189: 0 | BK189: 0 | BL189: 0 | BM189: 0 | BN189: 0 | BO189: 0 | BP189: 0 | BQ189: 0 | BR189: 0 | BS189: 0 | BT189: 0 | BU189: 0 | BV189: 0 | BW189: 0 | BX189: 0 | BY189: 0 | BZ189: 0 | CA189: 0 | CB189: 0 | CC189: 0 | CD189: 0 | CE189: 0 | CF189: 0 | CG189: 0 | CH189: 0 | CI189: 0 | CJ189: 0 | CK189: 0 | CL189: 0 | CM189: 0 | CN189: 0 | CO189: 0 | CP189: 0 | CQ189: 0 | CR189: 0 | CS189: 0 | CT189: 0 | CU189: 0 | CV189: 0 | CW189: 0
